Workbook

Sheet Beskrivning metodik
B2: Hur fungerar svensk grundskola för elever med npf-diagnoser? En jämförelse för utgångselever våren 2022
B4: Beskrivning av metodik för statistikframställning
B5: Beställare: Christian Wettergren, christian.wettergren@gmail.com för föräldranätverket Rätten till Utbildning
C7: Sammanfattning och introduktion
C8: Undersökt population är alla elever i årkurs 9 i grundskolan eller grundsärskolan läsåret ht 2021 - vt 2022
C9: Data framställs genom samkörning av SCB/Skolverkets skolstatistik med Socialstyrelsens patientregister och aggregeras så att personuppgifter inte lämnas ut.
C10: Nedan återfinns beställningsunderlag och metodikbeskrivningar från oss, Socialstyrelsen samt SCB.
C12: Beställning:
C17: Under projektets gång har vi kompletterat vår ansökan till att också titta på sambandet mellan elever som ej uppnått gymnasiebehörighet och om de fått särskilt stöd.
C18: Variablerna Underkänd_Beh_Gymn_stod och Underkänd_Beh_12godkänd_stod har lagts till.
C21: Socialstyrelsens bearbetning
C22: Socialstyrelsen har tagit emot en statistikbeställning som också förutsätter medverkan från SCB, se nedan samt bilagor.
C23: Vårt diarienummer för beställningsärendet är 9000/2023. Som du och jag diskuterade har vi också tagit del av SCB:s förslag till alternativt upplägg,
C24: att SCB förser Socialstyrelsen med inte bara personnummer för personer i den aktuella kohorten (elever i årskurs 9 den 31 augusti 2021), utan också
C25: de uppgifter från SCB:s register som behövs för den önskade statistiken, och att Socialstyrelsen framställer statistiken och levererar till beställaren.
C26: Vi (Socialstyrelsen) accepterar det förslaget, och även beställaren har meddelat att han accepterar det. Beställaren har nu också accepterat Socialstyrelsens
C27: specifikation avseende kostnad och leveranstid, och vi kan därför gå vidare i ärendet.
C29: I enlighet med beställningen begär Socialstyrelsen därför följande uppgifter från SCB, avseende elever i årskurs 9 den 31 augusti 2021:
C30: " Personnummer
C31: " Hemortskommun 2021-08-31 (kommunkod)
C32: " Huruvida eleven gick i grundskola 2021-08-31, eller inte (1/0)
C33: " Huruvida eleven gick i grundsärskola 2021-08-31, eller inte (1/0)
C34: " Elevens meritpoäng vid avslutad årskurs 9
C35: " Huruvida eleven har å ena sidan betyg F eller saknar betyg, eller å andra sidan annat betyg, i matematik vid avslutad årskurs 9 (1/0)
C36: " Huruvida eleven har å ena sidan betyg F eller saknar betyg, eller å andra sidan annat betyg, i svenska vid avslutad årskurs 9 (1/0)
C37: " Huruvida eleven har å ena sidan betyg F eller saknar betyg, eller å andra sidan annat betyg, i engelska vid avslutad årskurs 9 (1/0)
C38: " Huruvida eleven har allmän behörighet till yrkesprogram på gymnasiet vid avslutad årskurs 9 (åtta eller fler godkända betyg inkl. ma/sv/eng), eller inte (1/0)
C39: " Huruvida eleven har allmän behörighet till högskoleförberedande gymnasium vid avslutad årskurs 9 (tolv eller fler godkända betyg inkl. ma/sv/eng), eller inte (1/0)
C40: " Elevens antal ämnen utan godkända betyg (dvs. med betyg F eller utan betyg) vid avslutad årskurs 9
C41: " Huruvida eleven hade beslutade åtgärdsprogram någon gång under åk 7-9, eller inte (1/0)
C42: " Huruvida eleven hade åtgärden enskild undervisning någon gång under åk 7-9, eller inte (1/0)
C43: " Huruvida eleven hade anpassad studiegång någon gång under åk 7-9, eller inte (1/0)
C45: Urvalsgrupper
C46: En elev anses tillhöra en grupp om den antingen har fått en specifik diagnoskod som huvuddiagnos vid minst ett tillfälle, alternativt fått
C47: diagnoskoden som bidiagnos vid minst två tillfällen.
C48: När det gäller ADHD-medicinering så räknas minst två uttag av ADHD-medicineringen som uppfyllt kriterium.
C49: För suicidförsök ("avsiktligt självdestruktiv handling") räknas minst en förekomst, på grund av allvarligheten i händelsen.
C51: Diagnosgrupper | D51: Undergrupper | E51: Kommentar
C52: Unga utan IF | D52: #1 AUTISM | E52: Kärndiagnoserna autism och adhd/add undersöks separat samt i kombination.
D53: elev med någon av ICD F84.0 F84.1 F84.2 F84.4 F84.5
D54: har ej ICD F70-F79
D55: #2 ADHD eller ADD
D56: elev med ICD F90
D57: har ej ICD F70-F79
D58: Alternativt skulle förskrivning av ADHD-läkemedel från läkemedelsregistret kunna användas, med ATC-koder:
D59: § N06BA Centralt verkande sympatomimetika (exkl. N06BA07 Modafinil mot narkolepsi)
D60: § C02AC02 Guanfacin
D61: #3 AUTISM & (ADHD eller ADD)
D62: se ovan
D63: #4 DYSLEXI
D64: elev med ICD F81 eller R48 | E64: Dyslexi och språkstörning studeras separat, utan att undersöka skärningar med de andra npf-diagnoserna
D65: har ej ICD F70-F79
D66: #5 SPRÅKSTÖRNING
D67: elev med ICD F80
D68: har ej ICD F70-F79
D69: #6 Inte AUTISM, ADHD, ADD, DYSLEXI eller SPRÅKSTÖRNING | E69: Personer kan ha många diagnoser som ej är relaterade till npf, så vi definierar ”utan diagnos” som de personer som inte har någon av de undersökta diagnoskoderna (men kan så klart ha andra diagnoser).
D70: ingen diagnoskos i ovanstående grupper (ICD F.84, F.90, R.48, F.80), det vill säga alla de ”vanliga” eleverna.
D71: har ej heller ICD F70-F79
C72: Unga med IF | D72: #7 Inte AUTISM och/eller ADHD/ADD | E72: Ej valt att studera dyslexi, språkstörning eller andra npf-diagnoser här
D73: elev har någon av ICD F70-F79
D74: elev har inte någon av ICD F84.0 F84.1 F84.2 F84.4 F84.5 F90
D75: #8 AUTISM och/eller ADHD/ADD
D76: elev har någon av ICD F70-F79
D77: elev har någon av ICD F84.0 F84.1 F84.2 F84.4 F84.5 F90
C78: Mående | D78: - För suicidförsök så har jag istället undersökt yttre orsakskoder i patientregistret (X60-X84, Avsiktligt självdestruktiv handling). - En enskild förekomst har räknats som 'suicidförsök'. (Sucidförsök ICD Z91.5 har ej använts) | E78: För alla elever.
C80: Sekretess-kryssning av underlagen
C81: Kryssning har av materialet har följt Socialstyrelsens myndighetspolicy, där celler med små värden 1-3 har ersatts med ”X”.
C82: Om det av någonstans i undantagsfall endast funnit ett ”X” inom samma län, så har även det näst minsta värdets kryssats för att undvika röjande.
C84: Speciellt hanterade elevgrupper i SCB:s material
C85: § Omkring 600 elever i materialet har undervisats enligt Waldorfpedagogiken, och har betyget ”Y” i ämnena samt verkar ha meritpoäng = 0. Dessa har utelämnats.
C87: § Omkring 3.000 elever (av 122.308 totalt) i SCB:s underlag saknar betyg eller angivet hur många underkända betyg det är.
C88: Dessa 3.695 elever är elever som ingick i populationen men som inte finns i registret över slutbetyg 2022.
C89: Eleverna har redovisats i underlaget som "Saknas i register", och eleverna tas inte med i populationen för beräkning av genomsnittlig meritpoäng.
C94: Utdrag ur SCBs offert | D94: 262 196 / 800 765-0
C96: 1. Bakgrund och syfte
C97: Vid Föreningen Rätten till utbildning bedrivs ett arbete med att analysera skolstatistik för funktionsnedsatta elever. Projektets
C98: frågeställningar och syfte framgår av beställningen. Som ett led i detta arbete har SCB kontaktats för framställning av ett
C99: identifierbart individmaterial som belyser förhållanden avseende utbildning.
C101: 2. Uppdragets genomförande
C102: 2.1. Population
C103: Populationen hämtas från utbildningsregistret och utgörs av av elever i årskurs 9 i grundskola och grundsärskola ht 2021- vt 2022.
C105: 2.2. Variabler
C106: För samtliga individer i populationen inhämtas uppgifter från följande register:
C108: Variabelnamn | D108: Beskrivning | E108: År | F108: Källa
C109: Personnr | D109: Personnummer population | E109: 30/9 2022 | F109: Skolverkets elevregister
C110: Hemkommun | D110: Kommun | E110: 30/9 2022 | F110: Skolverkets elevregister
C111: MeritVarde_M2 | D111: Meritvärde 17 bästa ämnen | E111: 2022 | F111: Skolverkets elevregister
C112: Ma | D112: Betyg i Matematik | E112: 2022 | F112: Skolverkets elevregister
C113: Sv | D113: Betyg i Svenska | E113: 2022 | F113: Skolverkets elevregister
C114: Sva | D114: Betyg i Svenska som andraspråk | E114: 2022 | F114: Skolverkets elevregister
C115: En | D115: Betyg i Engelska | E115: 2022 | F115: Skolverkets elevregister
C116: Beh_Gymn | D116: Behörighet (yrkesprogram) gymnasiet | E116: 2022 | F116: Skolverkets elevregister
C117: Beh_NT, Beh_EHS, Beh_EST | D117: Behörighet till NT eller EHS eller EST | E117: 2022 | F117: Skolverkets elevregister
C118: Antal_F | D118: Genomsnittligt antal ämnen utan godkända betyg (F eller streck) | E118: 2022 | F118: Skolverkets elevregister
C119: Atgardsprg | D119: Beslutade åtgärdsprogram någon gång under åk 7-9. | E119: 2022 | F119: Skolverkets elevregister
C120: Sarsk_undergrp | D120: Åtgärden särskild undervisningsgrupp någon gång under åk 7-9. | E120: 2022 | F120: Skolverkets elevregister
C121: Sarsk_ensk | D121: Åtgärden enskild undervisning någon gång under åk 7-9. | E121: 2022 | F121: Skolverkets elevregister
C122: Anp_stud | D122: Anpassad studiegång någon gång under åk 7-9. | E122: 2022 | F122: Skolverkets elevregister
C124: SCB:s register bygger på uppgifter som samlas in för publicering av statistik. Över tid kan de register som hålls av SCB genomgå revideringar.
C126: 2.3. Bearbetning
C127: Vid matchning mot olika register kommer hänsyn att tas till eventuella personnummerändringar. Uppgifter som härleds från personnummer
C128: avser senast kända personnummer.
C130: 2.4. Population och data sänds till annan registerhållare
C131: SCB levererar personnummer och data för populationen till Socialstyrelsen för vidare datauttag och aggregerad tabellframställning och vidare leverans till kund.
C133: 2.5. Specifikation av leverans
C134: Identifierbara uppgifter levereras till Socialstyrelsen i form av en datafil i SAS-format via SGSI. Filen levereras krypterad.
C136: 6. Behandling av personuppgifter
C137: Vid behandling av personuppgifter gäller EU:s dataskyddsförordning (GDPR). I lagen (2001:99) om den officiella statistiken och de föreskrifter som
C138: har meddelats i anslutning till lagen finns kompletterande bestämmelser som tillämpas vid framställning av statistik, och om inte annat följer av
C139: dessa gäller även lagen (2018:218) om kompletterande bestämmelser till EU:s dataskyddsförordning och de föreskrifter som har meddelats i
C140: anslutning till den lagen. Mer information om hur SCB behandlar personuppgifter finns här: Behandling av personuppgifter (scb.se).
C142: För att SCB ska få behandla sådana personuppgifter som avses i artikel 9.1 (känsliga personuppgifter) och artikel 10 (lagöverträdelser) i EU:s
C143: dataskyddsförordning krävs att behandlingen är nödvändig för statistiska ändamål och att samhällsintresset av det statistikprojekt där
C144: behandlingen ingår klart väger över den risk för otillbörligt intrång i enskildas personliga integritet som behandlingen kan innebära.
C146: 7. Sekretess
C147: Enligt 24 kap. 8 § offentlighets- och sekretesslagen (2009:400), OSL, gäller sekretess i SCB:s statistikverksamhet för uppgift som avser en
C148: enskilds personliga eller ekonomiska förhållanden och som kan hänföras till den enskilde.
C150: Uppgift som behövs för forsknings- eller statistikändamål och uppgift som inte genom namn, annan identitetsbeteckning eller liknande för-
C151: hållande är direkt hänförlig till den enskilde får dock lämnas ut, om det står klart att uppgiften kan röjas utan att den enskilde eller någon
C152: närstående till denne lider skada eller men.
C153: Sekretess gäller också enligt 21 kap. 7 § OSL för personuppgift, om det kan antas att uppgiften efter ett utlämnande kommer att behandlas i
C154: strid med EU:s dataskyddsförordning (2016/679), lagen (2018:218) med kompletterande bestämmelser till EU:s dataskyddsförordning, eller 6 §
C155: lagen (2003:460) om etikprövning av forskning som avser människor.
B158: Observationer på inkommet underlag
C160: Körningen har resulterat i fyra tabeller på var sin flik i en excel; Populationen, Suicid, Meritvärden och underkända, Resultat & Stöd.
C162: Populationen:
C163: Totala elevpopulationer för respektive av ovanstående diagnosgrupp, samt för den sammanlagda elevpopulationen.
C164: Två rader för varje kommun, län samt för Riket som helhet.
C165: Den ena raden refererar till elever inskrivna i grundskola (verksamhet 11), den andra till elever inskrivna i särskola/anpassad skola (13).
C166: I denna studie har vi huvudsakligen studerat elever i grundskola, men underlag finns för studier i anpassad skola också.
C168: Suicid:
C169: Antalet självmordsförsök ("Avsiktlig självdestruktiv handling") för respektive av ovanstående diagnosgrupp, samt för den sammanlagda elevpopulationen.
C170: Då antalet förekomster är lägre, så är relativt många datapunkter markerade "X".
C171: Metodik för att hantera detta återfinns i fliken "Suicidförsök beräkning".
C173: Meritvärden och underkända:
C174: Beräknade meritvärden mm för respektive av ovanstående diagnosgrupp, samt för den sammanlagda elevpopulationen.
C175: En rad finns för elever i grundskola, och en rad för elever i anpassad grundskola.
C176: För varje diagnosgrupp (samt totalpopulationen) finns tre värden: Meritvärde, Genomsnittligt antal F-betyg samt totalt antal elever i beräkningen
C178: Resultat & Stöd
C179: Denna tabell innehåller antal elever i en rad olika kategorier (på flera successiva rader) för respektive av ovanstående diagnosgrupp, samt för den sammanlagda elevpopulationen.
C180: Denna tabell gäller enbart för grundskola (ej för anpassad grundskola).
C181: Nedan kommer en beskrivning av respektive rads innebörd:
C182: ▪ Anp_stud: Antal elever i diagnosgruppen som haft anpassad studiegång under åk 7-9.
C183: ▪ Atgardsprg: Antal elever i diagnosgruppen som haft ett beslutat åtgärdsprogram under åk 7-9.
C184: ▪ Sarsk_ensk: Antal elever i diagnosgruppen som haft beslut om enskild undervisning under åk 7-9.
C185: ▪ Sarsk_undergrp: Antal elever i diagnosgruppen som haft beslut om att ingå i en särskilt undervisningsgrupp under åk 7-9.
C186: ▪ Underkänd_Beh_12godkänd: Antal elever i diagnosgruppen som inte uppnått gymnasiebehörighet för högskoleförberedande linjer.
C187: ▪ Underkänd_Beh_12godkänd_stöd: Antal elever i diagnosgruppen som inte uppnått gymnasiebehörighet för högskoleförberedande linjer och som fick någon slags särkskilt stöd under åk 7-9.
C188: ▪ Underkänd_Beh_Gymn: Antal elever i diagnosgruppen som inte uppnått gymnasiebehörighet för yrkesförberedande linjer.
C189: ▪ Underkänd_Beh_Gymn_stöd: Antal elever i diagnosgruppen som inte uppnått gymnasiebehörighet för yrkesförberedande linjer och som fick någon slags särkskilt stöd under åk 7-9.
C190: ▪ Underkänd_En: Antal elever i diagnosgruppen som fick underlänt slutbetyg i engelska.
C191: ▪ Underkänd_Ma: Antal elever i diagnosgruppen som fick underlänt slutbetyg i matematik.
C192: ▪ Underkänd_Sv: Antal elever i diagnosgruppen som fick underlänt slutbetyg i svenska.
C194: ▪ Strax under 4000 elever har av olika skäl ej erhållit slutbetyg (återfinns ej i registret för slutbetyg). Dessa finns redovisade på länsnivå, indelade i resp diagnosgrupp. Dessa rader har markerat med "Saknas i register"

Sheet Beskriv kommungrupper
B2: Kommungruppsindelning
B4: Kommungruppsindelning | SKR
B6: En beskrivning av SKR:s kommungruppsindelning som gäller från den 1 januari 2023.
B8: Kommungruppsindelningen används för att underlätta jämförelser och analyser i olika statistiska sammanhang och är framtagen av SKR. Indelningen består av totalt nio grupper fördelade på tre huvudgrupper, där kommunerna grupperats utifrån vissa kriterier som tätortsstorlek, närhet till större tätort och pendlingsmönster. Dataunderlaget är hämtat från SCB:s olika databaser.
B10: Förändringar jämfört med tidigare indelning
B12: Kommungruppsindelningen 2023 har samma kommungrupper som 2017 men den statistik som ligger till grund för indelningen, till exempel befolkning och pendling, har uppdaterats. I och med detta har 33 av kommunerna bytt kommungrupp.
B14: A. Storstäder och storstadsnära kommuner
B15: A1. Storstäder: Kommuner med minst 200 000 invånare varav minst 200 000 invånare i den största tätorten.
B16: A2. Pendlingskommun nära storstad: Kommuner där minst 40 procent av nattbefolkningen pendlar till arbete i en storstad eller storstadsnära kommun.
B18: B. Större städer och kommuner nära större stad
B20: B3. Större stad: Kommuner med minst 50 000 invånare varav minst 40 000 invånare i den största tätorten.
B21: B4. Pendlingskommun nära större stad: Kommuner där minst 40 procent av nattbefolkningen pendlar till arbete i en större stad.
B22: B5. Lågpendlingskommun nära större stad: Kommuner där mindre än 40 procent av nattbefolkningen pendlar till arbete i en större stad.
B24: C. Mindre städer/tätorter och landsbygdskommuner
B26: C6. Mindre stad/tätort: Kommuner med minst 15 000 men mindre än 40 000 invånare i den största tätorten.
B27: C7. Pendlingskommun nära mindre stad/tätort: Kommuner där minst 30 procent av nattbefolkningen pendlar till arbete i annan mindre ort och/eller där minst 30 procent av den sysselsatta dagbefolkningen bor i annan kommun.
B28: C8. Landsbygdskommun: Kommuner med mindre än 15 000 invånare i den största tätorten, lågt pendlingsmönster (mindre än 30 procent).
B29: C9. Landsbygdskommun med besöksnäring: Landsbygdskommun med minst två kriterier för besöksnäring, det vill säga antal gästnätter, omsättning inom detaljhandel/ hotell/ restaurang i förhållande till invånarantalet.

Sheet Enskilt område>>

Sheet Urval
B2: Urval av data att studera
B5: Val av område:
B7: Geografisk nivå: | C7: Riket
B8: =C7&":" -> Riket: | C8: Riket
B9: =IF(C7<>"Kommun","","Län:") ->  | C9: =IF(C7<>"Kommun","",VLOOKUP(C8,Kommuner!F5:G317,2,FALSE)) -> 
B14: Områden för utskrift
B16: Start: | C16: 1881 Kumla
B17: Slut: | C17: 2584 Kiruna
B18: =IF(C16<>"Kommun","","Län:") ->  | C18: =IF(C16<>"Kommun","",VLOOKUP(C17,Kommuner!F14:G326,2,FALSE)) -> 
B23: =C8 -> Riket
D24: Elever utan npf | F24: =I35 -> npf
B25: Totalt | D25: =J69 -> 106228 | F25: =OFFSET(B69,0,I36+2) -> 13648
B26: Fått särskilt stöd | D26: =J83 -> 7681 | F26: =OFFSET(B83,0,I36+2) -> 6249
B27: =C35 -> Behörig yrkesgymnasium | C27: Ej uppnått: | D27: =OFFSET(J86,C37,0) -> 12380 | F27: =OFFSET(B86,C37,I36+2) -> 4595
B33: Skolresultat (ej aktiv): | E33: Skolform (begränsad funktion för särskola): | H33: Diagnoser (ej aktiv):
B35: Skolresultat: | C35: Behörig yrkesgymnasium | E35: Skolform: | F35: grundskola | H35: Diagnoser: | I35: npf
B36: Parameter | C36: =VLOOKUP(C35,Listor!G3:I11,2,FALSE) -> Underkänd_Beh_Gymn | E36: Verksform: | F36: =IF(F35="grundskola","11","13") -> 11 | H36: Index: | I36: =VLOOKUP(I35,Listor!B3:C11,2,FALSE) -> 10
B37: Index | C37: =VLOOKUP(C35,Listor!G3:I11,3,FALSE) -> 2 | E37: =IF(F35<>"Kommun","","Län:") ->  | F37: =IF(F35<>"Kommun","",VLOOKUP(F36,Kommuner!J5:K317,2,FALSE)) ->  | H37: =IF(I35<>"Kommun","","Län:") ->  | I37: =IF(I35<>"Kommun","",VLOOKUP(I36,Kommuner!B5:C317,2,FALSE)) -> 
B46: NEDBRYTNING GYMNBEHÖRIGHET OCH STÖD | D46: # elever | E46: # elever | F46: # elever
B47: Total population | D47: =D69 -> 119876
B48: - Elever utan funktionsnedsättning | D48: =J69 -> 106228
C49: Klarar gymnasiebehörighet | E49: =D48-J88 -> 93848
C50: & fick stöd | F50: =J83-F53 -> 3100
C51: & fick inte stöd | F51: =E49-F50 -> 90748
C52: Klarar inte gymnasiebehörighet | E52: =J88 -> 12380
C53: & fick stöd | F53: =J89 -> 4581
C54: & fick inte stöd | F54: =E52-F53 -> 7799
B56: - Elever med funktionsnedsättning | D56: =D47-D48 -> 13648
C57: Klarar gymnasiebehörighet | E57: =D56-(D88-J88) -> 9053
C58: & fick stöd | F58: =D83-J83-F61 -> 2746
C59: & fick inte stöd | F59: =E57-F58 -> 6307
C60: Klarar inte gymnasiebehörighet | E60: =D88-J88 -> 4595
C61: & fick stöd | F61: =D89-J89 -> 3503
C62: & fick inte stöd | F62: =E60-F61 -> 1092
B66: Basdata valt område
P67: DATAKVALITET
B68: Flik: POPULATION | D68: Totalt | E68: n1 (AUTISM) | F68: n2 (ADHD) | G68: n3 (AUTISM OCH ADHD) | H68: n4 (DYSLEXI) | I68: n5 (SPRÅKSTÖRNING) | J68: n6 (EJ NPF-DIAGNOS) | K68: n7 (IF MEN EJ NPF) | L68: n8 (IF OCH NPF) | M68: =Aggregator!M8 -> IF | N68: =Aggregator!N8 -> NPF (utan IF) | P68: Totalt | Q68: n1 (AUTISM) | R68: n2 (ADHD) | S68: n3 (AUTISM OCH ADHD) | T68: n4 (DYSLEXI) | U68: n5 (SPRÅKSTÖRNING) | V68: n6 (EJ NPF-DIAGNOS) | W68: n7 (IF MEN EJ NPF) | X68: n8 (IF OCH NPF) | Y68: =Aggregator!Y8 -> n8 (IF OCH NPF) | Z68: NPF
B69: =C8 -> Riket | D69: =Aggregator!D9 -> 119876 | E69: =Aggregator!E9 -> 3690 | F69: =Aggregator!F9 -> 11295 | G69: =Aggregator!G9 -> 2319 | H69: =Aggregator!H9 -> 849 | I69: =Aggregator!I9 -> 1113 | J69: =Aggregator!J9 -> 106228 | K69: =Aggregator!K9 -> 103 | L69: =Aggregator!L9 -> 120 | M69: =Aggregator!M9 -> 223 | N69: =Aggregator!N9 -> 13648 | P69: =Aggregator!Q9 -> 0 | Q69: =Aggregator!R9 -> 0 | R69: =Aggregator!S9 -> 0 | S69: =Aggregator!T9 -> 0 | T69: =Aggregator!U9 -> 0 | U69: =Aggregator!V9 -> 0 | V69: =Aggregator!W9 -> 0 | W69: =Aggregator!X9 -> 0 | X69: =Aggregator!Y9 -> 0 | Y69: =Aggregator!Z9 -> 0 | Z69: =Aggregator!AA9 -> 0
B70: =Aggregator!B10 ->  | D70: =Aggregator!D10 ->  | E70: =Aggregator!E10 ->  | F70: =Aggregator!F10 ->  | G70: =Aggregator!G10 ->  | H70: =Aggregator!H10 ->  | I70: =Aggregator!I10 ->  | J70: =Aggregator!J10 ->  | K70: =Aggregator!K10 ->  | L70: =Aggregator!L10 ->  | M70: =Aggregator!M10 -> 0 | N70: =Aggregator!N10 ->  | P70: =Aggregator!Q10 -> 0
B72: Flik: SUICID
B73: =C8 -> Riket | D73: =Aggregator!D15 -> 985 | E73: =Aggregator!E15 -> 169 | F73: =Aggregator!F15 -> 372 | G73: =Aggregator!G15 -> 118 | H73: =Aggregator!H15 -> 21 | I73: =Aggregator!I15 -> 10 | J73: =Aggregator!J15 -> 537 | K73: =Aggregator!K15 -> 5 | L73: =Aggregator!L15 -> 13 | M73: =Aggregator!M15 -> 18 | N73: =Aggregator!N15 -> 448 | P73: =Aggregator!P15 -> 0
B74: =Aggregator!B16 ->  | D74: =Aggregator!D16 ->  | E74: =Aggregator!E16 ->  | F74: =Aggregator!F16 ->  | G74: =Aggregator!G16 ->  | H74: =Aggregator!H16 ->  | I74: =Aggregator!I16 ->  | J74: =Aggregator!J16 ->  | K74: =Aggregator!K16 ->  | L74: =Aggregator!L16 ->  | M74: =Aggregator!M16 -> 0 | N74: =Aggregator!N16 ->  | P74: =Aggregator!P16 -> 
B76: Flik: MERITVÄRDEN
B77: =C8 -> Riket | C77: Totalt | D77: =Aggregator!D21 -> 118752 | E77: =Aggregator!E21 -> 3587 | F77: =Aggregator!F21 -> 11103 | G77: =Aggregator!G21 -> 2254 | H77: =Aggregator!H21 -> 830 | I77: =Aggregator!I21 -> 1093 | J77: =Aggregator!J21 -> 105384 | K77: =Aggregator!K21 -> 81 | L77: =Aggregator!L21 -> 98 | M77: =Aggregator!M21 -> 179 | N77: =Aggregator!N21 -> 13368 | P77: =Aggregator!P21 -> 0
B78: =C8 -> Riket | C78: MeritVarde | D78: =Aggregator!D22 -> 226.64 | E78: =Aggregator!E22 -> 144.06 | F78: =Aggregator!F22 -> 156.9 | G78: =Aggregator!G22 -> 135.9 | H78: =Aggregator!H22 -> 158.58 | I78: =Aggregator!I22 -> 178.31 | J78: =Aggregator!J22 -> 235.2 | K78: =Aggregator!K22 -> 109.26 | L78: =Aggregator!L22 -> 94.69 | M78: =Aggregator!M22 -> 203.95 | N78: =Aggregator!N22 -> 159.1589228 | P78: =Aggregator!P22 -> 0
B79: =C8 -> Riket | C79: Ant_F | D79: =Aggregator!D23 -> 1.4523 | E79: =Aggregator!E23 -> 5.4698 | F79: =Aggregator!F23 -> 4.1811 | G79: =Aggregator!G23 -> 5.764 | H79: =Aggregator!H23 -> 3.93373 | I79: =Aggregator!I23 -> 3.1665 | J79: =Aggregator!J23 -> 1.10736 | K79: =Aggregator!K23 -> 7.5432 | L79: =Aggregator!L23 -> 8.1224 | M79: =Aggregator!M23 -> 15.6656 | N79: =Aggregator!N23 -> 4.171566679 | P79: =Aggregator!P23 -> 0
B81: Flik: RESULTAT & STÖD
B82: =C8 -> Riket | C82: Anp_stud | D82: =Aggregator!D33 -> 6308 | E82: =Aggregator!E33 -> 1405 | F82: =Aggregator!F33 -> 2826 | G82: =Aggregator!G33 -> 959 | H82: =Aggregator!H33 -> 179 | I82: =Aggregator!I33 -> 192 | J82: =Aggregator!J33 -> 2930 | K82: =Aggregator!K33 -> 20 | L82: =Aggregator!L33 -> 34 | M82: =Aggregator!M33 -> 54 | N82: =Aggregator!N33 -> 3378 | P82: =Aggregator!P33 -> 0
B83: =C8 -> Riket | C83: Atgardsprg | D83: =Aggregator!D34 -> 13930 | E83: =Aggregator!E34 -> 2306 | F83: =Aggregator!F34 -> 5233 | G83: =Aggregator!G34 -> 1562 | H83: =Aggregator!H34 -> 408 | I83: =Aggregator!I34 -> 451 | J83: =Aggregator!J34 -> 7681 | K83: =Aggregator!K34 -> 47 | L83: =Aggregator!L34 -> 73 | M83: =Aggregator!M34 -> 120 | N83: =Aggregator!N34 -> 6249 | P83: =Aggregator!P34 -> 0
B84: =C8 -> Riket | C84: Sarsk_ensk | D84: =Aggregator!D35 -> 2638 | E84: =Aggregator!E35 -> 569 | F84: =Aggregator!F35 -> 1096 | G84: =Aggregator!G35 -> 399 | H84: =Aggregator!H35 -> 73 | I84: =Aggregator!I35 -> 112 | J84: =Aggregator!J35 -> 1313 | K84: =Aggregator!K35 -> 12 | L84: =Aggregator!L35 -> 13 | M84: =Aggregator!M35 -> 25 | N84: =Aggregator!N35 -> 1325 | P84: =Aggregator!P35 -> 0
B85: =C8 -> Riket | C85: Sarsk_undergrp | D85: =Aggregator!D36 -> 4970 | E85: =Aggregator!E36 -> 1323 | F85: =Aggregator!F36 -> 2265 | G85: =Aggregator!G36 -> 923 | H85: =Aggregator!H36 -> 157 | I85: =Aggregator!I36 -> 189 | J85: =Aggregator!J36 -> 2209 | K85: =Aggregator!K36 -> 13 | L85: =Aggregator!L36 -> 41 | M85: =Aggregator!M36 -> 54 | N85: =Aggregator!N36 -> 2761 | P85: =Aggregator!P36 -> 0
B86: =C8 -> Riket | C86: Underkänd_Beh_12godkänd | D86: =Aggregator!D37 -> 18619 | E86: =Aggregator!E37 -> 1700 | F86: =Aggregator!F37 -> 4408 | G86: =Aggregator!G37 -> 1130 | H86: =Aggregator!H37 -> 340 | I86: =Aggregator!I37 -> 392 | J86: =Aggregator!J37 -> 13347 | K86: =Aggregator!K37 -> 59 | L86: =Aggregator!L37 -> 74 | M86: =Aggregator!M37 -> 133 | N86: =Aggregator!N37 -> 5272 | P86: =Aggregator!P37 -> 0
B87: =C8 -> Riket | C87: Underkänd_Beh_12godkänd_stöd | D87: =Aggregator!D38 -> 8923 | E87: =Aggregator!E38 -> 1497 | F87: =Aggregator!F38 -> 3295 | G87: =Aggregator!G38 -> 1012 | H87: =Aggregator!H38 -> 268 | I87: =Aggregator!I38 -> 311 | J87: =Aggregator!J38 -> 4935 | K87: =Aggregator!K38 -> 46 | L87: =Aggregator!L38 -> 65 | M87: =Aggregator!M38 -> 111 | N87: =Aggregator!N38 -> 3988 | P87: =Aggregator!P38 -> 0
B88: =C8 -> Riket | C88: Underkänd_Beh_Gymn | D88: =Aggregator!D39 -> 16975 | E88: =Aggregator!E39 -> 1485 | F88: =Aggregator!F39 -> 3822 | G88: =Aggregator!G39 -> 988 | H88: =Aggregator!H39 -> 308 | I88: =Aggregator!I39 -> 369 | J88: =Aggregator!J39 -> 12380 | K88: =Aggregator!K39 -> 59 | L88: =Aggregator!L39 -> 71 | M88: =Aggregator!M39 -> 130 | N88: =Aggregator!N39 -> 4595 | P88: =Aggregator!P39 -> 0
B89: =C8 -> Riket | C89: Underkänd_Beh_Gymn_stöd | D89: =Aggregator!D40 -> 8084 | E89: =Aggregator!E40 -> 1316 | F89: =Aggregator!F40 -> 2879 | G89: =Aggregator!G40 -> 891 | H89: =Aggregator!H40 -> 246 | I89: =Aggregator!I40 -> 295 | J89: =Aggregator!J40 -> 4581 | K89: =Aggregator!K40 -> 46 | L89: =Aggregator!L40 -> 63 | M89: =Aggregator!M40 -> 109 | N89: =Aggregator!N40 -> 3503 | P89: =Aggregator!P40 -> 0
B90: =C8 -> Riket | C90: Underkänd_En | D90: =Aggregator!D41 -> 7386 | E90: =Aggregator!E41 -> 561 | F90: =Aggregator!F41 -> 1511 | G90: =Aggregator!G41 -> 384 | H90: =Aggregator!H41 -> 155 | I90: =Aggregator!I41 -> 192 | J90: =Aggregator!J41 -> 5544 | K90: =Aggregator!K41 -> 37 | L90: =Aggregator!L41 -> 40 | M90: =Aggregator!M41 -> 77 | N90: =Aggregator!N41 -> 1842 | P90: =Aggregator!P41 -> 0
B91: =C8 -> Riket | C91: Underkänd_Ma | D91: =Aggregator!D42 -> 11849 | E91: =Aggregator!E42 -> 982 | F91: =Aggregator!F42 -> 2716 | G91: =Aggregator!G42 -> 676 | H91: =Aggregator!H42 -> 221 | I91: =Aggregator!I42 -> 266 | J91: =Aggregator!J42 -> 8612 | K91: =Aggregator!K42 -> 57 | L91: =Aggregator!L42 -> 57 | M91: =Aggregator!M42 -> 114 | N91: =Aggregator!N42 -> 3237 | P91: =Aggregator!P42 -> 0
B92: =C8 -> Riket | C92: Underkänd_Sv | D92: =Aggregator!D43 -> 4546 | E92: =Aggregator!E43 -> 773 | F92: =Aggregator!F43 -> 1819 | G92: =Aggregator!G43 -> 551 | H92: =Aggregator!H43 -> 146 | I92: =Aggregator!I43 -> 197 | J92: =Aggregator!J43 -> 2371 | K92: =Aggregator!K43 -> 23 | L92: =Aggregator!L43 -> 46 | M92: =Aggregator!M43 -> 69 | N92: =Aggregator!N43 -> 2175 | P92: =Aggregator!P43 -> 0
B95: Vald referens: | C95: =_xlfn.IFS(C7="Kommun","Län",C7="Län","Riket",TRUE,"Ingen") -> Ingen
B97: Basdata för vald referens
B99: Flik: POPULATION | D99: Totalt | E99: n1 (AUTISM) | F99: n2 (ADHD) | G99: n3 (AUTISM OCH ADHD) | H99: n4 (DYSLEXI) | I99: n5 (SPRÅKSTÖRNING) | J99: n6 (EJ NPF-DIAGNOS) | K99: n7 (IF MEN EJ NPF) | L99: n8 (IF OCH NPF) | M99: =Aggregator!M8 -> IF | N99: =Aggregator!N8 -> NPF (utan IF) | P99: =Aggregator!P8 -> Datakvalitet
B100: 05 Östergötland | D100: 5409 | E100: 159 | F100: 416 | G100: 107 | H100: 41 | I100: 43 | J100: 4915 | K100: 6 | L100: 2 | M100: 8 | N100: 494 | P100: 1
B102: Flik: SUICID
B103: 05 Östergötland | D103: 63 | E103: 8 | F103: 18 | G103: 6 | H103: 2 | I103: 0 | J103: 40 | K103: 2 | L103: 2 | M103: 4 | N103: 23 | P103: 3
B105: Flik: MERITVÄRDEN
B106: 05 Östergötland | C106: Totalt | D106: 5364 | E106: 154 | F106: 405 | G106: 105 | H106: 40 | I106: 43 | J106: 4886 | K106: 5 | L106: 2 | M106: 7 | N106: 478 | P106: 0
B107: 05 Östergötland | C107: MeritVarde | D107: 220.33 | E107: 122.69 | F107: 129.17 | G107: 106.26 | H107: 106.19 | I107: 114.88 | J107: 228.96 | K107: 80 | L107: . | M107: 80 | N107: 132.1162343 | P107: 0
B108: 05 Östergötland | C108: Ant_F | D108: 1.6361 | E108: 6.9351 | F108: 5.5901 | G108: 7.4667 | H108: 6.85 | I108: 6.4186 | J108: 1.24744 | K108: 8.8 | L108: . | M108: 8.8 | N108: 5.608888201 | P108: 0
B110: Flik: RESULTAT & STÖD
B111: 05 Östergötland | C111: Anp_stud | D111: 343 | E111: 74 | F111: 146 | G111: 53 | H111: 16 | I111: 12 | J111: 173 | K111: 0 | L111: 2 | M111: 2 | N111: 170 | P111: 1
B112: 05 Östergötland | C112: Atgardsprg | D112: 874 | E112: 104 | F112: 243 | G112: 78 | H112: 31 | I112: 28 | J112: 593 | K112: 2 | L112: 2 | M112: 4 | N112: 281 | P112: 2
B113: 05 Östergötland | C113: Sarsk_ensk | D113: 188 | E113: 31 | F113: 70 | G113: 25 | H113: 8 | I113: 9 | J113: 109 | K113: 2 | L113: 2 | M113: 4 | N113: 79 | P113: 2
B114: 05 Östergötland | C114: Sarsk_undergrp | D114: 201 | E114: 60 | F114: 83 | G114: 43 | H114: 8 | I114: 13 | J114: 98 | K114: 2 | L114: 0 | M114: 2 | N114: 103 | P114: 1
B115: 05 Östergötland | C115: Underkänd_Beh_12godkänd | D115: 961 | E115: 93 | F115: 212 | G115: 66 | H115: 26 | I115: 27 | J115: 708 | K115: 4 | L115: 2 | M115: 6 | N115: 253 | P115: 1
B116: 05 Östergötland | C116: Underkänd_Beh_12godkänd_stöd | D116: 579 | E116: 81 | F116: 165 | G116: 58 | H116: 22 | I116: 23 | J116: 380 | K116: 2 | L116: 2 | M116: 4 | N116: 199 | P116: 2
B117: 05 Östergötland | C117: Underkänd_Beh_Gymn | D117: 870 | E117: 82 | F117: 185 | G117: 59 | H117: 25 | I117: 27 | J117: 648 | K117: 4 | L117: 2 | M117: 6 | N117: 222 | P117: 1
B118: 05 Östergötland | C118: Underkänd_Beh_Gymn_stöd | D118: 526 | E118: 74 | F118: 146 | G118: 53 | H118: 21 | I118: 23 | J118: 348 | K118: 2 | L118: 2 | M118: 4 | N118: 178 | P118: 2
B119: 05 Östergötland | C119: Underkänd_En | D119: 398 | E119: 39 | F119: 87 | G119: 28 | H119: 12 | I119: 17 | J119: 292 | K119: 2 | L119: 2 | M119: 4 | N119: 106 | P119: 2
B120: 05 Östergötland | C120: Underkänd_Ma | D120: 636 | E120: 59 | F120: 135 | G120: 44 | H120: 18 | I120: 20 | J120: 475 | K120: 4 | L120: 2 | M120: 6 | N120: 161 | P120: 1
B121: 05 Östergötland | C121: Underkänd_Sv | D121: 245 | E121: 43 | F121: 89 | G121: 29 | H121: 13 | I121: 13 | J121: 136 | K121: 2 | L121: 0 | M121: 2 | N121: 109 | P121: 1

Sheet Graf 1 Översikt
B3: Hur är situationen för elever med neuropsykiatriska diagnoser i svensk skola?
B4: - en samkörning av skolstatistiken & patientregistret för utgångseleverna läsåret 21/22
B5: Ett projekt av föräldranätverket Rätten till Utbildning, med hjälp av Skandias stiftelse Idéer för Livet
B8: ="Situationen för elever med npf-diagnoser i "&_xlfn.IFS(Urval!C7="Riket","Riket",TRUE,_xlfn.TEXTAFTER(Urval!C8," ")&" "&LOWER(Urval!C7)) -> Situationen för elever med npf-diagnoser i Riket
B10: Bakgrund
B11: ="Underlaget baseras på samtliga elever (ca 120.000 elever) i årskurs 9 under läsåret 21/22. Denna specifika delrapport studerar eleverna i "&_xlfn.IFS(Urval!C7="Riket","Riket",TRUE,_xlfn.TEXTAFTER(Urval!C8," ")&" "&LOWER(Urval!C7))&", " -> Underlaget baseras på samtliga elever (ca 120.000 elever) i årskurs 9 under läsåret 21/22. Denna specifika delrapport studerar eleverna i Riket,
B12: ="vilka uppgår till "&TEXT(D342,"# ###")&" st elever. Underlagen nedan baseras på en statistisk analys av SCBs skolstatistik som samkörts med Socialstyrelsens patientregister." -> vilka uppgår till 119 876 st elever. Underlagen nedan baseras på en statistisk analys av SCBs skolstatistik som samkörts med Socialstyrelsens patientregister.
B14: Som npf-elev räknas i denna analys elever som har någon av diagnoserna autism, add, adhd, dyslexi eller språkstörning, men som dock inte har
B15: ="intellektuell funktionsnedsättning. "&IF(MAX(P342,MAX(Q342:U342))>0,"Uppgifterna har en osäkerhet på "&IF(P342>0,"±"&P342&" för alla npf-elever, och","")&IF(MAX(Q342:U342)>0," ±"&MAX(Q342:U342)&" elever för olika detaljerade npf-diagnoser.",""),"") -> intellektuell funktionsnedsättning.
B16: Den kompletta analysen kommer finnas att ladda ner från http://rattentillutbildning.se/statistik/
B19: Fem snabba fakta om hur svenskt skolväsende diskriminerar npf-elever så att de tappar livslusten.
E20: ="Område: "&_xlfn.IFS(Urval!C7="Riket","'Riket'",TRUE,_xlfn.TEXTAFTER(Urval!C8," ")&" "&LOWER(Urval!C7))&" med "&TEXT('Graf 3 Fem fakta'!C46,"# ###")&" npf-elever ("&ROUND('Graf 3 Fem fakta'!C46*100/('Graf 3 Fem fakta'!C47+'Graf 3 Fem fakta'!C46),1)&"%) utav "&TEXT('Graf 3 Fem fakta'!C47+'Graf 3 Fem fakta'!C46,"# ###")&" utgångselever." -> Område: 'Riket' med 13 648 npf-elever (11,4%) utav 119 876 utgångselever.
F42: ="Eleverna i "&_xlfn.IFS(Urval!C7="Riket","Riket",TRUE,_xlfn.TEXTAFTER(Urval!C8," ")&" "&LOWER(Urval!C7)) -> Eleverna i Riket
F44: ="I "&_xlfn.IFS(Urval!C7="Riket","Riket",TRUE,_xlfn.TEXTAFTER(Urval!C8," ")&" "&LOWER(Urval!C7))&" (årkurs 9) finns det "&TEXT(C250, "# ###")&IF(P342=0,"","+/-"&P342)&" elever med någon diagnosticerad" -> I Riket (årkurs 9) finns det 13 648 elever med någon diagnosticerad
F45: ="neuropsykiatrisk funktionsnedsättning. Det utgör "&ROUND(C250/(C251+C250)*100,1)&"% av eleverna i årkursen." -> neuropsykiatrisk funktionsnedsättning. Det utgör 11,4% av eleverna i årkursen.
F47: ="Gruppen npf-elever består av följande:" -> Gruppen npf-elever består av följande:
F48: ="◦ Elever med autism: "&TEXT(E342,"# ###")&IF(Q342=0,"","±"&TEXT(Q342,"# ###"))&" st ("&ROUND(E342/D342*100,1)&"%) " -> ◦ Elever med autism: 3 690 st (3,1%)
F49: ="◦ Elever med adhd eller add: "&TEXT(F342,"# ###")&IF(R342=0,"","±"&R342)&" st ("&ROUND(F342/D342*100,1)&"%) " -> ◦ Elever med adhd eller add: 11 295 st (9,4%)
F50: ="◦ Elever med både autism och adhd/add: "&TEXT(G342,"# ###")&IF(S342=0,"","±"&S342)&" st ("&ROUND(G342/D342*100,1)&"%)" -> ◦ Elever med både autism och adhd/add: 2 319 st (1,9%)
F51: ="◦ Elever med dyslexi: "&H342&IF(T342=0,"","±"&T342)&" st ("&ROUND(H342/D342*100,1)&"%)" -> ◦ Elever med dyslexi: 849 st (0,7%)
F52: ="◦ Elever med språkstörning: "&TEXT(I342,"# ###")&IF(U342=0,"","±"&U342)&" st ("&ROUND(I342/D342*100,1)&"%)" -> ◦ Elever med språkstörning: 1 113 st (0,9%)
F53: En elev kan ha flera diagnoser.
F55: Hur går det då för dessa elever med diagnosticerade neuropsykiatriska
F56: ="funktionsnedsättningar i "&_xlfn.IFS(Urval!C7="Riket","Riket",TRUE,_xlfn.TEXTAFTER(Urval!C8," ")&" "&LOWER(Urval!C7))&"?" -> funktionsnedsättningar i Riket?
B60: ="Gymnasiebehörighet i "&_xlfn.IFS(Urval!C7="Riket","Riket",TRUE,_xlfn.TEXTAFTER(Urval!C8," ")&" "&LOWER(Urval!C7)) -> Gymnasiebehörighet i Riket
B61: Grundskolans uppdrag är att förbereda elever för vuxenlivet och ge kunskaper
B62: som förbereder dem för vidare utbildning på gymnasiet. För att få gå på gymnasiet
B63: krävs att du har slutfört grundskolan med tillräckliga betyg.
B64: För att ha gymnasiebehörighet till ett yrkesprogram krävs godkända betyg i
B65: kärnämnena svenska, engelska och matematik och i minst fem andra ämnen.
B66: För behörighet till högskoleförberedande program krävs godkänt i nio ytterligare
B67: ämnen utöver kärnämnena.
B69: ="Så hur ser det ut för npf-eleverna i svensk skola då? Jo, så mycket som "&ROUND(J250*100,0)&"% " -> Så hur ser det ut för npf-eleverna i svensk skola då? Jo, så mycket som 34%
B70: ="("&TEXT(G250,"# ###")&" st) saknar behörighet till några gymnasiestudier alls. Det ska jämföras med " -> (4 595 st) saknar behörighet till några gymnasiestudier alls. Det ska jämföras med
B71: =ROUND(J251*100,0)&"% av eleverna utan npf. Behörigheten till högskoleförberedande program är ännu" -> 12% av eleverna utan npf. Behörigheten till högskoleförberedande program är ännu
B72: ="sämre, "&ROUND(J253*100,0) & "% för npf-eleverna (jämfört med "&ROUND(J254*100,0)&"% för elever utan npf). Npf-eleverna " -> sämre, 39% för npf-eleverna (jämfört med 13% för elever utan npf). Npf-eleverna
B73: ="utgör "&ROUND(G250/(G250+G251)*100,0)&"% av alla elever som inte klarar grundläggande gymnasiebehörighet." -> utgör 27% av alla elever som inte klarar grundläggande gymnasiebehörighet.
B75: Och då är det viktigt att komma ihåg att grundläggande behörighet inte innebär
B76: att de meritpoäng eleven har räcker för att komma in på en gymnasielinje. Eller
B77: att eleven klarar av att genomföra studierna pga en för låg grad av anpassning.
F80: Meritpoäng
F81: För att komma in på en gymnasielinje behöver eleven har tillräckliga meritpoäng
F82: ="jämfört med andra sökanden. Den genomsnittliga meritpoängen för npf-elever i " -> jämfört med andra sökanden. Den genomsnittliga meritpoängen för npf-elever i
F83: =_xlfn.IFS(Urval!C7="Riket","Riket",TRUE,_xlfn.TEXTAFTER(Urval!C8," ")&" "&LOWER(Urval!C7))&" är "&ROUND(N351,0)&"p, att jämföra med meritpoängen för elever " -> Riket är 159p, att jämföra med meritpoängen för elever
F84: ="utan npf som är "&ROUND(J351,0)&"p." -> utan npf som är 235p.
F86: För att sätta det i proportion jämför vi med Skolverkets uppgifter om meritpoängen
F87: för andra utsatta elevgrupper (på nationell nivå). Npf-elevernas skolresultat ligger
F88: på nivån motsvarande några av de mest utsatta elevgrupperna i svensk skola.
F90: Ett annat sätt att illustrera det bristande stödet kan vara att notera att en npf-elev
F91: ="i genomsnitt har "&ROUND(N352,1)&" st F-betyg i sitt utgångsbetyg jämfört med "&ROUND(J352,1)&" st F-betyg för " -> i genomsnitt har 4,2 st F-betyg i sitt utgångsbetyg jämfört med 1,1 st F-betyg för
F92: ="elever utan npf i "&_xlfn.IFS(Urval!C7="Riket","Riket",TRUE,_xlfn.TEXTAFTER(Urval!C8," ")&" "&LOWER(Urval!C7))&"." -> elever utan npf i Riket.
B97: Betyg i kärnämnena
B99: Kunskapskraven i dagens läroplaner ställer höga krav på exekutiva
B100: förmågor även för den lägsta godkända gränsen, något som
B101: forskare har kritiserat under flera år.
B103: För att ha behörighet krävs godkända betyg i kärnämnena svenska
B104: engelska och matematik. Som framgår av diagrammet så är en betydligt
B105: högre andel npf-elever underkända i kärnämnena jämfört med elever
B106: utan npf.
B108: Är i själva verket kunskapskraven diskriminerande mot npf-elever
B109: med tanke på att de ställer krav på just de förmågor som
B110: funktionsnedsättningen omfattar?
F113: ="Behörigheten till yrkesgymnasium i "&_xlfn.IFS(Urval!C7="Riket","Riket",TRUE,_xlfn.TEXTAFTER(Urval!C8," ")&" "&LOWER(Urval!C7))&" varierar något med olika " -> Behörigheten till yrkesgymnasium i Riket varierar något med olika
F114: kombinationer av diagnoser, men bristen på likvärdighet är tydlig, och bristen på
F115: anpassningar baserad på de olika diagnosticerade svårigheter påtaglig.
F116: Att få ett åtgärdsprogram med några standardiserade åtgärder
F117: hjälper föga, vilket tyvärr är alltför vanligt.
F119: När kan man inte längre hävda att huvudmannen ger en likvärdig skola?
F120: När uppkommer strukturell diskriminering?
F131: Hur är det då med det erbjudna särskilda stödet?
F133: Vi har tittat på vilka elevgrupper som fått något särskilt stöd under högstadiet och
F134: hur det gått för dem. Vi kan konstatera att trots att npf-elever fått särskilt stöd
F135: ="resulterar det ändå inte i gymnasiebehörighet ("&ROUND(D271*100,1)&"% av npf-elever jämfört med " -> resulterar det ändå inte i gymnasiebehörighet (25,7% av npf-elever jämfört med
F136: =ROUND(E271*100,1)&"% för elever utan npf). Ges verkligen korrekt omfattning av stödåtgärder?" -> 4,3% för elever utan npf). Ges verkligen korrekt omfattning av stödåtgärder?
F138: Ännu mer förvånande är att det finns ett antal elever (med och utan npf) som inte
F139: får något särskilt stöd alls, trots att de har så pass stora svårigheter att nå godkänt
F140: att de går ut utan behörighet.
F142: ="Det finns också "&F333&" st npf-elever som i och för sig klarade gymnasiebehörigheten, " -> Det finns också 6307 st npf-elever som i och för sig klarade gymnasiebehörigheten,
F143: ="men som inte fick något särskilt stöd under högstadiet. Med tanke på att " -> men som inte fick något särskilt stöd under högstadiet. Med tanke på att
F144: ="meritpoängen för npf-eleverna är "&ROUND(N351,0)&"p (jämfört med "&ROUND(J351,0)&"p), har de då kunnat " -> meritpoängen för npf-eleverna är 159p (jämfört med 235p), har de då kunnat
F145: 'utvecklas så långt möjligt'? Eller har de diskriminerats?
B151: På pappret har en stor andel av npf-eleverna ett beslutat
B152: åtgärdsprogram, med viss variation för olika diagnoser.
B153: Men givet den mycket låga behörigheten till yrkesgymnasiet och
B154: de mycket låga meritpoängen hos gruppen, borde även de mer
B155: ingripande extraordinära stödåtgärderna sättas in i betydligt
B156: högre grad.
B158: Som synes ligger dock både enskild undervisning och särskild
B159: undervisningsgrupp mycket lågt, givet den elevgrupp vi pratar om.
F165: Garanterad undervisningstid
F167: Elever med npf har ofta sensoriska och kognitiva svårigheter, vilket gör det jobbigt
F168: att vistas i en otillräckligt anpassad lärmiljö, som i en storklass eller i en bullrig
F169: skollokal.
F171: Många huvudmän ser det som enklare att anpassa bort skolämnen för npf-eleven
F172: än att se till att lärmiljön är tillgänglig eller vidta andra åtgärder. Som framgår så har
F173: npf-elever i mångfalt högre grad bortanpassade skolämnen än elever utan npf.
F175: Den höga graden av bortanpassade skolämnen bidrar kraftigt till att meritpoängen
F176: ="för gruppen är så låg som "&ROUND(N351,0)&"p, speciellt med tanke på att eleverna också i " -> för gruppen är så låg som 159p, speciellt med tanke på att eleverna också i
F177: ="genomsnitt har "&ROUND(N352,1)&" st F-betyg i sitt slutbetyg. Det kan jämföras med att elever " -> genomsnitt har 4,2 st F-betyg i sitt slutbetyg. Det kan jämföras med att elever
F178: ="utan npf har "& ROUND(J352,1) & " st F i genomsnitt i slutbetyget." -> utan npf har 1,1 st F i genomsnitt i slutbetyget.
F180: Enligt skollagen skall alla elever i grundskolan få tillgång till en minsta undervisningstid,
F181: för att rätten till utbildning ska vara uppfylld. Vi ser inte att denna rättighet uppfylls
F182: för dessa elever.
B188: Vad får det bristande stödet i skolan för konsekvenser?
B189: Spelar det någon roll om lärmiljöerna verkligen är
B190: tillgängliga även för npf-elever?
B192: Statistiken ovan visar att elever med neuropsykiatriska funktions-
B193: nedsättningar (npf) är en av de mest utsatta elevgrupperna i svenskt
B194: skola. Konsekvenserna drabbar både individen själv, hela
B195: familjen och den fortsatta livsbanan för eleven under årtionden.
B197: För att visa allvarligheten har vi också studerat antalet självmordsförsök
B198: ="hos eleverna i årskurs 9 i "&D291&" och som framgår så är det en kraftig " -> hos eleverna i årskurs 9 i Riket och som framgår så är det en kraftig
B199: överrepresentation av självmordsförsök hos eleverna med npf. Elever
B200: ="med npf försöker ta sitt liv "&ROUND(J291,1)&" ggr oftare än elever utan npf. Faktum är att " -> med npf försöker ta sitt liv 6,5 ggr oftare än elever utan npf. Faktum är att
B201: ="hela "&ROUND(J288*100,0)&"% av alla självmordsförsök hos eleverna i årskurs 9 utfördes " -> hela 45% av alla självmordsförsök hos eleverna i årskurs 9 utfördes
B202: ="av npf-elever. Det är en betydande del av den psykiska ohälsan hos " -> av npf-elever. Det är en betydande del av den psykiska ohälsan hos
B203: ="elever i grundskolan." -> elever i grundskolan.
B205: =_xlfn.IFS(ISERROR(J291),"",TRUE,"Om vi också inkluderar det psykiska måendet hos övriga npf-elever") -> Om vi också inkluderar det psykiska måendet hos övriga npf-elever | H205: =IF(Aggregator!P15=0,"","(Osäkerhet i uppskattning av antal självmordsförsök +/-"&Aggregator!P15&" elever)") -> 
B206: =_xlfn.IFS(ISERROR(J291),"",TRUE,"i årskurser 1-8, så stiger antalet ytterligare, till uppskattningsvis ") -> i årskurser 1-8, så stiger antalet ytterligare, till uppskattningsvis
B207: =_xlfn.IFS(ISERROR(J291),"",TRUE,"1.5-2.5 ggr, vilket blir totalt "&ROUND(D288*1.5,2-1-INT(LOG10(ABS(D288*1.5))))&"-"&ROUND(D288*2.5,2-1-INT(LOG10(ABS(D288*2.5))))&" st självmordsförsök.") -> 1.5-2.5 ggr, vilket blir totalt 670-1100 st självmordsförsök.
B209: Konsekvenserna av det bristande stödet i skolan resulterar i en
B210: kraftigt förhöjd risk för utanförskap eller för tidig död. IFAU har visat att
B211: funktionsnedsatta unga har den högsta risken för utanförskap av
B212: alla grupper i det svenska samhället.
G213: =_xlfn.IFS(OR(ISERROR(D288+D89)),"",OR(D288<3,D89<3),"Antalet suicidförsök anges i intervallet 1-3 st.",TRUE,"") -> Antalet suicidförsök anges i intervallet 1-3 st.
B215: Det är inte för sent att vända utvecklingen!
B217: ="I denna studie har de "&N342&" st eleverna i årskurs 9 studerats, då de har ett " -> I denna studie har de 13648 st eleverna i årskurs 9 studerats, då de har ett
B218: utgångsbetyg och deras skolresultat därför är kända.
B220: Men det går ju npf-elever i de andra årskurserna F-8 i grundskolan också.
B221: Diagnosticeringen av npf ökar med årskurserna, beroende på flera
B222: samverkande faktorer. Det finns också en rad elever som är nära en
B223: eventuell diagnos, men inte riktigt uppfyller diagnoskriterierna
B224: - dessa elever har ofta också en stort behov av anpassningar och stöd.
B226: ="Vi uppskattar att utöver de ca "&ROUND(L303,2-1-INT(LOG10(ABS(L303))))&" st elever vi studerat i årskurs 9 finns " -> Vi uppskattar att utöver de ca 14000 st elever vi studerat i årskurs 9 finns
B227: ="det ytterligare ca "&ROUND(SUM(C298:K298),2-1-INT(LOG10(ABS(SUM(C298:K298)))))&" st elever i övriga årskurser med diagnos, dvs " -> det ytterligare ca 57000 st elever i övriga årskurser med diagnos, dvs
B228: ="totalt ca "&ROUND(SUM(C298:L298),2-1-INT(LOG10(ABS(SUM(C298:L298)))))&" st. Därutöver uppskattar vi att det finns omkring " -> totalt ca 71000 st. Därutöver uppskattar vi att det finns omkring
B229: ="ca "&ROUND(SUM(C297:L297),3-1-INT(LOG10(ABS(SUM(C297:L297)))))&" st elever som är odiagnosticerade/'diagnosnära' npf och har " -> ca 94200 st elever som är odiagnosticerade/'diagnosnära' npf och har
B230: därför har liknande behov.
B232: Denna bild innehåller både en utmaning och en möjlighet!
B233: Ett förbättrat stöd till npf-elever kan göra stor skillnad för de framtida
B234: skolresultaten och utvecklingen av dessa unga vuxna.
B236: För det är inte för sent att vända utvecklingen.
B237: Det är en investering för framtiden!
B245: Grafdata
B247: Graf 1 - hur många npf-elever | F247: Graf 2a | I247: Graf 2b - stapel hur klarade man behörighet? | L247: Graf 3 - stapel meritpoäng
G249: Klarade ej gymnasiebehörighet | J249: Klarade ej gymnasiebehörighet | M249: Meritpoäng
B250: ="elever med npf-diagnos ("&ROUND(C250/(C251+C250)*100,1)&"%)" -> elever med npf-diagnos (11,4%) | C250: =N342 -> 13648 | F250: Med npf | G250: =N361 -> 4595 | I250: ="Med npf"&CHAR(10)&"("&G250&" st)" -> Med npf (4595 st) | J250: =G250/N342 -> 0.3366793669 | L250: Med npf | M250: =N351 -> 159.1589228
B251: elever utan npf-diagnos | C251: =J342 -> 106228 | F251: Utan npf | G251: =J361 -> 12380 | I251: ="Utan npf"&CHAR(10)&"("&G251&" st)" -> Utan npf (12380 st) | J251: =G251/J342 -> 0.1165417781 | L251: Utan npf | M251: =J351 -> 235.2
J252: ej klarar högskoleförbered. | L252: Elev som invandrat åk 1-5 | M252: 191
I253: ="Med npf"&CHAR(10)&"("&N359&" st)" -> Med npf (5272 st) | J253: =N359/N342 -> 0.3862837046 | L253: Elev som invandrat åk 6-9 | M253: 136
I254: ="Utan npf"&CHAR(10)&"("&J359&" st)" -> Utan npf (13347 st) | J254: =J359/J342 -> 0.1256448394
B256: Graf 2b - stapel hur klarade man behörighet?
I257: Graf 3b - stapel betyg i kärnämnena
C258: Klarade ej gymnasiebehörighet till yrkesgymnasium
B259: ="Med autism "&CHAR(10)&"("&E361&" st)" -> Med autism (1485 st) | C259: =E361/E342 -> 0.4024390244 | J259: Underkänt Svenska | K259: Underkänt Engelska | L259: Underkänt Matematik | M259: Antal F-betyg
B260: ="Med adhd "&CHAR(10)&"("&F361&" st)" -> Med adhd (3822 st) | C260: =F361/F342 -> 0.3383798141 | I260: ="Med npf"&CHAR(10)&"("&G250&" st)" -> Med npf (4595 st) | J260: =N365/C250 -> 0.1593640094 | K260: =N363/C250 -> 0.13496483 | L260: =N364/C250 -> 0.2371776084 | M260: =N352 -> 4.171566679
B261: ="Med autism & adhd"&CHAR(10)&"("&G361&" st)" -> Med autism & adhd (988 st) | C261: =G361/G342 -> 0.4260457094 | I261: ="Utan npf"&CHAR(10)&"("&C251&" st)" -> Utan npf (106228 st) | J261: =J365/C251 -> 0.02231991565 | K261: =J363/C251 -> 0.05218962985 | L261: =J364/C251 -> 0.08107090409 | M261: =J352 -> 1.10736
B262: ="Med dyslexi"&CHAR(10)&"("&H361&" st)" -> Med dyslexi (308 st) | C262: =H361/H342 -> 0.3627797409
B263: ="Med språkstörning"&CHAR(10)&"("&I361&" st)" -> Med språkstörning (369 st) | C263: =I361/I342 -> 0.3315363881
B264: ="Utan npf"&CHAR(10)&"("&G251&" st)" -> Utan npf (12380 st) | C264: =J251 -> 0.1165417781
B267: Graf 4 - vilka har fått eller borde ha fått särskilt stöd?
I268: Graf 4a | L268: Graf 4b
D269: Med npf | E269: Utan npf
J270: Särskilt stöd | M270: Särskilt stöd
B271: Fått otillräckligt stöd | D271: =F335/C250 -> 0.2566676436 | E271: =F327/C251 -> 0.04312422337 | I271: Elever med npf | J271: =N356 -> 6249 | L271: Elever med npf | M271: =J271/D356 -> 0.4486001436
B272: Inte fått stöd alls | D272: =F336/C250 -> 0.08001172333 | E272: =F328/C251 -> 0.07341755469 | I272: Elever utan npf | J272: =J356 -> 7681 | L272: Elever utan npf | M272: =J272/D356 -> 0.5513998564
B276: Graf 5 - vilken andel npf-elever har fått stöd? | I276: Graf 6 - hur mycket har undervisning anpassats bort?
C278: Åtgärdsprogram | D278: Enskild undervisning | E278: Särskild undervisningsgrupp | J278: Andel anpassad studiegång
B279: ="Med autism"&CHAR(10)&"("&E342&" st)" -> Med autism (3690 st) | C279: =E356/E342 -> 0.6249322493 | D279: =E357/E342 -> 0.154200542 | E279: =E358/E342 -> 0.3585365854 | I279: med npf | J279: =N355/N342 -> 0.2475087925 | L279: ="med autism ("&E355&" st)" -> med autism (1405 st) | M279: =E355/E342 -> 0.3807588076
B280: ="Med adhd"&CHAR(10)&"("&F342&" st)" -> Med adhd (11295 st) | C280: =F356/F342 -> 0.4633023462 | D280: =F357/F342 -> 0.09703408588 | E280: =F358/F342 -> 0.2005312085 | I280: utan npf | J280: =J355/J342 -> 0.02758218172 | L280: ="med adhd ("&F355&" st)" -> med adhd (2826 st) | M280: =F355/F342 -> 0.2501992032
B281: ="Med autism & adhd"&CHAR(10)&"("&G342&" st)" -> Med autism & adhd (2319 st) | C281: =G356/G342 -> 0.6735661923 | D281: =G357/G342 -> 0.1720569211 | E281: =G358/G342 -> 0.3980163864 | L281: ="med autism & adhd ("&G355&" st)" -> med autism & adhd (959 st) | M281: =G355/G342 -> 0.4135403191
B282: ="Med dyslexi"&CHAR(10)&"("&H342&" st)" -> Med dyslexi (849 st) | C282: =H356/H342 -> 0.480565371 | D282: =H357/H342 -> 0.08598351001 | E282: =H358/H342 -> 0.1849234393 | L282: ="med dyslexi ("&H355&" st)" -> med dyslexi (179 st) | M282: =H355/H342 -> 0.210836278
B283: ="Med språkstörning"&CHAR(10)&"("&I342&" st)" -> Med språkstörning (1113 st) | C283: =I356/I342 -> 0.4052111411 | D283: =I357/I342 -> 0.1006289308 | E283: =I358/I342 -> 0.1698113208 | L283: ="med språkstörning ("&I355&" st)" -> med språkstörning (192 st) | M283: =I355/I342 -> 0.1725067385
L284: =I280 -> utan npf | M284: =J280 -> 0.02758218172
B286: Graf 7a - Omfattning av suicidförsök | D286: =IF(OR(C250<20,AND(J346>0,J346<4),AND(N346>0,N346<4)),"län","kommun") -> kommun | I286: Graf 7b - Omfattning av suicidförsök
D287: ="Självmordsförsök hos elever (åk 9) i "&_xlfn.IFS(Urval!C7="Riket","Riket",Urval!C7="Län",_xlfn.TEXTAFTER(enskiltomr_name," ")&" län",TRUE,_xlfn.TEXTAFTER(IF(D286="län",B347,B346)," ")&" "&D286) -> Självmordsförsök hos elever (åk 9) i Riket
B288: ="med npf ("&D288&" st)" -> med npf (448 st) | C288: =_xlfn.IFS(D286="kommun",N346/N342,D286="län",N347/N343,TRUE,"") -> 0.03282532239 | D288: =_xlfn.IFS(D286="kommun",N346,D286="län",N347,TRUE,"") -> 448 | I288: npf-elever | J288: =IF(D286="län",N347/D347,N346/D346) -> 0.454822335
B289: ="utan npf ("&D289&" st)" -> utan npf (537 st) | C289: =_xlfn.IFS(D286="kommun",J346/J342,D286="län",J347/J343,TRUE,"") -> 0.005055164363 | D289: =_xlfn.IFS(D286="kommun",J346,D286="län",J347,TRUE,"") -> 537 | I289: elever utan npf | J289: =1-J288 -> 0.545177665
D291: =_xlfn.IFS(Urval!C7="Riket","Riket",Urval!C7="Län",_xlfn.TEXTAFTER(enskiltomr_name," ")&" län",TRUE,_xlfn.TEXTAFTER(IF(D286="län",B347,B346)," ")&" "&D286) -> Riket | I291: Överrepresentation | J291: =C288/C289 -> 6.493423365
B294: Graf 8 - antal npf-elever i hela grundskolan
C296: F-klass | D296: åk 1 | E296: åk 2 | F296: åk 3 | G296: åk 4 | H296: åk 5 | I296: åk 6 | J296: åk 7 | K296: åk 8 | L296: åk 9
B297: med diagnosnära/odiagnosticerad npf | C297: =C303*C301+C303*C300 -> 12965.6 | D297: 11600.8 | E297: 11600.8 | F297: 11600.8 | G297: 9553.6 | H297: 9553.6 | I297: 9553.6 | J297: 6824 | K297: 6824 | L297: =L303*L300 -> 4094.4
B298: med diagnosticerad npf | C298: =C303*C302 -> 2729.6 | D298: 4094.4 | E298: 4094.4 | F298: 4094.4 | G298: 6824 | H298: 6824 | I298: 6824 | J298: 10918.4 | K298: 10918.4 | L298: =L302*L303 -> 13648
B300: diagnosnära npf | C300: 0.15 | D300: 0.15 | E300: 0.15 | F300: 0.15 | G300: 0.2 | H300: 0.2 | I300: 0.2 | J300: 0.3 | K300: 0.3 | L300: 0.3
B301: odiagnosticerad npf | C301: 0.8 | D301: 0.7 | E301: 0.7 | F301: 0.7 | G301: 0.5 | H301: 0.5 | I301: 0.5 | J301: 0.2 | K301: 0.2 | L301: 0
B302: diagnosticerad fördelning | C302: 0.2 | D302: 0.3 | E302: 0.3 | F302: 0.3 | G302: 0.5 | H302: 0.5 | I302: 0.5 | J302: 0.8 | K302: 0.8 | L302: 1
B303: med npf | C303: =D303 -> 13648 | D303: 13648 | E303: 13648 | F303: 13648 | G303: 13648 | H303: 13648 | I303: 13648 | J303: =L303 -> 13648 | K303: =L303 -> 13648 | L303: =N342 -> 13648
B306: Graf 9 - Likvärdighetsgapet
C308: ="Andel elever som försökt ta sitt liv"&IF(D286="län",CHAR(10)&"(län)","") -> Andel elever som försökt ta sitt liv | D308: Andel elever utan gymnasiebehörighet (yrkeslinje) | E308: Genomsnittlig meritpoäng (p) i utgångsbetyg | F308: Andel anpassad studiegång | G308: Andel underkänt i Svenska
B309: med npf | C309: =C288 -> 0.03282532239 | D309: =J250 -> 0.3366793669 | E309: =M250 -> 159.1589228 | F309: =J279 -> 0.2475087925 | G309: =J260 -> 0.1593640094
B310: utan npf | C310: =C289 -> 0.005055164363 | D310: =J251 -> 0.1165417781 | E310: =M251 -> 235.2 | F310: =J280 -> 0.02758218172 | G310: =J261 -> 0.02231991565
B312: med | C312: ="med npf"&CHAR(10)&"("&TEXT(D288,"# ###")&" st)" -> med npf (448 st) | D312: ="med npf"&CHAR(10)&"("&TEXT(G247,"# ###")&" st)" -> med npf ( st) | E312: ="med npf"&CHAR(10)&"("&TEXT(C247,"# ###")&" st)" -> med npf ( st) | F312: ="med npf"&CHAR(10)&"("&TEXT(N362,"# ###")&" st)" -> med npf (3 503 st) | G312: ="med npf"&CHAR(10)&"("&TEXT(N372,"# ###")&" st)" -> med npf (NPF (utan IF) st)
B313: utan | C313: ="utan npf"&CHAR(10)&"("&TEXT(D289,"# ###")&" st)" -> utan npf (537 st) | D313: ="utan npf"&CHAR(10)&"("&TEXT(G248,"# ###")&" st)" -> utan npf ( st) | E313: ="utan npf"&CHAR(10)&"("&TEXT(C248,"# ###")&" st)" -> utan npf ( st) | F313: ="utan npf"&CHAR(10)&"("&TEXT(J362,"# ###")&" st)" -> utan npf (4 581 st) | G313: ="utan npf"&CHAR(10)&"("&TEXT(J372,"# ###")&" st)" -> utan npf (n6 (EJ NPF-DIAGNOS) st)
B318: NEDBRYTNING GYMNBEHÖRIGHET OCH STÖD
B320: =IF(Urval!B46<>"",Urval!B46,"") -> NEDBRYTNING GYMNBEHÖRIGHET OCH STÖD | D320: =IF(Urval!D46<>"",Urval!D46,"") -> # elever | E320: =IF(Urval!E46<>"",Urval!E46,"") -> # elever | F320: =IF(Urval!F46<>"",Urval!F46,"") -> # elever
B321: =IF(Urval!B47<>"",Urval!B47,"") -> Total population | C321: =IF(Urval!C47<>"",Urval!C47,"") ->  | D321: =IF(Urval!D47<>"",Urval!D47,"") -> 119876 | E321: =IF(Urval!E47<>"",Urval!E47,"") ->  | F321: =IF(Urval!F47<>"",Urval!F47,"") -> 
B322: =IF(Urval!B48<>"",Urval!B48,"") -> - Elever utan funktionsnedsättning | D322: =IF(Urval!D48<>"",Urval!D48,"") -> 106228 | E322: =IF(Urval!E48<>"",Urval!E48,"") ->  | F322: =IF(Urval!F48<>"",Urval!F48,"") -> 
B323: =IF(Urval!B49<>"",Urval!B49,"") ->  | C323: =IF(Urval!C49<>"",Urval!C49,"") -> Klarar gymnasiebehörighet | D323: =IF(Urval!D49<>"",Urval!D49,"") ->  | E323: =IF(Urval!E49<>"",Urval!E49,"") -> 93848 | F323: =IF(Urval!F49<>"",Urval!F49,"") -> 
B324: =IF(Urval!B50<>"",Urval!B50,"") ->  | C324: =IF(Urval!C50<>"",Urval!C50,"") -> & fick stöd | D324: =IF(Urval!D50<>"",Urval!D50,"") ->  | E324: =IF(Urval!E50<>"",Urval!E50,"") ->  | F324: =IF(Urval!F50<>"",Urval!F50,"") -> 3100
B325: =IF(Urval!B51<>"",Urval!B51,"") ->  | C325: =IF(Urval!C51<>"",Urval!C51,"") -> & fick inte stöd | D325: =IF(Urval!D51<>"",Urval!D51,"") ->  | E325: =IF(Urval!E51<>"",Urval!E51,"") ->  | F325: =IF(Urval!F51<>"",Urval!F51,"") -> 90748
... 64 more rows

Sheet Graf 2 Översikt
B3: Hur är situationen för elever med neuropsykiatriska diagnoser i svensk skola?
B4: - en samkörning av skolstatistiken & patientregistret för utgångseleverna läsåret 21/22
B5: Ett projekt av föräldranätverket Rätten till Utbildning, med hjälp av Skandias stiftelse Idéer för Livet
B10: Skolans misslyckande leder till ökade självmordsförsök hos elever med npf | H10: ="Område: "&_xlfn.IFS(Urval!C7="Riket","Riket",TRUE,_xlfn.TEXTAFTER(Urval!C8," ")&" "&LOWER(Urval!C7)) -> Område: Riket
H11: Välj annat geografiskt område på fliken "Urval"!
B13: Skollagen 3 kap 2§
B14: Elever som till följd av en funktionsnedsättning har svårt att uppfylla de olika betygskriterier eller kriterier för bedömning av kunskaper
B15: som gäller, ska ges stöd som syftar till att så långt som möjligt motverka funktionsnedsättningens konsekvenser.
B18: Svensk skola bryter konsekvent mot lagen ovan. Vi har tagit fram ny unik statistik som bekräftar att elever med npf får sämre förutsättningar att klara skolan.
B19: Vi har samkört skolstatistiken (SCB) med patientregistret (Socialstyrelsen) för alla utgångselever från grundskolan läsåret 21/22. Hela populationen med
B20: ca 120.000 elever har studerats utifrån neuropsykiatriska funktionsnedsättningar (autism, adhd, add, dyslexi, samt språkstörning). Populationen ovan
B21: ="inkluderar inte elever med intellektuell funktionsnedsättning. Denna specifika delrapport studerar eleverna i "&_xlfn.IFS(Urval!C7="Riket","Riket",TRUE,_xlfn.TEXTAFTER(Urval!C8," ")&" "&LOWER(Urval!C7))&" vilka uppgår till "&TEXT(D154,"# ###")&" st elever. " -> inkluderar inte elever med intellektuell funktionsnedsättning. Denna specifika delrapport studerar eleverna i Riket vilka uppgår till 119 876 st elever.
B23: ="Skolans misslyckande är ödesdiger för elever med npf. Faktum är att hela "&ROUND(J128*100,0)&" procent av alla självmordsförsök hos eleverna i studien genomfördes av " -> Skolans misslyckande är ödesdiger för elever med npf. Faktum är att hela 45 procent av alla självmordsförsök hos eleverna i studien genomfördes av
B24: ="npf-elever. Det är en betydande del av den psykiska ohälsan hos elever i grundskolan och innebär att elever med npf "&ROUND(C128/C129,1)&" gånger oftare försöker ta sina " -> npf-elever. Det är en betydande del av den psykiska ohälsan hos elever i grundskolan och innebär att elever med npf 6,5 gånger oftare försöker ta sina
B25: liv jämfört med elever utan npf.
B27: Om vi också inkluderar det psykiska måendet hos npf-elever i årskurser 1-8 (utöver eleverna i årskurs 9, som vi studerat nu), så stiger antalet
B28: ="självmordsförsök ytterligare till uppskattningsvis 1.5-2.5 ggr, vilket blir totalt "&ROUND(D128*1.5,2-1-INT(LOG10(ABS(D128*1.5))))&"-"&ROUND(D128*2.5,2-1-INT(LOG10(ABS(D128*2.5))))&" st självmordsförsök bland elever med npf. " -> självmordsförsök ytterligare till uppskattningsvis 1.5-2.5 ggr, vilket blir totalt 670-1100 st självmordsförsök bland elever med npf.
B30: Hur ser det då ut i svensk skola för elever med npf?
B32: Särskilt stöd
B33: Enligt lag har alla elever rätt till ledning och stimulans för att kunna utvecklas så långt som möjligt. De elever som riskerar att inte nå målen har också
B34: rätt till extra anpassningar och/eller särskilt stöd. Statistiken visar att trots rätten till särskilt stöd når en stor andel av npf-eleverna inte behörighet
B35: till gymnasiet.
B37: ="Statistiken visar att ca "&ROUND(F99*100,1)&" procent av eleverna med npf, trots att de fick särskilt stöd, inte blev behöriga till gymnasiet. Bland elever utan npf var " -> Statistiken visar att ca 25,7 procent av eleverna med npf, trots att de fick särskilt stöd, inte blev behöriga till gymnasiet. Bland elever utan npf var
B38: ="samma siffra "&ROUND(F100*100,1)&" procent. " -> samma siffra 4,3 procent.
B40: Det finns också elever med npf som får gymnasiebehörighet trots uteblivet särskilt stöd. Med tanke på att elever med npf i genomsnitt har lägre
B41: meritpoäng än elever utan npf kan även den här gruppens förutsättningar att nå högre meritpoäng ökat med särskilt stöd.
B43: Behörighet
B44: ="Hela "&ROUND(J90*100,0)&" procent av npf-eleverna är inte behöriga till några gymnasiestudier alls. Det ska jämföras med "&ROUND(J91*100,0)&" procent av eleverna utan npf. Behörigheten till " -> Hela 34 procent av npf-eleverna är inte behöriga till några gymnasiestudier alls. Det ska jämföras med 12 procent av eleverna utan npf. Behörigheten till
B45: ="högskoleförberedande program är ännu sämre, "&ROUND(J93*100,0)&" procent för npf-eleverna, jämfört med "&ROUND(J94*100,0)&" procent för elever utan npf." -> högskoleförberedande program är ännu sämre, 39 procent för npf-eleverna, jämfört med 13 procent för elever utan npf.
B47: Meritpoäng
B48: För att komma in på en gymnasielinje behöver eleven har tillräckliga meritpoäng jämfört med andra sökanden. Den genomsnittliga meritpoängen för
B49: ="npf-elever är "&ROUND(M90,0)&"p, att jämföra med meritpoängen för elever utan npf som är "&ROUND(M91,0)&"p." -> npf-elever är 159p, att jämföra med meritpoängen för elever utan npf som är 235p.
B51: ="Npf-elever har i genomsnitt "&ROUND(M100,1)&" F-betyg i sitt utgångsbetyg medan elever utan npf i genomsnitt har "&ROUND(M101,1)&" F-betyg." -> Npf-elever har i genomsnitt 4,2 F-betyg i sitt utgångsbetyg medan elever utan npf i genomsnitt har 1,1 F-betyg.
B53: Vid en jämförelse med Skolverkets uppgifter om meritpoängen för andra utsatta elevgrupper (på nationell nivå) ligger npf-elevernas skolresultat
B54: på nivån motsvarande några av de mest utsatta elevgrupperna i svensk skola.
B56: Betyg i kärnämnena
B57: Kunskapskrav i dagens läroplaner ställer höga krav på exekutiva förmågor, som att strukturera och planera sitt arbete, även för den lägsta godkända
B58: gränsen. Detta har forskare kritiserat under flera år eftersom det i praktiken gör det omöjligt för vissa elever med npf att uppnå godkända resultat.
B59: ="För att uppnå grundläggande gymnasiebehörighet krävs godkända betyg i kärnämnena svenska, engelska och matematik. "&ROUND(J100*100,0)&" procent av eleverna" -> För att uppnå grundläggande gymnasiebehörighet krävs godkända betyg i kärnämnena svenska, engelska och matematik. 16 procent av eleverna
B60: ="med npf är underkända i svenska, vilket kan jämföras med "&ROUND(J101*100,0)&" procent av eleverna utan npf. "&ROUND(K100*100,0)&" procent av eleverna med npf är underkända i engelska, " -> med npf är underkända i svenska, vilket kan jämföras med 2 procent av eleverna utan npf. 13 procent av eleverna med npf är underkända i engelska,
B61: ="medan "&ROUND(K101*100,0)&" procent av eleverna utan npf är underkända i samma ämne. Och "&ROUND(L100*100,0)&" av eleverna med npf är underkända i matematik som kan" -> medan 5 procent av eleverna utan npf är underkända i samma ämne. Och 24 av eleverna med npf är underkända i matematik som kan
B62: =" jämföras med "&ROUND(L101*100,0)&" procent av eleverna utan npf. " -> jämföras med 8 procent av eleverna utan npf.
B64: Garanterad undervisningstid
B65: Enligt lag ska alla elever ha 6890 timmars undervisning i grundskolan. En vanlig åtgärd för elever med npf är att anpassa studiegången, dvs
B66: att man tar bort ämnen för att minska arbetsbördan för eleven och öka förutsättningarna för att klara övriga ämnen. Det sänker meritpoängen
B67: och försvårar för eleverna att söka sig vidare. Här är skillnaden stor mellan elever med npf och elever utan npf.
B69: ="· "&ROUND(M119*100,0)&" procent av eleverna med autism har anpassad studiegång. " -> · 38 procent av eleverna med autism har anpassad studiegång.
B70: ="· "&ROUND(M120*100,0)&" procent av eleverna med adhd har anpassad studiegång" -> · 25 procent av eleverna med adhd har anpassad studiegång
B71: ="· "&ROUND(M121*100,0)&" procent av eleverna med både autism och adhd har anpassad studiegång. " -> · 41 procent av eleverna med både autism och adhd har anpassad studiegång.
B72: ="· "&ROUND(M122*100,0)&" procent av eleverna med dyslexi har anpassad studiegång. " -> · 21 procent av eleverna med dyslexi har anpassad studiegång.
B73: ="· "&ROUND(M123*100,0)&" procent av eleverna med språkstörning har anpassad studiegång. " -> · 17 procent av eleverna med språkstörning har anpassad studiegång.
B75: ="Men endast "&ROUND(M124*100,1)&" procent av eleverna utan npf har anpassad studiegång. " -> Men endast 2,8 procent av eleverna utan npf har anpassad studiegång.
B85: Grafdata
B87: Graf 1 - hur många npf-elever | F87: Graf 2a | I87: Graf 2b - stapel hur klarade man behörighet? | L87: Graf 3 - stapel meritpoäng
G89: Klarade ej gymnasiebehörighet | J89: Klarade ej gymnasiebehörighet | M89: Meritpoäng
B90: ="elever med npf-diagnos ("&ROUND(C90/(C90+C91)*100,1)&"%)" -> elever med npf-diagnos (11,4%) | C90: =N175 -> 13648 | F90: Med npf | G90: =N192 -> 4595 | I90: ="Med npf"&CHAR(10)&"("&G90&" st)" -> Med npf (4595 st) | J90: =G90/N175 -> 0.3366793669 | L90: Med npf | M90: =N182 -> 159.1589228
B91: elever utan npf-diagnos | C91: =J175 -> 106228 | F91: Utan npf | G91: =J192 -> 12380 | I91: ="Utan npf"&CHAR(10)&"("&G91&" st)" -> Utan npf (12380 st) | J91: =G91/J175 -> 0.1165417781 | L91: Utan npf | M91: =J182 -> 235.2
J92: ej klarar högskoleförbered. | L92: Elev som invandrat åk 1-5 | M92: 191
I93: ="Med npf"&CHAR(10)&"("&N190&" st)" -> Med npf (5272 st) | J93: =N190/N175 -> 0.3862837046 | L93: Elev som invandrat åk 6-9 | M93: 136
I94: ="Utan npf"&CHAR(10)&"("&J190&" st)" -> Utan npf (13347 st) | J94: =J190/J175 -> 0.1256448394
B96: Graf 2b - stapel hur klarade man behörighet? | E96: Graf X - hjälpte det särskilda stödet?
I97: Graf 3b - stapel betyg i kärnämnena
C98: Klarade ej gymnasiebehörighet till yrkesgymnasium | F98: Klarade inte behörighet trots särskilt stöd?
B99: ="Med autism "&CHAR(10)&"("&E192&" st)" -> Med autism (1485 st) | C99: =E192/E175 -> 0.4024390244 | E99: Med npf | F99: =N193/N175 -> 0.2566676436 | J99: Underkänt Svenska | K99: Underkänt Engelska | L99: Underkänt Matematik | M99: Antal F-betyg
B100: ="Med adhd "&CHAR(10)&"("&F192&" st)" -> Med adhd (3822 st) | C100: =F192/F175 -> 0.3383798141 | E100: Utan npf | F100: =J193/J175 -> 0.04312422337 | I100: ="Med npf"&CHAR(10)&"("&G90&" st)" -> Med npf (4595 st) | J100: =N196/C90 -> 0.1593640094 | K100: =N194/C90 -> 0.13496483 | L100: =N195/C90 -> 0.2371776084 | M100: =N183 -> 4.171566679
B101: ="Med autism & adhd"&CHAR(10)&"("&G192&" st)" -> Med autism & adhd (988 st) | C101: =G192/G175 -> 0.4260457094 | I101: ="Utan npf"&CHAR(10)&"("&C91&" st)" -> Utan npf (106228 st) | J101: =J196/C91 -> 0.02231991565 | K101: =J194/C91 -> 0.05218962985 | L101: =J195/C91 -> 0.08107090409 | M101: =J183 -> 1.10736
B102: ="Med dyslexi"&CHAR(10)&"("&H192&" st)" -> Med dyslexi (308 st) | C102: =H192/H175 -> 0.3627797409
B103: ="Med språkstörning"&CHAR(10)&"("&I192&" st)" -> Med språkstörning (369 st) | C103: =I192/I175 -> 0.3315363881
B104: ="Utan npf"&CHAR(10)&"("&G91&" st)" -> Utan npf (12380 st) | C104: =J91 -> 0.1165417781
B107: Graf 4 - vilka har fått eller borde ha fått särskilt stöd?
I108: Graf 4a | L108: Graf 4b
D109: Med npf | E109: Utan npf
J110: Särskilt stöd | M110: Särskilt stöd
B111: Fått otillräckligt stöd | D111: =F168/C90 -> 0.2566676436 | E111: =F160/C91 -> 0.04312422337 | I111: Elever med npf | J111: =N187 -> 6249 | L111: Elever med npf | M111: =J111/D187 -> 0.4486001436
B112: Inte fått stöd alls | D112: =F169/C90 -> 0.08001172333 | E112: =F161/C91 -> 0.07341755469 | I112: Elever utan npf | J112: =J187 -> 7681 | L112: Elever utan npf | M112: =J112/D187 -> 0.5513998564
B116: Graf 5 - vilken andel npf-elever har fått stöd? | I116: Graf 6 - hur mycket har undervisning anpassats bort?
C118: Åtgärdsprogram | D118: Enskild undervisning | E118: Särskild undervisningsgrupp | J118: Andel anpassad studiegång
B119: ="Med autism"&CHAR(10)&"("&E175&" st)" -> Med autism (3690 st) | C119: =E187/E175 -> 0.6249322493 | D119: =E188/E175 -> 0.154200542 | E119: =E189/E175 -> 0.3585365854 | I119: med npf | J119: =N186/N175 -> 0.2475087925 | L119: ="med autism ("&E186&" st)" -> med autism (1405 st) | M119: =E186/E175 -> 0.3807588076
B120: ="Med adhd"&CHAR(10)&"("&F175&" st)" -> Med adhd (11295 st) | C120: =F187/F175 -> 0.4633023462 | D120: =F188/F175 -> 0.09703408588 | E120: =F189/F175 -> 0.2005312085 | I120: utan npf | J120: =J186/J175 -> 0.02758218172 | L120: ="med adhd ("&F186&" st)" -> med adhd (2826 st) | M120: =F186/F175 -> 0.2501992032
B121: ="Med autism & adhd"&CHAR(10)&"("&G175&" st)" -> Med autism & adhd (2319 st) | C121: =G187/G175 -> 0.6735661923 | D121: =G188/G175 -> 0.1720569211 | E121: =G189/G175 -> 0.3980163864 | L121: ="med autism & adhd ("&G186&" st)" -> med autism & adhd (959 st) | M121: =G186/G175 -> 0.4135403191
B122: ="Med dyslexi"&CHAR(10)&"("&H175&" st)" -> Med dyslexi (849 st) | C122: =H187/H175 -> 0.480565371 | D122: =H188/H175 -> 0.08598351001 | E122: =H189/H175 -> 0.1849234393 | L122: ="med dyslexi ("&H186&" st)" -> med dyslexi (179 st) | M122: =H186/H175 -> 0.210836278
B123: ="Med språkstörning"&CHAR(10)&"("&I175&" st)" -> Med språkstörning (1113 st) | C123: =I187/I175 -> 0.4052111411 | D123: =I188/I175 -> 0.1006289308 | E123: =I189/I175 -> 0.1698113208 | L123: ="med språkstörning ("&I186&" st)" -> med språkstörning (192 st) | M123: =I186/I175 -> 0.1725067385
L124: =I120 -> utan npf | M124: =J120 -> 0.02758218172
B126: Graf 7a - Omfattning av suicidförsök | I126: Graf 7b - Omfattning av suicidförsök
B128: ="med npf ("&N178&" st)" -> med npf (448 st) | C128: =N178/N175 -> 0.03282532239 | D128: =N178 -> 448 | I128: npf-elever | J128: =N178/D178 -> 0.454822335
B129: ="utan npf ("&J178&" st)" -> utan npf (537 st) | C129: =J178/J175 -> 0.005055164363 | D129: =J178 -> 537 | I129: elever utan npf | J129: =1-J128 -> 0.545177665
I131: Överrepresentation | J131: =C128/C129 -> 6.493423365
B134: Graf 8 - antal npf-elever i hela grundskolan
C136: F-klass | D136: åk 1 | E136: åk 2 | F136: åk 3 | G136: åk 4 | H136: åk 5 | I136: åk 6 | J136: åk 7 | K136: åk 8 | L136: åk 9
B137: med diagnosnära/odiagnosticerad npf | C137: =C143*C141+C143*C140 -> 12965.6 | D137: 11600.8 | E137: 11600.8 | F137: 11600.8 | G137: 9553.6 | H137: 9553.6 | I137: 9553.6 | J137: 6824 | K137: 6824 | L137: =L143*L140 -> 4094.4
B138: med diagnosticerad npf | C138: =C143*C142 -> 2729.6 | D138: 4094.4 | E138: 4094.4 | F138: 4094.4 | G138: 6824 | H138: 6824 | I138: 6824 | J138: 10918.4 | K138: 10918.4 | L138: =L142*L143 -> 13648
B140: diagnosnära npf | C140: 0.15 | D140: 0.15 | E140: 0.15 | F140: 0.15 | G140: 0.2 | H140: 0.2 | I140: 0.2 | J140: 0.3 | K140: 0.3 | L140: 0.3
B141: odiagnosticerad npf | C141: 0.8 | D141: 0.7 | E141: 0.7 | F141: 0.7 | G141: 0.5 | H141: 0.5 | I141: 0.5 | J141: 0.2 | K141: 0.2 | L141: 0
B142: diagnosticerad fördelning | C142: 0.2 | D142: 0.3 | E142: 0.3 | F142: 0.3 | G142: 0.5 | H142: 0.5 | I142: 0.5 | J142: 0.8 | K142: 0.8 | L142: 1
B143: med npf | C143: =D143 -> 13648 | D143: 13648 | E143: 13648 | F143: 13648 | G143: 13648 | H143: 13648 | I143: 13648 | J143: =L143 -> 13648 | K143: =L143 -> 13648 | L143: =N175 -> 13648
B151: NEDBRYTNING GYMNBEHÖRIGHET OCH STÖD
B153: =IF(Urval!B46<>"",Urval!B46,"") -> NEDBRYTNING GYMNBEHÖRIGHET OCH STÖD | D153: =IF(Urval!D46<>"",Urval!D46,"") -> # elever | E153: =IF(Urval!E46<>"",Urval!E46,"") -> # elever | F153: =IF(Urval!F46<>"",Urval!F46,"") -> # elever
B154: =IF(Urval!B47<>"",Urval!B47,"") -> Total population | C154: =IF(Urval!C47<>"",Urval!C47,"") ->  | D154: =IF(Urval!D47<>"",Urval!D47,"") -> 119876 | E154: =IF(Urval!E47<>"",Urval!E47,"") ->  | F154: =IF(Urval!F47<>"",Urval!F47,"") -> 
B155: =IF(Urval!B48<>"",Urval!B48,"") -> - Elever utan funktionsnedsättning | D155: =IF(Urval!D48<>"",Urval!D48,"") -> 106228 | E155: =IF(Urval!E48<>"",Urval!E48,"") ->  | F155: =IF(Urval!F48<>"",Urval!F48,"") -> 
B156: =IF(Urval!B49<>"",Urval!B49,"") ->  | C156: =IF(Urval!C49<>"",Urval!C49,"") -> Klarar gymnasiebehörighet | D156: =IF(Urval!D49<>"",Urval!D49,"") ->  | E156: =IF(Urval!E49<>"",Urval!E49,"") -> 93848 | F156: =IF(Urval!F49<>"",Urval!F49,"") -> 
B157: =IF(Urval!B50<>"",Urval!B50,"") ->  | C157: =IF(Urval!C50<>"",Urval!C50,"") -> & fick stöd | D157: =IF(Urval!D50<>"",Urval!D50,"") ->  | E157: =IF(Urval!E50<>"",Urval!E50,"") ->  | F157: =IF(Urval!F50<>"",Urval!F50,"") -> 3100
B158: =IF(Urval!B51<>"",Urval!B51,"") ->  | C158: =IF(Urval!C51<>"",Urval!C51,"") -> & fick inte stöd | D158: =IF(Urval!D51<>"",Urval!D51,"") ->  | E158: =IF(Urval!E51<>"",Urval!E51,"") ->  | F158: =IF(Urval!F51<>"",Urval!F51,"") -> 90748
B159: =IF(Urval!B52<>"",Urval!B52,"") ->  | C159: =IF(Urval!C52<>"",Urval!C52,"") -> Klarar inte gymnasiebehörighet | D159: =IF(Urval!D52<>"",Urval!D52,"") ->  | E159: =IF(Urval!E52<>"",Urval!E52,"") -> 12380 | F159: =IF(Urval!F52<>"",Urval!F52,"") -> 
B160: =IF(Urval!B53<>"",Urval!B53,"") ->  | C160: =IF(Urval!C53<>"",Urval!C53,"") -> & fick stöd | D160: =IF(Urval!D53<>"",Urval!D53,"") ->  | E160: =IF(Urval!E53<>"",Urval!E53,"") ->  | F160: =IF(Urval!F53<>"",Urval!F53,"") -> 4581
B161: =IF(Urval!B54<>"",Urval!B54,"") ->  | C161: =IF(Urval!C54<>"",Urval!C54,"") -> & fick inte stöd | D161: =IF(Urval!D54<>"",Urval!D54,"") ->  | E161: =IF(Urval!E54<>"",Urval!E54,"") ->  | F161: =IF(Urval!F54<>"",Urval!F54,"") -> 7799
B162: =IF(Urval!B55<>"",Urval!B55,"") ->  | C162: =IF(Urval!C55<>"",Urval!C55,"") ->  | D162: =IF(Urval!D55<>"",Urval!D55,"") ->  | E162: =IF(Urval!E55<>"",Urval!E55,"") ->  | F162: =IF(Urval!F55<>"",Urval!F55,"") -> 
B163: =IF(Urval!B56<>"",Urval!B56,"") -> - Elever med funktionsnedsättning | D163: =IF(Urval!D56<>"",Urval!D56,"") -> 13648 | E163: =IF(Urval!E56<>"",Urval!E56,"") ->  | F163: =IF(Urval!F56<>"",Urval!F56,"") -> 
B164: =IF(Urval!B57<>"",Urval!B57,"") ->  | C164: =IF(Urval!C57<>"",Urval!C57,"") -> Klarar gymnasiebehörighet | D164: =IF(Urval!D57<>"",Urval!D57,"") ->  | E164: =IF(Urval!E57<>"",Urval!E57,"") -> 9053 | F164: =IF(Urval!F57<>"",Urval!F57,"") -> 
B165: =IF(Urval!B58<>"",Urval!B58,"") ->  | C165: =IF(Urval!C58<>"",Urval!C58,"") -> & fick stöd | D165: =IF(Urval!D58<>"",Urval!D58,"") ->  | E165: =IF(Urval!E58<>"",Urval!E58,"") ->  | F165: =IF(Urval!F58<>"",Urval!F58,"") -> 2746
B166: =IF(Urval!B59<>"",Urval!B59,"") ->  | C166: =IF(Urval!C59<>"",Urval!C59,"") -> & fick inte stöd | D166: =IF(Urval!D59<>"",Urval!D59,"") ->  | E166: =IF(Urval!E59<>"",Urval!E59,"") ->  | F166: =IF(Urval!F59<>"",Urval!F59,"") -> 6307
B167: =IF(Urval!B60<>"",Urval!B60,"") ->  | C167: =IF(Urval!C60<>"",Urval!C60,"") -> Klarar inte gymnasiebehörighet | D167: =IF(Urval!D60<>"",Urval!D60,"") ->  | E167: =IF(Urval!E60<>"",Urval!E60,"") -> 4595 | F167: =IF(Urval!F60<>"",Urval!F60,"") -> 
B168: =IF(Urval!B61<>"",Urval!B61,"") ->  | C168: =IF(Urval!C61<>"",Urval!C61,"") -> & fick stöd | D168: =IF(Urval!D61<>"",Urval!D61,"") ->  | E168: =IF(Urval!E61<>"",Urval!E61,"") ->  | F168: =IF(Urval!F61<>"",Urval!F61,"") -> 3503
B169: =IF(Urval!B62<>"",Urval!B62,"") ->  | C169: =IF(Urval!C62<>"",Urval!C62,"") -> & fick inte stöd | D169: =IF(Urval!D62<>"",Urval!D62,"") ->  | E169: =IF(Urval!E62<>"",Urval!E62,"") ->  | F169: =IF(Urval!F62<>"",Urval!F62,"") -> 1092
B172: Basdata valt område
P173: DATAKVALITET
B174: =IF(Urval!B68<>"",Urval!B68,"") -> Flik: POPULATION | C174: =IF(Urval!C68<>"",Urval!C68,"") ->  | D174: =IF(Urval!D68<>"",Urval!D68,"") -> Totalt | E174: =IF(Urval!E68<>"",Urval!E68,"") -> n1 (AUTISM) | F174: =IF(Urval!F68<>"",Urval!F68,"") -> n2 (ADHD) | G174: =IF(Urval!G68<>"",Urval!G68,"") -> n3 (AUTISM OCH ADHD) | H174: =IF(Urval!H68<>"",Urval!H68,"") -> n4 (DYSLEXI) | I174: =IF(Urval!I68<>"",Urval!I68,"") -> n5 (SPRÅKSTÖRNING) | J174: =IF(Urval!J68<>"",Urval!J68,"") -> n6 (EJ NPF-DIAGNOS) | K174: =IF(Urval!K68<>"",Urval!K68,"") -> n7 (IF MEN EJ NPF) | L174: =IF(Urval!L68<>"",Urval!L68,"") -> n8 (IF OCH NPF) | M174: =IF(Urval!M68<>"",Urval!M68,"") -> IF | N174: =IF(Urval!N68<>"",Urval!N68,"") -> NPF (utan IF) | O174: =IF(Urval!O68<>"",Urval!O68,"") ->  | P174: Totalt | Q174: n1 (AUTISM) | R174: n2 (ADHD) | S174: n3 (AUTISM OCH ADHD) | T174: n4 (DYSLEXI) | U174: n5 (SPRÅKSTÖRNING) | V174: n6 (EJ NPF-DIAGNOS) | W174: n7 (IF MEN EJ NPF) | X174: n8 (IF OCH NPF) | Y174: IF | Z174: NPF (utan IF)
B175: =IF(Urval!B69<>"",Urval!B69,"") -> Riket | C175: =IF(Urval!C69<>"",Urval!C69,"") ->  | D175: =IF(Urval!D69<>"",Urval!D69,"") -> 119876 | E175: =IF(Urval!E69<>"",Urval!E69,"") -> 3690 | F175: =IF(Urval!F69<>"",Urval!F69,"") -> 11295 | G175: =IF(Urval!G69<>"",Urval!G69,"") -> 2319 | H175: =IF(Urval!H69<>"",Urval!H69,"") -> 849 | I175: =IF(Urval!I69<>"",Urval!I69,"") -> 1113 | J175: =IF(Urval!J69<>"",Urval!J69,"") -> 106228 | K175: =IF(Urval!K69<>"",Urval!K69,"") -> 103 | L175: =IF(Urval!L69<>"",Urval!L69,"") -> 120 | M175: =IF(Urval!M69<>"",Urval!M69,"") -> 223 | N175: =IF(Urval!N69<>"",Urval!N69,"") -> 13648 | O175: =IF(Urval!O69<>"",Urval!O69,"") ->  | P175: =Urval!P69 -> 0 | Q175: =Urval!Q69 -> 0 | R175: =Urval!R69 -> 0 | S175: =Urval!S69 -> 0 | T175: =Urval!T69 -> 0 | U175: =Urval!U69 -> 0 | V175: =Urval!V69 -> 0 | W175: =Urval!W69 -> 0 | X175: =Urval!X69 -> 0 | Y175: =Urval!Y69 -> 0 | Z175: =Urval!Z69 -> 0
B176: =IF(Urval!B71<>"",Urval!B71,"") ->  | C176: =IF(Urval!C71<>"",Urval!C71,"") ->  | D176: =IF(Urval!D71<>"",Urval!D71,"") ->  | E176: =IF(Urval!E71<>"",Urval!E71,"") ->  | F176: =IF(Urval!F71<>"",Urval!F71,"") ->  | G176: =IF(Urval!G71<>"",Urval!G71,"") ->  | H176: =IF(Urval!H71<>"",Urval!H71,"") ->  | I176: =IF(Urval!I71<>"",Urval!I71,"") ->  | J176: =IF(Urval!J71<>"",Urval!J71,"") ->  | K176: =IF(Urval!K71<>"",Urval!K71,"") ->  | L176: =IF(Urval!L71<>"",Urval!L71,"") ->  | M176: =IF(Urval!M71<>"",Urval!M71,"") ->  | N176: =IF(Urval!N71<>"",Urval!N71,"") ->  | O176: =IF(Urval!O71<>"",Urval!O71,"") ->  | P176: =IF(Urval!P71<>"",Urval!P71,"") -> 
B177: =IF(Urval!B72<>"",Urval!B72,"") -> Flik: SUICID | C177: =IF(Urval!C72<>"",Urval!C72,"") ->  | D177: =IF(Urval!D72<>"",Urval!D72,"") ->  | E177: =IF(Urval!E72<>"",Urval!E72,"") ->  | F177: =IF(Urval!F72<>"",Urval!F72,"") ->  | G177: =IF(Urval!G72<>"",Urval!G72,"") ->  | H177: =IF(Urval!H72<>"",Urval!H72,"") ->  | I177: =IF(Urval!I72<>"",Urval!I72,"") ->  | J177: =IF(Urval!J72<>"",Urval!J72,"") ->  | K177: =IF(Urval!K72<>"",Urval!K72,"") ->  | L177: =IF(Urval!L72<>"",Urval!L72,"") ->  | M177: =IF(Urval!M72<>"",Urval!M72,"") ->  | N177: =IF(Urval!N72<>"",Urval!N72,"") ->  | O177: =IF(Urval!O72<>"",Urval!O72,"") ->  | P177: =IF(Urval!P72<>"",Urval!P72,"") -> 
B178: =IF(Urval!B73<>"",Urval!B73,"") -> Riket | C178: =IF(Urval!C73<>"",Urval!C73,"") ->  | D178: =IF(Urval!D73<>"",Urval!D73,"") -> 985 | E178: =IF(Urval!E73<>"",Urval!E73,"") -> 169 | F178: =IF(Urval!F73<>"",Urval!F73,"") -> 372 | G178: =IF(Urval!G73<>"",Urval!G73,"") -> 118 | H178: =IF(Urval!H73<>"",Urval!H73,"") -> 21 | I178: =IF(Urval!I73<>"",Urval!I73,"") -> 10 | J178: =IF(Urval!J73<>"",Urval!J73,"") -> 537 | K178: =IF(Urval!K73<>"",Urval!K73,"") -> 5 | L178: =IF(Urval!L73<>"",Urval!L73,"") -> 13 | M178: =IF(Urval!M73<>"",Urval!M73,"") -> 18 | N178: =IF(Urval!N73<>"",Urval!N73,"") -> 448 | O178: =IF(Urval!O73<>"",Urval!O73,"") ->  | P178: =IF(Urval!P73<>"",Urval!P73,"") -> 0
B179: =IF(Urval!B75<>"",Urval!B75,"") ->  | C179: =IF(Urval!C75<>"",Urval!C75,"") ->  | D179: =IF(Urval!D75<>"",Urval!D75,"") ->  | E179: =IF(Urval!E75<>"",Urval!E75,"") ->  | F179: =IF(Urval!F75<>"",Urval!F75,"") ->  | G179: =IF(Urval!G75<>"",Urval!G75,"") ->  | H179: =IF(Urval!H75<>"",Urval!H75,"") ->  | I179: =IF(Urval!I75<>"",Urval!I75,"") ->  | J179: =IF(Urval!J75<>"",Urval!J75,"") ->  | K179: =IF(Urval!K75<>"",Urval!K75,"") ->  | L179: =IF(Urval!L75<>"",Urval!L75,"") ->  | M179: =IF(Urval!M75<>"",Urval!M75,"") ->  | N179: =IF(Urval!N75<>"",Urval!N75,"") ->  | O179: =IF(Urval!O75<>"",Urval!O75,"") ->  | P179: =IF(Urval!P75<>"",Urval!P75,"") -> 
B180: =IF(Urval!B76<>"",Urval!B76,"") -> Flik: MERITVÄRDEN | C180: =IF(Urval!C76<>"",Urval!C76,"") ->  | D180: =IF(Urval!D76<>"",Urval!D76,"") ->  | E180: =IF(Urval!E76<>"",Urval!E76,"") ->  | F180: =IF(Urval!F76<>"",Urval!F76,"") ->  | G180: =IF(Urval!G76<>"",Urval!G76,"") ->  | H180: =IF(Urval!H76<>"",Urval!H76,"") ->  | I180: =IF(Urval!I76<>"",Urval!I76,"") ->  | J180: =IF(Urval!J76<>"",Urval!J76,"") ->  | K180: =IF(Urval!K76<>"",Urval!K76,"") ->  | L180: =IF(Urval!L76<>"",Urval!L76,"") ->  | M180: =IF(Urval!M76<>"",Urval!M76,"") ->  | N180: =IF(Urval!N76<>"",Urval!N76,"") ->  | O180: =IF(Urval!O76<>"",Urval!O76,"") ->  | P180: =IF(Urval!P76<>"",Urval!P76,"") -> 
B181: =IF(Urval!B77<>"",Urval!B77,"") -> Riket | C181: =IF(Urval!C77<>"",Urval!C77,"") -> Totalt | D181: =IF(Urval!D77<>"",Urval!D77,"") -> 118752 | E181: =IF(Urval!E77<>"",Urval!E77,"") -> 3587 | F181: =IF(Urval!F77<>"",Urval!F77,"") -> 11103 | G181: =IF(Urval!G77<>"",Urval!G77,"") -> 2254 | H181: =IF(Urval!H77<>"",Urval!H77,"") -> 830 | I181: =IF(Urval!I77<>"",Urval!I77,"") -> 1093 | J181: =IF(Urval!J77<>"",Urval!J77,"") -> 105384 | K181: =IF(Urval!K77<>"",Urval!K77,"") -> 81 | L181: =IF(Urval!L77<>"",Urval!L77,"") -> 98 | M181: =IF(Urval!M77<>"",Urval!M77,"") -> 179 | N181: =IF(Urval!N77<>"",Urval!N77,"") -> 13368 | O181: =IF(Urval!O77<>"",Urval!O77,"") ->  | P181: =IF(Urval!P77<>"",Urval!P77,"") -> 0 | Q181: Not! Datakvalitet saknas för meritvärden.
B182: =IF(Urval!B78<>"",Urval!B78,"") -> Riket | C182: =IF(Urval!C78<>"",Urval!C78,"") -> MeritVarde | D182: =IF(Urval!D78<>"",Urval!D78,"") -> 226.64 | E182: =IF(Urval!E78<>"",Urval!E78,"") -> 144.06 | F182: =IF(Urval!F78<>"",Urval!F78,"") -> 156.9 | G182: =IF(Urval!G78<>"",Urval!G78,"") -> 135.9 | H182: =IF(Urval!H78<>"",Urval!H78,"") -> 158.58 | I182: =IF(Urval!I78<>"",Urval!I78,"") -> 178.31 | J182: =IF(Urval!J78<>"",Urval!J78,"") -> 235.2 | K182: =IF(Urval!K78<>"",Urval!K78,"") -> 109.26 | L182: =IF(Urval!L78<>"",Urval!L78,"") -> 94.69 | M182: =IF(Urval!M78<>"",Urval!M78,"") -> 203.95 | N182: =IF(Urval!N78<>"",Urval!N78,"") -> 159.1589228 | O182: =IF(Urval!O78<>"",Urval!O78,"") ->  | P182: =IF(Urval!P78<>"",Urval!P78,"") -> 0
B183: =IF(Urval!B79<>"",Urval!B79,"") -> Riket | C183: =IF(Urval!C79<>"",Urval!C79,"") -> Ant_F | D183: =IF(Urval!D79<>"",Urval!D79,"") -> 1.4523 | E183: =IF(Urval!E79<>"",Urval!E79,"") -> 5.4698 | F183: =IF(Urval!F79<>"",Urval!F79,"") -> 4.1811 | G183: =IF(Urval!G79<>"",Urval!G79,"") -> 5.764 | H183: =IF(Urval!H79<>"",Urval!H79,"") -> 3.93373 | I183: =IF(Urval!I79<>"",Urval!I79,"") -> 3.1665 | J183: =IF(Urval!J79<>"",Urval!J79,"") -> 1.10736 | K183: =IF(Urval!K79<>"",Urval!K79,"") -> 7.5432 | L183: =IF(Urval!L79<>"",Urval!L79,"") -> 8.1224 | M183: =IF(Urval!M79<>"",Urval!M79,"") -> 15.6656 | N183: =IF(Urval!N79<>"",Urval!N79,"") -> 4.171566679 | O183: =IF(Urval!O79<>"",Urval!O79,"") ->  | P183: =IF(Urval!P79<>"",Urval!P79,"") -> 0
B184: =IF(Urval!B80<>"",Urval!B80,"") ->  | C184: =IF(Urval!C80<>"",Urval!C80,"") ->  | D184: =IF(Urval!D80<>"",Urval!D80,"") ->  | E184: =IF(Urval!E80<>"",Urval!E80,"") ->  | F184: =IF(Urval!F80<>"",Urval!F80,"") ->  | G184: =IF(Urval!G80<>"",Urval!G80,"") ->  | H184: =IF(Urval!H80<>"",Urval!H80,"") ->  | I184: =IF(Urval!I80<>"",Urval!I80,"") ->  | J184: =IF(Urval!J80<>"",Urval!J80,"") ->  | K184: =IF(Urval!K80<>"",Urval!K80,"") ->  | L184: =IF(Urval!L80<>"",Urval!L80,"") ->  | M184: =IF(Urval!M80<>"",Urval!M80,"") ->  | N184: =IF(Urval!N80<>"",Urval!N80,"") ->  | O184: =IF(Urval!O80<>"",Urval!O80,"") ->  | P184: =IF(Urval!P80<>"",Urval!P80,"") -> 
B185: =IF(Urval!B81<>"",Urval!B81,"") -> Flik: RESULTAT & STÖD | C185: =IF(Urval!C81<>"",Urval!C81,"") ->  | D185: =IF(Urval!D81<>"",Urval!D81,"") ->  | E185: =IF(Urval!E81<>"",Urval!E81,"") ->  | F185: =IF(Urval!F81<>"",Urval!F81,"") ->  | G185: =IF(Urval!G81<>"",Urval!G81,"") ->  | H185: =IF(Urval!H81<>"",Urval!H81,"") ->  | I185: =IF(Urval!I81<>"",Urval!I81,"") ->  | J185: =IF(Urval!J81<>"",Urval!J81,"") ->  | K185: =IF(Urval!K81<>"",Urval!K81,"") ->  | L185: =IF(Urval!L81<>"",Urval!L81,"") ->  | M185: =IF(Urval!M81<>"",Urval!M81,"") ->  | N185: =IF(Urval!N81<>"",Urval!N81,"") ->  | O185: =IF(Urval!O81<>"",Urval!O81,"") ->  | P185: =IF(Urval!P81<>"",Urval!P81,"") -> 
B186: =IF(Urval!B82<>"",Urval!B82,"") -> Riket | C186: =IF(Urval!C82<>"",Urval!C82,"") -> Anp_stud | D186: =IF(Urval!D82<>"",Urval!D82,"") -> 6308 | E186: =IF(Urval!E82<>"",Urval!E82,"") -> 1405 | F186: =IF(Urval!F82<>"",Urval!F82,"") -> 2826 | G186: =IF(Urval!G82<>"",Urval!G82,"") -> 959 | H186: =IF(Urval!H82<>"",Urval!H82,"") -> 179 | I186: =IF(Urval!I82<>"",Urval!I82,"") -> 192 | J186: =IF(Urval!J82<>"",Urval!J82,"") -> 2930 | K186: =IF(Urval!K82<>"",Urval!K82,"") -> 20 | L186: =IF(Urval!L82<>"",Urval!L82,"") -> 34 | M186: =IF(Urval!M82<>"",Urval!M82,"") -> 54 | N186: =IF(Urval!N82<>"",Urval!N82,"") -> 3378 | O186: =IF(Urval!O82<>"",Urval!O82,"") ->  | P186: =IF(Urval!P82<>"",Urval!P82,"") -> 0
B187: =IF(Urval!B83<>"",Urval!B83,"") -> Riket | C187: =IF(Urval!C83<>"",Urval!C83,"") -> Atgardsprg | D187: =IF(Urval!D83<>"",Urval!D83,"") -> 13930 | E187: =IF(Urval!E83<>"",Urval!E83,"") -> 2306 | F187: =IF(Urval!F83<>"",Urval!F83,"") -> 5233 | G187: =IF(Urval!G83<>"",Urval!G83,"") -> 1562 | H187: =IF(Urval!H83<>"",Urval!H83,"") -> 408 | I187: =IF(Urval!I83<>"",Urval!I83,"") -> 451 | J187: =IF(Urval!J83<>"",Urval!J83,"") -> 7681 | K187: =IF(Urval!K83<>"",Urval!K83,"") -> 47 | L187: =IF(Urval!L83<>"",Urval!L83,"") -> 73 | M187: =IF(Urval!M83<>"",Urval!M83,"") -> 120 | N187: =IF(Urval!N83<>"",Urval!N83,"") -> 6249 | O187: =IF(Urval!O83<>"",Urval!O83,"") ->  | P187: =IF(Urval!P83<>"",Urval!P83,"") -> 0
B188: =IF(Urval!B84<>"",Urval!B84,"") -> Riket | C188: =IF(Urval!C84<>"",Urval!C84,"") -> Sarsk_ensk | D188: =IF(Urval!D84<>"",Urval!D84,"") -> 2638 | E188: =IF(Urval!E84<>"",Urval!E84,"") -> 569 | F188: =IF(Urval!F84<>"",Urval!F84,"") -> 1096 | G188: =IF(Urval!G84<>"",Urval!G84,"") -> 399 | H188: =IF(Urval!H84<>"",Urval!H84,"") -> 73 | I188: =IF(Urval!I84<>"",Urval!I84,"") -> 112 | J188: =IF(Urval!J84<>"",Urval!J84,"") -> 1313 | K188: =IF(Urval!K84<>"",Urval!K84,"") -> 12 | L188: =IF(Urval!L84<>"",Urval!L84,"") -> 13 | M188: =IF(Urval!M84<>"",Urval!M84,"") -> 25 | N188: =IF(Urval!N84<>"",Urval!N84,"") -> 1325 | O188: =IF(Urval!O84<>"",Urval!O84,"") ->  | P188: =IF(Urval!P84<>"",Urval!P84,"") -> 0
B189: =IF(Urval!B85<>"",Urval!B85,"") -> Riket | C189: =IF(Urval!C85<>"",Urval!C85,"") -> Sarsk_undergrp | D189: =IF(Urval!D85<>"",Urval!D85,"") -> 4970 | E189: =IF(Urval!E85<>"",Urval!E85,"") -> 1323 | F189: =IF(Urval!F85<>"",Urval!F85,"") -> 2265 | G189: =IF(Urval!G85<>"",Urval!G85,"") -> 923 | H189: =IF(Urval!H85<>"",Urval!H85,"") -> 157 | I189: =IF(Urval!I85<>"",Urval!I85,"") -> 189 | J189: =IF(Urval!J85<>"",Urval!J85,"") -> 2209 | K189: =IF(Urval!K85<>"",Urval!K85,"") -> 13 | L189: =IF(Urval!L85<>"",Urval!L85,"") -> 41 | M189: =IF(Urval!M85<>"",Urval!M85,"") -> 54 | N189: =IF(Urval!N85<>"",Urval!N85,"") -> 2761 | O189: =IF(Urval!O85<>"",Urval!O85,"") ->  | P189: =IF(Urval!P85<>"",Urval!P85,"") -> 0
B190: =IF(Urval!B86<>"",Urval!B86,"") -> Riket | C190: =IF(Urval!C86<>"",Urval!C86,"") -> Underkänd_Beh_12godkänd | D190: =IF(Urval!D86<>"",Urval!D86,"") -> 18619 | E190: =IF(Urval!E86<>"",Urval!E86,"") -> 1700 | F190: =IF(Urval!F86<>"",Urval!F86,"") -> 4408 | G190: =IF(Urval!G86<>"",Urval!G86,"") -> 1130 | H190: =IF(Urval!H86<>"",Urval!H86,"") -> 340 | I190: =IF(Urval!I86<>"",Urval!I86,"") -> 392 | J190: =IF(Urval!J86<>"",Urval!J86,"") -> 13347 | K190: =IF(Urval!K86<>"",Urval!K86,"") -> 59 | L190: =IF(Urval!L86<>"",Urval!L86,"") -> 74 | M190: =IF(Urval!M86<>"",Urval!M86,"") -> 133 | N190: =IF(Urval!N86<>"",Urval!N86,"") -> 5272 | O190: =IF(Urval!O86<>"",Urval!O86,"") ->  | P190: =IF(Urval!P86<>"",Urval!P86,"") -> 0
B191: =IF(Urval!B87<>"",Urval!B87,"") -> Riket | C191: =IF(Urval!C87<>"",Urval!C87,"") -> Underkänd_Beh_12godkänd_stöd | D191: =IF(Urval!D87<>"",Urval!D87,"") -> 8923 | E191: =IF(Urval!E87<>"",Urval!E87,"") -> 1497 | F191: =IF(Urval!F87<>"",Urval!F87,"") -> 3295 | G191: =IF(Urval!G87<>"",Urval!G87,"") -> 1012 | H191: =IF(Urval!H87<>"",Urval!H87,"") -> 268 | I191: =IF(Urval!I87<>"",Urval!I87,"") -> 311 | J191: =IF(Urval!J87<>"",Urval!J87,"") -> 4935 | K191: =IF(Urval!K87<>"",Urval!K87,"") -> 46 | L191: =IF(Urval!L87<>"",Urval!L87,"") -> 65 | M191: =IF(Urval!M87<>"",Urval!M87,"") -> 111 | N191: =IF(Urval!N87<>"",Urval!N87,"") -> 3988 | O191: =IF(Urval!O87<>"",Urval!O87,"") ->  | P191: =IF(Urval!P87<>"",Urval!P87,"") -> 0
B192: =IF(Urval!B88<>"",Urval!B88,"") -> Riket | C192: =IF(Urval!C88<>"",Urval!C88,"") -> Underkänd_Beh_Gymn | D192: =IF(Urval!D88<>"",Urval!D88,"") -> 16975 | E192: =IF(Urval!E88<>"",Urval!E88,"") -> 1485 | F192: =IF(Urval!F88<>"",Urval!F88,"") -> 3822 | G192: =IF(Urval!G88<>"",Urval!G88,"") -> 988 | H192: =IF(Urval!H88<>"",Urval!H88,"") -> 308 | I192: =IF(Urval!I88<>"",Urval!I88,"") -> 369 | J192: =IF(Urval!J88<>"",Urval!J88,"") -> 12380 | K192: =IF(Urval!K88<>"",Urval!K88,"") -> 59 | L192: =IF(Urval!L88<>"",Urval!L88,"") -> 71 | M192: =IF(Urval!M88<>"",Urval!M88,"") -> 130 | N192: =IF(Urval!N88<>"",Urval!N88,"") -> 4595 | O192: =IF(Urval!O88<>"",Urval!O88,"") ->  | P192: =IF(Urval!P88<>"",Urval!P88,"") -> 0
B193: =IF(Urval!B89<>"",Urval!B89,"") -> Riket | C193: =IF(Urval!C89<>"",Urval!C89,"") -> Underkänd_Beh_Gymn_stöd | D193: =IF(Urval!D89<>"",Urval!D89,"") -> 8084 | E193: =IF(Urval!E89<>"",Urval!E89,"") -> 1316 | F193: =IF(Urval!F89<>"",Urval!F89,"") -> 2879 | G193: =IF(Urval!G89<>"",Urval!G89,"") -> 891 | H193: =IF(Urval!H89<>"",Urval!H89,"") -> 246 | I193: =IF(Urval!I89<>"",Urval!I89,"") -> 295 | J193: =IF(Urval!J89<>"",Urval!J89,"") -> 4581 | K193: =IF(Urval!K89<>"",Urval!K89,"") -> 46 | L193: =IF(Urval!L89<>"",Urval!L89,"") -> 63 | M193: =IF(Urval!M89<>"",Urval!M89,"") -> 109 | N193: =IF(Urval!N89<>"",Urval!N89,"") -> 3503 | O193: =IF(Urval!O89<>"",Urval!O89,"") ->  | P193: =IF(Urval!P89<>"",Urval!P89,"") -> 0
B194: =IF(Urval!B90<>"",Urval!B90,"") -> Riket | C194: =IF(Urval!C90<>"",Urval!C90,"") -> Underkänd_En | D194: =IF(Urval!D90<>"",Urval!D90,"") -> 7386 | E194: =IF(Urval!E90<>"",Urval!E90,"") -> 561 | F194: =IF(Urval!F90<>"",Urval!F90,"") -> 1511 | G194: =IF(Urval!G90<>"",Urval!G90,"") -> 384 | H194: =IF(Urval!H90<>"",Urval!H90,"") -> 155 | I194: =IF(Urval!I90<>"",Urval!I90,"") -> 192 | J194: =IF(Urval!J90<>"",Urval!J90,"") -> 5544 | K194: =IF(Urval!K90<>"",Urval!K90,"") -> 37 | L194: =IF(Urval!L90<>"",Urval!L90,"") -> 40 | M194: =IF(Urval!M90<>"",Urval!M90,"") -> 77 | N194: =IF(Urval!N90<>"",Urval!N90,"") -> 1842 | O194: =IF(Urval!O90<>"",Urval!O90,"") ->  | P194: =IF(Urval!P90<>"",Urval!P90,"") -> 0
B195: =IF(Urval!B91<>"",Urval!B91,"") -> Riket | C195: =IF(Urval!C91<>"",Urval!C91,"") -> Underkänd_Ma | D195: =IF(Urval!D91<>"",Urval!D91,"") -> 11849 | E195: =IF(Urval!E91<>"",Urval!E91,"") -> 982 | F195: =IF(Urval!F91<>"",Urval!F91,"") -> 2716 | G195: =IF(Urval!G91<>"",Urval!G91,"") -> 676 | H195: =IF(Urval!H91<>"",Urval!H91,"") -> 221 | I195: =IF(Urval!I91<>"",Urval!I91,"") -> 266 | J195: =IF(Urval!J91<>"",Urval!J91,"") -> 8612 | K195: =IF(Urval!K91<>"",Urval!K91,"") -> 57 | L195: =IF(Urval!L91<>"",Urval!L91,"") -> 57 | M195: =IF(Urval!M91<>"",Urval!M91,"") -> 114 | N195: =IF(Urval!N91<>"",Urval!N91,"") -> 3237 | O195: =IF(Urval!O91<>"",Urval!O91,"") ->  | P195: =IF(Urval!P91<>"",Urval!P91,"") -> 0
B196: =IF(Urval!B92<>"",Urval!B92,"") -> Riket | C196: =IF(Urval!C92<>"",Urval!C92,"") -> Underkänd_Sv | D196: =IF(Urval!D92<>"",Urval!D92,"") -> 4546 | E196: =IF(Urval!E92<>"",Urval!E92,"") -> 773 | F196: =IF(Urval!F92<>"",Urval!F92,"") -> 1819 | G196: =IF(Urval!G92<>"",Urval!G92,"") -> 551 | H196: =IF(Urval!H92<>"",Urval!H92,"") -> 146 | I196: =IF(Urval!I92<>"",Urval!I92,"") -> 197 | J196: =IF(Urval!J92<>"",Urval!J92,"") -> 2371 | K196: =IF(Urval!K92<>"",Urval!K92,"") -> 23 | L196: =IF(Urval!L92<>"",Urval!L92,"") -> 46 | M196: =IF(Urval!M92<>"",Urval!M92,"") -> 69 | N196: =IF(Urval!N92<>"",Urval!N92,"") -> 2175 | O196: =IF(Urval!O92<>"",Urval!O92,"") ->  | P196: =IF(Urval!P92<>"",Urval!P92,"") -> 0
B199: Vald referens: | C199: =Urval!C95 -> Ingen
B201: Basdata för vald referens
B203: =IF(Urval!B99<>"",Urval!B99,"") -> Flik: POPULATION | C203: =IF(Urval!C99<>"",Urval!C99,"") ->  | D203: =IF(Urval!D99<>"",Urval!D99,"") -> Totalt | E203: =IF(Urval!E99<>"",Urval!E99,"") -> n1 (AUTISM) | F203: =IF(Urval!F99<>"",Urval!F99,"") -> n2 (ADHD) | G203: =IF(Urval!G99<>"",Urval!G99,"") -> n3 (AUTISM OCH ADHD) | H203: =IF(Urval!H99<>"",Urval!H99,"") -> n4 (DYSLEXI) | I203: =IF(Urval!I99<>"",Urval!I99,"") -> n5 (SPRÅKSTÖRNING) | J203: =IF(Urval!J99<>"",Urval!J99,"") -> n6 (EJ NPF-DIAGNOS) | K203: =IF(Urval!K99<>"",Urval!K99,"") -> n7 (IF MEN EJ NPF) | L203: =IF(Urval!L99<>"",Urval!L99,"") -> n8 (IF OCH NPF) | M203: =IF(Urval!M99<>"",Urval!M99,"") -> IF | N203: =IF(Urval!N99<>"",Urval!N99,"") -> NPF (utan IF) | O203: =IF(Urval!O99<>"",Urval!O99,"") ->  | P203: =IF(Urval!P99<>"",Urval!P99,"") -> Datakvalitet
B204: =IF(Urval!B100<>"",Urval!B100,"") -> 05 Östergötland | C204: =IF(Urval!C100<>"",Urval!C100,"") ->  | D204: =IF(Urval!D100<>"",Urval!D100,"") -> 5409 | E204: =IF(Urval!E100<>"",Urval!E100,"") -> 159 | F204: =IF(Urval!F100<>"",Urval!F100,"") -> 416 | G204: =IF(Urval!G100<>"",Urval!G100,"") -> 107 | H204: =IF(Urval!H100<>"",Urval!H100,"") -> 41 | I204: =IF(Urval!I100<>"",Urval!I100,"") -> 43 | J204: =IF(Urval!J100<>"",Urval!J100,"") -> 4915 | K204: =IF(Urval!K100<>"",Urval!K100,"") -> 6 | L204: =IF(Urval!L100<>"",Urval!L100,"") -> 2 | M204: =IF(Urval!M100<>"",Urval!M100,"") -> 8 | N204: =IF(Urval!N100<>"",Urval!N100,"") -> 494 | O204: =IF(Urval!O100<>"",Urval!O100,"") ->  | P204: =IF(Urval!P100<>"",Urval!P100,"") -> 1
B205: =IF(Urval!B101<>"",Urval!B101,"") ->  | C205: =IF(Urval!C101<>"",Urval!C101,"") ->  | D205: =IF(Urval!D101<>"",Urval!D101,"") ->  | E205: =IF(Urval!E101<>"",Urval!E101,"") ->  | F205: =IF(Urval!F101<>"",Urval!F101,"") ->  | G205: =IF(Urval!G101<>"",Urval!G101,"") ->  | H205: =IF(Urval!H101<>"",Urval!H101,"") ->  | I205: =IF(Urval!I101<>"",Urval!I101,"") ->  | J205: =IF(Urval!J101<>"",Urval!J101,"") ->  | K205: =IF(Urval!K101<>"",Urval!K101,"") ->  | L205: =IF(Urval!L101<>"",Urval!L101,"") ->  | M205: =IF(Urval!M101<>"",Urval!M101,"") ->  | N205: =IF(Urval!N101<>"",Urval!N101,"") ->  | O205: =IF(Urval!O101<>"",Urval!O101,"") ->  | P205: =IF(Urval!P101<>"",Urval!P101,"") -> 
B206: =IF(Urval!B102<>"",Urval!B102,"") -> Flik: SUICID | C206: =IF(Urval!C102<>"",Urval!C102,"") ->  | D206: =IF(Urval!D102<>"",Urval!D102,"") ->  | E206: =IF(Urval!E102<>"",Urval!E102,"") ->  | F206: =IF(Urval!F102<>"",Urval!F102,"") ->  | G206: =IF(Urval!G102<>"",Urval!G102,"") ->  | H206: =IF(Urval!H102<>"",Urval!H102,"") ->  | I206: =IF(Urval!I102<>"",Urval!I102,"") ->  | J206: =IF(Urval!J102<>"",Urval!J102,"") ->  | K206: =IF(Urval!K102<>"",Urval!K102,"") ->  | L206: =IF(Urval!L102<>"",Urval!L102,"") ->  | M206: =IF(Urval!M102<>"",Urval!M102,"") ->  | N206: =IF(Urval!N102<>"",Urval!N102,"") ->  | O206: =IF(Urval!O102<>"",Urval!O102,"") ->  | P206: =IF(Urval!P102<>"",Urval!P102,"") -> 
B207: =IF(Urval!B103<>"",Urval!B103,"") -> 05 Östergötland | C207: =IF(Urval!C103<>"",Urval!C103,"") ->  | D207: =IF(Urval!D103<>"",Urval!D103,"") -> 63 | E207: =IF(Urval!E103<>"",Urval!E103,"") -> 8 | F207: =IF(Urval!F103<>"",Urval!F103,"") -> 18 | G207: =IF(Urval!G103<>"",Urval!G103,"") -> 6 | H207: =IF(Urval!H103<>"",Urval!H103,"") -> 2 | I207: =IF(Urval!I103<>"",Urval!I103,"") -> 0 | J207: =IF(Urval!J103<>"",Urval!J103,"") -> 40 | K207: =IF(Urval!K103<>"",Urval!K103,"") -> 2 | L207: =IF(Urval!L103<>"",Urval!L103,"") -> 2 | M207: =IF(Urval!M103<>"",Urval!M103,"") -> 4 | N207: =IF(Urval!N103<>"",Urval!N103,"") -> 23 | O207: =IF(Urval!O103<>"",Urval!O103,"") ->  | P207: =IF(Urval!P103<>"",Urval!P103,"") -> 3
B208: =IF(Urval!B104<>"",Urval!B104,"") ->  | C208: =IF(Urval!C104<>"",Urval!C104,"") ->  | D208: =IF(Urval!D104<>"",Urval!D104,"") ->  | E208: =IF(Urval!E104<>"",Urval!E104,"") ->  | F208: =IF(Urval!F104<>"",Urval!F104,"") ->  | G208: =IF(Urval!G104<>"",Urval!G104,"") ->  | H208: =IF(Urval!H104<>"",Urval!H104,"") ->  | I208: =IF(Urval!I104<>"",Urval!I104,"") ->  | J208: =IF(Urval!J104<>"",Urval!J104,"") ->  | K208: =IF(Urval!K104<>"",Urval!K104,"") ->  | L208: =IF(Urval!L104<>"",Urval!L104,"") ->  | M208: =IF(Urval!M104<>"",Urval!M104,"") ->  | N208: =IF(Urval!N104<>"",Urval!N104,"") ->  | O208: =IF(Urval!O104<>"",Urval!O104,"") ->  | P208: =IF(Urval!P104<>"",Urval!P104,"") -> 
B209: =IF(Urval!B105<>"",Urval!B105,"") -> Flik: MERITVÄRDEN | C209: =IF(Urval!C105<>"",Urval!C105,"") ->  | D209: =IF(Urval!D105<>"",Urval!D105,"") ->  | E209: =IF(Urval!E105<>"",Urval!E105,"") ->  | F209: =IF(Urval!F105<>"",Urval!F105,"") ->  | G209: =IF(Urval!G105<>"",Urval!G105,"") ->  | H209: =IF(Urval!H105<>"",Urval!H105,"") ->  | I209: =IF(Urval!I105<>"",Urval!I105,"") ->  | J209: =IF(Urval!J105<>"",Urval!J105,"") ->  | K209: =IF(Urval!K105<>"",Urval!K105,"") ->  | L209: =IF(Urval!L105<>"",Urval!L105,"") ->  | M209: =IF(Urval!M105<>"",Urval!M105,"") ->  | N209: =IF(Urval!N105<>"",Urval!N105,"") ->  | O209: =IF(Urval!O105<>"",Urval!O105,"") ->  | P209: =IF(Urval!P105<>"",Urval!P105,"") -> 
B210: =IF(Urval!B106<>"",Urval!B106,"") -> 05 Östergötland | C210: =IF(Urval!C106<>"",Urval!C106,"") -> Totalt | D210: =IF(Urval!D106<>"",Urval!D106,"") -> 5364 | E210: =IF(Urval!E106<>"",Urval!E106,"") -> 154 | F210: =IF(Urval!F106<>"",Urval!F106,"") -> 405 | G210: =IF(Urval!G106<>"",Urval!G106,"") -> 105 | H210: =IF(Urval!H106<>"",Urval!H106,"") -> 40 | I210: =IF(Urval!I106<>"",Urval!I106,"") -> 43 | J210: =IF(Urval!J106<>"",Urval!J106,"") -> 4886 | K210: =IF(Urval!K106<>"",Urval!K106,"") -> 5 | L210: =IF(Urval!L106<>"",Urval!L106,"") -> 2 | M210: =IF(Urval!M106<>"",Urval!M106,"") -> 7 | N210: =IF(Urval!N106<>"",Urval!N106,"") -> 478 | O210: =IF(Urval!O106<>"",Urval!O106,"") ->  | P210: =IF(Urval!P106<>"",Urval!P106,"") -> 0
B211: =IF(Urval!B107<>"",Urval!B107,"") -> 05 Östergötland | C211: =IF(Urval!C107<>"",Urval!C107,"") -> MeritVarde | D211: =IF(Urval!D107<>"",Urval!D107,"") -> 220.33 | E211: =IF(Urval!E107<>"",Urval!E107,"") -> 122.69 | F211: =IF(Urval!F107<>"",Urval!F107,"") -> 129.17 | G211: =IF(Urval!G107<>"",Urval!G107,"") -> 106.26 | H211: =IF(Urval!H107<>"",Urval!H107,"") -> 106.19 | I211: =IF(Urval!I107<>"",Urval!I107,"") -> 114.88 | J211: =IF(Urval!J107<>"",Urval!J107,"") -> 228.96 | K211: =IF(Urval!K107<>"",Urval!K107,"") -> 80 | L211: =IF(Urval!L107<>"",Urval!L107,"") -> . | M211: =IF(Urval!M107<>"",Urval!M107,"") -> 80 | N211: =IF(Urval!N107<>"",Urval!N107,"") -> 132.1162343 | O211: =IF(Urval!O107<>"",Urval!O107,"") ->  | P211: =IF(Urval!P107<>"",Urval!P107,"") -> 0
B212: =IF(Urval!B108<>"",Urval!B108,"") -> 05 Östergötland | C212: =IF(Urval!C108<>"",Urval!C108,"") -> Ant_F | D212: =IF(Urval!D108<>"",Urval!D108,"") -> 1.6361 | E212: =IF(Urval!E108<>"",Urval!E108,"") -> 6.9351 | F212: =IF(Urval!F108<>"",Urval!F108,"") -> 5.5901 | G212: =IF(Urval!G108<>"",Urval!G108,"") -> 7.4667 | H212: =IF(Urval!H108<>"",Urval!H108,"") -> 6.85 | I212: =IF(Urval!I108<>"",Urval!I108,"") -> 6.4186 | J212: =IF(Urval!J108<>"",Urval!J108,"") -> 1.24744 | K212: =IF(Urval!K108<>"",Urval!K108,"") -> 8.8 | L212: =IF(Urval!L108<>"",Urval!L108,"") -> . | M212: =IF(Urval!M108<>"",Urval!M108,"") -> 8.8 | N212: =IF(Urval!N108<>"",Urval!N108,"") -> 5.608888201 | O212: =IF(Urval!O108<>"",Urval!O108,"") ->  | P212: =IF(Urval!P108<>"",Urval!P108,"") -> 0
B213: =IF(Urval!B109<>"",Urval!B109,"") ->  | C213: =IF(Urval!C109<>"",Urval!C109,"") ->  | D213: =IF(Urval!D109<>"",Urval!D109,"") ->  | E213: =IF(Urval!E109<>"",Urval!E109,"") ->  | F213: =IF(Urval!F109<>"",Urval!F109,"") ->  | G213: =IF(Urval!G109<>"",Urval!G109,"") ->  | H213: =IF(Urval!H109<>"",Urval!H109,"") ->  | I213: =IF(Urval!I109<>"",Urval!I109,"") ->  | J213: =IF(Urval!J109<>"",Urval!J109,"") ->  | K213: =IF(Urval!K109<>"",Urval!K109,"") ->  | L213: =IF(Urval!L109<>"",Urval!L109,"") ->  | M213: =IF(Urval!M109<>"",Urval!M109,"") ->  | N213: =IF(Urval!N109<>"",Urval!N109,"") ->  | O213: =IF(Urval!O109<>"",Urval!O109,"") ->  | P213: =IF(Urval!P109<>"",Urval!P109,"") -> 
B214: =IF(Urval!B110<>"",Urval!B110,"") -> Flik: RESULTAT & STÖD | C214: =IF(Urval!C110<>"",Urval!C110,"") ->  | D214: =IF(Urval!D110<>"",Urval!D110,"") ->  | E214: =IF(Urval!E110<>"",Urval!E110,"") ->  | F214: =IF(Urval!F110<>"",Urval!F110,"") ->  | G214: =IF(Urval!G110<>"",Urval!G110,"") ->  | H214: =IF(Urval!H110<>"",Urval!H110,"") ->  | I214: =IF(Urval!I110<>"",Urval!I110,"") ->  | J214: =IF(Urval!J110<>"",Urval!J110,"") ->  | K214: =IF(Urval!K110<>"",Urval!K110,"") ->  | L214: =IF(Urval!L110<>"",Urval!L110,"") ->  | M214: =IF(Urval!M110<>"",Urval!M110,"") ->  | N214: =IF(Urval!N110<>"",Urval!N110,"") ->  | O214: =IF(Urval!O110<>"",Urval!O110,"") ->  | P214: =IF(Urval!P110<>"",Urval!P110,"") -> 
B215: =IF(Urval!B111<>"",Urval!B111,"") -> 05 Östergötland | C215: =IF(Urval!C111<>"",Urval!C111,"") -> Anp_stud | D215: =IF(Urval!D111<>"",Urval!D111,"") -> 343 | E215: =IF(Urval!E111<>"",Urval!E111,"") -> 74 | F215: =IF(Urval!F111<>"",Urval!F111,"") -> 146 | G215: =IF(Urval!G111<>"",Urval!G111,"") -> 53 | H215: =IF(Urval!H111<>"",Urval!H111,"") -> 16 | I215: =IF(Urval!I111<>"",Urval!I111,"") -> 12 | J215: =IF(Urval!J111<>"",Urval!J111,"") -> 173 | K215: =IF(Urval!K111<>"",Urval!K111,"") -> 0 | L215: =IF(Urval!L111<>"",Urval!L111,"") -> 2 | M215: =IF(Urval!M111<>"",Urval!M111,"") -> 2 | N215: =IF(Urval!N111<>"",Urval!N111,"") -> 170 | O215: =IF(Urval!O111<>"",Urval!O111,"") ->  | P215: =IF(Urval!P111<>"",Urval!P111,"") -> 1
B216: =IF(Urval!B112<>"",Urval!B112,"") -> 05 Östergötland | C216: =IF(Urval!C112<>"",Urval!C112,"") -> Atgardsprg | D216: =IF(Urval!D112<>"",Urval!D112,"") -> 874 | E216: =IF(Urval!E112<>"",Urval!E112,"") -> 104 | F216: =IF(Urval!F112<>"",Urval!F112,"") -> 243 | G216: =IF(Urval!G112<>"",Urval!G112,"") -> 78 | H216: =IF(Urval!H112<>"",Urval!H112,"") -> 31 | I216: =IF(Urval!I112<>"",Urval!I112,"") -> 28 | J216: =IF(Urval!J112<>"",Urval!J112,"") -> 593 | K216: =IF(Urval!K112<>"",Urval!K112,"") -> 2 | L216: =IF(Urval!L112<>"",Urval!L112,"") -> 2 | M216: =IF(Urval!M112<>"",Urval!M112,"") -> 4 | N216: =IF(Urval!N112<>"",Urval!N112,"") -> 281 | O216: =IF(Urval!O112<>"",Urval!O112,"") ->  | P216: =IF(Urval!P112<>"",Urval!P112,"") -> 2
B217: =IF(Urval!B113<>"",Urval!B113,"") -> 05 Östergötland | C217: =IF(Urval!C113<>"",Urval!C113,"") -> Sarsk_ensk | D217: =IF(Urval!D113<>"",Urval!D113,"") -> 188 | E217: =IF(Urval!E113<>"",Urval!E113,"") -> 31 | F217: =IF(Urval!F113<>"",Urval!F113,"") -> 70 | G217: =IF(Urval!G113<>"",Urval!G113,"") -> 25 | H217: =IF(Urval!H113<>"",Urval!H113,"") -> 8 | I217: =IF(Urval!I113<>"",Urval!I113,"") -> 9 | J217: =IF(Urval!J113<>"",Urval!J113,"") -> 109 | K217: =IF(Urval!K113<>"",Urval!K113,"") -> 2 | L217: =IF(Urval!L113<>"",Urval!L113,"") -> 2 | M217: =IF(Urval!M113<>"",Urval!M113,"") -> 4 | N217: =IF(Urval!N113<>"",Urval!N113,"") -> 79 | O217: =IF(Urval!O113<>"",Urval!O113,"") ->  | P217: =IF(Urval!P113<>"",Urval!P113,"") -> 2
B218: =IF(Urval!B114<>"",Urval!B114,"") -> 05 Östergötland | C218: =IF(Urval!C114<>"",Urval!C114,"") -> Sarsk_undergrp | D218: =IF(Urval!D114<>"",Urval!D114,"") -> 201 | E218: =IF(Urval!E114<>"",Urval!E114,"") -> 60 | F218: =IF(Urval!F114<>"",Urval!F114,"") -> 83 | G218: =IF(Urval!G114<>"",Urval!G114,"") -> 43 | H218: =IF(Urval!H114<>"",Urval!H114,"") -> 8 | I218: =IF(Urval!I114<>"",Urval!I114,"") -> 13 | J218: =IF(Urval!J114<>"",Urval!J114,"") -> 98 | K218: =IF(Urval!K114<>"",Urval!K114,"") -> 2 | L218: =IF(Urval!L114<>"",Urval!L114,"") -> 0 | M218: =IF(Urval!M114<>"",Urval!M114,"") -> 2 | N218: =IF(Urval!N114<>"",Urval!N114,"") -> 103 | O218: =IF(Urval!O114<>"",Urval!O114,"") ->  | P218: =IF(Urval!P114<>"",Urval!P114,"") -> 1
B219: =IF(Urval!B115<>"",Urval!B115,"") -> 05 Östergötland | C219: =IF(Urval!C115<>"",Urval!C115,"") -> Underkänd_Beh_12godkänd | D219: =IF(Urval!D115<>"",Urval!D115,"") -> 961 | E219: =IF(Urval!E115<>"",Urval!E115,"") -> 93 | F219: =IF(Urval!F115<>"",Urval!F115,"") -> 212 | G219: =IF(Urval!G115<>"",Urval!G115,"") -> 66 | H219: =IF(Urval!H115<>"",Urval!H115,"") -> 26 | I219: =IF(Urval!I115<>"",Urval!I115,"") -> 27 | J219: =IF(Urval!J115<>"",Urval!J115,"") -> 708 | K219: =IF(Urval!K115<>"",Urval!K115,"") -> 4 | L219: =IF(Urval!L115<>"",Urval!L115,"") -> 2 | M219: =IF(Urval!M115<>"",Urval!M115,"") -> 6 | N219: =IF(Urval!N115<>"",Urval!N115,"") -> 253 | O219: =IF(Urval!O115<>"",Urval!O115,"") ->  | P219: =IF(Urval!P115<>"",Urval!P115,"") -> 1
B220: =IF(Urval!B116<>"",Urval!B116,"") -> 05 Östergötland | C220: =IF(Urval!C116<>"",Urval!C116,"") -> Underkänd_Beh_12godkänd_stöd | D220: =IF(Urval!D116<>"",Urval!D116,"") -> 579 | E220: =IF(Urval!E116<>"",Urval!E116,"") -> 81 | F220: =IF(Urval!F116<>"",Urval!F116,"") -> 165 | G220: =IF(Urval!G116<>"",Urval!G116,"") -> 58 | H220: =IF(Urval!H116<>"",Urval!H116,"") -> 22 | I220: =IF(Urval!I116<>"",Urval!I116,"") -> 23 | J220: =IF(Urval!J116<>"",Urval!J116,"") -> 380 | K220: =IF(Urval!K116<>"",Urval!K116,"") -> 2 | L220: =IF(Urval!L116<>"",Urval!L116,"") -> 2 | M220: =IF(Urval!M116<>"",Urval!M116,"") -> 4 | N220: =IF(Urval!N116<>"",Urval!N116,"") -> 199 | O220: =IF(Urval!O116<>"",Urval!O116,"") ->  | P220: =IF(Urval!P116<>"",Urval!P116,"") -> 2
B221: =IF(Urval!B117<>"",Urval!B117,"") -> 05 Östergötland | C221: =IF(Urval!C117<>"",Urval!C117,"") -> Underkänd_Beh_Gymn | D221: =IF(Urval!D117<>"",Urval!D117,"") -> 870 | E221: =IF(Urval!E117<>"",Urval!E117,"") -> 82 | F221: =IF(Urval!F117<>"",Urval!F117,"") -> 185 | G221: =IF(Urval!G117<>"",Urval!G117,"") -> 59 | H221: =IF(Urval!H117<>"",Urval!H117,"") -> 25 | I221: =IF(Urval!I117<>"",Urval!I117,"") -> 27 | J221: =IF(Urval!J117<>"",Urval!J117,"") -> 648 | K221: =IF(Urval!K117<>"",Urval!K117,"") -> 4 | L221: =IF(Urval!L117<>"",Urval!L117,"") -> 2 | M221: =IF(Urval!M117<>"",Urval!M117,"") -> 6 | N221: =IF(Urval!N117<>"",Urval!N117,"") -> 222 | O221: =IF(Urval!O117<>"",Urval!O117,"") ->  | P221: =IF(Urval!P117<>"",Urval!P117,"") -> 1
B222: =IF(Urval!B118<>"",Urval!B118,"") -> 05 Östergötland | C222: =IF(Urval!C118<>"",Urval!C118,"") -> Underkänd_Beh_Gymn_stöd | D222: =IF(Urval!D118<>"",Urval!D118,"") -> 526 | E222: =IF(Urval!E118<>"",Urval!E118,"") -> 74 | F222: =IF(Urval!F118<>"",Urval!F118,"") -> 146 | G222: =IF(Urval!G118<>"",Urval!G118,"") -> 53 | H222: =IF(Urval!H118<>"",Urval!H118,"") -> 21 | I222: =IF(Urval!I118<>"",Urval!I118,"") -> 23 | J222: =IF(Urval!J118<>"",Urval!J118,"") -> 348 | K222: =IF(Urval!K118<>"",Urval!K118,"") -> 2 | L222: =IF(Urval!L118<>"",Urval!L118,"") -> 2 | M222: =IF(Urval!M118<>"",Urval!M118,"") -> 4 | N222: =IF(Urval!N118<>"",Urval!N118,"") -> 178 | O222: =IF(Urval!O118<>"",Urval!O118,"") ->  | P222: =IF(Urval!P118<>"",Urval!P118,"") -> 2
B223: =IF(Urval!B119<>"",Urval!B119,"") -> 05 Östergötland | C223: =IF(Urval!C119<>"",Urval!C119,"") -> Underkänd_En | D223: =IF(Urval!D119<>"",Urval!D119,"") -> 398 | E223: =IF(Urval!E119<>"",Urval!E119,"") -> 39 | F223: =IF(Urval!F119<>"",Urval!F119,"") -> 87 | G223: =IF(Urval!G119<>"",Urval!G119,"") -> 28 | H223: =IF(Urval!H119<>"",Urval!H119,"") -> 12 | I223: =IF(Urval!I119<>"",Urval!I119,"") -> 17 | J223: =IF(Urval!J119<>"",Urval!J119,"") -> 292 | K223: =IF(Urval!K119<>"",Urval!K119,"") -> 2 | L223: =IF(Urval!L119<>"",Urval!L119,"") -> 2 | M223: =IF(Urval!M119<>"",Urval!M119,"") -> 4 | N223: =IF(Urval!N119<>"",Urval!N119,"") -> 106 | O223: =IF(Urval!O119<>"",Urval!O119,"") ->  | P223: =IF(Urval!P119<>"",Urval!P119,"") -> 2
B224: =IF(Urval!B120<>"",Urval!B120,"") -> 05 Östergötland | C224: =IF(Urval!C120<>"",Urval!C120,"") -> Underkänd_Ma | D224: =IF(Urval!D120<>"",Urval!D120,"") -> 636 | E224: =IF(Urval!E120<>"",Urval!E120,"") -> 59 | F224: =IF(Urval!F120<>"",Urval!F120,"") -> 135 | G224: =IF(Urval!G120<>"",Urval!G120,"") -> 44 | H224: =IF(Urval!H120<>"",Urval!H120,"") -> 18 | I224: =IF(Urval!I120<>"",Urval!I120,"") -> 20 | J224: =IF(Urval!J120<>"",Urval!J120,"") -> 475 | K224: =IF(Urval!K120<>"",Urval!K120,"") -> 4 | L224: =IF(Urval!L120<>"",Urval!L120,"") -> 2 | M224: =IF(Urval!M120<>"",Urval!M120,"") -> 6 | N224: =IF(Urval!N120<>"",Urval!N120,"") -> 161 | O224: =IF(Urval!O120<>"",Urval!O120,"") ->  | P224: =IF(Urval!P120<>"",Urval!P120,"") -> 1
B225: =IF(Urval!B121<>"",Urval!B121,"") -> 05 Östergötland | C225: =IF(Urval!C121<>"",Urval!C121,"") -> Underkänd_Sv | D225: =IF(Urval!D121<>"",Urval!D121,"") -> 245 | E225: =IF(Urval!E121<>"",Urval!E121,"") -> 43 | F225: =IF(Urval!F121<>"",Urval!F121,"") -> 89 | G225: =IF(Urval!G121<>"",Urval!G121,"") -> 29 | H225: =IF(Urval!H121<>"",Urval!H121,"") -> 13 | I225: =IF(Urval!I121<>"",Urval!I121,"") -> 13 | J225: =IF(Urval!J121<>"",Urval!J121,"") -> 136 | K225: =IF(Urval!K121<>"",Urval!K121,"") -> 2 | L225: =IF(Urval!L121<>"",Urval!L121,"") -> 0 | M225: =IF(Urval!M121<>"",Urval!M121,"") -> 2 | N225: =IF(Urval!N121<>"",Urval!N121,"") -> 109 | O225: =IF(Urval!O121<>"",Urval!O121,"") ->  | P225: =IF(Urval!P121<>"",Urval!P121,"") -> 1
B226: =IF(Urval!B122<>"",Urval!B122,"") ->  | C226: =IF(Urval!C122<>"",Urval!C122,"") ->  | D226: =IF(Urval!D122<>"",Urval!D122,"") ->  | E226: =IF(Urval!E122<>"",Urval!E122,"") ->  | F226: =IF(Urval!F122<>"",Urval!F122,"") ->  | G226: =IF(Urval!G122<>"",Urval!G122,"") ->  | H226: =IF(Urval!H122<>"",Urval!H122,"") ->  | I226: =IF(Urval!I122<>"",Urval!I122,"") ->  | J226: =IF(Urval!J122<>"",Urval!J122,"") ->  | K226: =IF(Urval!K122<>"",Urval!K122,"") ->  | L226: =IF(Urval!L122<>"",Urval!L122,"") ->  | M226: =IF(Urval!M122<>"",Urval!M122,"") ->  | N226: =IF(Urval!N122<>"",Urval!N122,"") ->  | O226: =IF(Urval!O122<>"",Urval!O122,"") ->  | P226: =IF(Urval!P122<>"",Urval!P122,"") -> 

Sheet Graf 3 Fem fakta
B3: Hur är situationen för elever med neuropsykiatriska diagnoser i svensk skola?
B4: - en samkörning av skolstatistiken & patientregistret för utgångseleverna läsåret 21/22
B5: Ett projekt av föräldranätverket Rätten till Utbildning, med hjälp av Skandias stiftelse Idéer för Livet
B9: Välj annat geografiskt område på fliken "Urval"!
B11: Fem snabba fakta om hur svenskt skolväsende diskriminerar npf-elever så att de tappar livslusten.
C12: - Vi har inte en skola för ALLA idag! Vi kräver förändring nu.
E14: ="Område: "&_xlfn.IFS(Urval!C7="Riket","'Riket'",TRUE,_xlfn.TEXTAFTER(Urval!C8," ")&" "&LOWER(Urval!C7))&" med "&TEXT(C46,"# ###")&" npf-elever ("&ROUND(C46*100/(C47+C46),1)&"%) utav "&TEXT(C47+C46,"# ###")&" utgångselever." -> Område: 'Riket' med 13 648 npf-elever (11,4%) utav 119 876 utgångselever.
B41: Grafdata
B43: Graf 1 - hur många npf-elever | F43: Graf 2a | I43: Graf 2b - stapel hur klarade man behörighet? | L43: Graf 3 - stapel meritpoäng
G45: Klarade ej gymnasiebehörighet | J45: Klarade ej gymnasiebehörighet | M45: Meritpoäng
B46: ="elever med npf-diagnos ("&ROUND(C46/(C46+C47)*100,1)&"%)" -> elever med npf-diagnos (11,4%) | C46: =N150 -> 13648 | F46: Med npf | G46: =N167 -> 4595 | I46: ="Med npf"&CHAR(10)&"("&G46&" st)" -> Med npf (4595 st) | J46: =G46/N150 -> 0.3366793669 | L46: Med npf | M46: =N157 -> 159.1589228
B47: elever utan npf-diagnos | C47: =J150 -> 106228 | F47: Utan npf | G47: =J167 -> 12380 | I47: ="Utan npf"&CHAR(10)&"("&G47&" st)" -> Utan npf (12380 st) | J47: =G47/J150 -> 0.1165417781 | L47: Utan npf | M47: =J157 -> 235.2
J48: ej klarar högskoleförbered. | L48: Elev som invandrat åk 1-5 | M48: 191
I49: ="Med npf"&CHAR(10)&"("&N165&" st)" -> Med npf (5272 st) | J49: =N165/N150 -> 0.3862837046 | L49: Elev som invandrat åk 6-9 | M49: 136
I50: ="Utan npf"&CHAR(10)&"("&J165&" st)" -> Utan npf (13347 st) | J50: =J165/J150 -> 0.1256448394
B52: Graf 2b - stapel hur klarade man behörighet?
I53: Graf 3b - stapel betyg i kärnämnena
C54: Klarade ej gymnasiebehörighet till yrkesgymnasium
B55: ="Med autism "&CHAR(10)&"("&E167&" st)" -> Med autism (1485 st) | C55: =E167/E150 -> 0.4024390244 | J55: Underkänt Svenska | K55: Underkänt Engelska | L55: Underkänt Matematik | M55: Antal F-betyg
B56: ="Med adhd "&CHAR(10)&"("&F167&" st)" -> Med adhd (3822 st) | C56: =F167/F150 -> 0.3383798141 | I56: ="Med npf"&CHAR(10)&"("&G46&" st)" -> Med npf (4595 st) | J56: =N171/C46 -> 0.1593640094 | K56: =N169/C46 -> 0.13496483 | L56: =N170/C46 -> 0.2371776084 | M56: =N158 -> 4.171566679
B57: ="Med autism & adhd"&CHAR(10)&"("&G167&" st)" -> Med autism & adhd (988 st) | C57: =G167/G150 -> 0.4260457094 | I57: ="Utan npf"&CHAR(10)&"("&C47&" st)" -> Utan npf (106228 st) | J57: =J171/C47 -> 0.02231991565 | K57: =J169/C47 -> 0.05218962985 | L57: =J170/C47 -> 0.08107090409 | M57: =J158 -> 1.10736
B58: ="Med dyslexi"&CHAR(10)&"("&H167&" st)" -> Med dyslexi (308 st) | C58: =H167/H150 -> 0.3627797409
B59: ="Med språkstörning"&CHAR(10)&"("&I167&" st)" -> Med språkstörning (369 st) | C59: =I167/I150 -> 0.3315363881
B60: ="Utan npf"&CHAR(10)&"("&G47&" st)" -> Utan npf (12380 st) | C60: =J47 -> 0.1165417781
B63: Graf 4 - vilka har fått eller borde ha fått särskilt stöd?
I64: Graf 4a | L64: Graf 4b
D65: Med npf | E65: Utan npf
J66: Särskilt stöd | M66: Särskilt stöd
B67: Fått otillräckligt stöd | D67: =F143/C46 -> 0.2566676436 | E67: =F135/C47 -> 0.04312422337 | I67: Elever med npf | J67: =N162 -> 6249 | L67: Elever med npf | M67: =J67/D162 -> 0.4486001436
B68: Inte fått stöd alls | D68: =F144/C46 -> 0.08001172333 | E68: =F136/C47 -> 0.07341755469 | I68: Elever utan npf | J68: =J162 -> 7681 | L68: Elever utan npf | M68: =J68/D162 -> 0.5513998564
B72: Graf 5 - vilken andel npf-elever har fått stöd? | I72: Graf 6 - hur mycket har undervisning anpassats bort?
C74: Åtgärdsprogram | D74: Enskild undervisning | E74: Särskild undervisningsgrupp | J74: Andel anpassad studiegång
B75: ="Med autism"&CHAR(10)&"("&E150&" st)" -> Med autism (3690 st) | C75: =E162/E150 -> 0.6249322493 | D75: =E163/E150 -> 0.154200542 | E75: =E164/E150 -> 0.3585365854 | I75: med npf | J75: =N161/N150 -> 0.2475087925 | L75: ="med autism ("&E161&" st)" -> med autism (1405 st) | M75: =E161/E150 -> 0.3807588076
B76: ="Med adhd"&CHAR(10)&"("&F150&" st)" -> Med adhd (11295 st) | C76: =F162/F150 -> 0.4633023462 | D76: =F163/F150 -> 0.09703408588 | E76: =F164/F150 -> 0.2005312085 | I76: utan npf | J76: =J161/J150 -> 0.02758218172 | L76: ="med adhd ("&F161&" st)" -> med adhd (2826 st) | M76: =F161/F150 -> 0.2501992032
B77: ="Med autism & adhd"&CHAR(10)&"("&G150&" st)" -> Med autism & adhd (2319 st) | C77: =G162/G150 -> 0.6735661923 | D77: =G163/G150 -> 0.1720569211 | E77: =G164/G150 -> 0.3980163864 | L77: ="med autism & adhd ("&G161&" st)" -> med autism & adhd (959 st) | M77: =G161/G150 -> 0.4135403191
B78: ="Med dyslexi"&CHAR(10)&"("&H150&" st)" -> Med dyslexi (849 st) | C78: =H162/H150 -> 0.480565371 | D78: =H163/H150 -> 0.08598351001 | E78: =H164/H150 -> 0.1849234393 | L78: ="med dyslexi ("&H161&" st)" -> med dyslexi (179 st) | M78: =H161/H150 -> 0.210836278
B79: ="Med språkstörning"&CHAR(10)&"("&I150&" st)" -> Med språkstörning (1113 st) | C79: =I162/I150 -> 0.4052111411 | D79: =I163/I150 -> 0.1006289308 | E79: =I164/I150 -> 0.1698113208 | L79: ="med språkstörning ("&I161&" st)" -> med språkstörning (192 st) | M79: =I161/I150 -> 0.1725067385
L80: =I76 -> utan npf | M80: =J76 -> 0.02758218172
B82: Graf 7a - Omfattning av suicidförsök | I82: Graf 7b - Omfattning av suicidförsök
B84: ="med npf ("&N153&" st)" -> med npf (448 st) | C84: =N153/N150 -> 0.03282532239 | D84: =N153 -> 448 | I84: npf-elever | J84: =N153/D153 -> 0.454822335
B85: ="utan npf ("&J153&" st)" -> utan npf (537 st) | C85: =J153/J150 -> 0.005055164363 | D85: =J153 -> 537 | I85: elever utan npf | J85: =1-J84 -> 0.545177665
I87: Överrepresentation | J87: =C84/C85 -> 6.493423365
B90: Graf 8 - antal npf-elever i hela grundskolan
C92: F-klass | D92: åk 1 | E92: åk 2 | F92: åk 3 | G92: åk 4 | H92: åk 5 | I92: åk 6 | J92: åk 7 | K92: åk 8 | L92: åk 9
B93: med diagnosnära/odiagnosticerad npf | C93: =C99*C97+C99*C96 -> 12965.6 | D93: 11600.8 | E93: 11600.8 | F93: 11600.8 | G93: 9553.6 | H93: 9553.6 | I93: 9553.6 | J93: 6824 | K93: 6824 | L93: =L99*L96 -> 4094.4
B94: med diagnosticerad npf | C94: =C99*C98 -> 2729.6 | D94: 4094.4 | E94: 4094.4 | F94: 4094.4 | G94: 6824 | H94: 6824 | I94: 6824 | J94: 10918.4 | K94: 10918.4 | L94: =L98*L99 -> 13648
B96: diagnosnära npf | C96: 0.15 | D96: 0.15 | E96: 0.15 | F96: 0.15 | G96: 0.2 | H96: 0.2 | I96: 0.2 | J96: 0.3 | K96: 0.3 | L96: 0.3
B97: odiagnosticerad npf | C97: 0.8 | D97: 0.7 | E97: 0.7 | F97: 0.7 | G97: 0.5 | H97: 0.5 | I97: 0.5 | J97: 0.2 | K97: 0.2 | L97: 0
B98: diagnosticerad fördelning | C98: 0.2 | D98: 0.3 | E98: 0.3 | F98: 0.3 | G98: 0.5 | H98: 0.5 | I98: 0.5 | J98: 0.8 | K98: 0.8 | L98: 1
B99: med npf | C99: =D99 -> 13648 | D99: 13648 | E99: 13648 | F99: 13648 | G99: 13648 | H99: 13648 | I99: 13648 | J99: =L99 -> 13648 | K99: =L99 -> 13648 | L99: =N150 -> 13648
B105: Graf 9 - Likvärdighetsgapet
C107: Andel elever som försökt ta sitt liv | D107: Andel elever utan gymnasiebehörighet (yrkeslinje) | E107: Genomsnittlig meritpoäng (p) i utgångsbetyg | F107: Andel anpassad studiegång | G107: Andel underkänt i Svenska
B108: med npf | C108: =C84 -> 0.03282532239 | D108: =J46 -> 0.3366793669 | E108: =M46 -> 159.1589228 | F108: =J75 -> 0.2475087925 | G108: =J56 -> 0.1593640094
B109: utan npf | C109: =C85 -> 0.005055164363 | D109: =J47 -> 0.1165417781 | E109: =M47 -> 235.2 | F109: =J76 -> 0.02758218172 | G109: =J57 -> 0.02231991565
B111: med | C111: ="med npf"&CHAR(10)&"("&TEXT(N153,"# ###")&" st)" -> med npf (448 st) | D111: ="med npf"&CHAR(10)&"("&TEXT(G46,"# ###")&" st)" -> med npf (4 595 st) | E111: ="med npf"&CHAR(10)&"("&TEXT(C46,"# ###")&" st)" -> med npf (13 648 st) | F111: ="med npf"&CHAR(10)&"("&TEXT(N161,"# ###")&" st)" -> med npf (3 378 st) | G111: ="med npf"&CHAR(10)&"("&TEXT(N171,"# ###")&" st)" -> med npf (2 175 st)
B112: utan | C112: ="utan npf"&CHAR(10)&"("&TEXT(J153,"# ###")&" st)" -> utan npf (537 st) | D112: ="utan npf"&CHAR(10)&"("&TEXT(G47,"# ###")&" st)" -> utan npf (12 380 st) | E112: ="utan npf"&CHAR(10)&"("&TEXT(C47,"# ###")&" st)" -> utan npf (106 228 st) | F112: ="utan npf"&CHAR(10)&"("&TEXT(J161,"# ###")&" st)" -> utan npf (2 930 st) | G112: ="utan npf"&CHAR(10)&"("&TEXT(J171,"# ###")&" st)" -> utan npf (2 371 st)
B126: NEDBRYTNING GYMNBEHÖRIGHET OCH STÖD
B128: =IF(Urval!B46<>"",Urval!B46,"") -> NEDBRYTNING GYMNBEHÖRIGHET OCH STÖD | D128: =IF(Urval!D46<>"",Urval!D46,"") -> # elever | E128: =IF(Urval!E46<>"",Urval!E46,"") -> # elever | F128: =IF(Urval!F46<>"",Urval!F46,"") -> # elever
B129: =IF(Urval!B47<>"",Urval!B47,"") -> Total population | C129: =IF(Urval!C47<>"",Urval!C47,"") ->  | D129: =IF(Urval!D47<>"",Urval!D47,"") -> 119876 | E129: =IF(Urval!E47<>"",Urval!E47,"") ->  | F129: =IF(Urval!F47<>"",Urval!F47,"") -> 
B130: =IF(Urval!B48<>"",Urval!B48,"") -> - Elever utan funktionsnedsättning | D130: =IF(Urval!D48<>"",Urval!D48,"") -> 106228 | E130: =IF(Urval!E48<>"",Urval!E48,"") ->  | F130: =IF(Urval!F48<>"",Urval!F48,"") -> 
B131: =IF(Urval!B49<>"",Urval!B49,"") ->  | C131: =IF(Urval!C49<>"",Urval!C49,"") -> Klarar gymnasiebehörighet | D131: =IF(Urval!D49<>"",Urval!D49,"") ->  | E131: =IF(Urval!E49<>"",Urval!E49,"") -> 93848 | F131: =IF(Urval!F49<>"",Urval!F49,"") -> 
B132: =IF(Urval!B50<>"",Urval!B50,"") ->  | C132: =IF(Urval!C50<>"",Urval!C50,"") -> & fick stöd | D132: =IF(Urval!D50<>"",Urval!D50,"") ->  | E132: =IF(Urval!E50<>"",Urval!E50,"") ->  | F132: =IF(Urval!F50<>"",Urval!F50,"") -> 3100
B133: =IF(Urval!B51<>"",Urval!B51,"") ->  | C133: =IF(Urval!C51<>"",Urval!C51,"") -> & fick inte stöd | D133: =IF(Urval!D51<>"",Urval!D51,"") ->  | E133: =IF(Urval!E51<>"",Urval!E51,"") ->  | F133: =IF(Urval!F51<>"",Urval!F51,"") -> 90748
B134: =IF(Urval!B52<>"",Urval!B52,"") ->  | C134: =IF(Urval!C52<>"",Urval!C52,"") -> Klarar inte gymnasiebehörighet | D134: =IF(Urval!D52<>"",Urval!D52,"") ->  | E134: =IF(Urval!E52<>"",Urval!E52,"") -> 12380 | F134: =IF(Urval!F52<>"",Urval!F52,"") -> 
B135: =IF(Urval!B53<>"",Urval!B53,"") ->  | C135: =IF(Urval!C53<>"",Urval!C53,"") -> & fick stöd | D135: =IF(Urval!D53<>"",Urval!D53,"") ->  | E135: =IF(Urval!E53<>"",Urval!E53,"") ->  | F135: =IF(Urval!F53<>"",Urval!F53,"") -> 4581
B136: =IF(Urval!B54<>"",Urval!B54,"") ->  | C136: =IF(Urval!C54<>"",Urval!C54,"") -> & fick inte stöd | D136: =IF(Urval!D54<>"",Urval!D54,"") ->  | E136: =IF(Urval!E54<>"",Urval!E54,"") ->  | F136: =IF(Urval!F54<>"",Urval!F54,"") -> 7799
B137: =IF(Urval!B55<>"",Urval!B55,"") ->  | C137: =IF(Urval!C55<>"",Urval!C55,"") ->  | D137: =IF(Urval!D55<>"",Urval!D55,"") ->  | E137: =IF(Urval!E55<>"",Urval!E55,"") ->  | F137: =IF(Urval!F55<>"",Urval!F55,"") -> 
B138: =IF(Urval!B56<>"",Urval!B56,"") -> - Elever med funktionsnedsättning | D138: =IF(Urval!D56<>"",Urval!D56,"") -> 13648 | E138: =IF(Urval!E56<>"",Urval!E56,"") ->  | F138: =IF(Urval!F56<>"",Urval!F56,"") -> 
B139: =IF(Urval!B57<>"",Urval!B57,"") ->  | C139: =IF(Urval!C57<>"",Urval!C57,"") -> Klarar gymnasiebehörighet | D139: =IF(Urval!D57<>"",Urval!D57,"") ->  | E139: =IF(Urval!E57<>"",Urval!E57,"") -> 9053 | F139: =IF(Urval!F57<>"",Urval!F57,"") -> 
B140: =IF(Urval!B58<>"",Urval!B58,"") ->  | C140: =IF(Urval!C58<>"",Urval!C58,"") -> & fick stöd | D140: =IF(Urval!D58<>"",Urval!D58,"") ->  | E140: =IF(Urval!E58<>"",Urval!E58,"") ->  | F140: =IF(Urval!F58<>"",Urval!F58,"") -> 2746
B141: =IF(Urval!B59<>"",Urval!B59,"") ->  | C141: =IF(Urval!C59<>"",Urval!C59,"") -> & fick inte stöd | D141: =IF(Urval!D59<>"",Urval!D59,"") ->  | E141: =IF(Urval!E59<>"",Urval!E59,"") ->  | F141: =IF(Urval!F59<>"",Urval!F59,"") -> 6307
B142: =IF(Urval!B60<>"",Urval!B60,"") ->  | C142: =IF(Urval!C60<>"",Urval!C60,"") -> Klarar inte gymnasiebehörighet | D142: =IF(Urval!D60<>"",Urval!D60,"") ->  | E142: =IF(Urval!E60<>"",Urval!E60,"") -> 4595 | F142: =IF(Urval!F60<>"",Urval!F60,"") -> 
B143: =IF(Urval!B61<>"",Urval!B61,"") ->  | C143: =IF(Urval!C61<>"",Urval!C61,"") -> & fick stöd | D143: =IF(Urval!D61<>"",Urval!D61,"") ->  | E143: =IF(Urval!E61<>"",Urval!E61,"") ->  | F143: =IF(Urval!F61<>"",Urval!F61,"") -> 3503
B144: =IF(Urval!B62<>"",Urval!B62,"") ->  | C144: =IF(Urval!C62<>"",Urval!C62,"") -> & fick inte stöd | D144: =IF(Urval!D62<>"",Urval!D62,"") ->  | E144: =IF(Urval!E62<>"",Urval!E62,"") ->  | F144: =IF(Urval!F62<>"",Urval!F62,"") -> 1092
B147: Basdata valt område
P148: DATAKVALITET
B149: =IF(Urval!B68<>"",Urval!B68,"") -> Flik: POPULATION | C149: =IF(Urval!C68<>"",Urval!C68,"") ->  | D149: =IF(Urval!D68<>"",Urval!D68,"") -> Totalt | E149: =IF(Urval!E68<>"",Urval!E68,"") -> n1 (AUTISM) | F149: =IF(Urval!F68<>"",Urval!F68,"") -> n2 (ADHD) | G149: =IF(Urval!G68<>"",Urval!G68,"") -> n3 (AUTISM OCH ADHD) | H149: =IF(Urval!H68<>"",Urval!H68,"") -> n4 (DYSLEXI) | I149: =IF(Urval!I68<>"",Urval!I68,"") -> n5 (SPRÅKSTÖRNING) | J149: =IF(Urval!J68<>"",Urval!J68,"") -> n6 (EJ NPF-DIAGNOS) | K149: =IF(Urval!K68<>"",Urval!K68,"") -> n7 (IF MEN EJ NPF) | L149: =IF(Urval!L68<>"",Urval!L68,"") -> n8 (IF OCH NPF) | M149: =IF(Urval!M68<>"",Urval!M68,"") -> IF | N149: =IF(Urval!N68<>"",Urval!N68,"") -> NPF (utan IF) | O149: =IF(Urval!O68<>"",Urval!O68,"") ->  | P149: Totalt | Q149: n1 (AUTISM) | R149: n2 (ADHD) | S149: n3 (AUTISM OCH ADHD) | T149: n4 (DYSLEXI) | U149: n5 (SPRÅKSTÖRNING) | V149: n6 (EJ NPF-DIAGNOS) | W149: n7 (IF MEN EJ NPF) | X149: n8 (IF OCH NPF) | Y149: IF | Z149: NPF (utan IF)
B150: =IF(Urval!B69<>"",Urval!B69,"") -> Riket | C150: =IF(Urval!C69<>"",Urval!C69,"") ->  | D150: =IF(Urval!D69<>"",Urval!D69,"") -> 119876 | E150: =IF(Urval!E69<>"",Urval!E69,"") -> 3690 | F150: =IF(Urval!F69<>"",Urval!F69,"") -> 11295 | G150: =IF(Urval!G69<>"",Urval!G69,"") -> 2319 | H150: =IF(Urval!H69<>"",Urval!H69,"") -> 849 | I150: =IF(Urval!I69<>"",Urval!I69,"") -> 1113 | J150: =IF(Urval!J69<>"",Urval!J69,"") -> 106228 | K150: =IF(Urval!K69<>"",Urval!K69,"") -> 103 | L150: =IF(Urval!L69<>"",Urval!L69,"") -> 120 | M150: =IF(Urval!M69<>"",Urval!M69,"") -> 223 | N150: =IF(Urval!N69<>"",Urval!N69,"") -> 13648 | O150: =IF(Urval!O69<>"",Urval!O69,"") ->  | P150: =Urval!P69 -> 0 | Q150: =Urval!Q69 -> 0 | R150: =Urval!R69 -> 0 | S150: =Urval!S69 -> 0 | T150: =Urval!T69 -> 0 | U150: =Urval!U69 -> 0 | V150: =Urval!V69 -> 0 | W150: =Urval!W69 -> 0 | X150: =Urval!X69 -> 0 | Y150: =Urval!Y69 -> 0 | Z150: =Urval!Z69 -> 0
B151: =IF(Urval!B71<>"",Urval!B71,"") ->  | C151: =IF(Urval!C71<>"",Urval!C71,"") ->  | D151: =IF(Urval!D71<>"",Urval!D71,"") ->  | E151: =IF(Urval!E71<>"",Urval!E71,"") ->  | F151: =IF(Urval!F71<>"",Urval!F71,"") ->  | G151: =IF(Urval!G71<>"",Urval!G71,"") ->  | H151: =IF(Urval!H71<>"",Urval!H71,"") ->  | I151: =IF(Urval!I71<>"",Urval!I71,"") ->  | J151: =IF(Urval!J71<>"",Urval!J71,"") ->  | K151: =IF(Urval!K71<>"",Urval!K71,"") ->  | L151: =IF(Urval!L71<>"",Urval!L71,"") ->  | M151: =IF(Urval!M71<>"",Urval!M71,"") ->  | N151: =IF(Urval!N71<>"",Urval!N71,"") ->  | O151: =IF(Urval!O71<>"",Urval!O71,"") ->  | P151: =IF(Urval!P71<>"",Urval!P71,"") -> 
B152: =IF(Urval!B72<>"",Urval!B72,"") -> Flik: SUICID | C152: =IF(Urval!C72<>"",Urval!C72,"") ->  | D152: =IF(Urval!D72<>"",Urval!D72,"") ->  | E152: =IF(Urval!E72<>"",Urval!E72,"") ->  | F152: =IF(Urval!F72<>"",Urval!F72,"") ->  | G152: =IF(Urval!G72<>"",Urval!G72,"") ->  | H152: =IF(Urval!H72<>"",Urval!H72,"") ->  | I152: =IF(Urval!I72<>"",Urval!I72,"") ->  | J152: =IF(Urval!J72<>"",Urval!J72,"") ->  | K152: =IF(Urval!K72<>"",Urval!K72,"") ->  | L152: =IF(Urval!L72<>"",Urval!L72,"") ->  | M152: =IF(Urval!M72<>"",Urval!M72,"") ->  | N152: =IF(Urval!N72<>"",Urval!N72,"") ->  | O152: =IF(Urval!O72<>"",Urval!O72,"") ->  | P152: =IF(Urval!P72<>"",Urval!P72,"") -> 
B153: =IF(Urval!B73<>"",Urval!B73,"") -> Riket | C153: =IF(Urval!C73<>"",Urval!C73,"") ->  | D153: =IF(Urval!D73<>"",Urval!D73,"") -> 985 | E153: =IF(Urval!E73<>"",Urval!E73,"") -> 169 | F153: =IF(Urval!F73<>"",Urval!F73,"") -> 372 | G153: =IF(Urval!G73<>"",Urval!G73,"") -> 118 | H153: =IF(Urval!H73<>"",Urval!H73,"") -> 21 | I153: =IF(Urval!I73<>"",Urval!I73,"") -> 10 | J153: =IF(Urval!J73<>"",Urval!J73,"") -> 537 | K153: =IF(Urval!K73<>"",Urval!K73,"") -> 5 | L153: =IF(Urval!L73<>"",Urval!L73,"") -> 13 | M153: =IF(Urval!M73<>"",Urval!M73,"") -> 18 | N153: =IF(Urval!N73<>"",Urval!N73,"") -> 448 | O153: =IF(Urval!O73<>"",Urval!O73,"") ->  | P153: =IF(Urval!P73<>"",Urval!P73,"") -> 0
B154: =IF(Urval!B75<>"",Urval!B75,"") ->  | C154: =IF(Urval!C75<>"",Urval!C75,"") ->  | D154: =IF(Urval!D75<>"",Urval!D75,"") ->  | E154: =IF(Urval!E75<>"",Urval!E75,"") ->  | F154: =IF(Urval!F75<>"",Urval!F75,"") ->  | G154: =IF(Urval!G75<>"",Urval!G75,"") ->  | H154: =IF(Urval!H75<>"",Urval!H75,"") ->  | I154: =IF(Urval!I75<>"",Urval!I75,"") ->  | J154: =IF(Urval!J75<>"",Urval!J75,"") ->  | K154: =IF(Urval!K75<>"",Urval!K75,"") ->  | L154: =IF(Urval!L75<>"",Urval!L75,"") ->  | M154: =IF(Urval!M75<>"",Urval!M75,"") ->  | N154: =IF(Urval!N75<>"",Urval!N75,"") ->  | O154: =IF(Urval!O75<>"",Urval!O75,"") ->  | P154: =IF(Urval!P75<>"",Urval!P75,"") -> 
B155: =IF(Urval!B76<>"",Urval!B76,"") -> Flik: MERITVÄRDEN | C155: =IF(Urval!C76<>"",Urval!C76,"") ->  | D155: =IF(Urval!D76<>"",Urval!D76,"") ->  | E155: =IF(Urval!E76<>"",Urval!E76,"") ->  | F155: =IF(Urval!F76<>"",Urval!F76,"") ->  | G155: =IF(Urval!G76<>"",Urval!G76,"") ->  | H155: =IF(Urval!H76<>"",Urval!H76,"") ->  | I155: =IF(Urval!I76<>"",Urval!I76,"") ->  | J155: =IF(Urval!J76<>"",Urval!J76,"") ->  | K155: =IF(Urval!K76<>"",Urval!K76,"") ->  | L155: =IF(Urval!L76<>"",Urval!L76,"") ->  | M155: =IF(Urval!M76<>"",Urval!M76,"") ->  | N155: =IF(Urval!N76<>"",Urval!N76,"") ->  | O155: =IF(Urval!O76<>"",Urval!O76,"") ->  | P155: =IF(Urval!P76<>"",Urval!P76,"") -> 
B156: =IF(Urval!B77<>"",Urval!B77,"") -> Riket | C156: =IF(Urval!C77<>"",Urval!C77,"") -> Totalt | D156: =IF(Urval!D77<>"",Urval!D77,"") -> 118752 | E156: =IF(Urval!E77<>"",Urval!E77,"") -> 3587 | F156: =IF(Urval!F77<>"",Urval!F77,"") -> 11103 | G156: =IF(Urval!G77<>"",Urval!G77,"") -> 2254 | H156: =IF(Urval!H77<>"",Urval!H77,"") -> 830 | I156: =IF(Urval!I77<>"",Urval!I77,"") -> 1093 | J156: =IF(Urval!J77<>"",Urval!J77,"") -> 105384 | K156: =IF(Urval!K77<>"",Urval!K77,"") -> 81 | L156: =IF(Urval!L77<>"",Urval!L77,"") -> 98 | M156: =IF(Urval!M77<>"",Urval!M77,"") -> 179 | N156: =IF(Urval!N77<>"",Urval!N77,"") -> 13368 | O156: =IF(Urval!O77<>"",Urval!O77,"") ->  | P156: =IF(Urval!P77<>"",Urval!P77,"") -> 0 | Q156: Not! Datakvalitet saknas för meritvärden.
B157: =IF(Urval!B78<>"",Urval!B78,"") -> Riket | C157: =IF(Urval!C78<>"",Urval!C78,"") -> MeritVarde | D157: =IF(Urval!D78<>"",Urval!D78,"") -> 226.64 | E157: =IF(Urval!E78<>"",Urval!E78,"") -> 144.06 | F157: =IF(Urval!F78<>"",Urval!F78,"") -> 156.9 | G157: =IF(Urval!G78<>"",Urval!G78,"") -> 135.9 | H157: =IF(Urval!H78<>"",Urval!H78,"") -> 158.58 | I157: =IF(Urval!I78<>"",Urval!I78,"") -> 178.31 | J157: =IF(Urval!J78<>"",Urval!J78,"") -> 235.2 | K157: =IF(Urval!K78<>"",Urval!K78,"") -> 109.26 | L157: =IF(Urval!L78<>"",Urval!L78,"") -> 94.69 | M157: =IF(Urval!M78<>"",Urval!M78,"") -> 203.95 | N157: =IF(Urval!N78<>"",Urval!N78,"") -> 159.1589228 | O157: =IF(Urval!O78<>"",Urval!O78,"") ->  | P157: =IF(Urval!P78<>"",Urval!P78,"") -> 0
B158: =IF(Urval!B79<>"",Urval!B79,"") -> Riket | C158: =IF(Urval!C79<>"",Urval!C79,"") -> Ant_F | D158: =IF(Urval!D79<>"",Urval!D79,"") -> 1.4523 | E158: =IF(Urval!E79<>"",Urval!E79,"") -> 5.4698 | F158: =IF(Urval!F79<>"",Urval!F79,"") -> 4.1811 | G158: =IF(Urval!G79<>"",Urval!G79,"") -> 5.764 | H158: =IF(Urval!H79<>"",Urval!H79,"") -> 3.93373 | I158: =IF(Urval!I79<>"",Urval!I79,"") -> 3.1665 | J158: =IF(Urval!J79<>"",Urval!J79,"") -> 1.10736 | K158: =IF(Urval!K79<>"",Urval!K79,"") -> 7.5432 | L158: =IF(Urval!L79<>"",Urval!L79,"") -> 8.1224 | M158: =IF(Urval!M79<>"",Urval!M79,"") -> 15.6656 | N158: =IF(Urval!N79<>"",Urval!N79,"") -> 4.171566679 | O158: =IF(Urval!O79<>"",Urval!O79,"") ->  | P158: =IF(Urval!P79<>"",Urval!P79,"") -> 0
B159: =IF(Urval!B80<>"",Urval!B80,"") ->  | C159: =IF(Urval!C80<>"",Urval!C80,"") ->  | D159: =IF(Urval!D80<>"",Urval!D80,"") ->  | E159: =IF(Urval!E80<>"",Urval!E80,"") ->  | F159: =IF(Urval!F80<>"",Urval!F80,"") ->  | G159: =IF(Urval!G80<>"",Urval!G80,"") ->  | H159: =IF(Urval!H80<>"",Urval!H80,"") ->  | I159: =IF(Urval!I80<>"",Urval!I80,"") ->  | J159: =IF(Urval!J80<>"",Urval!J80,"") ->  | K159: =IF(Urval!K80<>"",Urval!K80,"") ->  | L159: =IF(Urval!L80<>"",Urval!L80,"") ->  | M159: =IF(Urval!M80<>"",Urval!M80,"") ->  | N159: =IF(Urval!N80<>"",Urval!N80,"") ->  | O159: =IF(Urval!O80<>"",Urval!O80,"") ->  | P159: =IF(Urval!P80<>"",Urval!P80,"") -> 
B160: =IF(Urval!B81<>"",Urval!B81,"") -> Flik: RESULTAT & STÖD | C160: =IF(Urval!C81<>"",Urval!C81,"") ->  | D160: =IF(Urval!D81<>"",Urval!D81,"") ->  | E160: =IF(Urval!E81<>"",Urval!E81,"") ->  | F160: =IF(Urval!F81<>"",Urval!F81,"") ->  | G160: =IF(Urval!G81<>"",Urval!G81,"") ->  | H160: =IF(Urval!H81<>"",Urval!H81,"") ->  | I160: =IF(Urval!I81<>"",Urval!I81,"") ->  | J160: =IF(Urval!J81<>"",Urval!J81,"") ->  | K160: =IF(Urval!K81<>"",Urval!K81,"") ->  | L160: =IF(Urval!L81<>"",Urval!L81,"") ->  | M160: =IF(Urval!M81<>"",Urval!M81,"") ->  | N160: =IF(Urval!N81<>"",Urval!N81,"") ->  | O160: =IF(Urval!O81<>"",Urval!O81,"") ->  | P160: =IF(Urval!P81<>"",Urval!P81,"") -> 
B161: =IF(Urval!B82<>"",Urval!B82,"") -> Riket | C161: =IF(Urval!C82<>"",Urval!C82,"") -> Anp_stud | D161: =IF(Urval!D82<>"",Urval!D82,"") -> 6308 | E161: =IF(Urval!E82<>"",Urval!E82,"") -> 1405 | F161: =IF(Urval!F82<>"",Urval!F82,"") -> 2826 | G161: =IF(Urval!G82<>"",Urval!G82,"") -> 959 | H161: =IF(Urval!H82<>"",Urval!H82,"") -> 179 | I161: =IF(Urval!I82<>"",Urval!I82,"") -> 192 | J161: =IF(Urval!J82<>"",Urval!J82,"") -> 2930 | K161: =IF(Urval!K82<>"",Urval!K82,"") -> 20 | L161: =IF(Urval!L82<>"",Urval!L82,"") -> 34 | M161: =IF(Urval!M82<>"",Urval!M82,"") -> 54 | N161: =IF(Urval!N82<>"",Urval!N82,"") -> 3378 | O161: =IF(Urval!O82<>"",Urval!O82,"") ->  | P161: =IF(Urval!P82<>"",Urval!P82,"") -> 0
B162: =IF(Urval!B83<>"",Urval!B83,"") -> Riket | C162: =IF(Urval!C83<>"",Urval!C83,"") -> Atgardsprg | D162: =IF(Urval!D83<>"",Urval!D83,"") -> 13930 | E162: =IF(Urval!E83<>"",Urval!E83,"") -> 2306 | F162: =IF(Urval!F83<>"",Urval!F83,"") -> 5233 | G162: =IF(Urval!G83<>"",Urval!G83,"") -> 1562 | H162: =IF(Urval!H83<>"",Urval!H83,"") -> 408 | I162: =IF(Urval!I83<>"",Urval!I83,"") -> 451 | J162: =IF(Urval!J83<>"",Urval!J83,"") -> 7681 | K162: =IF(Urval!K83<>"",Urval!K83,"") -> 47 | L162: =IF(Urval!L83<>"",Urval!L83,"") -> 73 | M162: =IF(Urval!M83<>"",Urval!M83,"") -> 120 | N162: =IF(Urval!N83<>"",Urval!N83,"") -> 6249 | O162: =IF(Urval!O83<>"",Urval!O83,"") ->  | P162: =IF(Urval!P83<>"",Urval!P83,"") -> 0
B163: =IF(Urval!B84<>"",Urval!B84,"") -> Riket | C163: =IF(Urval!C84<>"",Urval!C84,"") -> Sarsk_ensk | D163: =IF(Urval!D84<>"",Urval!D84,"") -> 2638 | E163: =IF(Urval!E84<>"",Urval!E84,"") -> 569 | F163: =IF(Urval!F84<>"",Urval!F84,"") -> 1096 | G163: =IF(Urval!G84<>"",Urval!G84,"") -> 399 | H163: =IF(Urval!H84<>"",Urval!H84,"") -> 73 | I163: =IF(Urval!I84<>"",Urval!I84,"") -> 112 | J163: =IF(Urval!J84<>"",Urval!J84,"") -> 1313 | K163: =IF(Urval!K84<>"",Urval!K84,"") -> 12 | L163: =IF(Urval!L84<>"",Urval!L84,"") -> 13 | M163: =IF(Urval!M84<>"",Urval!M84,"") -> 25 | N163: =IF(Urval!N84<>"",Urval!N84,"") -> 1325 | O163: =IF(Urval!O84<>"",Urval!O84,"") ->  | P163: =IF(Urval!P84<>"",Urval!P84,"") -> 0
B164: =IF(Urval!B85<>"",Urval!B85,"") -> Riket | C164: =IF(Urval!C85<>"",Urval!C85,"") -> Sarsk_undergrp | D164: =IF(Urval!D85<>"",Urval!D85,"") -> 4970 | E164: =IF(Urval!E85<>"",Urval!E85,"") -> 1323 | F164: =IF(Urval!F85<>"",Urval!F85,"") -> 2265 | G164: =IF(Urval!G85<>"",Urval!G85,"") -> 923 | H164: =IF(Urval!H85<>"",Urval!H85,"") -> 157 | I164: =IF(Urval!I85<>"",Urval!I85,"") -> 189 | J164: =IF(Urval!J85<>"",Urval!J85,"") -> 2209 | K164: =IF(Urval!K85<>"",Urval!K85,"") -> 13 | L164: =IF(Urval!L85<>"",Urval!L85,"") -> 41 | M164: =IF(Urval!M85<>"",Urval!M85,"") -> 54 | N164: =IF(Urval!N85<>"",Urval!N85,"") -> 2761 | O164: =IF(Urval!O85<>"",Urval!O85,"") ->  | P164: =IF(Urval!P85<>"",Urval!P85,"") -> 0
B165: =IF(Urval!B86<>"",Urval!B86,"") -> Riket | C165: =IF(Urval!C86<>"",Urval!C86,"") -> Underkänd_Beh_12godkänd | D165: =IF(Urval!D86<>"",Urval!D86,"") -> 18619 | E165: =IF(Urval!E86<>"",Urval!E86,"") -> 1700 | F165: =IF(Urval!F86<>"",Urval!F86,"") -> 4408 | G165: =IF(Urval!G86<>"",Urval!G86,"") -> 1130 | H165: =IF(Urval!H86<>"",Urval!H86,"") -> 340 | I165: =IF(Urval!I86<>"",Urval!I86,"") -> 392 | J165: =IF(Urval!J86<>"",Urval!J86,"") -> 13347 | K165: =IF(Urval!K86<>"",Urval!K86,"") -> 59 | L165: =IF(Urval!L86<>"",Urval!L86,"") -> 74 | M165: =IF(Urval!M86<>"",Urval!M86,"") -> 133 | N165: =IF(Urval!N86<>"",Urval!N86,"") -> 5272 | O165: =IF(Urval!O86<>"",Urval!O86,"") ->  | P165: =IF(Urval!P86<>"",Urval!P86,"") -> 0
B166: =IF(Urval!B87<>"",Urval!B87,"") -> Riket | C166: =IF(Urval!C87<>"",Urval!C87,"") -> Underkänd_Beh_12godkänd_stöd | D166: =IF(Urval!D87<>"",Urval!D87,"") -> 8923 | E166: =IF(Urval!E87<>"",Urval!E87,"") -> 1497 | F166: =IF(Urval!F87<>"",Urval!F87,"") -> 3295 | G166: =IF(Urval!G87<>"",Urval!G87,"") -> 1012 | H166: =IF(Urval!H87<>"",Urval!H87,"") -> 268 | I166: =IF(Urval!I87<>"",Urval!I87,"") -> 311 | J166: =IF(Urval!J87<>"",Urval!J87,"") -> 4935 | K166: =IF(Urval!K87<>"",Urval!K87,"") -> 46 | L166: =IF(Urval!L87<>"",Urval!L87,"") -> 65 | M166: =IF(Urval!M87<>"",Urval!M87,"") -> 111 | N166: =IF(Urval!N87<>"",Urval!N87,"") -> 3988 | O166: =IF(Urval!O87<>"",Urval!O87,"") ->  | P166: =IF(Urval!P87<>"",Urval!P87,"") -> 0
B167: =IF(Urval!B88<>"",Urval!B88,"") -> Riket | C167: =IF(Urval!C88<>"",Urval!C88,"") -> Underkänd_Beh_Gymn | D167: =IF(Urval!D88<>"",Urval!D88,"") -> 16975 | E167: =IF(Urval!E88<>"",Urval!E88,"") -> 1485 | F167: =IF(Urval!F88<>"",Urval!F88,"") -> 3822 | G167: =IF(Urval!G88<>"",Urval!G88,"") -> 988 | H167: =IF(Urval!H88<>"",Urval!H88,"") -> 308 | I167: =IF(Urval!I88<>"",Urval!I88,"") -> 369 | J167: =IF(Urval!J88<>"",Urval!J88,"") -> 12380 | K167: =IF(Urval!K88<>"",Urval!K88,"") -> 59 | L167: =IF(Urval!L88<>"",Urval!L88,"") -> 71 | M167: =IF(Urval!M88<>"",Urval!M88,"") -> 130 | N167: =IF(Urval!N88<>"",Urval!N88,"") -> 4595 | O167: =IF(Urval!O88<>"",Urval!O88,"") ->  | P167: =IF(Urval!P88<>"",Urval!P88,"") -> 0
B168: =IF(Urval!B89<>"",Urval!B89,"") -> Riket | C168: =IF(Urval!C89<>"",Urval!C89,"") -> Underkänd_Beh_Gymn_stöd | D168: =IF(Urval!D89<>"",Urval!D89,"") -> 8084 | E168: =IF(Urval!E89<>"",Urval!E89,"") -> 1316 | F168: =IF(Urval!F89<>"",Urval!F89,"") -> 2879 | G168: =IF(Urval!G89<>"",Urval!G89,"") -> 891 | H168: =IF(Urval!H89<>"",Urval!H89,"") -> 246 | I168: =IF(Urval!I89<>"",Urval!I89,"") -> 295 | J168: =IF(Urval!J89<>"",Urval!J89,"") -> 4581 | K168: =IF(Urval!K89<>"",Urval!K89,"") -> 46 | L168: =IF(Urval!L89<>"",Urval!L89,"") -> 63 | M168: =IF(Urval!M89<>"",Urval!M89,"") -> 109 | N168: =IF(Urval!N89<>"",Urval!N89,"") -> 3503 | O168: =IF(Urval!O89<>"",Urval!O89,"") ->  | P168: =IF(Urval!P89<>"",Urval!P89,"") -> 0
B169: =IF(Urval!B90<>"",Urval!B90,"") -> Riket | C169: =IF(Urval!C90<>"",Urval!C90,"") -> Underkänd_En | D169: =IF(Urval!D90<>"",Urval!D90,"") -> 7386 | E169: =IF(Urval!E90<>"",Urval!E90,"") -> 561 | F169: =IF(Urval!F90<>"",Urval!F90,"") -> 1511 | G169: =IF(Urval!G90<>"",Urval!G90,"") -> 384 | H169: =IF(Urval!H90<>"",Urval!H90,"") -> 155 | I169: =IF(Urval!I90<>"",Urval!I90,"") -> 192 | J169: =IF(Urval!J90<>"",Urval!J90,"") -> 5544 | K169: =IF(Urval!K90<>"",Urval!K90,"") -> 37 | L169: =IF(Urval!L90<>"",Urval!L90,"") -> 40 | M169: =IF(Urval!M90<>"",Urval!M90,"") -> 77 | N169: =IF(Urval!N90<>"",Urval!N90,"") -> 1842 | O169: =IF(Urval!O90<>"",Urval!O90,"") ->  | P169: =IF(Urval!P90<>"",Urval!P90,"") -> 0
B170: =IF(Urval!B91<>"",Urval!B91,"") -> Riket | C170: =IF(Urval!C91<>"",Urval!C91,"") -> Underkänd_Ma | D170: =IF(Urval!D91<>"",Urval!D91,"") -> 11849 | E170: =IF(Urval!E91<>"",Urval!E91,"") -> 982 | F170: =IF(Urval!F91<>"",Urval!F91,"") -> 2716 | G170: =IF(Urval!G91<>"",Urval!G91,"") -> 676 | H170: =IF(Urval!H91<>"",Urval!H91,"") -> 221 | I170: =IF(Urval!I91<>"",Urval!I91,"") -> 266 | J170: =IF(Urval!J91<>"",Urval!J91,"") -> 8612 | K170: =IF(Urval!K91<>"",Urval!K91,"") -> 57 | L170: =IF(Urval!L91<>"",Urval!L91,"") -> 57 | M170: =IF(Urval!M91<>"",Urval!M91,"") -> 114 | N170: =IF(Urval!N91<>"",Urval!N91,"") -> 3237 | O170: =IF(Urval!O91<>"",Urval!O91,"") ->  | P170: =IF(Urval!P91<>"",Urval!P91,"") -> 0
B171: =IF(Urval!B92<>"",Urval!B92,"") -> Riket | C171: =IF(Urval!C92<>"",Urval!C92,"") -> Underkänd_Sv | D171: =IF(Urval!D92<>"",Urval!D92,"") -> 4546 | E171: =IF(Urval!E92<>"",Urval!E92,"") -> 773 | F171: =IF(Urval!F92<>"",Urval!F92,"") -> 1819 | G171: =IF(Urval!G92<>"",Urval!G92,"") -> 551 | H171: =IF(Urval!H92<>"",Urval!H92,"") -> 146 | I171: =IF(Urval!I92<>"",Urval!I92,"") -> 197 | J171: =IF(Urval!J92<>"",Urval!J92,"") -> 2371 | K171: =IF(Urval!K92<>"",Urval!K92,"") -> 23 | L171: =IF(Urval!L92<>"",Urval!L92,"") -> 46 | M171: =IF(Urval!M92<>"",Urval!M92,"") -> 69 | N171: =IF(Urval!N92<>"",Urval!N92,"") -> 2175 | O171: =IF(Urval!O92<>"",Urval!O92,"") ->  | P171: =IF(Urval!P92<>"",Urval!P92,"") -> 0
B174: Vald referens: | C174: =Urval!C95 -> Ingen
B176: Basdata för vald referens
B178: =IF(Urval!B99<>"",Urval!B99,"") -> Flik: POPULATION | C178: =IF(Urval!C99<>"",Urval!C99,"") ->  | D178: =IF(Urval!D99<>"",Urval!D99,"") -> Totalt | E178: =IF(Urval!E99<>"",Urval!E99,"") -> n1 (AUTISM) | F178: =IF(Urval!F99<>"",Urval!F99,"") -> n2 (ADHD) | G178: =IF(Urval!G99<>"",Urval!G99,"") -> n3 (AUTISM OCH ADHD) | H178: =IF(Urval!H99<>"",Urval!H99,"") -> n4 (DYSLEXI) | I178: =IF(Urval!I99<>"",Urval!I99,"") -> n5 (SPRÅKSTÖRNING) | J178: =IF(Urval!J99<>"",Urval!J99,"") -> n6 (EJ NPF-DIAGNOS) | K178: =IF(Urval!K99<>"",Urval!K99,"") -> n7 (IF MEN EJ NPF) | L178: =IF(Urval!L99<>"",Urval!L99,"") -> n8 (IF OCH NPF) | M178: =IF(Urval!M99<>"",Urval!M99,"") -> IF | N178: =IF(Urval!N99<>"",Urval!N99,"") -> NPF (utan IF) | O178: =IF(Urval!O99<>"",Urval!O99,"") ->  | P178: =IF(Urval!P99<>"",Urval!P99,"") -> Datakvalitet
B179: =IF(Urval!B100<>"",Urval!B100,"") -> 05 Östergötland | C179: =IF(Urval!C100<>"",Urval!C100,"") ->  | D179: =IF(Urval!D100<>"",Urval!D100,"") -> 5409 | E179: =IF(Urval!E100<>"",Urval!E100,"") -> 159 | F179: =IF(Urval!F100<>"",Urval!F100,"") -> 416 | G179: =IF(Urval!G100<>"",Urval!G100,"") -> 107 | H179: =IF(Urval!H100<>"",Urval!H100,"") -> 41 | I179: =IF(Urval!I100<>"",Urval!I100,"") -> 43 | J179: =IF(Urval!J100<>"",Urval!J100,"") -> 4915 | K179: =IF(Urval!K100<>"",Urval!K100,"") -> 6 | L179: =IF(Urval!L100<>"",Urval!L100,"") -> 2 | M179: =IF(Urval!M100<>"",Urval!M100,"") -> 8 | N179: =IF(Urval!N100<>"",Urval!N100,"") -> 494 | O179: =IF(Urval!O100<>"",Urval!O100,"") ->  | P179: =IF(Urval!P100<>"",Urval!P100,"") -> 1
B180: =IF(Urval!B101<>"",Urval!B101,"") ->  | C180: =IF(Urval!C101<>"",Urval!C101,"") ->  | D180: =IF(Urval!D101<>"",Urval!D101,"") ->  | E180: =IF(Urval!E101<>"",Urval!E101,"") ->  | F180: =IF(Urval!F101<>"",Urval!F101,"") ->  | G180: =IF(Urval!G101<>"",Urval!G101,"") ->  | H180: =IF(Urval!H101<>"",Urval!H101,"") ->  | I180: =IF(Urval!I101<>"",Urval!I101,"") ->  | J180: =IF(Urval!J101<>"",Urval!J101,"") ->  | K180: =IF(Urval!K101<>"",Urval!K101,"") ->  | L180: =IF(Urval!L101<>"",Urval!L101,"") ->  | M180: =IF(Urval!M101<>"",Urval!M101,"") ->  | N180: =IF(Urval!N101<>"",Urval!N101,"") ->  | O180: =IF(Urval!O101<>"",Urval!O101,"") ->  | P180: =IF(Urval!P101<>"",Urval!P101,"") -> 
B181: =IF(Urval!B102<>"",Urval!B102,"") -> Flik: SUICID | C181: =IF(Urval!C102<>"",Urval!C102,"") ->  | D181: =IF(Urval!D102<>"",Urval!D102,"") ->  | E181: =IF(Urval!E102<>"",Urval!E102,"") ->  | F181: =IF(Urval!F102<>"",Urval!F102,"") ->  | G181: =IF(Urval!G102<>"",Urval!G102,"") ->  | H181: =IF(Urval!H102<>"",Urval!H102,"") ->  | I181: =IF(Urval!I102<>"",Urval!I102,"") ->  | J181: =IF(Urval!J102<>"",Urval!J102,"") ->  | K181: =IF(Urval!K102<>"",Urval!K102,"") ->  | L181: =IF(Urval!L102<>"",Urval!L102,"") ->  | M181: =IF(Urval!M102<>"",Urval!M102,"") ->  | N181: =IF(Urval!N102<>"",Urval!N102,"") ->  | O181: =IF(Urval!O102<>"",Urval!O102,"") ->  | P181: =IF(Urval!P102<>"",Urval!P102,"") -> 
B182: =IF(Urval!B103<>"",Urval!B103,"") -> 05 Östergötland | C182: =IF(Urval!C103<>"",Urval!C103,"") ->  | D182: =IF(Urval!D103<>"",Urval!D103,"") -> 63 | E182: =IF(Urval!E103<>"",Urval!E103,"") -> 8 | F182: =IF(Urval!F103<>"",Urval!F103,"") -> 18 | G182: =IF(Urval!G103<>"",Urval!G103,"") -> 6 | H182: =IF(Urval!H103<>"",Urval!H103,"") -> 2 | I182: =IF(Urval!I103<>"",Urval!I103,"") -> 0 | J182: =IF(Urval!J103<>"",Urval!J103,"") -> 40 | K182: =IF(Urval!K103<>"",Urval!K103,"") -> 2 | L182: =IF(Urval!L103<>"",Urval!L103,"") -> 2 | M182: =IF(Urval!M103<>"",Urval!M103,"") -> 4 | N182: =IF(Urval!N103<>"",Urval!N103,"") -> 23 | O182: =IF(Urval!O103<>"",Urval!O103,"") ->  | P182: =IF(Urval!P103<>"",Urval!P103,"") -> 3
B183: =IF(Urval!B104<>"",Urval!B104,"") ->  | C183: =IF(Urval!C104<>"",Urval!C104,"") ->  | D183: =IF(Urval!D104<>"",Urval!D104,"") ->  | E183: =IF(Urval!E104<>"",Urval!E104,"") ->  | F183: =IF(Urval!F104<>"",Urval!F104,"") ->  | G183: =IF(Urval!G104<>"",Urval!G104,"") ->  | H183: =IF(Urval!H104<>"",Urval!H104,"") ->  | I183: =IF(Urval!I104<>"",Urval!I104,"") ->  | J183: =IF(Urval!J104<>"",Urval!J104,"") ->  | K183: =IF(Urval!K104<>"",Urval!K104,"") ->  | L183: =IF(Urval!L104<>"",Urval!L104,"") ->  | M183: =IF(Urval!M104<>"",Urval!M104,"") ->  | N183: =IF(Urval!N104<>"",Urval!N104,"") ->  | O183: =IF(Urval!O104<>"",Urval!O104,"") ->  | P183: =IF(Urval!P104<>"",Urval!P104,"") -> 
B184: =IF(Urval!B105<>"",Urval!B105,"") -> Flik: MERITVÄRDEN | C184: =IF(Urval!C105<>"",Urval!C105,"") ->  | D184: =IF(Urval!D105<>"",Urval!D105,"") ->  | E184: =IF(Urval!E105<>"",Urval!E105,"") ->  | F184: =IF(Urval!F105<>"",Urval!F105,"") ->  | G184: =IF(Urval!G105<>"",Urval!G105,"") ->  | H184: =IF(Urval!H105<>"",Urval!H105,"") ->  | I184: =IF(Urval!I105<>"",Urval!I105,"") ->  | J184: =IF(Urval!J105<>"",Urval!J105,"") ->  | K184: =IF(Urval!K105<>"",Urval!K105,"") ->  | L184: =IF(Urval!L105<>"",Urval!L105,"") ->  | M184: =IF(Urval!M105<>"",Urval!M105,"") ->  | N184: =IF(Urval!N105<>"",Urval!N105,"") ->  | O184: =IF(Urval!O105<>"",Urval!O105,"") ->  | P184: =IF(Urval!P105<>"",Urval!P105,"") -> 
B185: =IF(Urval!B106<>"",Urval!B106,"") -> 05 Östergötland | C185: =IF(Urval!C106<>"",Urval!C106,"") -> Totalt | D185: =IF(Urval!D106<>"",Urval!D106,"") -> 5364 | E185: =IF(Urval!E106<>"",Urval!E106,"") -> 154 | F185: =IF(Urval!F106<>"",Urval!F106,"") -> 405 | G185: =IF(Urval!G106<>"",Urval!G106,"") -> 105 | H185: =IF(Urval!H106<>"",Urval!H106,"") -> 40 | I185: =IF(Urval!I106<>"",Urval!I106,"") -> 43 | J185: =IF(Urval!J106<>"",Urval!J106,"") -> 4886 | K185: =IF(Urval!K106<>"",Urval!K106,"") -> 5 | L185: =IF(Urval!L106<>"",Urval!L106,"") -> 2 | M185: =IF(Urval!M106<>"",Urval!M106,"") -> 7 | N185: =IF(Urval!N106<>"",Urval!N106,"") -> 478 | O185: =IF(Urval!O106<>"",Urval!O106,"") ->  | P185: =IF(Urval!P106<>"",Urval!P106,"") -> 0
B186: =IF(Urval!B107<>"",Urval!B107,"") -> 05 Östergötland | C186: =IF(Urval!C107<>"",Urval!C107,"") -> MeritVarde | D186: =IF(Urval!D107<>"",Urval!D107,"") -> 220.33 | E186: =IF(Urval!E107<>"",Urval!E107,"") -> 122.69 | F186: =IF(Urval!F107<>"",Urval!F107,"") -> 129.17 | G186: =IF(Urval!G107<>"",Urval!G107,"") -> 106.26 | H186: =IF(Urval!H107<>"",Urval!H107,"") -> 106.19 | I186: =IF(Urval!I107<>"",Urval!I107,"") -> 114.88 | J186: =IF(Urval!J107<>"",Urval!J107,"") -> 228.96 | K186: =IF(Urval!K107<>"",Urval!K107,"") -> 80 | L186: =IF(Urval!L107<>"",Urval!L107,"") -> . | M186: =IF(Urval!M107<>"",Urval!M107,"") -> 80 | N186: =IF(Urval!N107<>"",Urval!N107,"") -> 132.1162343 | O186: =IF(Urval!O107<>"",Urval!O107,"") ->  | P186: =IF(Urval!P107<>"",Urval!P107,"") -> 0
B187: =IF(Urval!B108<>"",Urval!B108,"") -> 05 Östergötland | C187: =IF(Urval!C108<>"",Urval!C108,"") -> Ant_F | D187: =IF(Urval!D108<>"",Urval!D108,"") -> 1.6361 | E187: =IF(Urval!E108<>"",Urval!E108,"") -> 6.9351 | F187: =IF(Urval!F108<>"",Urval!F108,"") -> 5.5901 | G187: =IF(Urval!G108<>"",Urval!G108,"") -> 7.4667 | H187: =IF(Urval!H108<>"",Urval!H108,"") -> 6.85 | I187: =IF(Urval!I108<>"",Urval!I108,"") -> 6.4186 | J187: =IF(Urval!J108<>"",Urval!J108,"") -> 1.24744 | K187: =IF(Urval!K108<>"",Urval!K108,"") -> 8.8 | L187: =IF(Urval!L108<>"",Urval!L108,"") -> . | M187: =IF(Urval!M108<>"",Urval!M108,"") -> 8.8 | N187: =IF(Urval!N108<>"",Urval!N108,"") -> 5.608888201 | O187: =IF(Urval!O108<>"",Urval!O108,"") ->  | P187: =IF(Urval!P108<>"",Urval!P108,"") -> 0
B188: =IF(Urval!B109<>"",Urval!B109,"") ->  | C188: =IF(Urval!C109<>"",Urval!C109,"") ->  | D188: =IF(Urval!D109<>"",Urval!D109,"") ->  | E188: =IF(Urval!E109<>"",Urval!E109,"") ->  | F188: =IF(Urval!F109<>"",Urval!F109,"") ->  | G188: =IF(Urval!G109<>"",Urval!G109,"") ->  | H188: =IF(Urval!H109<>"",Urval!H109,"") ->  | I188: =IF(Urval!I109<>"",Urval!I109,"") ->  | J188: =IF(Urval!J109<>"",Urval!J109,"") ->  | K188: =IF(Urval!K109<>"",Urval!K109,"") ->  | L188: =IF(Urval!L109<>"",Urval!L109,"") ->  | M188: =IF(Urval!M109<>"",Urval!M109,"") ->  | N188: =IF(Urval!N109<>"",Urval!N109,"") ->  | O188: =IF(Urval!O109<>"",Urval!O109,"") ->  | P188: =IF(Urval!P109<>"",Urval!P109,"") -> 
B189: =IF(Urval!B110<>"",Urval!B110,"") -> Flik: RESULTAT & STÖD | C189: =IF(Urval!C110<>"",Urval!C110,"") ->  | D189: =IF(Urval!D110<>"",Urval!D110,"") ->  | E189: =IF(Urval!E110<>"",Urval!E110,"") ->  | F189: =IF(Urval!F110<>"",Urval!F110,"") ->  | G189: =IF(Urval!G110<>"",Urval!G110,"") ->  | H189: =IF(Urval!H110<>"",Urval!H110,"") ->  | I189: =IF(Urval!I110<>"",Urval!I110,"") ->  | J189: =IF(Urval!J110<>"",Urval!J110,"") ->  | K189: =IF(Urval!K110<>"",Urval!K110,"") ->  | L189: =IF(Urval!L110<>"",Urval!L110,"") ->  | M189: =IF(Urval!M110<>"",Urval!M110,"") ->  | N189: =IF(Urval!N110<>"",Urval!N110,"") ->  | O189: =IF(Urval!O110<>"",Urval!O110,"") ->  | P189: =IF(Urval!P110<>"",Urval!P110,"") -> 
B190: =IF(Urval!B111<>"",Urval!B111,"") -> 05 Östergötland | C190: =IF(Urval!C111<>"",Urval!C111,"") -> Anp_stud | D190: =IF(Urval!D111<>"",Urval!D111,"") -> 343 | E190: =IF(Urval!E111<>"",Urval!E111,"") -> 74 | F190: =IF(Urval!F111<>"",Urval!F111,"") -> 146 | G190: =IF(Urval!G111<>"",Urval!G111,"") -> 53 | H190: =IF(Urval!H111<>"",Urval!H111,"") -> 16 | I190: =IF(Urval!I111<>"",Urval!I111,"") -> 12 | J190: =IF(Urval!J111<>"",Urval!J111,"") -> 173 | K190: =IF(Urval!K111<>"",Urval!K111,"") -> 0 | L190: =IF(Urval!L111<>"",Urval!L111,"") -> 2 | M190: =IF(Urval!M111<>"",Urval!M111,"") -> 2 | N190: =IF(Urval!N111<>"",Urval!N111,"") -> 170 | O190: =IF(Urval!O111<>"",Urval!O111,"") ->  | P190: =IF(Urval!P111<>"",Urval!P111,"") -> 1
B191: =IF(Urval!B112<>"",Urval!B112,"") -> 05 Östergötland | C191: =IF(Urval!C112<>"",Urval!C112,"") -> Atgardsprg | D191: =IF(Urval!D112<>"",Urval!D112,"") -> 874 | E191: =IF(Urval!E112<>"",Urval!E112,"") -> 104 | F191: =IF(Urval!F112<>"",Urval!F112,"") -> 243 | G191: =IF(Urval!G112<>"",Urval!G112,"") -> 78 | H191: =IF(Urval!H112<>"",Urval!H112,"") -> 31 | I191: =IF(Urval!I112<>"",Urval!I112,"") -> 28 | J191: =IF(Urval!J112<>"",Urval!J112,"") -> 593 | K191: =IF(Urval!K112<>"",Urval!K112,"") -> 2 | L191: =IF(Urval!L112<>"",Urval!L112,"") -> 2 | M191: =IF(Urval!M112<>"",Urval!M112,"") -> 4 | N191: =IF(Urval!N112<>"",Urval!N112,"") -> 281 | O191: =IF(Urval!O112<>"",Urval!O112,"") ->  | P191: =IF(Urval!P112<>"",Urval!P112,"") -> 2
B192: =IF(Urval!B113<>"",Urval!B113,"") -> 05 Östergötland | C192: =IF(Urval!C113<>"",Urval!C113,"") -> Sarsk_ensk | D192: =IF(Urval!D113<>"",Urval!D113,"") -> 188 | E192: =IF(Urval!E113<>"",Urval!E113,"") -> 31 | F192: =IF(Urval!F113<>"",Urval!F113,"") -> 70 | G192: =IF(Urval!G113<>"",Urval!G113,"") -> 25 | H192: =IF(Urval!H113<>"",Urval!H113,"") -> 8 | I192: =IF(Urval!I113<>"",Urval!I113,"") -> 9 | J192: =IF(Urval!J113<>"",Urval!J113,"") -> 109 | K192: =IF(Urval!K113<>"",Urval!K113,"") -> 2 | L192: =IF(Urval!L113<>"",Urval!L113,"") -> 2 | M192: =IF(Urval!M113<>"",Urval!M113,"") -> 4 | N192: =IF(Urval!N113<>"",Urval!N113,"") -> 79 | O192: =IF(Urval!O113<>"",Urval!O113,"") ->  | P192: =IF(Urval!P113<>"",Urval!P113,"") -> 2
B193: =IF(Urval!B114<>"",Urval!B114,"") -> 05 Östergötland | C193: =IF(Urval!C114<>"",Urval!C114,"") -> Sarsk_undergrp | D193: =IF(Urval!D114<>"",Urval!D114,"") -> 201 | E193: =IF(Urval!E114<>"",Urval!E114,"") -> 60 | F193: =IF(Urval!F114<>"",Urval!F114,"") -> 83 | G193: =IF(Urval!G114<>"",Urval!G114,"") -> 43 | H193: =IF(Urval!H114<>"",Urval!H114,"") -> 8 | I193: =IF(Urval!I114<>"",Urval!I114,"") -> 13 | J193: =IF(Urval!J114<>"",Urval!J114,"") -> 98 | K193: =IF(Urval!K114<>"",Urval!K114,"") -> 2 | L193: =IF(Urval!L114<>"",Urval!L114,"") -> 0 | M193: =IF(Urval!M114<>"",Urval!M114,"") -> 2 | N193: =IF(Urval!N114<>"",Urval!N114,"") -> 103 | O193: =IF(Urval!O114<>"",Urval!O114,"") ->  | P193: =IF(Urval!P114<>"",Urval!P114,"") -> 1
B194: =IF(Urval!B115<>"",Urval!B115,"") -> 05 Östergötland | C194: =IF(Urval!C115<>"",Urval!C115,"") -> Underkänd_Beh_12godkänd | D194: =IF(Urval!D115<>"",Urval!D115,"") -> 961 | E194: =IF(Urval!E115<>"",Urval!E115,"") -> 93 | F194: =IF(Urval!F115<>"",Urval!F115,"") -> 212 | G194: =IF(Urval!G115<>"",Urval!G115,"") -> 66 | H194: =IF(Urval!H115<>"",Urval!H115,"") -> 26 | I194: =IF(Urval!I115<>"",Urval!I115,"") -> 27 | J194: =IF(Urval!J115<>"",Urval!J115,"") -> 708 | K194: =IF(Urval!K115<>"",Urval!K115,"") -> 4 | L194: =IF(Urval!L115<>"",Urval!L115,"") -> 2 | M194: =IF(Urval!M115<>"",Urval!M115,"") -> 6 | N194: =IF(Urval!N115<>"",Urval!N115,"") -> 253 | O194: =IF(Urval!O115<>"",Urval!O115,"") ->  | P194: =IF(Urval!P115<>"",Urval!P115,"") -> 1
B195: =IF(Urval!B116<>"",Urval!B116,"") -> 05 Östergötland | C195: =IF(Urval!C116<>"",Urval!C116,"") -> Underkänd_Beh_12godkänd_stöd | D195: =IF(Urval!D116<>"",Urval!D116,"") -> 579 | E195: =IF(Urval!E116<>"",Urval!E116,"") -> 81 | F195: =IF(Urval!F116<>"",Urval!F116,"") -> 165 | G195: =IF(Urval!G116<>"",Urval!G116,"") -> 58 | H195: =IF(Urval!H116<>"",Urval!H116,"") -> 22 | I195: =IF(Urval!I116<>"",Urval!I116,"") -> 23 | J195: =IF(Urval!J116<>"",Urval!J116,"") -> 380 | K195: =IF(Urval!K116<>"",Urval!K116,"") -> 2 | L195: =IF(Urval!L116<>"",Urval!L116,"") -> 2 | M195: =IF(Urval!M116<>"",Urval!M116,"") -> 4 | N195: =IF(Urval!N116<>"",Urval!N116,"") -> 199 | O195: =IF(Urval!O116<>"",Urval!O116,"") ->  | P195: =IF(Urval!P116<>"",Urval!P116,"") -> 2
B196: =IF(Urval!B117<>"",Urval!B117,"") -> 05 Östergötland | C196: =IF(Urval!C117<>"",Urval!C117,"") -> Underkänd_Beh_Gymn | D196: =IF(Urval!D117<>"",Urval!D117,"") -> 870 | E196: =IF(Urval!E117<>"",Urval!E117,"") -> 82 | F196: =IF(Urval!F117<>"",Urval!F117,"") -> 185 | G196: =IF(Urval!G117<>"",Urval!G117,"") -> 59 | H196: =IF(Urval!H117<>"",Urval!H117,"") -> 25 | I196: =IF(Urval!I117<>"",Urval!I117,"") -> 27 | J196: =IF(Urval!J117<>"",Urval!J117,"") -> 648 | K196: =IF(Urval!K117<>"",Urval!K117,"") -> 4 | L196: =IF(Urval!L117<>"",Urval!L117,"") -> 2 | M196: =IF(Urval!M117<>"",Urval!M117,"") -> 6 | N196: =IF(Urval!N117<>"",Urval!N117,"") -> 222 | O196: =IF(Urval!O117<>"",Urval!O117,"") ->  | P196: =IF(Urval!P117<>"",Urval!P117,"") -> 1
B197: =IF(Urval!B118<>"",Urval!B118,"") -> 05 Östergötland | C197: =IF(Urval!C118<>"",Urval!C118,"") -> Underkänd_Beh_Gymn_stöd | D197: =IF(Urval!D118<>"",Urval!D118,"") -> 526 | E197: =IF(Urval!E118<>"",Urval!E118,"") -> 74 | F197: =IF(Urval!F118<>"",Urval!F118,"") -> 146 | G197: =IF(Urval!G118<>"",Urval!G118,"") -> 53 | H197: =IF(Urval!H118<>"",Urval!H118,"") -> 21 | I197: =IF(Urval!I118<>"",Urval!I118,"") -> 23 | J197: =IF(Urval!J118<>"",Urval!J118,"") -> 348 | K197: =IF(Urval!K118<>"",Urval!K118,"") -> 2 | L197: =IF(Urval!L118<>"",Urval!L118,"") -> 2 | M197: =IF(Urval!M118<>"",Urval!M118,"") -> 4 | N197: =IF(Urval!N118<>"",Urval!N118,"") -> 178 | O197: =IF(Urval!O118<>"",Urval!O118,"") ->  | P197: =IF(Urval!P118<>"",Urval!P118,"") -> 2
B198: =IF(Urval!B119<>"",Urval!B119,"") -> 05 Östergötland | C198: =IF(Urval!C119<>"",Urval!C119,"") -> Underkänd_En | D198: =IF(Urval!D119<>"",Urval!D119,"") -> 398 | E198: =IF(Urval!E119<>"",Urval!E119,"") -> 39 | F198: =IF(Urval!F119<>"",Urval!F119,"") -> 87 | G198: =IF(Urval!G119<>"",Urval!G119,"") -> 28 | H198: =IF(Urval!H119<>"",Urval!H119,"") -> 12 | I198: =IF(Urval!I119<>"",Urval!I119,"") -> 17 | J198: =IF(Urval!J119<>"",Urval!J119,"") -> 292 | K198: =IF(Urval!K119<>"",Urval!K119,"") -> 2 | L198: =IF(Urval!L119<>"",Urval!L119,"") -> 2 | M198: =IF(Urval!M119<>"",Urval!M119,"") -> 4 | N198: =IF(Urval!N119<>"",Urval!N119,"") -> 106 | O198: =IF(Urval!O119<>"",Urval!O119,"") ->  | P198: =IF(Urval!P119<>"",Urval!P119,"") -> 2
B199: =IF(Urval!B120<>"",Urval!B120,"") -> 05 Östergötland | C199: =IF(Urval!C120<>"",Urval!C120,"") -> Underkänd_Ma | D199: =IF(Urval!D120<>"",Urval!D120,"") -> 636 | E199: =IF(Urval!E120<>"",Urval!E120,"") -> 59 | F199: =IF(Urval!F120<>"",Urval!F120,"") -> 135 | G199: =IF(Urval!G120<>"",Urval!G120,"") -> 44 | H199: =IF(Urval!H120<>"",Urval!H120,"") -> 18 | I199: =IF(Urval!I120<>"",Urval!I120,"") -> 20 | J199: =IF(Urval!J120<>"",Urval!J120,"") -> 475 | K199: =IF(Urval!K120<>"",Urval!K120,"") -> 4 | L199: =IF(Urval!L120<>"",Urval!L120,"") -> 2 | M199: =IF(Urval!M120<>"",Urval!M120,"") -> 6 | N199: =IF(Urval!N120<>"",Urval!N120,"") -> 161 | O199: =IF(Urval!O120<>"",Urval!O120,"") ->  | P199: =IF(Urval!P120<>"",Urval!P120,"") -> 1
B200: =IF(Urval!B121<>"",Urval!B121,"") -> 05 Östergötland | C200: =IF(Urval!C121<>"",Urval!C121,"") -> Underkänd_Sv | D200: =IF(Urval!D121<>"",Urval!D121,"") -> 245 | E200: =IF(Urval!E121<>"",Urval!E121,"") -> 43 | F200: =IF(Urval!F121<>"",Urval!F121,"") -> 89 | G200: =IF(Urval!G121<>"",Urval!G121,"") -> 29 | H200: =IF(Urval!H121<>"",Urval!H121,"") -> 13 | I200: =IF(Urval!I121<>"",Urval!I121,"") -> 13 | J200: =IF(Urval!J121<>"",Urval!J121,"") -> 136 | K200: =IF(Urval!K121<>"",Urval!K121,"") -> 2 | L200: =IF(Urval!L121<>"",Urval!L121,"") -> 0 | M200: =IF(Urval!M121<>"",Urval!M121,"") -> 2 | N200: =IF(Urval!N121<>"",Urval!N121,"") -> 109 | O200: =IF(Urval!O121<>"",Urval!O121,"") ->  | P200: =IF(Urval!P121<>"",Urval!P121,"") -> 1
B201: =IF(Urval!B122<>"",Urval!B122,"") ->  | C201: =IF(Urval!C122<>"",Urval!C122,"") ->  | D201: =IF(Urval!D122<>"",Urval!D122,"") ->  | E201: =IF(Urval!E122<>"",Urval!E122,"") ->  | F201: =IF(Urval!F122<>"",Urval!F122,"") ->  | G201: =IF(Urval!G122<>"",Urval!G122,"") ->  | H201: =IF(Urval!H122<>"",Urval!H122,"") ->  | I201: =IF(Urval!I122<>"",Urval!I122,"") ->  | J201: =IF(Urval!J122<>"",Urval!J122,"") ->  | K201: =IF(Urval!K122<>"",Urval!K122,"") ->  | L201: =IF(Urval!L122<>"",Urval!L122,"") ->  | M201: =IF(Urval!M122<>"",Urval!M122,"") ->  | N201: =IF(Urval!N122<>"",Urval!N122,"") ->  | O201: =IF(Urval!O122<>"",Urval!O122,"") ->  | P201: =IF(Urval!P122<>"",Urval!P122,"") -> 

Sheet Graf 4 Venn
H2: =Urval!C8 -> Riket
Q3: Npf-elever
D4: Ej klarat gymnasiebehörighet | M4: Elever med npf | Q4: Meritvärde genomsnitt | S4: =AJ27 -> 159.1589228 | T4: p
D5: =(AK11+AK19)&" st" -> 16975 st | M5: =AJ15&" st" -> 13648 st | Q5: Antal F genomsnitt | S5: =AJ28 -> 4.171566679 | T5: ämnen | AH5: =IF(Urval!B46="","",Urval!B46) -> NEDBRYTNING GYMNBEHÖRIGHET OCH STÖD | AI5: =IF(Urval!C46="","",Urval!C46) ->  | AJ5: =IF(Urval!D46="","",Urval!D46) -> # elever | AK5: =IF(Urval!E46="","",Urval!E46) -> # elever | AL5: =IF(Urval!F46="","",Urval!F46) -> # elever | AM5: =IF(Urval!G46="","",Urval!G46) -> 
E6: =(AK11+AK19) -> 16975 | N6: =AJ15 -> 13648 | AH6: =IF(Urval!B47="","",Urval!B47) -> Total population | AI6: =IF(Urval!C47="","",Urval!C47) ->  | AJ6: =IF(Urval!D47="","",Urval!D47) -> 119876 | AK6: =IF(Urval!E47="","",Urval!E47) ->  | AL6: =IF(Urval!F47="","",Urval!F47) ->  | AM6: =IF(Urval!G47="","",Urval!G47) -> 
I7: Elever med npf | Q7: Referens: Elever utan npf | AH7: =IF(Urval!B48="","",Urval!B48) -> - Elever utan funktionsnedsättning | AI7: =IF(Urval!C48="","",Urval!C48) ->  | AJ7: =IF(Urval!D48="","",Urval!D48) -> 106228 | AK7: =IF(Urval!E48="","",Urval!E48) ->  | AL7: =IF(Urval!F48="","",Urval!F48) ->  | AM7: =IF(Urval!G48="","",Urval!G48) -> 
I8: =AK19&" st" -> 4595 st | Q8: Meritvärde genomsnitt | S8: =AJ24 -> 235.2 | T8: p | AH8: =IF(Urval!B49="","",Urval!B49) ->  | AI8: =IF(Urval!C49="","",Urval!C49) -> Klarar gymnasiebehörighet | AJ8: =IF(Urval!D49="","",Urval!D49) ->  | AK8: =IF(Urval!E49="","",Urval!E49) -> 93848 | AL8: =IF(Urval!F49="","",Urval!F49) ->  | AM8: =IF(Urval!G49="","",Urval!G49) -> 
J9: =AK19 -> 4595 | Q9: Antal F genomsnitt | S9: =AJ25 -> 1.10736 | T9: ämnen | AH9: =IF(Urval!B50="","",Urval!B50) ->  | AI9: =IF(Urval!C50="","",Urval!C50) -> & fick stöd | AJ9: =IF(Urval!D50="","",Urval!D50) ->  | AK9: =IF(Urval!E50="","",Urval!E50) ->  | AL9: =IF(Urval!F50="","",Urval!F50) -> 3100 | AM9: =IF(Urval!G50="","",Urval!G50) -> 
AH10: =IF(Urval!B51="","",Urval!B51) ->  | AI10: =IF(Urval!C51="","",Urval!C51) -> & fick inte stöd | AJ10: =IF(Urval!D51="","",Urval!D51) ->  | AK10: =IF(Urval!E51="","",Urval!E51) ->  | AL10: =IF(Urval!F51="","",Urval!F51) -> 90748 | AM10: =IF(Urval!G51="","",Urval!G51) -> 
H11: Fått stöd | J11: Ej fått stöd | AH11: =IF(Urval!B52="","",Urval!B52) ->  | AI11: =IF(Urval!C52="","",Urval!C52) -> Klarar inte gymnasiebehörighet | AJ11: =IF(Urval!D52="","",Urval!D52) ->  | AK11: =IF(Urval!E52="","",Urval!E52) -> 12380 | AL11: =IF(Urval!F52="","",Urval!F52) ->  | AM11: =IF(Urval!G52="","",Urval!G52) -> 
E12: Ej behöriga | H12: =AL20&" st" -> 3503 st | J12: =AL21&" st" -> 1092 st | M12: npf | AH12: =IF(Urval!B53="","",Urval!B53) ->  | AI12: =IF(Urval!C53="","",Urval!C53) -> & fick stöd | AJ12: =IF(Urval!D53="","",Urval!D53) ->  | AK12: =IF(Urval!E53="","",Urval!E53) ->  | AL12: =IF(Urval!F53="","",Urval!F53) -> 4581 | AM12: =IF(Urval!G53="","",Urval!G53) -> 
E13: =AK11&" st" -> 12380 st | I13: =AL20 -> 3503 | K13: =AL21 -> 1092 | M13: =AK16&" st" -> 9053 st | AH13: =IF(Urval!B54="","",Urval!B54) ->  | AI13: =IF(Urval!C54="","",Urval!C54) -> & fick inte stöd | AJ13: =IF(Urval!D54="","",Urval!D54) ->  | AK13: =IF(Urval!E54="","",Urval!E54) ->  | AL13: =IF(Urval!F54="","",Urval!F54) -> 7799 | AM13: =IF(Urval!G54="","",Urval!G54) -> 
F14: =AK11 -> 12380 | N14: =AK16 -> 9053 | AH14: =IF(Urval!B55="","",Urval!B55) ->  | AI14: =IF(Urval!C55="","",Urval!C55) ->  | AJ14: =IF(Urval!D55="","",Urval!D55) ->  | AK14: =IF(Urval!E55="","",Urval!E55) ->  | AL14: =IF(Urval!F55="","",Urval!F55) ->  | AM14: =IF(Urval!G55="","",Urval!G55) -> 
AH15: =IF(Urval!B56="","",Urval!B56) -> - Elever med funktionsnedsättning | AI15: =IF(Urval!C56="","",Urval!C56) ->  | AJ15: =IF(Urval!D56="","",Urval!D56) -> 13648 | AK15: =IF(Urval!E56="","",Urval!E56) ->  | AL15: =IF(Urval!F56="","",Urval!F56) ->  | AM15: =IF(Urval!G56="","",Urval!G56) -> 
D16: Fått stöd | F16: Ej fått stöd | L16: Fått stöd | N16: Ej fått stöd | AH16: =IF(Urval!B57="","",Urval!B57) ->  | AI16: =IF(Urval!C57="","",Urval!C57) -> Klarar gymnasiebehörighet | AJ16: =IF(Urval!D57="","",Urval!D57) ->  | AK16: =IF(Urval!E57="","",Urval!E57) -> 9053 | AL16: =IF(Urval!F57="","",Urval!F57) ->  | AM16: =IF(Urval!G57="","",Urval!G57) -> 
D17: =AL12&" st" -> 4581 st | F17: =AL13&" st" -> 7799 st | L17: =AL17&" st" -> 2746 st | N17: =AL18&" st" -> 6307 st | AH17: =IF(Urval!B58="","",Urval!B58) ->  | AI17: =IF(Urval!C58="","",Urval!C58) -> & fick stöd | AJ17: =IF(Urval!D58="","",Urval!D58) ->  | AK17: =IF(Urval!E58="","",Urval!E58) ->  | AL17: =IF(Urval!F58="","",Urval!F58) -> 2746 | AM17: =IF(Urval!G58="","",Urval!G58) -> 
E18: =AL12 -> 4581 | G18: =AL13 -> 7799 | M18: =AL17 -> 2746 | O18: =AL18 -> 6307 | AH18: =IF(Urval!B59="","",Urval!B59) ->  | AI18: =IF(Urval!C59="","",Urval!C59) -> & fick inte stöd | AJ18: =IF(Urval!D59="","",Urval!D59) ->  | AK18: =IF(Urval!E59="","",Urval!E59) ->  | AL18: =IF(Urval!F59="","",Urval!F59) -> 6307 | AM18: =IF(Urval!G59="","",Urval!G59) -> 
AH19: =IF(Urval!B60="","",Urval!B60) ->  | AI19: =IF(Urval!C60="","",Urval!C60) -> Klarar inte gymnasiebehörighet | AJ19: =IF(Urval!D60="","",Urval!D60) ->  | AK19: =IF(Urval!E60="","",Urval!E60) -> 4595 | AL19: =IF(Urval!F60="","",Urval!F60) ->  | AM19: =IF(Urval!G60="","",Urval!G60) -> 
AH20: =IF(Urval!B61="","",Urval!B61) ->  | AI20: =IF(Urval!C61="","",Urval!C61) -> & fick stöd | AJ20: =IF(Urval!D61="","",Urval!D61) ->  | AK20: =IF(Urval!E61="","",Urval!E61) ->  | AL20: =IF(Urval!F61="","",Urval!F61) -> 3503 | AM20: =IF(Urval!G61="","",Urval!G61) -> 
AH21: =IF(Urval!B62="","",Urval!B62) ->  | AI21: =IF(Urval!C62="","",Urval!C62) -> & fick inte stöd | AJ21: =IF(Urval!D62="","",Urval!D62) ->  | AK21: =IF(Urval!E62="","",Urval!E62) ->  | AL21: =IF(Urval!F62="","",Urval!F62) -> 1092 | AM21: =IF(Urval!G62="","",Urval!G62) -> 
AH22: =IF(Urval!B63="","",Urval!B63) ->  | AI22: =IF(Urval!C63="","",Urval!C63) ->  | AJ22: =IF(Urval!D63="","",Urval!D63) ->  | AK22: =IF(Urval!E63="","",Urval!E63) ->  | AL22: =IF(Urval!F63="","",Urval!F63) ->  | AM22: =IF(Urval!G63="","",Urval!G63) -> 
AH24: =AH7 -> - Elever utan funktionsnedsättning | AI24: Meritvärde | AJ24: =Urval!J78 -> 235.2 | AK24: p
AI25: Antal F | AJ25: =Urval!J79 -> 1.10736
D27: (Elever utan npf som klarat behörighet | AH27: =AH15 -> - Elever med funktionsnedsättning | AI27: Meritvärde | AJ27: =Urval!N78 -> 159.1589228
D28: och fått stöd | F28: =AL9 -> 3100 | G28: st | H28: ) | AI28: Antal F | AJ28: =Urval!N79 -> 4.171566679
AH30: Maximalt värde (för skala i villkorsstyrda celler) | AI30: =MAX(AK11+AK19,AJ15) -> 16975

Sheet Aggregator
B2: Aggregering av data
E3: =VLOOKUP(Urval!$C$8&Verksform;'Populationen-X'!$E$9:$Q$607;E7;FALSE)
B4: Denna flik hämtar in data för valt geografiskt område, samt jämförelsedata för länsnivå och hela riket.
B7: Flik: POPULATION | D7: 2 | E7: 3 | F7: 4 | G7: 5 | H7: 6 | I7: 7 | J7: 8 | K7: 9 | L7: 10 | Q7: 20 | R7: 21 | S7: 22 | T7: 23 | U7: 24 | V7: 25 | W7: 26 | X7: 27 | Y7: 28 | Z7: 29 | AA7: 30
D8: Totalt | E8: n1 (AUTISM) | F8: n2 (ADHD) | G8: n3 (AUTISM OCH ADHD) | H8: n4 (DYSLEXI) | I8: n5 (SPRÅKSTÖRNING) | J8: n6 (EJ NPF-DIAGNOS) | K8: n7 (IF MEN EJ NPF) | L8: n8 (IF OCH NPF) | M8: IF | N8: NPF (utan IF) | P8: Datakvalitet | Q8: Totalt | R8: n1 (AUTISM) | S8: n2 (ADHD) | T8: n3 (AUTISM OCH ADHD) | U8: n4 (DYSLEXI) | V8: n5 (SPRÅKSTÖRNING) | W8: n6 (EJ NPF-DIAGNOS) | X8: n7 (IF MEN EJ NPF) | Y8: n8 (IF OCH NPF) | Z8: IF | AA8: NPF (utan IF)
B9: =Urval!C8 -> Riket | D9: =MAX(VLOOKUP(Urval!$C$8&Verksform,'Populationen-X'!$E$9:$Q$607,D7,FALSE),IFERROR(D15,0),IFERROR(D21,0),IFERROR(D33:D42,0)) -> 119876 | E9: =MAX(VLOOKUP(Urval!$C$8&Verksform,'Populationen-X'!$E$9:$Q$607,E7,FALSE),IFERROR(E15,0),IFERROR(E21,0),IFERROR(E33:E42,0)) -> 3690 | F9: =MAX(VLOOKUP(Urval!$C$8&Verksform,'Populationen-X'!$E$9:$Q$607,F7,FALSE),IFERROR(F15,0),IFERROR(F21,0),IFERROR(F33:F42,0)) -> 11295 | G9: =MAX(VLOOKUP(Urval!$C$8&Verksform,'Populationen-X'!$E$9:$Q$607,G7,FALSE),IFERROR(G15,0),IFERROR(G21,0),IFERROR(G33:G42,0)) -> 2319 | H9: =MAX(VLOOKUP(Urval!$C$8&Verksform,'Populationen-X'!$E$9:$Q$607,H7,FALSE),IFERROR(H15,0),IFERROR(H21,0),IFERROR(H33:H42,0)) -> 849 | I9: =MAX(VLOOKUP(Urval!$C$8&Verksform,'Populationen-X'!$E$9:$Q$607,I7,FALSE),IFERROR(I15,0),IFERROR(I21,0),IFERROR(I33:I42,0)) -> 1113 | J9: =MAX(VLOOKUP(Urval!$C$8&Verksform,'Populationen-X'!$E$9:$Q$607,J7,FALSE),IFERROR(J15,0),IFERROR(J21,0),IFERROR(J33:J42,0)) -> 106228 | K9: =MAX(VLOOKUP(Urval!$C$8&Verksform,'Populationen-X'!$E$9:$Q$607,K7,FALSE),IFERROR(K15,0),IFERROR(K21,0),IFERROR(K33:K42,0)) -> 103 | L9: =MAX(VLOOKUP(Urval!$C$8&Verksform,'Populationen-X'!$E$9:$Q$607,L7,FALSE),IFERROR(L15,0),IFERROR(L21,0),IFERROR(L33:L42,0)) -> 120 | M9: =_xlfn.IFS(AND(ISNUMBER(K9),ISNUMBER(L9)),K9+L9,OR(ISNUMBER(K9),ISNUMBER(L9))=FALSE,0,ISNUMBER(K9)=FALSE,L9,TRUE,K9) -> 223 | N9: =MAX(D9-J9,0) -> 13648 | P9: =VLOOKUP(Urval!$C$8&Verksform,'Populationen-X'!$E$9:$AH$607,14,FALSE) -> 0 | Q9: =VLOOKUP(Urval!$C$8&Verksform,'Populationen-X'!$E$9:$AH$607,Q7,FALSE) -> 0 | R9: =VLOOKUP(Urval!$C$8&Verksform,'Populationen-X'!$E$9:$AH$607,R7,FALSE) -> 0 | S9: =VLOOKUP(Urval!$C$8&Verksform,'Populationen-X'!$E$9:$AH$607,S7,FALSE) -> 0 | T9: =VLOOKUP(Urval!$C$8&Verksform,'Populationen-X'!$E$9:$AH$607,T7,FALSE) -> 0 | U9: =VLOOKUP(Urval!$C$8&Verksform,'Populationen-X'!$E$9:$AH$607,U7,FALSE) -> 0 | V9: =VLOOKUP(Urval!$C$8&Verksform,'Populationen-X'!$E$9:$AH$607,V7,FALSE) -> 0 | W9: =VLOOKUP(Urval!$C$8&Verksform,'Populationen-X'!$E$9:$AH$607,W7,FALSE) -> 0 | X9: =VLOOKUP(Urval!$C$8&Verksform,'Populationen-X'!$E$9:$AH$607,X7,FALSE) -> 0 | Y9: =VLOOKUP(Urval!$C$8&Verksform,'Populationen-X'!$E$9:$AH$607,Y7,FALSE) -> 0 | Z9: =VLOOKUP(Urval!$C$8&Verksform,'Populationen-X'!$E$9:$AH$607,Z7,FALSE) -> 0 | AA9: =VLOOKUP(Urval!$C$8&Verksform,'Populationen-X'!$E$9:$AH$607,AA7,FALSE) -> 0
B10: =Urval!C9 ->  | D10: =VLOOKUP($B$10&Verksform,'Populationen-X'!$E$9:$Q$607,D7,FALSE) ->  | E10: =VLOOKUP($B$10&Verksform,'Populationen-X'!$E$9:$Q$607,E7,FALSE) ->  | F10: =VLOOKUP($B$10&Verksform,'Populationen-X'!$E$9:$Q$607,F7,FALSE) ->  | G10: =VLOOKUP($B$10&Verksform,'Populationen-X'!$E$9:$Q$607,G7,FALSE) ->  | H10: =VLOOKUP($B$10&Verksform,'Populationen-X'!$E$9:$Q$607,H7,FALSE) ->  | I10: =VLOOKUP($B$10&Verksform,'Populationen-X'!$E$9:$Q$607,I7,FALSE) ->  | J10: =VLOOKUP($B$10&Verksform,'Populationen-X'!$E$9:$Q$607,J7,FALSE) ->  | K10: =VLOOKUP($B$10&Verksform,'Populationen-X'!$E$9:$Q$607,K7,FALSE) ->  | L10: =VLOOKUP($B$10&Verksform,'Populationen-X'!$E$9:$Q$607,L7,FALSE) ->  | M10: =_xlfn.IFS(AND(ISNUMBER(K10),ISNUMBER(L10)),K10+L10,OR(ISNUMBER(K10),ISNUMBER(L10))=FALSE,0,ISNUMBER(K10)=FALSE,L10,TRUE,K10) -> 0 | N10: =MAX(D10-J10,0) ->  | P10: =VLOOKUP(Urval!$C$9&Verksform,'Populationen-X'!$E$9:$AF$607,14,FALSE) -> 
B11: Riket | D11: =VLOOKUP($B$11&Verksform,'Populationen-X'!$E$9:$Q$607,D7,FALSE) -> 119876 | E11: =VLOOKUP($B$11&Verksform,'Populationen-X'!$E$9:$Q$607,E7,FALSE) -> 3690 | F11: =VLOOKUP($B$11&Verksform,'Populationen-X'!$E$9:$Q$607,F7,FALSE) -> 11295 | G11: =VLOOKUP($B$11&Verksform,'Populationen-X'!$E$9:$Q$607,G7,FALSE) -> 2319 | H11: =VLOOKUP($B$11&Verksform,'Populationen-X'!$E$9:$Q$607,H7,FALSE) -> 849 | I11: =VLOOKUP($B$11&Verksform,'Populationen-X'!$E$9:$Q$607,I7,FALSE) -> 1113 | J11: =VLOOKUP($B$11&Verksform,'Populationen-X'!$E$9:$Q$607,J7,FALSE) -> 106228 | K11: =VLOOKUP($B$11&Verksform,'Populationen-X'!$E$9:$Q$607,K7,FALSE) -> 103 | L11: =VLOOKUP($B$11&Verksform,'Populationen-X'!$E$9:$Q$607,L7,FALSE) -> 120 | M11: =_xlfn.IFS(AND(ISNUMBER(K11),ISNUMBER(L11)),K11+L11,OR(ISNUMBER(K11),ISNUMBER(L11))=FALSE,0,ISNUMBER(K11)=FALSE,L11,TRUE,K11) -> 223 | N11: =MAX(D11-J11,0) -> 13648 | P11: =VLOOKUP(B11&Verksform,'Populationen-X'!$E$9:$AF$607,14,FALSE) -> 0
B13: Flik: SUICID | D13: 2 | E13: 3 | F13: 4 | G13: 5 | H13: 6 | I13: 7 | J13: 8 | K13: 9 | L13: 10
D14: Totalt | E14: n1 (AUTISM) | F14: n2 (ADHD) | G14: n3 (AUTISM OCH ADHD) | H14: n4 (DYSLEXI) | I14: n5 (SPRÅKSTÖRNING) | J14: n6 (EJ NPF-DIAGNOS) | K14: n7 (IF MEN EJ NPF) | L14: n8 (IF OCH NPF) | M14: IF | N14: NPF (utan IF) | P14: Datakvalitet | Q14: DQ-npf
B15: =B9 -> Riket | D15: =VLOOKUP(Urval!$C$8,'Suicid-X'!$C$12:$L$400,D13,FALSE) -> 985 | E15: =VLOOKUP(Urval!$C$8,'Suicid-X'!$C$12:$L$400,E13,FALSE) -> 169 | F15: =VLOOKUP(Urval!$C$8,'Suicid-X'!$C$12:$L$400,F13,FALSE) -> 372 | G15: =VLOOKUP(Urval!$C$8,'Suicid-X'!$C$12:$L$400,G13,FALSE) -> 118 | H15: =VLOOKUP(Urval!$C$8,'Suicid-X'!$C$12:$L$400,H13,FALSE) -> 21 | I15: =VLOOKUP(Urval!$C$8,'Suicid-X'!$C$12:$L$400,I13,FALSE) -> 10 | J15: =VLOOKUP(Urval!$C$8,'Suicid-X'!$C$12:$L$400,J13,FALSE) -> 537 | K15: =VLOOKUP(Urval!$C$8,'Suicid-X'!$C$12:$L$400,K13,FALSE) -> 5 | L15: =VLOOKUP(Urval!$C$8,'Suicid-X'!$C$12:$L$400,L13,FALSE) -> 13 | M15: =_xlfn.IFS(AND(ISNUMBER(K15),ISNUMBER(L15)),K15+L15,OR(ISNUMBER(K15),ISNUMBER(L15))=FALSE,0,ISNUMBER(K15)=FALSE,L15,TRUE,K15) -> 18 | N15: =MAX(D15-J15,0) -> 448 | P15: =VLOOKUP(Urval!$C$8,'Suicid-X'!$C$11:$AF$607,13,FALSE) -> 0 | Q15: =VLOOKUP(Urval!$C$8,'Suicid-X'!$C$11:$AF$607,19,FALSE)+VLOOKUP(Urval!$C$8,'Suicid-X'!$C$11:$AF$607,25,FALSE) -> 0
B16: =B10 ->  | D16: =VLOOKUP($B$16,'Suicid-X'!$C$12:$L$400,D13,FALSE) ->  | E16: =VLOOKUP($B$16,'Suicid-X'!$C$12:$L$400,E13,FALSE) ->  | F16: =VLOOKUP($B$16,'Suicid-X'!$C$12:$L$400,F13,FALSE) ->  | G16: =VLOOKUP($B$16,'Suicid-X'!$C$12:$L$400,G13,FALSE) ->  | H16: =VLOOKUP($B$16,'Suicid-X'!$C$12:$L$400,H13,FALSE) ->  | I16: =VLOOKUP($B$16,'Suicid-X'!$C$12:$L$400,I13,FALSE) ->  | J16: =VLOOKUP($B$16,'Suicid-X'!$C$12:$L$400,J13,FALSE) ->  | K16: =VLOOKUP($B$16,'Suicid-X'!$C$12:$L$400,K13,FALSE) ->  | L16: =VLOOKUP($B$16,'Suicid-X'!$C$12:$L$400,L13,FALSE) ->  | M16: =_xlfn.IFS(AND(ISNUMBER(K16),ISNUMBER(L16)),K16+L16,OR(ISNUMBER(K16),ISNUMBER(L16))=FALSE,0,ISNUMBER(K16)=FALSE,L16,TRUE,K16) -> 0 | N16: =MAX(D16-J16,0) ->  | P16: =VLOOKUP(B16,'Suicid-X'!$C$11:$AF$607,13,FALSE) ->  | Q16: =VLOOKUP(B16,'Suicid-X'!$C$11:$AF$607,19,FALSE)+VLOOKUP(B16,'Suicid-X'!$C$11:$AF$607,25,FALSE) -> 
B17: =B11 -> Riket | D17: =VLOOKUP($B$17,'Suicid-X'!$C$12:$L$400,D13,FALSE) -> 985 | E17: =VLOOKUP($B$17,'Suicid-X'!$C$12:$L$400,E13,FALSE) -> 169 | F17: =VLOOKUP($B$17,'Suicid-X'!$C$12:$L$400,F13,FALSE) -> 372 | G17: =VLOOKUP($B$17,'Suicid-X'!$C$12:$L$400,G13,FALSE) -> 118 | H17: =VLOOKUP($B$17,'Suicid-X'!$C$12:$L$400,H13,FALSE) -> 21 | I17: =VLOOKUP($B$17,'Suicid-X'!$C$12:$L$400,I13,FALSE) -> 10 | J17: =VLOOKUP($B$17,'Suicid-X'!$C$12:$L$400,J13,FALSE) -> 537 | K17: =VLOOKUP($B$17,'Suicid-X'!$C$12:$L$400,K13,FALSE) -> 5 | L17: =VLOOKUP($B$17,'Suicid-X'!$C$12:$L$400,L13,FALSE) -> 13 | M17: =_xlfn.IFS(AND(ISNUMBER(K17),ISNUMBER(L17)),K17+L17,OR(ISNUMBER(K17),ISNUMBER(L17))=FALSE,0,ISNUMBER(K17)=FALSE,L17,TRUE,K17) -> 18 | N17: =MAX(D17-J17,0) -> 448 | P17: =VLOOKUP(B17,'Suicid-X'!$C$11:$AF$607,13,FALSE) -> 0 | Q17: =VLOOKUP(B17,'Suicid-X'!$C$11:$AF$607,19,FALSE)+VLOOKUP(B17,'Suicid-X'!$C$11:$AF$607,25,FALSE) -> 0
D19: 0 | E19: 1 | F19: 2 | G19: 3 | H19: 4 | I19: 5 | J19: 6 | K19: 7 | L19: 8
B20: Flik: MERITVÄRDEN | D20: Totalt | E20: n1 (AUTISM) | F20: n2 (ADHD) | G20: n3 (AUTISM OCH ADHD) | H20: n4 (DYSLEXI) | I20: n5 (SPRÅKSTÖRNING) | J20: n6 (EJ NPF-DIAGNOS) | K20: n7 (IF MEN EJ NPF) | L20: n8 (IF OCH NPF) | M20: IF | N20: NPF (utan IF)
B21: =B33 -> Riket | C21: Totalt | D21: =VLOOKUP($B21&Verksform,'Meritvärden & underkända-X'!$E$9:$AF$350,D19+2,FALSE) -> 118752 | E21: =VLOOKUP($B21&Verksform,'Meritvärden & underkända-X'!$E$9:$AF$350,E19*3+2,FALSE) -> 3587 | F21: =VLOOKUP($B21&Verksform,'Meritvärden & underkända-X'!$E$9:$AF$350,F19*3+2,FALSE) -> 11103 | G21: =VLOOKUP($B21&Verksform,'Meritvärden & underkända-X'!$E$9:$AF$350,G19*3+2,FALSE) -> 2254 | H21: =VLOOKUP($B21&Verksform,'Meritvärden & underkända-X'!$E$9:$AF$350,H19*3+2,FALSE) -> 830 | I21: =VLOOKUP($B21&Verksform,'Meritvärden & underkända-X'!$E$9:$AF$350,I19*3+2,FALSE) -> 1093 | J21: =VLOOKUP($B21&Verksform,'Meritvärden & underkända-X'!$E$9:$AF$350,J19*3+2,FALSE) -> 105384 | K21: =VLOOKUP($B21&Verksform,'Meritvärden & underkända-X'!$E$9:$AF$350,K19*3+2,FALSE) -> 81 | L21: =VLOOKUP($B21&Verksform,'Meritvärden & underkända-X'!$E$9:$AF$350,L19*3+2,FALSE) -> 98 | M21: =_xlfn.IFS(AND(ISNUMBER(K21),ISNUMBER(L21)),K21+L21,OR(ISNUMBER(K21),ISNUMBER(L21))=FALSE,0,ISNUMBER(K21)=FALSE,L21,TRUE,K21) -> 179 | N21: =MAX(D21-J21,0) -> 13368 | P21: =VLOOKUP(B17,'Suicid-X'!$C$11:$AF$607,13,FALSE) -> 0 | Q21: Not! Datakvalitet inte implementerat för Merit-X
B22: =B34 -> Riket | C22: MeritVarde | D22: =VLOOKUP($B22&Verksform,'Meritvärden & underkända-X'!$E$9:$AF$350,D19+3,FALSE) -> 226.64 | E22: =VLOOKUP($B22&Verksform,'Meritvärden & underkända-X'!$E$9:$AF$350,E19*3+3,FALSE) -> 144.06 | F22: =VLOOKUP($B22&Verksform,'Meritvärden & underkända-X'!$E$9:$AF$350,F19*3+3,FALSE) -> 156.9 | G22: =VLOOKUP($B22&Verksform,'Meritvärden & underkända-X'!$E$9:$AF$350,G19*3+3,FALSE) -> 135.9 | H22: =VLOOKUP($B22&Verksform,'Meritvärden & underkända-X'!$E$9:$AF$350,H19*3+3,FALSE) -> 158.58 | I22: =VLOOKUP($B22&Verksform,'Meritvärden & underkända-X'!$E$9:$AF$350,I19*3+3,FALSE) -> 178.31 | J22: =VLOOKUP($B22&Verksform,'Meritvärden & underkända-X'!$E$9:$AF$350,J19*3+3,FALSE) -> 235.2 | K22: =VLOOKUP($B22&Verksform,'Meritvärden & underkända-X'!$E$9:$AF$350,K19*3+3,FALSE) -> 109.26 | L22: =VLOOKUP($B22&Verksform,'Meritvärden & underkända-X'!$E$9:$AF$350,L19*3+3,FALSE) -> 94.69 | M22: =_xlfn.IFS(AND(ISNUMBER(K22),ISNUMBER(L22)),K22+L22,OR(ISNUMBER(K22),ISNUMBER(L22))=FALSE,0,ISNUMBER(K22)=FALSE,L22,TRUE,K22) -> 203.95 | N22: =IFERROR((D22*D21-J22*J21)/(D21-J21),".") -> 159.1589228
B23: =B35 -> Riket | C23: Ant_F | D23: =VLOOKUP($B23&Verksform,'Meritvärden & underkända-X'!$E$9:$AF$350,D19+4,FALSE) -> 1.4523 | E23: =VLOOKUP($B23&Verksform,'Meritvärden & underkända-X'!$E$9:$AF$350,E19*3+4,FALSE) -> 5.4698 | F23: =VLOOKUP($B23&Verksform,'Meritvärden & underkända-X'!$E$9:$AF$350,F19*3+4,FALSE) -> 4.1811 | G23: =VLOOKUP($B23&Verksform,'Meritvärden & underkända-X'!$E$9:$AF$350,G19*3+4,FALSE) -> 5.764 | H23: =VLOOKUP($B23&Verksform,'Meritvärden & underkända-X'!$E$9:$AF$350,H19*3+4,FALSE) -> 3.93373 | I23: =VLOOKUP($B23&Verksform,'Meritvärden & underkända-X'!$E$9:$AF$350,I19*3+4,FALSE) -> 3.1665 | J23: =VLOOKUP($B23&Verksform,'Meritvärden & underkända-X'!$E$9:$AF$350,J19*3+4,FALSE) -> 1.10736 | K23: =VLOOKUP($B23&Verksform,'Meritvärden & underkända-X'!$E$9:$AF$350,K19*3+4,FALSE) -> 7.5432 | L23: =VLOOKUP($B23&Verksform,'Meritvärden & underkända-X'!$E$9:$AF$350,L19*3+4,FALSE) -> 8.1224 | M23: =_xlfn.IFS(AND(ISNUMBER(K23),ISNUMBER(L23)),K23+L23,OR(ISNUMBER(K23),ISNUMBER(L23))=FALSE,0,ISNUMBER(K23)=FALSE,L23,TRUE,K23) -> 15.6656 | N23: =IFERROR((D23*D21-J23*J21)/(D21-J21),".") -> 4.171566679
B24: =B16 ->  | C24: Totalt | D24: =VLOOKUP($B24&Verksform,'Meritvärden & underkända-X'!$E$9:$AF$350,D19+2,FALSE) ->  | E24: =VLOOKUP($B24&Verksform,'Meritvärden & underkända-X'!$E$9:$AF$350,E19*3+2,FALSE) ->  | F24: =VLOOKUP($B24&Verksform,'Meritvärden & underkända-X'!$E$9:$AF$350,F19*3+2,FALSE) ->  | G24: =VLOOKUP($B24&Verksform,'Meritvärden & underkända-X'!$E$9:$AF$350,G19*3+2,FALSE) ->  | H24: =VLOOKUP($B24&Verksform,'Meritvärden & underkända-X'!$E$9:$AF$350,H19*3+2,FALSE) ->  | I24: =VLOOKUP($B24&Verksform,'Meritvärden & underkända-X'!$E$9:$AF$350,I19*3+2,FALSE) ->  | J24: =VLOOKUP($B24&Verksform,'Meritvärden & underkända-X'!$E$9:$AF$350,J19*3+2,FALSE) ->  | K24: =VLOOKUP($B24&Verksform,'Meritvärden & underkända-X'!$E$9:$AF$350,K19*3+2,FALSE) ->  | L24: =VLOOKUP($B24&Verksform,'Meritvärden & underkända-X'!$E$9:$AF$350,L19*3+2,FALSE) ->  | M24: =_xlfn.IFS(AND(ISNUMBER(K24),ISNUMBER(L24)),K24+L24,OR(ISNUMBER(K24),ISNUMBER(L24))=FALSE,0,ISNUMBER(K24)=FALSE,L24,TRUE,K24) -> 0 | N24: =MAX(D24-J24,0) -> 
B25: =B24 ->  | C25: MeritVarde | D25: =VLOOKUP($B25&Verksform,'Meritvärden & underkända-X'!$E$9:$AF$350,D19+3,FALSE) ->  | E25: =VLOOKUP($B25&Verksform,'Meritvärden & underkända-X'!$E$9:$AF$350,E19*3+3,FALSE) ->  | F25: =VLOOKUP($B25&Verksform,'Meritvärden & underkända-X'!$E$9:$AF$350,F19*3+3,FALSE) ->  | G25: =VLOOKUP($B25&Verksform,'Meritvärden & underkända-X'!$E$9:$AF$350,G19*3+3,FALSE) ->  | H25: =VLOOKUP($B25&Verksform,'Meritvärden & underkända-X'!$E$9:$AF$350,H19*3+3,FALSE) ->  | I25: =VLOOKUP($B25&Verksform,'Meritvärden & underkända-X'!$E$9:$AF$350,I19*3+3,FALSE) ->  | J25: =VLOOKUP($B25&Verksform,'Meritvärden & underkända-X'!$E$9:$AF$350,J19*3+3,FALSE) ->  | K25: =VLOOKUP($B25&Verksform,'Meritvärden & underkända-X'!$E$9:$AF$350,K19*3+3,FALSE) ->  | L25: =VLOOKUP($B25&Verksform,'Meritvärden & underkända-X'!$E$9:$AF$350,L19*3+3,FALSE) ->  | M25: =_xlfn.IFS(AND(ISNUMBER(K25),ISNUMBER(L25)),AVERAGE(K25,L25),OR(ISNUMBER(K25),ISNUMBER(L25))=FALSE,0,ISNUMBER(K25)=FALSE,L25,TRUE,K25) -> 0 | N25: =IFERROR((D25*D24-J25*J24)/(D24-J24),".") -> .
B26: =B25 ->  | C26: Ant_F | D26: =VLOOKUP($B26&Verksform,'Meritvärden & underkända-X'!$E$9:$AF$350,D19+4,FALSE) ->  | E26: =VLOOKUP($B26&Verksform,'Meritvärden & underkända-X'!$E$9:$AF$350,E19*3+4,FALSE) ->  | F26: =VLOOKUP($B26&Verksform,'Meritvärden & underkända-X'!$E$9:$AF$350,F19*3+4,FALSE) ->  | G26: =VLOOKUP($B26&Verksform,'Meritvärden & underkända-X'!$E$9:$AF$350,G19*3+4,FALSE) ->  | H26: =VLOOKUP($B26&Verksform,'Meritvärden & underkända-X'!$E$9:$AF$350,H19*3+4,FALSE) ->  | I26: =VLOOKUP($B26&Verksform,'Meritvärden & underkända-X'!$E$9:$AF$350,I19*3+4,FALSE) ->  | J26: =VLOOKUP($B26&Verksform,'Meritvärden & underkända-X'!$E$9:$AF$350,J19*3+4,FALSE) ->  | K26: =VLOOKUP($B26&Verksform,'Meritvärden & underkända-X'!$E$9:$AF$350,K19*3+4,FALSE) ->  | L26: =VLOOKUP($B26&Verksform,'Meritvärden & underkända-X'!$E$9:$AF$350,L19*3+4,FALSE) ->  | M26: =_xlfn.IFS(AND(ISNUMBER(K26),ISNUMBER(L26)),AVERAGE(K26,L26),OR(ISNUMBER(K26),ISNUMBER(L26))=FALSE,0,ISNUMBER(K26)=FALSE,L26,TRUE,K26) -> 0 | N26: =IFERROR((D26*D24-J26*J24)/(D24-J24),".") -> .
B27: =B17 -> Riket | C27: Totalt | D27: =VLOOKUP($B27&Verksform,'Meritvärden & underkända-X'!$E$9:$AF$350,D19+2,FALSE) -> 118752 | E27: =VLOOKUP($B27&Verksform,'Meritvärden & underkända-X'!$E$9:$AF$350,E19*3+2,FALSE) -> 3587 | F27: =VLOOKUP($B27&Verksform,'Meritvärden & underkända-X'!$E$9:$AF$350,F19*3+2,FALSE) -> 11103 | G27: =VLOOKUP($B27&Verksform,'Meritvärden & underkända-X'!$E$9:$AF$350,G19*3+2,FALSE) -> 2254 | H27: =VLOOKUP($B27&Verksform,'Meritvärden & underkända-X'!$E$9:$AF$350,H19*3+2,FALSE) -> 830 | I27: =VLOOKUP($B27&Verksform,'Meritvärden & underkända-X'!$E$9:$AF$350,I19*3+2,FALSE) -> 1093 | J27: =VLOOKUP($B27&Verksform,'Meritvärden & underkända-X'!$E$9:$AF$350,J19*3+2,FALSE) -> 105384 | K27: =VLOOKUP($B27&Verksform,'Meritvärden & underkända-X'!$E$9:$AF$350,K19*3+2,FALSE) -> 81 | L27: =VLOOKUP($B27&Verksform,'Meritvärden & underkända-X'!$E$9:$AF$350,L19*3+2,FALSE) -> 98 | M27: =_xlfn.IFS(AND(ISNUMBER(K27),ISNUMBER(L27)),AVERAGE(K27,L27),OR(ISNUMBER(K27),ISNUMBER(L27))=FALSE,0,ISNUMBER(K27)=FALSE,L27,TRUE,K27) -> 89.5 | N27: =MAX(D27-J27,0) -> 13368
B28: =B17 -> Riket | C28: MeritVarde | D28: =VLOOKUP($B28&Verksform,'Meritvärden & underkända-X'!$E$9:$AF$350,D19+3,FALSE) -> 226.64 | E28: =VLOOKUP($B28&Verksform,'Meritvärden & underkända-X'!$E$9:$AF$350,E19*3+3,FALSE) -> 144.06 | F28: =VLOOKUP($B28&Verksform,'Meritvärden & underkända-X'!$E$9:$AF$350,F19*3+3,FALSE) -> 156.9 | G28: =VLOOKUP($B28&Verksform,'Meritvärden & underkända-X'!$E$9:$AF$350,G19*3+3,FALSE) -> 135.9 | H28: =VLOOKUP($B28&Verksform,'Meritvärden & underkända-X'!$E$9:$AF$350,H19*3+3,FALSE) -> 158.58 | I28: =VLOOKUP($B28&Verksform,'Meritvärden & underkända-X'!$E$9:$AF$350,I19*3+3,FALSE) -> 178.31 | J28: =VLOOKUP($B28&Verksform,'Meritvärden & underkända-X'!$E$9:$AF$350,J19*3+3,FALSE) -> 235.2 | K28: =VLOOKUP($B28&Verksform,'Meritvärden & underkända-X'!$E$9:$AF$350,K19*3+3,FALSE) -> 109.26 | L28: =VLOOKUP($B28&Verksform,'Meritvärden & underkända-X'!$E$9:$AF$350,L19*3+3,FALSE) -> 94.69 | M28: =_xlfn.IFS(AND(ISNUMBER(K28),ISNUMBER(L28)),AVERAGE(K28,L28),OR(ISNUMBER(K28),ISNUMBER(L28))=FALSE,0,ISNUMBER(K28)=FALSE,L28,TRUE,K28) -> 101.975 | N28: =(D28*D27-J28*J27)/(D27-J27) -> 159.1589228
B29: =B17 -> Riket | C29: Ant_F | D29: =VLOOKUP($B29&Verksform,'Meritvärden & underkända-X'!$E$9:$AF$350,D19+4,FALSE) -> 1.4523 | E29: =VLOOKUP($B29&Verksform,'Meritvärden & underkända-X'!$E$9:$AF$350,E19*3+4,FALSE) -> 5.4698 | F29: =VLOOKUP($B29&Verksform,'Meritvärden & underkända-X'!$E$9:$AF$350,F19*3+4,FALSE) -> 4.1811 | G29: =VLOOKUP($B29&Verksform,'Meritvärden & underkända-X'!$E$9:$AF$350,G19*3+4,FALSE) -> 5.764 | H29: =VLOOKUP($B29&Verksform,'Meritvärden & underkända-X'!$E$9:$AF$350,H19*3+4,FALSE) -> 3.93373 | I29: =VLOOKUP($B29&Verksform,'Meritvärden & underkända-X'!$E$9:$AF$350,I19*3+4,FALSE) -> 3.1665 | J29: =VLOOKUP($B29&Verksform,'Meritvärden & underkända-X'!$E$9:$AF$350,J19*3+4,FALSE) -> 1.10736 | K29: =VLOOKUP($B29&Verksform,'Meritvärden & underkända-X'!$E$9:$AF$350,K19*3+4,FALSE) -> 7.5432 | L29: =VLOOKUP($B29&Verksform,'Meritvärden & underkända-X'!$E$9:$AF$350,L19*3+4,FALSE) -> 8.1224 | M29: =_xlfn.IFS(AND(ISNUMBER(K29),ISNUMBER(L29)),AVERAGE(K29,L29),OR(ISNUMBER(K29),ISNUMBER(L29))=FALSE,0,ISNUMBER(K29)=FALSE,L29,TRUE,K29) -> 7.8328 | N29: =(D29*D27-J29*J27)/(D27-J27) -> 4.171566679
B31: Flik: RESULTAT & STÖD | D31: 2 | E31: 3 | F31: 4 | G31: 5 | H31: 6 | I31: 7 | J31: 8 | K31: 9 | L31: 10
D32: Totalt | E32: n1 (AUTISM) | F32: n2 (ADHD) | G32: n3 (AUTISM OCH ADHD) | H32: n4 (DYSLEXI) | I32: n5 (SPRÅKSTÖRNING) | J32: n6 (EJ NPF-DIAGNOS) | K32: n7 (IF MEN EJ NPF) | L32: n8 (IF OCH NPF) | M32: IF | N32: NPF (utan IF) | P32: Datakvalitet | R32: Not:
B33: =B15 -> Riket | C33: Anp_stud | D33: =VLOOKUP(Urval!$C$8&$C33,'Resultat & Stöd-X'!$E$10:$N$4000,D$31,FALSE) -> 6308 | E33: =VLOOKUP(Urval!$C$8&$C33,'Resultat & Stöd-X'!$E$10:$N$4000,E$31,FALSE) -> 1405 | F33: =VLOOKUP(Urval!$C$8&$C33,'Resultat & Stöd-X'!$E$10:$N$4000,F$31,FALSE) -> 2826 | G33: =VLOOKUP(Urval!$C$8&$C33,'Resultat & Stöd-X'!$E$10:$N$4000,G$31,FALSE) -> 959 | H33: =VLOOKUP(Urval!$C$8&$C33,'Resultat & Stöd-X'!$E$10:$N$4000,H$31,FALSE) -> 179 | I33: =VLOOKUP(Urval!$C$8&$C33,'Resultat & Stöd-X'!$E$10:$N$4000,I$31,FALSE) -> 192 | J33: =VLOOKUP(Urval!$C$8&$C33,'Resultat & Stöd-X'!$E$10:$N$4000,J$31,FALSE) -> 2930 | K33: =VLOOKUP(Urval!$C$8&$C33,'Resultat & Stöd-X'!$E$10:$N$4000,K$31,FALSE) -> 20 | L33: =VLOOKUP(Urval!$C$8&$C33,'Resultat & Stöd-X'!$E$10:$N$4000,L$31,FALSE) -> 34 | M33: =_xlfn.IFS(AND(ISNUMBER(K33),ISNUMBER(L33)),K33+L33,OR(ISNUMBER(K33),ISNUMBER(L33))=FALSE,0,ISNUMBER(K33)=FALSE,L33,TRUE,K33) -> 54 | N33: =MAX(D33-J33,0) -> 3378 | P33: =MAX(VLOOKUP(Urval!$C$8&$C33,'Resultat & Stöd-X'!$E$10:$AF$4000,20,FALSE),VLOOKUP(Urval!$C$8&$C33,'Resultat & Stöd-X'!$E$10:$AF$4000,26,FALSE)) -> 0 | R33: Ej anpassad efter valda variabler
B34: =B33 -> Riket | C34: Atgardsprg | D34: =VLOOKUP(Urval!$C$8&$C34,'Resultat & Stöd-X'!$E$10:$N$4000,D$31,FALSE) -> 13930 | E34: =VLOOKUP(Urval!$C$8&$C34,'Resultat & Stöd-X'!$E$10:$N$4000,E$31,FALSE) -> 2306 | F34: =VLOOKUP(Urval!$C$8&$C34,'Resultat & Stöd-X'!$E$10:$N$4000,F$31,FALSE) -> 5233 | G34: =VLOOKUP(Urval!$C$8&$C34,'Resultat & Stöd-X'!$E$10:$N$4000,G$31,FALSE) -> 1562 | H34: =VLOOKUP(Urval!$C$8&$C34,'Resultat & Stöd-X'!$E$10:$N$4000,H$31,FALSE) -> 408 | I34: =VLOOKUP(Urval!$C$8&$C34,'Resultat & Stöd-X'!$E$10:$N$4000,I$31,FALSE) -> 451 | J34: =VLOOKUP(Urval!$C$8&$C34,'Resultat & Stöd-X'!$E$10:$N$4000,J$31,FALSE) -> 7681 | K34: =VLOOKUP(Urval!$C$8&$C34,'Resultat & Stöd-X'!$E$10:$N$4000,K$31,FALSE) -> 47 | L34: =VLOOKUP(Urval!$C$8&$C34,'Resultat & Stöd-X'!$E$10:$N$4000,L$31,FALSE) -> 73 | M34: =_xlfn.IFS(AND(ISNUMBER(K34),ISNUMBER(L34)),K34+L34,OR(ISNUMBER(K34),ISNUMBER(L34))=FALSE,0,ISNUMBER(K34)=FALSE,L34,TRUE,K34) -> 120 | N34: =MAX(D34-J34,0) -> 6249 | P34: =MAX(VLOOKUP(Urval!$C$8&$C34,'Resultat & Stöd-X'!$E$10:$AF$4000,20,FALSE),VLOOKUP(Urval!$C$8&$C34,'Resultat & Stöd-X'!$E$10:$AF$4000,26,FALSE)) -> 0 | R34: Nu är det totalsumman av felen
B35: =B34 -> Riket | C35: Sarsk_ensk | D35: =VLOOKUP(Urval!$C$8&$C35,'Resultat & Stöd-X'!$E$10:$N$4000,D$31,FALSE) -> 2638 | E35: =VLOOKUP(Urval!$C$8&$C35,'Resultat & Stöd-X'!$E$10:$N$4000,E$31,FALSE) -> 569 | F35: =VLOOKUP(Urval!$C$8&$C35,'Resultat & Stöd-X'!$E$10:$N$4000,F$31,FALSE) -> 1096 | G35: =VLOOKUP(Urval!$C$8&$C35,'Resultat & Stöd-X'!$E$10:$N$4000,G$31,FALSE) -> 399 | H35: =VLOOKUP(Urval!$C$8&$C35,'Resultat & Stöd-X'!$E$10:$N$4000,H$31,FALSE) -> 73 | I35: =VLOOKUP(Urval!$C$8&$C35,'Resultat & Stöd-X'!$E$10:$N$4000,I$31,FALSE) -> 112 | J35: =VLOOKUP(Urval!$C$8&$C35,'Resultat & Stöd-X'!$E$10:$N$4000,J$31,FALSE) -> 1313 | K35: =VLOOKUP(Urval!$C$8&$C35,'Resultat & Stöd-X'!$E$10:$N$4000,K$31,FALSE) -> 12 | L35: =VLOOKUP(Urval!$C$8&$C35,'Resultat & Stöd-X'!$E$10:$N$4000,L$31,FALSE) -> 13 | M35: =_xlfn.IFS(AND(ISNUMBER(K35),ISNUMBER(L35)),K35+L35,OR(ISNUMBER(K35),ISNUMBER(L35))=FALSE,0,ISNUMBER(K35)=FALSE,L35,TRUE,K35) -> 25 | N35: =MAX(D35-J35,0) -> 1325 | P35: =MAX(VLOOKUP(Urval!$C$8&$C35,'Resultat & Stöd-X'!$E$10:$AF$4000,20,FALSE),VLOOKUP(Urval!$C$8&$C35,'Resultat & Stöd-X'!$E$10:$AF$4000,26,FALSE)) -> 0
B36: Riket | C36: Sarsk_undergrp | D36: =VLOOKUP(Urval!$C$8&$C36,'Resultat & Stöd-X'!$E$10:$N$4000,D$31,FALSE) -> 4970 | E36: =VLOOKUP(Urval!$C$8&$C36,'Resultat & Stöd-X'!$E$10:$N$4000,E$31,FALSE) -> 1323 | F36: =VLOOKUP(Urval!$C$8&$C36,'Resultat & Stöd-X'!$E$10:$N$4000,F$31,FALSE) -> 2265 | G36: =VLOOKUP(Urval!$C$8&$C36,'Resultat & Stöd-X'!$E$10:$N$4000,G$31,FALSE) -> 923 | H36: =VLOOKUP(Urval!$C$8&$C36,'Resultat & Stöd-X'!$E$10:$N$4000,H$31,FALSE) -> 157 | I36: =VLOOKUP(Urval!$C$8&$C36,'Resultat & Stöd-X'!$E$10:$N$4000,I$31,FALSE) -> 189 | J36: =VLOOKUP(Urval!$C$8&$C36,'Resultat & Stöd-X'!$E$10:$N$4000,J$31,FALSE) -> 2209 | K36: =VLOOKUP(Urval!$C$8&$C36,'Resultat & Stöd-X'!$E$10:$N$4000,K$31,FALSE) -> 13 | L36: =VLOOKUP(Urval!$C$8&$C36,'Resultat & Stöd-X'!$E$10:$N$4000,L$31,FALSE) -> 41 | M36: =_xlfn.IFS(AND(ISNUMBER(K36),ISNUMBER(L36)),K36+L36,OR(ISNUMBER(K36),ISNUMBER(L36))=FALSE,0,ISNUMBER(K36)=FALSE,L36,TRUE,K36) -> 54 | N36: =MAX(D36-J36,0) -> 2761 | P36: =MAX(VLOOKUP(Urval!$C$8&$C36,'Resultat & Stöd-X'!$E$10:$AF$4000,20,FALSE),VLOOKUP(Urval!$C$8&$C36,'Resultat & Stöd-X'!$E$10:$AF$4000,26,FALSE)) -> 0
B37: Riket | C37: Underkänd_Beh_12godkänd | D37: =VLOOKUP(Urval!$C$8&$C37,'Resultat & Stöd-X'!$E$10:$N$4000,D$31,FALSE) -> 18619 | E37: =VLOOKUP(Urval!$C$8&$C37,'Resultat & Stöd-X'!$E$10:$N$4000,E$31,FALSE) -> 1700 | F37: =VLOOKUP(Urval!$C$8&$C37,'Resultat & Stöd-X'!$E$10:$N$4000,F$31,FALSE) -> 4408 | G37: =VLOOKUP(Urval!$C$8&$C37,'Resultat & Stöd-X'!$E$10:$N$4000,G$31,FALSE) -> 1130 | H37: =VLOOKUP(Urval!$C$8&$C37,'Resultat & Stöd-X'!$E$10:$N$4000,H$31,FALSE) -> 340 | I37: =VLOOKUP(Urval!$C$8&$C37,'Resultat & Stöd-X'!$E$10:$N$4000,I$31,FALSE) -> 392 | J37: =VLOOKUP(Urval!$C$8&$C37,'Resultat & Stöd-X'!$E$10:$N$4000,J$31,FALSE) -> 13347 | K37: =VLOOKUP(Urval!$C$8&$C37,'Resultat & Stöd-X'!$E$10:$N$4000,K$31,FALSE) -> 59 | L37: =VLOOKUP(Urval!$C$8&$C37,'Resultat & Stöd-X'!$E$10:$N$4000,L$31,FALSE) -> 74 | M37: =_xlfn.IFS(AND(ISNUMBER(K37),ISNUMBER(L37)),K37+L37,OR(ISNUMBER(K37),ISNUMBER(L37))=FALSE,0,ISNUMBER(K37)=FALSE,L37,TRUE,K37) -> 133 | N37: 5272 | P37: =MAX(VLOOKUP(Urval!$C$8&$C37,'Resultat & Stöd-X'!$E$10:$AF$4000,20,FALSE),VLOOKUP(Urval!$C$8&$C37,'Resultat & Stöd-X'!$E$10:$AF$4000,26,FALSE)) -> 0
B38: =B37 -> Riket | C38: Underkänd_Beh_12godkänd_stöd | D38: =VLOOKUP(Urval!$C$8&$C38,'Resultat & Stöd-X'!$E$10:$N$4000,D$31,FALSE) -> 8923 | E38: =VLOOKUP(Urval!$C$8&$C38,'Resultat & Stöd-X'!$E$10:$N$4000,E$31,FALSE) -> 1497 | F38: =VLOOKUP(Urval!$C$8&$C38,'Resultat & Stöd-X'!$E$10:$N$4000,F$31,FALSE) -> 3295 | G38: =VLOOKUP(Urval!$C$8&$C38,'Resultat & Stöd-X'!$E$10:$N$4000,G$31,FALSE) -> 1012 | H38: =VLOOKUP(Urval!$C$8&$C38,'Resultat & Stöd-X'!$E$10:$N$4000,H$31,FALSE) -> 268 | I38: =VLOOKUP(Urval!$C$8&$C38,'Resultat & Stöd-X'!$E$10:$N$4000,I$31,FALSE) -> 311 | J38: =VLOOKUP(Urval!$C$8&$C38,'Resultat & Stöd-X'!$E$10:$N$4000,J$31,FALSE) -> 4935 | K38: =VLOOKUP(Urval!$C$8&$C38,'Resultat & Stöd-X'!$E$10:$N$4000,K$31,FALSE) -> 46 | L38: =VLOOKUP(Urval!$C$8&$C38,'Resultat & Stöd-X'!$E$10:$N$4000,L$31,FALSE) -> 65 | M38: =_xlfn.IFS(AND(ISNUMBER(K38),ISNUMBER(L38)),K38+L38,OR(ISNUMBER(K38),ISNUMBER(L38))=FALSE,0,ISNUMBER(K38)=FALSE,L38,TRUE,K38) -> 111 | N38: 3988 | P38: =MAX(VLOOKUP(Urval!$C$8&$C38,'Resultat & Stöd-X'!$E$10:$AF$4000,20,FALSE),VLOOKUP(Urval!$C$8&$C38,'Resultat & Stöd-X'!$E$10:$AF$4000,26,FALSE)) -> 0
B39: =B37 -> Riket | C39: Underkänd_Beh_Gymn | D39: =VLOOKUP(Urval!$C$8&$C39,'Resultat & Stöd-X'!$E$10:$N$4000,D$31,FALSE) -> 16975 | E39: =VLOOKUP(Urval!$C$8&$C39,'Resultat & Stöd-X'!$E$10:$N$4000,E$31,FALSE) -> 1485 | F39: =VLOOKUP(Urval!$C$8&$C39,'Resultat & Stöd-X'!$E$10:$N$4000,F$31,FALSE) -> 3822 | G39: =VLOOKUP(Urval!$C$8&$C39,'Resultat & Stöd-X'!$E$10:$N$4000,G$31,FALSE) -> 988 | H39: =VLOOKUP(Urval!$C$8&$C39,'Resultat & Stöd-X'!$E$10:$N$4000,H$31,FALSE) -> 308 | I39: =VLOOKUP(Urval!$C$8&$C39,'Resultat & Stöd-X'!$E$10:$N$4000,I$31,FALSE) -> 369 | J39: =VLOOKUP(Urval!$C$8&$C39,'Resultat & Stöd-X'!$E$10:$N$4000,J$31,FALSE) -> 12380 | K39: =VLOOKUP(Urval!$C$8&$C39,'Resultat & Stöd-X'!$E$10:$N$4000,K$31,FALSE) -> 59 | L39: =VLOOKUP(Urval!$C$8&$C39,'Resultat & Stöd-X'!$E$10:$N$4000,L$31,FALSE) -> 71 | M39: =_xlfn.IFS(AND(ISNUMBER(K39),ISNUMBER(L39)),K39+L39,OR(ISNUMBER(K39),ISNUMBER(L39))=FALSE,0,ISNUMBER(K39)=FALSE,L39,TRUE,K39) -> 130 | N39: 4595 | P39: =MAX(VLOOKUP(Urval!$C$8&$C39,'Resultat & Stöd-X'!$E$10:$AF$4000,20,FALSE),VLOOKUP(Urval!$C$8&$C39,'Resultat & Stöd-X'!$E$10:$AF$4000,26,FALSE)) -> 0
B40: =B38 -> Riket | C40: Underkänd_Beh_Gymn_stöd | D40: =VLOOKUP(Urval!$C$8&$C40,'Resultat & Stöd-X'!$E$10:$N$4000,D$31,FALSE) -> 8084 | E40: =VLOOKUP(Urval!$C$8&$C40,'Resultat & Stöd-X'!$E$10:$N$4000,E$31,FALSE) -> 1316 | F40: =VLOOKUP(Urval!$C$8&$C40,'Resultat & Stöd-X'!$E$10:$N$4000,F$31,FALSE) -> 2879 | G40: =VLOOKUP(Urval!$C$8&$C40,'Resultat & Stöd-X'!$E$10:$N$4000,G$31,FALSE) -> 891 | H40: =VLOOKUP(Urval!$C$8&$C40,'Resultat & Stöd-X'!$E$10:$N$4000,H$31,FALSE) -> 246 | I40: =VLOOKUP(Urval!$C$8&$C40,'Resultat & Stöd-X'!$E$10:$N$4000,I$31,FALSE) -> 295 | J40: =VLOOKUP(Urval!$C$8&$C40,'Resultat & Stöd-X'!$E$10:$N$4000,J$31,FALSE) -> 4581 | K40: =VLOOKUP(Urval!$C$8&$C40,'Resultat & Stöd-X'!$E$10:$N$4000,K$31,FALSE) -> 46 | L40: =VLOOKUP(Urval!$C$8&$C40,'Resultat & Stöd-X'!$E$10:$N$4000,L$31,FALSE) -> 63 | M40: =_xlfn.IFS(AND(ISNUMBER(K40),ISNUMBER(L40)),K40+L40,OR(ISNUMBER(K40),ISNUMBER(L40))=FALSE,0,ISNUMBER(K40)=FALSE,L40,TRUE,K40) -> 109 | N40: 3503 | P40: =MAX(VLOOKUP(Urval!$C$8&$C40,'Resultat & Stöd-X'!$E$10:$AF$4000,20,FALSE),VLOOKUP(Urval!$C$8&$C40,'Resultat & Stöd-X'!$E$10:$AF$4000,26,FALSE)) -> 0
B41: =B39 -> Riket | C41: Underkänd_En | D41: =VLOOKUP(Urval!$C$8&$C41,'Resultat & Stöd-X'!$E$10:$N$4000,D$31,FALSE) -> 7386 | E41: =VLOOKUP(Urval!$C$8&$C41,'Resultat & Stöd-X'!$E$10:$N$4000,E$31,FALSE) -> 561 | F41: =VLOOKUP(Urval!$C$8&$C41,'Resultat & Stöd-X'!$E$10:$N$4000,F$31,FALSE) -> 1511 | G41: =VLOOKUP(Urval!$C$8&$C41,'Resultat & Stöd-X'!$E$10:$N$4000,G$31,FALSE) -> 384 | H41: =VLOOKUP(Urval!$C$8&$C41,'Resultat & Stöd-X'!$E$10:$N$4000,H$31,FALSE) -> 155 | I41: =VLOOKUP(Urval!$C$8&$C41,'Resultat & Stöd-X'!$E$10:$N$4000,I$31,FALSE) -> 192 | J41: =VLOOKUP(Urval!$C$8&$C41,'Resultat & Stöd-X'!$E$10:$N$4000,J$31,FALSE) -> 5544 | K41: =VLOOKUP(Urval!$C$8&$C41,'Resultat & Stöd-X'!$E$10:$N$4000,K$31,FALSE) -> 37 | L41: =VLOOKUP(Urval!$C$8&$C41,'Resultat & Stöd-X'!$E$10:$N$4000,L$31,FALSE) -> 40 | M41: =_xlfn.IFS(AND(ISNUMBER(K41),ISNUMBER(L41)),K41+L41,OR(ISNUMBER(K41),ISNUMBER(L41))=FALSE,0,ISNUMBER(K41)=FALSE,L41,TRUE,K41) -> 77 | N41: 1842 | P41: =MAX(VLOOKUP(Urval!$C$8&$C41,'Resultat & Stöd-X'!$E$10:$AF$4000,20,FALSE),VLOOKUP(Urval!$C$8&$C41,'Resultat & Stöd-X'!$E$10:$AF$4000,26,FALSE)) -> 0
B42: Riket | C42: Underkänd_Ma | D42: =VLOOKUP(Urval!$C$8&$C42,'Resultat & Stöd-X'!$E$10:$N$4000,D$31,FALSE) -> 11849 | E42: =VLOOKUP(Urval!$C$8&$C42,'Resultat & Stöd-X'!$E$10:$N$4000,E$31,FALSE) -> 982 | F42: =VLOOKUP(Urval!$C$8&$C42,'Resultat & Stöd-X'!$E$10:$N$4000,F$31,FALSE) -> 2716 | G42: =VLOOKUP(Urval!$C$8&$C42,'Resultat & Stöd-X'!$E$10:$N$4000,G$31,FALSE) -> 676 | H42: =VLOOKUP(Urval!$C$8&$C42,'Resultat & Stöd-X'!$E$10:$N$4000,H$31,FALSE) -> 221 | I42: =VLOOKUP(Urval!$C$8&$C42,'Resultat & Stöd-X'!$E$10:$N$4000,I$31,FALSE) -> 266 | J42: =VLOOKUP(Urval!$C$8&$C42,'Resultat & Stöd-X'!$E$10:$N$4000,J$31,FALSE) -> 8612 | K42: =VLOOKUP(Urval!$C$8&$C42,'Resultat & Stöd-X'!$E$10:$N$4000,K$31,FALSE) -> 57 | L42: =VLOOKUP(Urval!$C$8&$C42,'Resultat & Stöd-X'!$E$10:$N$4000,L$31,FALSE) -> 57 | M42: =_xlfn.IFS(AND(ISNUMBER(K42),ISNUMBER(L42)),K42+L42,OR(ISNUMBER(K42),ISNUMBER(L42))=FALSE,0,ISNUMBER(K42)=FALSE,L42,TRUE,K42) -> 114 | N42: 3237 | P42: =MAX(VLOOKUP(Urval!$C$8&$C42,'Resultat & Stöd-X'!$E$10:$AF$4000,20,FALSE),VLOOKUP(Urval!$C$8&$C42,'Resultat & Stöd-X'!$E$10:$AF$4000,26,FALSE)) -> 0
B43: Riket | C43: Underkänd_Sv | D43: =VLOOKUP(Urval!$C$8&$C43,'Resultat & Stöd-X'!$E$10:$N$4000,D$31,FALSE) -> 4546 | E43: =VLOOKUP(Urval!$C$8&$C43,'Resultat & Stöd-X'!$E$10:$N$4000,E$31,FALSE) -> 773 | F43: =VLOOKUP(Urval!$C$8&$C43,'Resultat & Stöd-X'!$E$10:$N$4000,F$31,FALSE) -> 1819 | G43: =VLOOKUP(Urval!$C$8&$C43,'Resultat & Stöd-X'!$E$10:$N$4000,G$31,FALSE) -> 551 | H43: =VLOOKUP(Urval!$C$8&$C43,'Resultat & Stöd-X'!$E$10:$N$4000,H$31,FALSE) -> 146 | I43: =VLOOKUP(Urval!$C$8&$C43,'Resultat & Stöd-X'!$E$10:$N$4000,I$31,FALSE) -> 197 | J43: =VLOOKUP(Urval!$C$8&$C43,'Resultat & Stöd-X'!$E$10:$N$4000,J$31,FALSE) -> 2371 | K43: =VLOOKUP(Urval!$C$8&$C43,'Resultat & Stöd-X'!$E$10:$N$4000,K$31,FALSE) -> 23 | L43: =VLOOKUP(Urval!$C$8&$C43,'Resultat & Stöd-X'!$E$10:$N$4000,L$31,FALSE) -> 46 | M43: =_xlfn.IFS(AND(ISNUMBER(K43),ISNUMBER(L43)),K43+L43,OR(ISNUMBER(K43),ISNUMBER(L43))=FALSE,0,ISNUMBER(K43)=FALSE,L43,TRUE,K43) -> 69 | N43: 2175 | P43: =MAX(VLOOKUP(Urval!$C$8&$C43,'Resultat & Stöd-X'!$E$10:$AF$4000,20,FALSE),VLOOKUP(Urval!$C$8&$C43,'Resultat & Stöd-X'!$E$10:$AF$4000,26,FALSE)) -> 0
B44: =B24 ->  | C44: Anp_stud | D44: =VLOOKUP($B44&$C44,'Resultat & Stöd-X'!$E$10:$N$4000,D$31,FALSE) ->  | E44: =VLOOKUP($B44&$C44,'Resultat & Stöd-X'!$E$10:$N$4000,E$31,FALSE) ->  | F44: =VLOOKUP($B44&$C44,'Resultat & Stöd-X'!$E$10:$N$4000,F$31,FALSE) ->  | G44: =VLOOKUP($B44&$C44,'Resultat & Stöd-X'!$E$10:$N$4000,G$31,FALSE) ->  | H44: =VLOOKUP($B44&$C44,'Resultat & Stöd-X'!$E$10:$N$4000,H$31,FALSE) ->  | I44: =VLOOKUP($B44&$C44,'Resultat & Stöd-X'!$E$10:$N$4000,I$31,FALSE) ->  | J44: =VLOOKUP($B44&$C44,'Resultat & Stöd-X'!$E$10:$N$4000,J$31,FALSE) ->  | K44: =VLOOKUP($B44&$C44,'Resultat & Stöd-X'!$E$10:$N$4000,K$31,FALSE) ->  | L44: =VLOOKUP($B44&$C44,'Resultat & Stöd-X'!$E$10:$N$4000,L$31,FALSE) ->  | M44: =_xlfn.IFS(AND(ISNUMBER(K44),ISNUMBER(L44)),K44+L44,OR(ISNUMBER(K44),ISNUMBER(L44))=FALSE,0,ISNUMBER(K44)=FALSE,L44,TRUE,K44) -> 0 | P44: =MAX(VLOOKUP(Urval!$C$8&$C44,'Resultat & Stöd-X'!$E$10:$AF$4000,20,FALSE),VLOOKUP(Urval!$C$8&$C44,'Resultat & Stöd-X'!$E$10:$AF$4000,26,FALSE)) -> 0
B45: =B24 ->  | C45: Atgardsprg | D45: =VLOOKUP($B45&$C45,'Resultat & Stöd-X'!$E$10:$N$4000,D$31,FALSE) ->  | E45: =VLOOKUP($B45&$C45,'Resultat & Stöd-X'!$E$10:$N$4000,E$31,FALSE) ->  | F45: =VLOOKUP($B45&$C45,'Resultat & Stöd-X'!$E$10:$N$4000,F$31,FALSE) ->  | G45: =VLOOKUP($B45&$C45,'Resultat & Stöd-X'!$E$10:$N$4000,G$31,FALSE) ->  | H45: =VLOOKUP($B45&$C45,'Resultat & Stöd-X'!$E$10:$N$4000,H$31,FALSE) ->  | I45: =VLOOKUP($B45&$C45,'Resultat & Stöd-X'!$E$10:$N$4000,I$31,FALSE) ->  | J45: =VLOOKUP($B45&$C45,'Resultat & Stöd-X'!$E$10:$N$4000,J$31,FALSE) ->  | K45: =VLOOKUP($B45&$C45,'Resultat & Stöd-X'!$E$10:$N$4000,K$31,FALSE) ->  | L45: =VLOOKUP($B45&$C45,'Resultat & Stöd-X'!$E$10:$N$4000,L$31,FALSE) ->  | M45: =_xlfn.IFS(AND(ISNUMBER(K45),ISNUMBER(L45)),K45+L45,OR(ISNUMBER(K45),ISNUMBER(L45))=FALSE,0,ISNUMBER(K45)=FALSE,L45,TRUE,K45) -> 0 | P45: =MAX(VLOOKUP(Urval!$C$8&$C45,'Resultat & Stöd-X'!$E$10:$AF$4000,20,FALSE),VLOOKUP(Urval!$C$8&$C45,'Resultat & Stöd-X'!$E$10:$AF$4000,26,FALSE)) -> 0
B46: =B25 ->  | C46: Sarsk_ensk | D46: =VLOOKUP($B46&$C46,'Resultat & Stöd-X'!$E$10:$N$4000,D$31,FALSE) ->  | E46: =VLOOKUP($B46&$C46,'Resultat & Stöd-X'!$E$10:$N$4000,E$31,FALSE) ->  | F46: =VLOOKUP($B46&$C46,'Resultat & Stöd-X'!$E$10:$N$4000,F$31,FALSE) ->  | G46: =VLOOKUP($B46&$C46,'Resultat & Stöd-X'!$E$10:$N$4000,G$31,FALSE) ->  | H46: =VLOOKUP($B46&$C46,'Resultat & Stöd-X'!$E$10:$N$4000,H$31,FALSE) ->  | I46: =VLOOKUP($B46&$C46,'Resultat & Stöd-X'!$E$10:$N$4000,I$31,FALSE) ->  | J46: =VLOOKUP($B46&$C46,'Resultat & Stöd-X'!$E$10:$N$4000,J$31,FALSE) ->  | K46: =VLOOKUP($B46&$C46,'Resultat & Stöd-X'!$E$10:$N$4000,K$31,FALSE) ->  | L46: =VLOOKUP($B46&$C46,'Resultat & Stöd-X'!$E$10:$N$4000,L$31,FALSE) ->  | M46: =_xlfn.IFS(AND(ISNUMBER(K46),ISNUMBER(L46)),K46+L46,OR(ISNUMBER(K46),ISNUMBER(L46))=FALSE,0,ISNUMBER(K46)=FALSE,L46,TRUE,K46) -> 0 | P46: =MAX(VLOOKUP(Urval!$C$8&$C46,'Resultat & Stöd-X'!$E$10:$AF$4000,20,FALSE),VLOOKUP(Urval!$C$8&$C46,'Resultat & Stöd-X'!$E$10:$AF$4000,26,FALSE)) -> 0
B47: =B24 ->  | C47: Sarsk_undergrp | D47: =VLOOKUP($B47&$C47,'Resultat & Stöd-X'!$E$10:$N$4000,D$31,FALSE) ->  | E47: =VLOOKUP($B47&$C47,'Resultat & Stöd-X'!$E$10:$N$4000,E$31,FALSE) ->  | F47: =VLOOKUP($B47&$C47,'Resultat & Stöd-X'!$E$10:$N$4000,F$31,FALSE) ->  | G47: =VLOOKUP($B47&$C47,'Resultat & Stöd-X'!$E$10:$N$4000,G$31,FALSE) ->  | H47: =VLOOKUP($B47&$C47,'Resultat & Stöd-X'!$E$10:$N$4000,H$31,FALSE) ->  | I47: =VLOOKUP($B47&$C47,'Resultat & Stöd-X'!$E$10:$N$4000,I$31,FALSE) ->  | J47: =VLOOKUP($B47&$C47,'Resultat & Stöd-X'!$E$10:$N$4000,J$31,FALSE) ->  | K47: =VLOOKUP($B47&$C47,'Resultat & Stöd-X'!$E$10:$N$4000,K$31,FALSE) ->  | L47: =VLOOKUP($B47&$C47,'Resultat & Stöd-X'!$E$10:$N$4000,L$31,FALSE) ->  | M47: =_xlfn.IFS(AND(ISNUMBER(K47),ISNUMBER(L47)),K47+L47,OR(ISNUMBER(K47),ISNUMBER(L47))=FALSE,0,ISNUMBER(K47)=FALSE,L47,TRUE,K47) -> 0 | P47: =MAX(VLOOKUP(Urval!$C$8&$C47,'Resultat & Stöd-X'!$E$10:$AF$4000,20,FALSE),VLOOKUP(Urval!$C$8&$C47,'Resultat & Stöd-X'!$E$10:$AF$4000,26,FALSE)) -> 0
B48: =B24 ->  | C48: Underkänd_Beh_12godkänd | D48: =VLOOKUP($B48&$C48,'Resultat & Stöd-X'!$E$10:$N$4000,D$31,FALSE) ->  | E48: =VLOOKUP($B48&$C48,'Resultat & Stöd-X'!$E$10:$N$4000,E$31,FALSE) ->  | F48: =VLOOKUP($B48&$C48,'Resultat & Stöd-X'!$E$10:$N$4000,F$31,FALSE) ->  | G48: =VLOOKUP($B48&$C48,'Resultat & Stöd-X'!$E$10:$N$4000,G$31,FALSE) ->  | H48: =VLOOKUP($B48&$C48,'Resultat & Stöd-X'!$E$10:$N$4000,H$31,FALSE) ->  | I48: =VLOOKUP($B48&$C48,'Resultat & Stöd-X'!$E$10:$N$4000,I$31,FALSE) ->  | J48: =VLOOKUP($B48&$C48,'Resultat & Stöd-X'!$E$10:$N$4000,J$31,FALSE) ->  | K48: =VLOOKUP($B48&$C48,'Resultat & Stöd-X'!$E$10:$N$4000,K$31,FALSE) ->  | L48: =VLOOKUP($B48&$C48,'Resultat & Stöd-X'!$E$10:$N$4000,L$31,FALSE) ->  | M48: =_xlfn.IFS(AND(ISNUMBER(K48),ISNUMBER(L48)),K48+L48,OR(ISNUMBER(K48),ISNUMBER(L48))=FALSE,0,ISNUMBER(K48)=FALSE,L48,TRUE,K48) -> 0 | P48: =MAX(VLOOKUP(Urval!$C$8&$C48,'Resultat & Stöd-X'!$E$10:$AF$4000,20,FALSE),VLOOKUP(Urval!$C$8&$C48,'Resultat & Stöd-X'!$E$10:$AF$4000,26,FALSE)) -> 0
B49: =B24 ->  | C49: Underkänd_Beh_12godkänd_stöd | D49: =VLOOKUP($B49&$C49,'Resultat & Stöd-X'!$E$10:$N$4000,D$31,FALSE) ->  | E49: =VLOOKUP($B49&$C49,'Resultat & Stöd-X'!$E$10:$N$4000,E$31,FALSE) ->  | F49: =VLOOKUP($B49&$C49,'Resultat & Stöd-X'!$E$10:$N$4000,F$31,FALSE) ->  | G49: =VLOOKUP($B49&$C49,'Resultat & Stöd-X'!$E$10:$N$4000,G$31,FALSE) ->  | H49: =VLOOKUP($B49&$C49,'Resultat & Stöd-X'!$E$10:$N$4000,H$31,FALSE) ->  | I49: =VLOOKUP($B49&$C49,'Resultat & Stöd-X'!$E$10:$N$4000,I$31,FALSE) ->  | J49: =VLOOKUP($B49&$C49,'Resultat & Stöd-X'!$E$10:$N$4000,J$31,FALSE) ->  | K49: =VLOOKUP($B49&$C49,'Resultat & Stöd-X'!$E$10:$N$4000,K$31,FALSE) ->  | L49: =VLOOKUP($B49&$C49,'Resultat & Stöd-X'!$E$10:$N$4000,L$31,FALSE) ->  | M49: =_xlfn.IFS(AND(ISNUMBER(K49),ISNUMBER(L49)),K49+L49,OR(ISNUMBER(K49),ISNUMBER(L49))=FALSE,0,ISNUMBER(K49)=FALSE,L49,TRUE,K49) -> 0 | P49: =MAX(VLOOKUP(Urval!$C$8&$C49,'Resultat & Stöd-X'!$E$10:$AF$4000,20,FALSE),VLOOKUP(Urval!$C$8&$C49,'Resultat & Stöd-X'!$E$10:$AF$4000,26,FALSE)) -> 0
B50: =B24 ->  | C50: Underkänd_Beh_Gymn | D50: =VLOOKUP($B50&$C50,'Resultat & Stöd-X'!$E$10:$N$4000,D$31,FALSE) ->  | E50: =VLOOKUP($B50&$C50,'Resultat & Stöd-X'!$E$10:$N$4000,E$31,FALSE) ->  | F50: =VLOOKUP($B50&$C50,'Resultat & Stöd-X'!$E$10:$N$4000,F$31,FALSE) ->  | G50: =VLOOKUP($B50&$C50,'Resultat & Stöd-X'!$E$10:$N$4000,G$31,FALSE) ->  | H50: =VLOOKUP($B50&$C50,'Resultat & Stöd-X'!$E$10:$N$4000,H$31,FALSE) ->  | I50: =VLOOKUP($B50&$C50,'Resultat & Stöd-X'!$E$10:$N$4000,I$31,FALSE) ->  | J50: =VLOOKUP($B50&$C50,'Resultat & Stöd-X'!$E$10:$N$4000,J$31,FALSE) ->  | K50: =VLOOKUP($B50&$C50,'Resultat & Stöd-X'!$E$10:$N$4000,K$31,FALSE) ->  | L50: =VLOOKUP($B50&$C50,'Resultat & Stöd-X'!$E$10:$N$4000,L$31,FALSE) ->  | M50: =_xlfn.IFS(AND(ISNUMBER(K50),ISNUMBER(L50)),K50+L50,OR(ISNUMBER(K50),ISNUMBER(L50))=FALSE,0,ISNUMBER(K50)=FALSE,L50,TRUE,K50) -> 0 | P50: =MAX(VLOOKUP(Urval!$C$8&$C50,'Resultat & Stöd-X'!$E$10:$AF$4000,20,FALSE),VLOOKUP(Urval!$C$8&$C50,'Resultat & Stöd-X'!$E$10:$AF$4000,26,FALSE)) -> 0
B51: =B24 ->  | C51: Underkänd_Beh_Gymn_stöd | D51: =VLOOKUP($B51&$C51,'Resultat & Stöd-X'!$E$10:$N$4000,D$31,FALSE) ->  | E51: =VLOOKUP($B51&$C51,'Resultat & Stöd-X'!$E$10:$N$4000,E$31,FALSE) ->  | F51: =VLOOKUP($B51&$C51,'Resultat & Stöd-X'!$E$10:$N$4000,F$31,FALSE) ->  | G51: =VLOOKUP($B51&$C51,'Resultat & Stöd-X'!$E$10:$N$4000,G$31,FALSE) ->  | H51: =VLOOKUP($B51&$C51,'Resultat & Stöd-X'!$E$10:$N$4000,H$31,FALSE) ->  | I51: =VLOOKUP($B51&$C51,'Resultat & Stöd-X'!$E$10:$N$4000,I$31,FALSE) ->  | J51: =VLOOKUP($B51&$C51,'Resultat & Stöd-X'!$E$10:$N$4000,J$31,FALSE) ->  | K51: =VLOOKUP($B51&$C51,'Resultat & Stöd-X'!$E$10:$N$4000,K$31,FALSE) ->  | L51: =VLOOKUP($B51&$C51,'Resultat & Stöd-X'!$E$10:$N$4000,L$31,FALSE) ->  | M51: =_xlfn.IFS(AND(ISNUMBER(K51),ISNUMBER(L51)),K51+L51,OR(ISNUMBER(K51),ISNUMBER(L51))=FALSE,0,ISNUMBER(K51)=FALSE,L51,TRUE,K51) -> 0 | P51: =MAX(VLOOKUP(Urval!$C$8&$C51,'Resultat & Stöd-X'!$E$10:$AF$4000,20,FALSE),VLOOKUP(Urval!$C$8&$C51,'Resultat & Stöd-X'!$E$10:$AF$4000,26,FALSE)) -> 0
B52: =B24 ->  | C52: Underkänd_En | D52: =VLOOKUP($B52&$C52,'Resultat & Stöd-X'!$E$10:$N$4000,D$31,FALSE) ->  | E52: =VLOOKUP($B52&$C52,'Resultat & Stöd-X'!$E$10:$N$4000,E$31,FALSE) ->  | F52: =VLOOKUP($B52&$C52,'Resultat & Stöd-X'!$E$10:$N$4000,F$31,FALSE) ->  | G52: =VLOOKUP($B52&$C52,'Resultat & Stöd-X'!$E$10:$N$4000,G$31,FALSE) ->  | H52: =VLOOKUP($B52&$C52,'Resultat & Stöd-X'!$E$10:$N$4000,H$31,FALSE) ->  | I52: =VLOOKUP($B52&$C52,'Resultat & Stöd-X'!$E$10:$N$4000,I$31,FALSE) ->  | J52: =VLOOKUP($B52&$C52,'Resultat & Stöd-X'!$E$10:$N$4000,J$31,FALSE) ->  | K52: =VLOOKUP($B52&$C52,'Resultat & Stöd-X'!$E$10:$N$4000,K$31,FALSE) ->  | L52: =VLOOKUP($B52&$C52,'Resultat & Stöd-X'!$E$10:$N$4000,L$31,FALSE) ->  | M52: =_xlfn.IFS(AND(ISNUMBER(K52),ISNUMBER(L52)),K52+L52,OR(ISNUMBER(K52),ISNUMBER(L52))=FALSE,0,ISNUMBER(K52)=FALSE,L52,TRUE,K52) -> 0 | P52: =MAX(VLOOKUP(Urval!$C$8&$C52,'Resultat & Stöd-X'!$E$10:$AF$4000,20,FALSE),VLOOKUP(Urval!$C$8&$C52,'Resultat & Stöd-X'!$E$10:$AF$4000,26,FALSE)) -> 0
B53: =B24 ->  | C53: Underkänd_Ma | D53: =VLOOKUP($B53&$C53,'Resultat & Stöd-X'!$E$10:$N$4000,D$31,FALSE) ->  | E53: =VLOOKUP($B53&$C53,'Resultat & Stöd-X'!$E$10:$N$4000,E$31,FALSE) ->  | F53: =VLOOKUP($B53&$C53,'Resultat & Stöd-X'!$E$10:$N$4000,F$31,FALSE) ->  | G53: =VLOOKUP($B53&$C53,'Resultat & Stöd-X'!$E$10:$N$4000,G$31,FALSE) ->  | H53: =VLOOKUP($B53&$C53,'Resultat & Stöd-X'!$E$10:$N$4000,H$31,FALSE) ->  | I53: =VLOOKUP($B53&$C53,'Resultat & Stöd-X'!$E$10:$N$4000,I$31,FALSE) ->  | J53: =VLOOKUP($B53&$C53,'Resultat & Stöd-X'!$E$10:$N$4000,J$31,FALSE) ->  | K53: =VLOOKUP($B53&$C53,'Resultat & Stöd-X'!$E$10:$N$4000,K$31,FALSE) ->  | L53: =VLOOKUP($B53&$C53,'Resultat & Stöd-X'!$E$10:$N$4000,L$31,FALSE) ->  | M53: =_xlfn.IFS(AND(ISNUMBER(K53),ISNUMBER(L53)),K53+L53,OR(ISNUMBER(K53),ISNUMBER(L53))=FALSE,0,ISNUMBER(K53)=FALSE,L53,TRUE,K53) -> 0 | P53: =MAX(VLOOKUP(Urval!$C$8&$C53,'Resultat & Stöd-X'!$E$10:$AF$4000,20,FALSE),VLOOKUP(Urval!$C$8&$C53,'Resultat & Stöd-X'!$E$10:$AF$4000,26,FALSE)) -> 0
B54: =B24 ->  | C54: Underkänd_Sv | D54: =VLOOKUP($B54&$C54,'Resultat & Stöd-X'!$E$10:$N$4000,D$31,FALSE) ->  | E54: =VLOOKUP($B54&$C54,'Resultat & Stöd-X'!$E$10:$N$4000,E$31,FALSE) ->  | F54: =VLOOKUP($B54&$C54,'Resultat & Stöd-X'!$E$10:$N$4000,F$31,FALSE) ->  | G54: =VLOOKUP($B54&$C54,'Resultat & Stöd-X'!$E$10:$N$4000,G$31,FALSE) ->  | H54: =VLOOKUP($B54&$C54,'Resultat & Stöd-X'!$E$10:$N$4000,H$31,FALSE) ->  | I54: =VLOOKUP($B54&$C54,'Resultat & Stöd-X'!$E$10:$N$4000,I$31,FALSE) ->  | J54: =VLOOKUP($B54&$C54,'Resultat & Stöd-X'!$E$10:$N$4000,J$31,FALSE) ->  | K54: =VLOOKUP($B54&$C54,'Resultat & Stöd-X'!$E$10:$N$4000,K$31,FALSE) ->  | L54: =VLOOKUP($B54&$C54,'Resultat & Stöd-X'!$E$10:$N$4000,L$31,FALSE) ->  | M54: =_xlfn.IFS(AND(ISNUMBER(K54),ISNUMBER(L54)),K54+L54,OR(ISNUMBER(K54),ISNUMBER(L54))=FALSE,0,ISNUMBER(K54)=FALSE,L54,TRUE,K54) -> 0 | P54: =MAX(VLOOKUP(Urval!$C$8&$C54,'Resultat & Stöd-X'!$E$10:$AF$4000,20,FALSE),VLOOKUP(Urval!$C$8&$C54,'Resultat & Stöd-X'!$E$10:$AF$4000,26,FALSE)) -> 0
B55: =B27 -> Riket | C55: Anp_stud | D55: =VLOOKUP($B55&$C55,'Resultat & Stöd-X'!$E$10:$N$4000,D$31,FALSE) -> 6308 | E55: =VLOOKUP($B55&$C55,'Resultat & Stöd-X'!$E$10:$N$4000,E$31,FALSE) -> 1405 | F55: =VLOOKUP($B55&$C55,'Resultat & Stöd-X'!$E$10:$N$4000,F$31,FALSE) -> 2826 | G55: =VLOOKUP($B55&$C55,'Resultat & Stöd-X'!$E$10:$N$4000,G$31,FALSE) -> 959 | H55: =VLOOKUP($B55&$C55,'Resultat & Stöd-X'!$E$10:$N$4000,H$31,FALSE) -> 179 | I55: =VLOOKUP($B55&$C55,'Resultat & Stöd-X'!$E$10:$N$4000,I$31,FALSE) -> 192 | J55: =VLOOKUP($B55&$C55,'Resultat & Stöd-X'!$E$10:$N$4000,J$31,FALSE) -> 2930 | K55: =VLOOKUP($B55&$C55,'Resultat & Stöd-X'!$E$10:$N$4000,K$31,FALSE) -> 20 | L55: =VLOOKUP($B55&$C55,'Resultat & Stöd-X'!$E$10:$N$4000,L$31,FALSE) -> 34 | M55: =_xlfn.IFS(AND(ISNUMBER(K55),ISNUMBER(L55)),K55+L55,OR(ISNUMBER(K55),ISNUMBER(L55))=FALSE,0,ISNUMBER(K55)=FALSE,L55,TRUE,K55) -> 54 | N55: 3378 | P55: =MAX(VLOOKUP(Urval!$C$8&$C55,'Resultat & Stöd-X'!$E$10:$AF$4000,20,FALSE),VLOOKUP(Urval!$C$8&$C55,'Resultat & Stöd-X'!$E$10:$AF$4000,26,FALSE)) -> 0
B56: Riket | C56: Atgardsprg | D56: =VLOOKUP($B56&$C56,'Resultat & Stöd-X'!$E$10:$N$4000,D$31,FALSE) -> 13930 | E56: =VLOOKUP($B56&$C56,'Resultat & Stöd-X'!$E$10:$N$4000,E$31,FALSE) -> 2306 | F56: =VLOOKUP($B56&$C56,'Resultat & Stöd-X'!$E$10:$N$4000,F$31,FALSE) -> 5233 | G56: =VLOOKUP($B56&$C56,'Resultat & Stöd-X'!$E$10:$N$4000,G$31,FALSE) -> 1562 | H56: =VLOOKUP($B56&$C56,'Resultat & Stöd-X'!$E$10:$N$4000,H$31,FALSE) -> 408 | I56: =VLOOKUP($B56&$C56,'Resultat & Stöd-X'!$E$10:$N$4000,I$31,FALSE) -> 451 | J56: =VLOOKUP($B56&$C56,'Resultat & Stöd-X'!$E$10:$N$4000,J$31,FALSE) -> 7681 | K56: =VLOOKUP($B56&$C56,'Resultat & Stöd-X'!$E$10:$N$4000,K$31,FALSE) -> 47 | L56: =VLOOKUP($B56&$C56,'Resultat & Stöd-X'!$E$10:$N$4000,L$31,FALSE) -> 73 | M56: =_xlfn.IFS(AND(ISNUMBER(K56),ISNUMBER(L56)),K56+L56,OR(ISNUMBER(K56),ISNUMBER(L56))=FALSE,0,ISNUMBER(K56)=FALSE,L56,TRUE,K56) -> 120 | N56: 6249 | P56: =MAX(VLOOKUP(Urval!$C$8&$C56,'Resultat & Stöd-X'!$E$10:$AF$4000,20,FALSE),VLOOKUP(Urval!$C$8&$C56,'Resultat & Stöd-X'!$E$10:$AF$4000,26,FALSE)) -> 0
B57: Riket | C57: Sarsk_ensk | D57: =VLOOKUP($B57&$C57,'Resultat & Stöd-X'!$E$10:$N$4000,D$31,FALSE) -> 2638 | E57: =VLOOKUP($B57&$C57,'Resultat & Stöd-X'!$E$10:$N$4000,E$31,FALSE) -> 569 | F57: =VLOOKUP($B57&$C57,'Resultat & Stöd-X'!$E$10:$N$4000,F$31,FALSE) -> 1096 | G57: =VLOOKUP($B57&$C57,'Resultat & Stöd-X'!$E$10:$N$4000,G$31,FALSE) -> 399 | H57: =VLOOKUP($B57&$C57,'Resultat & Stöd-X'!$E$10:$N$4000,H$31,FALSE) -> 73 | I57: =VLOOKUP($B57&$C57,'Resultat & Stöd-X'!$E$10:$N$4000,I$31,FALSE) -> 112 | J57: =VLOOKUP($B57&$C57,'Resultat & Stöd-X'!$E$10:$N$4000,J$31,FALSE) -> 1313 | K57: =VLOOKUP($B57&$C57,'Resultat & Stöd-X'!$E$10:$N$4000,K$31,FALSE) -> 12 | L57: =VLOOKUP($B57&$C57,'Resultat & Stöd-X'!$E$10:$N$4000,L$31,FALSE) -> 13 | M57: =_xlfn.IFS(AND(ISNUMBER(K57),ISNUMBER(L57)),K57+L57,OR(ISNUMBER(K57),ISNUMBER(L57))=FALSE,0,ISNUMBER(K57)=FALSE,L57,TRUE,K57) -> 25 | N57: 1325 | P57: =MAX(VLOOKUP(Urval!$C$8&$C57,'Resultat & Stöd-X'!$E$10:$AF$4000,20,FALSE),VLOOKUP(Urval!$C$8&$C57,'Resultat & Stöd-X'!$E$10:$AF$4000,26,FALSE)) -> 0
B58: Riket | C58: Sarsk_undergrp | D58: =VLOOKUP($B58&$C58,'Resultat & Stöd-X'!$E$10:$N$4000,D$31,FALSE) -> 4970 | E58: =VLOOKUP($B58&$C58,'Resultat & Stöd-X'!$E$10:$N$4000,E$31,FALSE) -> 1323 | F58: =VLOOKUP($B58&$C58,'Resultat & Stöd-X'!$E$10:$N$4000,F$31,FALSE) -> 2265 | G58: =VLOOKUP($B58&$C58,'Resultat & Stöd-X'!$E$10:$N$4000,G$31,FALSE) -> 923 | H58: =VLOOKUP($B58&$C58,'Resultat & Stöd-X'!$E$10:$N$4000,H$31,FALSE) -> 157 | I58: =VLOOKUP($B58&$C58,'Resultat & Stöd-X'!$E$10:$N$4000,I$31,FALSE) -> 189 | J58: =VLOOKUP($B58&$C58,'Resultat & Stöd-X'!$E$10:$N$4000,J$31,FALSE) -> 2209 | K58: =VLOOKUP($B58&$C58,'Resultat & Stöd-X'!$E$10:$N$4000,K$31,FALSE) -> 13 | L58: =VLOOKUP($B58&$C58,'Resultat & Stöd-X'!$E$10:$N$4000,L$31,FALSE) -> 41 | M58: =_xlfn.IFS(AND(ISNUMBER(K58),ISNUMBER(L58)),K58+L58,OR(ISNUMBER(K58),ISNUMBER(L58))=FALSE,0,ISNUMBER(K58)=FALSE,L58,TRUE,K58) -> 54 | N58: 2761 | P58: =MAX(VLOOKUP(Urval!$C$8&$C58,'Resultat & Stöd-X'!$E$10:$AF$4000,20,FALSE),VLOOKUP(Urval!$C$8&$C58,'Resultat & Stöd-X'!$E$10:$AF$4000,26,FALSE)) -> 0
B59: Riket | C59: Underkänd_Beh_12godkänd | D59: =VLOOKUP($B59&$C59,'Resultat & Stöd-X'!$E$10:$N$4000,D$31,FALSE) -> 18619 | E59: =VLOOKUP($B59&$C59,'Resultat & Stöd-X'!$E$10:$N$4000,E$31,FALSE) -> 1700 | F59: =VLOOKUP($B59&$C59,'Resultat & Stöd-X'!$E$10:$N$4000,F$31,FALSE) -> 4408 | G59: =VLOOKUP($B59&$C59,'Resultat & Stöd-X'!$E$10:$N$4000,G$31,FALSE) -> 1130 | H59: =VLOOKUP($B59&$C59,'Resultat & Stöd-X'!$E$10:$N$4000,H$31,FALSE) -> 340 | I59: =VLOOKUP($B59&$C59,'Resultat & Stöd-X'!$E$10:$N$4000,I$31,FALSE) -> 392 | J59: =VLOOKUP($B59&$C59,'Resultat & Stöd-X'!$E$10:$N$4000,J$31,FALSE) -> 13347 | K59: =VLOOKUP($B59&$C59,'Resultat & Stöd-X'!$E$10:$N$4000,K$31,FALSE) -> 59 | L59: =VLOOKUP($B59&$C59,'Resultat & Stöd-X'!$E$10:$N$4000,L$31,FALSE) -> 74 | M59: =_xlfn.IFS(AND(ISNUMBER(K59),ISNUMBER(L59)),K59+L59,OR(ISNUMBER(K59),ISNUMBER(L59))=FALSE,0,ISNUMBER(K59)=FALSE,L59,TRUE,K59) -> 133 | N59: 5272 | P59: =MAX(VLOOKUP(Urval!$C$8&$C59,'Resultat & Stöd-X'!$E$10:$AF$4000,20,FALSE),VLOOKUP(Urval!$C$8&$C59,'Resultat & Stöd-X'!$E$10:$AF$4000,26,FALSE)) -> 0
B60: Riket | C60: Underkänd_Beh_12godkänd_stöd | D60: =VLOOKUP($B60&$C60,'Resultat & Stöd-X'!$E$10:$N$4000,D$31,FALSE) -> 8923 | E60: =VLOOKUP($B60&$C60,'Resultat & Stöd-X'!$E$10:$N$4000,E$31,FALSE) -> 1497 | F60: =VLOOKUP($B60&$C60,'Resultat & Stöd-X'!$E$10:$N$4000,F$31,FALSE) -> 3295 | G60: =VLOOKUP($B60&$C60,'Resultat & Stöd-X'!$E$10:$N$4000,G$31,FALSE) -> 1012 | H60: =VLOOKUP($B60&$C60,'Resultat & Stöd-X'!$E$10:$N$4000,H$31,FALSE) -> 268 | I60: =VLOOKUP($B60&$C60,'Resultat & Stöd-X'!$E$10:$N$4000,I$31,FALSE) -> 311 | J60: =VLOOKUP($B60&$C60,'Resultat & Stöd-X'!$E$10:$N$4000,J$31,FALSE) -> 4935 | K60: =VLOOKUP($B60&$C60,'Resultat & Stöd-X'!$E$10:$N$4000,K$31,FALSE) -> 46 | L60: =VLOOKUP($B60&$C60,'Resultat & Stöd-X'!$E$10:$N$4000,L$31,FALSE) -> 65 | M60: =_xlfn.IFS(AND(ISNUMBER(K60),ISNUMBER(L60)),K60+L60,OR(ISNUMBER(K60),ISNUMBER(L60))=FALSE,0,ISNUMBER(K60)=FALSE,L60,TRUE,K60) -> 111 | N60: 3988 | P60: =MAX(VLOOKUP(Urval!$C$8&$C60,'Resultat & Stöd-X'!$E$10:$AF$4000,20,FALSE),VLOOKUP(Urval!$C$8&$C60,'Resultat & Stöd-X'!$E$10:$AF$4000,26,FALSE)) -> 0
B61: Riket | C61: Underkänd_Beh_Gymn | D61: =VLOOKUP($B61&$C61,'Resultat & Stöd-X'!$E$10:$N$4000,D$31,FALSE) -> 16975 | E61: =VLOOKUP($B61&$C61,'Resultat & Stöd-X'!$E$10:$N$4000,E$31,FALSE) -> 1485 | F61: =VLOOKUP($B61&$C61,'Resultat & Stöd-X'!$E$10:$N$4000,F$31,FALSE) -> 3822 | G61: =VLOOKUP($B61&$C61,'Resultat & Stöd-X'!$E$10:$N$4000,G$31,FALSE) -> 988 | H61: =VLOOKUP($B61&$C61,'Resultat & Stöd-X'!$E$10:$N$4000,H$31,FALSE) -> 308 | I61: =VLOOKUP($B61&$C61,'Resultat & Stöd-X'!$E$10:$N$4000,I$31,FALSE) -> 369 | J61: =VLOOKUP($B61&$C61,'Resultat & Stöd-X'!$E$10:$N$4000,J$31,FALSE) -> 12380 | K61: =VLOOKUP($B61&$C61,'Resultat & Stöd-X'!$E$10:$N$4000,K$31,FALSE) -> 59 | L61: =VLOOKUP($B61&$C61,'Resultat & Stöd-X'!$E$10:$N$4000,L$31,FALSE) -> 71 | M61: =_xlfn.IFS(AND(ISNUMBER(K61),ISNUMBER(L61)),K61+L61,OR(ISNUMBER(K61),ISNUMBER(L61))=FALSE,0,ISNUMBER(K61)=FALSE,L61,TRUE,K61) -> 130 | N61: 4595 | P61: =MAX(VLOOKUP(Urval!$C$8&$C61,'Resultat & Stöd-X'!$E$10:$AF$4000,20,FALSE),VLOOKUP(Urval!$C$8&$C61,'Resultat & Stöd-X'!$E$10:$AF$4000,26,FALSE)) -> 0
B62: Riket | C62: Underkänd_Beh_Gymn_stöd | D62: =VLOOKUP($B62&$C62,'Resultat & Stöd-X'!$E$10:$N$4000,D$31,FALSE) -> 8084 | E62: =VLOOKUP($B62&$C62,'Resultat & Stöd-X'!$E$10:$N$4000,E$31,FALSE) -> 1316 | F62: =VLOOKUP($B62&$C62,'Resultat & Stöd-X'!$E$10:$N$4000,F$31,FALSE) -> 2879 | G62: =VLOOKUP($B62&$C62,'Resultat & Stöd-X'!$E$10:$N$4000,G$31,FALSE) -> 891 | H62: =VLOOKUP($B62&$C62,'Resultat & Stöd-X'!$E$10:$N$4000,H$31,FALSE) -> 246 | I62: =VLOOKUP($B62&$C62,'Resultat & Stöd-X'!$E$10:$N$4000,I$31,FALSE) -> 295 | J62: =VLOOKUP($B62&$C62,'Resultat & Stöd-X'!$E$10:$N$4000,J$31,FALSE) -> 4581 | K62: =VLOOKUP($B62&$C62,'Resultat & Stöd-X'!$E$10:$N$4000,K$31,FALSE) -> 46 | L62: =VLOOKUP($B62&$C62,'Resultat & Stöd-X'!$E$10:$N$4000,L$31,FALSE) -> 63 | M62: =_xlfn.IFS(AND(ISNUMBER(K62),ISNUMBER(L62)),K62+L62,OR(ISNUMBER(K62),ISNUMBER(L62))=FALSE,0,ISNUMBER(K62)=FALSE,L62,TRUE,K62) -> 109 | N62: 3503 | P62: =MAX(VLOOKUP(Urval!$C$8&$C62,'Resultat & Stöd-X'!$E$10:$AF$4000,20,FALSE),VLOOKUP(Urval!$C$8&$C62,'Resultat & Stöd-X'!$E$10:$AF$4000,26,FALSE)) -> 0
B63: Riket | C63: Underkänd_En | D63: =VLOOKUP($B63&$C63,'Resultat & Stöd-X'!$E$10:$N$4000,D$31,FALSE) -> 7386 | E63: =VLOOKUP($B63&$C63,'Resultat & Stöd-X'!$E$10:$N$4000,E$31,FALSE) -> 561 | F63: =VLOOKUP($B63&$C63,'Resultat & Stöd-X'!$E$10:$N$4000,F$31,FALSE) -> 1511 | G63: =VLOOKUP($B63&$C63,'Resultat & Stöd-X'!$E$10:$N$4000,G$31,FALSE) -> 384 | H63: =VLOOKUP($B63&$C63,'Resultat & Stöd-X'!$E$10:$N$4000,H$31,FALSE) -> 155 | I63: =VLOOKUP($B63&$C63,'Resultat & Stöd-X'!$E$10:$N$4000,I$31,FALSE) -> 192 | J63: =VLOOKUP($B63&$C63,'Resultat & Stöd-X'!$E$10:$N$4000,J$31,FALSE) -> 5544 | K63: =VLOOKUP($B63&$C63,'Resultat & Stöd-X'!$E$10:$N$4000,K$31,FALSE) -> 37 | L63: =VLOOKUP($B63&$C63,'Resultat & Stöd-X'!$E$10:$N$4000,L$31,FALSE) -> 40 | M63: =_xlfn.IFS(AND(ISNUMBER(K63),ISNUMBER(L63)),K63+L63,OR(ISNUMBER(K63),ISNUMBER(L63))=FALSE,0,ISNUMBER(K63)=FALSE,L63,TRUE,K63) -> 77 | N63: 1842 | P63: =MAX(VLOOKUP(Urval!$C$8&$C63,'Resultat & Stöd-X'!$E$10:$AF$4000,20,FALSE),VLOOKUP(Urval!$C$8&$C63,'Resultat & Stöd-X'!$E$10:$AF$4000,26,FALSE)) -> 0
B64: Riket | C64: Underkänd_Ma | D64: =VLOOKUP($B64&$C64,'Resultat & Stöd-X'!$E$10:$N$4000,D$31,FALSE) -> 11849 | E64: =VLOOKUP($B64&$C64,'Resultat & Stöd-X'!$E$10:$N$4000,E$31,FALSE) -> 982 | F64: =VLOOKUP($B64&$C64,'Resultat & Stöd-X'!$E$10:$N$4000,F$31,FALSE) -> 2716 | G64: =VLOOKUP($B64&$C64,'Resultat & Stöd-X'!$E$10:$N$4000,G$31,FALSE) -> 676 | H64: =VLOOKUP($B64&$C64,'Resultat & Stöd-X'!$E$10:$N$4000,H$31,FALSE) -> 221 | I64: =VLOOKUP($B64&$C64,'Resultat & Stöd-X'!$E$10:$N$4000,I$31,FALSE) -> 266 | J64: =VLOOKUP($B64&$C64,'Resultat & Stöd-X'!$E$10:$N$4000,J$31,FALSE) -> 8612 | K64: =VLOOKUP($B64&$C64,'Resultat & Stöd-X'!$E$10:$N$4000,K$31,FALSE) -> 57 | L64: =VLOOKUP($B64&$C64,'Resultat & Stöd-X'!$E$10:$N$4000,L$31,FALSE) -> 57 | M64: =_xlfn.IFS(AND(ISNUMBER(K64),ISNUMBER(L64)),K64+L64,OR(ISNUMBER(K64),ISNUMBER(L64))=FALSE,0,ISNUMBER(K64)=FALSE,L64,TRUE,K64) -> 114 | N64: 3237 | P64: =MAX(VLOOKUP(Urval!$C$8&$C64,'Resultat & Stöd-X'!$E$10:$AF$4000,20,FALSE),VLOOKUP(Urval!$C$8&$C64,'Resultat & Stöd-X'!$E$10:$AF$4000,26,FALSE)) -> 0
B65: Riket | C65: Underkänd_Sv | D65: =VLOOKUP($B65&$C65,'Resultat & Stöd-X'!$E$10:$N$4000,D$31,FALSE) -> 4546 | E65: =VLOOKUP($B65&$C65,'Resultat & Stöd-X'!$E$10:$N$4000,E$31,FALSE) -> 773 | F65: =VLOOKUP($B65&$C65,'Resultat & Stöd-X'!$E$10:$N$4000,F$31,FALSE) -> 1819 | G65: =VLOOKUP($B65&$C65,'Resultat & Stöd-X'!$E$10:$N$4000,G$31,FALSE) -> 551 | H65: =VLOOKUP($B65&$C65,'Resultat & Stöd-X'!$E$10:$N$4000,H$31,FALSE) -> 146 | I65: =VLOOKUP($B65&$C65,'Resultat & Stöd-X'!$E$10:$N$4000,I$31,FALSE) -> 197 | J65: =VLOOKUP($B65&$C65,'Resultat & Stöd-X'!$E$10:$N$4000,J$31,FALSE) -> 2371 | K65: =VLOOKUP($B65&$C65,'Resultat & Stöd-X'!$E$10:$N$4000,K$31,FALSE) -> 23 | L65: =VLOOKUP($B65&$C65,'Resultat & Stöd-X'!$E$10:$N$4000,L$31,FALSE) -> 46 | M65: =_xlfn.IFS(AND(ISNUMBER(K65),ISNUMBER(L65)),K65+L65,OR(ISNUMBER(K65),ISNUMBER(L65))=FALSE,0,ISNUMBER(K65)=FALSE,L65,TRUE,K65) -> 69 | N65: 2175 | P65: =MAX(VLOOKUP(Urval!$C$8&$C65,'Resultat & Stöd-X'!$E$10:$AF$4000,20,FALSE),VLOOKUP(Urval!$C$8&$C65,'Resultat & Stöd-X'!$E$10:$AF$4000,26,FALSE)) -> 0

Sheet KPIer>>

Sheet Filtrerad KPI-lista
D2: Filtrerad KPI-lista
G4: Områden
D5: Områdestyp: | E5: =IF('KPI-grafer'!C8="","",'KPI-grafer'!C8) -> Kommun | F5: (delsträng) | G5: 'KPI-lista'!C7:C317
D6: Kommuner i län: | E6: =IF('KPI-grafer'!C9="","",_xlfn.NUMBERVALUE(LEFT('KPI-grafer'!C9,2))) ->  | F6: (länsnummer) | G6: 'KPI-lista'!B7:B317
D7: Lägsta antal elever: | E7: ='KPI-grafer'!C11 -> 0 | F7: (antal) | G7: 'KPI-lista'!F7:F317
B8: =_xlfn._xlws.FILTER('KPI-lista'!B5:AF316,TRUE) ->  | D8: Lägsta antal npf-elever: | E8: ='KPI-grafer'!C12 -> 20 | F8: (antal) | G8: 'KPI-lista'!G7:G317
D10: Antal KPI-kolumner: | E10: =COUNTA('KPI-lista'!B5:CM5) -> 43 | F10: rubrikområde | G10: ="'KPI-lista'!B5:"&ADDRESS(5,E10+1,4,1) -> 'KPI-lista'!B5:AR5
F11: dataområde | G11: ="'KPI-lista'!B7:"&ADDRESS(317,E10+1,4,1) -> 'KPI-lista'!B7:AR317
F12: Riket-raden | G12: ="'KPI-lista'!B6:"&ADDRESS(6,E10+1,4,1) -> 'KPI-lista'!B6:AR6
J14: KPI #1 | L14: KPI #2a | O14: KPI #2b | Q14: KPI #3 | U14: KPI#4 | W14: KPI#5a | AA14: KPI#5b | AE14: KPI#6 | AG14: KPI#7
D15: =INDIRECT(G10) -> Område | E15: Typ | F15: Kommungrupp huvudgrupp | G15: Kommungrupp beskrivning | H15: totalt elever | I15: totalt elever med npf | J15: Andel elever med npf | K15: Antal elever med npf | L15: Andel elever med autism | M15: Andel elever med adhd/add | N15: Andel elever med både autism och adhd/add | O15: Andel elever med dyslexi | P15: Andel elever med språkstörning | Q15: Andel elever utan npf som ej uppnått behörighet till yrkeslinje | R15: Andel elever med npf som ej uppnått behörighet till yrkeslinje | S15: Andel elever utan npf som ej uppnått behörighet till högskoleförberedande linje | T15: Andel elever med npf som ej uppnått behörighet till högskoleförberedande linje | U15: Genomsnittligt meritvärde för elever med utan npf | V15: Genomsnittligt meritvärde för elever med npf | W15: Elever utan npf, utan behörighet till yrkeslinje och som fått otillräckligt stöd | X15: Elever utan npf, utan behörighet till yrkeslinje, som inte fått särskilt stöd alls | Y15: Andel elever utan npf, utan behörighet till yrkeslinje och som fått otillräckligt stöd | Z15: Andel elever utan npf, utan behörighet till yrkeslinje, som inte fått särskilt stöd alls | AA15: Elever med npf, utan behörighet till yrkeslinje och som fått otillräckligt stöd | AB15: Elever med npf, utan behörighet till yrkeslinje, som inte fått särskilt stöd alls | AC15: Andel elever med npf, utan behörighet till yrkeslinje och som fått otillräckligt stöd | AD15: Andel elever med npf, utan behörighet till yrkeslinje, som inte fått särskilt stöd alls | AE15: Andel elever utan npf med anpassad studiegång | AF15: Andel elever med npf med anpassad studiegång | AG15: Andel suicidförsök för elever utan npf | AH15: Andel suicidförsök för elever med npf | AI15: Andel elever utan npf med åtgärdsprogram under högstadiet | AJ15: Andel elever med npf med åtgärdsprogram under högstadiet | AK15: Andel elever utan npf som gått i särskild undervisningsgrupp | AL15: Andel elever med npf som gått i särskild undervisningsgrupp | AM15: Andel elever utan npf som har fått i enskild undervisning | AN15: Andel elever med npf som har fått i enskild undervisning | AO15: Andel elever utan npf som har Underkänt i matematik | AP15: Andel elever med npf som har Underkänt i matematik | AQ15: Andel elever utan npf som har Underkänt i svenska | AR15: Andel elever med npf som har Underkänt i svenska | AS15: Andel elever utan npf som har Underkänt i engelska | AT15: Andel elever med npf som har Underkänt i engelska
D16: B | E16: C | F16: D | G16: E | H16: F | I16: G
D17: =INDIRECT(G12) -> Riket | E17: Riket | F17: Riket | H17: 119876 | I17: 13648 | J17: 0.1138509793 | K17: 13648 | L17: 0.03078180787 | M17: 0.09422236311 | N17: 0.01934498982 | O17: 0.007082318396 | P17: 0.009284594081 | Q17: 0.1165417781 | R17: 0.3366793669 | S17: 0.1256448394 | T17: 0.3862837046 | U17: 235.2 | V17: 159.1589228 | W17: 4581 | X17: 7799 | Y17: 0.04312422337 | Z17: 0.07341755469 | AA17: 3503 | AB17: 1092 | AC17: 0.2566676436 | AD17: 0.08001172333 | AE17: 0.02758218172 | AF17: 0.2475087925 | AG17: 0.005055164363 | AH17: 0.03282532239 | AI17: 0.07230673645 | AJ17: 0.4578692849 | AK17: 0.020794894 | AL17: 0.2023007034 | AM17: 0.01236020635 | AN17: 0.09708382181 | AO17: 0.08107090409 | AP17: 0.2371776084 | AQ17: 0.02231991565 | AR17: 0.1593640094 | AS17: 0.05218962985 | AT17: 0.13496483
D18: =_xlfn._xlws.FILTER( INDIRECT(G11), (INDIRECT(G7)>E7)* (INDIRECT(G8)>E8)* (ISNUMBER(SEARCH(E5,INDIRECT(G5)))* (IF(E6="",_xlfn.SEQUENCE(311,1,1,0)>0, (LEFT(INDIRECT(G6),2)=TEXT(E6,"0#")))))) -> 0114 Upplands Väsby | E18: Kommun (A2) | F18: Storstäder och storstadsnära kommuner | G18: Pendlingskommun nära storstad | H18: 589 | I18: 96 | J18: 0.1629881154 | K18: 96 | L18: 0.03056027165 | M18: 0.1460101868 | N18: 0.02037351443 | O18: 0.01697792869 | P18: 0.01358234295 | Q18: 0.1156186613 | R18: 0.3333333333 | S18: 0.1196754564 | T18: 0.3645833333 | U18: 249.79 | V18: 168.1240426 | W18: 15 | X18: 42 | Y18: 0.03042596349 | Z18: 0.08519269777 | AA18: 25 | AB18: 7 | AC18: 0.2604166667 | AD18: 0.07291666667 | AE18: 0.0121703854 | AF18: 0.2083333333 | AG18: 0.004056795132 | AH18: 0.02083333333 | AI18: 0.06490872211 | AJ18: 0.4479166667 | AK18: 0.008113590264 | AL18: 0.1770833333 | AM18: 0.008113590264 | AN18: 0.0625 | AO18: 0.07707910751 | AP18: 0.1979166667 | AQ18: 0.01419878296 | AR18: 0.1458333333 | AS18: 0.04259634888 | AT18: 0.1145833333
D19: 0115 Vallentuna | E19: Kommun (A2) | F19: Storstäder och storstadsnära kommuner | G19: Pendlingskommun nära storstad | H19: 482 | I19: 84 | J19: 0.1742738589 | K19: 84 | L19: 0.04979253112 | M19: 0.1597510373 | N19: 0.03734439834 | O19: 0.01037344398 | P19: 0.004149377593 | Q19: 0.04271356784 | R19: 0.25 | S19: 0.0527638191 | T19: 0.2976190476 | U19: 259.67 | V19: 176.4309756 | W19: 11 | X19: 6 | Y19: 0.02763819095 | Z19: 0.01507537688 | AA19: 17 | AB19: 4 | AC19: 0.2023809524 | AD19: 0.04761904762 | AE19: 0.02010050251 | AF19: 0.2738095238 | AG19: 0.01005025126 | AH19: 0.0119047619 | AI19: 0.04522613065 | AJ19: 0.4285714286 | AK19: 0.02010050251 | AL19: 0.3095238095 | AM19: 0.0175879397 | AN19: 0.130952381 | AO19: 0.0351758794 | AP19: 0.1904761905 | AQ19: 0.01507537688 | AR19: 0.130952381 | AS19: 0.02512562814 | AT19: 0.1071428571
D20: 0117 Österåker | E20: Kommun (A2) | F20: Storstäder och storstadsnära kommuner | G20: Pendlingskommun nära storstad | H20: 678 | I20: 103 | J20: 0.1519174041 | K20: 103 | L20: 0.05457227139 | M20: 0.1268436578 | N20: 0.03687315634 | O20: 0.007374631268 | P20: 0.008849557522 | Q20: 0.06956521739 | R20: 0.2038834951 | S20: 0.07130434783 | T20: 0.2427184466 | U20: 258.82 | V20: 185.8006186 | W20: 22 | X20: 18 | Y20: 0.03826086957 | Z20: 0.03130434783 | AA20: 19 | AB20: 2 | AC20: 0.1844660194 | AD20: 0.01941747573 | AE20: 0.01391304348 | AF20: 0.1650485437 | AG20: 0.008695652174 | AH20: 0.05825242718 | AI20: 0.04 | AJ20: 0.3980582524 | AK20: 0.01217391304 | AL20: 0.06796116505 | AM20: 0.03652173913 | AN20: 0.1262135922 | AO20: 0.05217391304 | AP20: 0.1359223301 | AQ20: 0.01217391304 | AR20: 0.07766990291 | AS20: 0.02260869565 | AT20: 0.08737864078
D21: 0120 Värmdö | E21: Kommun (A2) | F21: Storstäder och storstadsnära kommuner | G21: Pendlingskommun nära storstad | H21: 707 | I21: 125 | J21: 0.1768033946 | K21: 125 | L21: 0.03253182461 | M21: 0.1400282885 | N21: 0.01414427157 | O21: 0.0297029703 | P21: 0.01272984441 | Q21: 0.04295532646 | R21: 0.24 | S21: 0.04810996564 | T21: 0.28 | U21: 260.54 | V21: 181.096748 | W21: 8 | X21: 17 | Y21: 0.01374570447 | Z21: 0.02920962199 | AA21: 25 | AB21: 5 | AC21: 0.2 | AD21: 0.04 | AE21: 0.01202749141 | AF21: 0.248 | AG21: 0.003436426117 | AH21: 0.016 | AI21: 0.06357388316 | AJ21: 0.584 | AK21: 0.008591065292 | AL21: 0.216 | AM21: 0.003436426117 | AN21: 0.048 | AO21: 0.02405498282 | AP21: 0.152 | AQ21: 0.006872852234 | AR21: 0.104 | AS21: 0.008591065292 | AT21: 0.064
D22: 0123 Järfälla | E22: Kommun (A2) | F22: Storstäder och storstadsnära kommuner | G22: Pendlingskommun nära storstad | H22: 1028 | I22: 141 | J22: 0.1371595331 | K22: 141 | L22: 0.02821011673 | M22: 0.1147859922 | N22: 0.01653696498 | O22: 0.009727626459 | P22: 0.01070038911 | Q22: 0.09131905299 | R22: 0.2695035461 | S22: 0.1093573844 | T22: 0.3191489362 | U22: 244.89 | V22: 166.067482 | W22: 22 | X22: 59 | Y22: 0.02480270575 | Z22: 0.06651634724 | AA22: 28 | AB22: 10 | AC22: 0.1985815603 | AD22: 0.07092198582 | AE22: 0.04171364149 | AF22: 0.2482269504 | AG22: 0.004509582864 | AH22: 0.01418439716 | AI22: 0.06200676437 | AJ22: 0.4113475177 | AK22: 0.002254791432 | AL22: 0.09219858156 | AM22: 0.007891770011 | AN22: 0.05673758865 | AO22: 0.05636978579 | AP22: 0.1276595745 | AQ22: 0.01465614431 | AR22: 0.1063829787 | AS22: 0.02254791432 | AT22: 0.09219858156
D23: 0125 Ekerö | E23: Kommun (A2) | F23: Storstäder och storstadsnära kommuner | G23: Pendlingskommun nära storstad | H23: 441 | I23: 67 | J23: 0.1519274376 | K23: 67 | L23: 0.03401360544 | M23: 0.1428571429 | N23: 0.02721088435 | O23: 0.01360544218 | P23: 0.01133786848 | Q23: 0.05614973262 | R23: 0.1343283582 | S23: 0.06417112299 | T23: 0.1641791045 | U23: 258.36 | V23: 196.1247761 | W23: 6 | X23: 15 | Y23: 0.01604278075 | Z23: 0.04010695187 | AA23: 8 | AB23: 1 | AC23: 0.1194029851 | AD23: 0.01492537313 | AE23: 0.01069518717 | AF23: 0.1791044776 | AG23: 0.01069518717 | AH23: 0.05970149254 | AI23: 0.03743315508 | AJ23: 0.3582089552 | AK23: 0.01871657754 | AL23: 0.2686567164 | AM23: 0.005347593583 | AN23: 0.1194029851 | AO23: 0.0320855615 | AP23: 0.05970149254 | AQ23: 0.005347593583 | AR23: 0 | AS23: 0.04278074866 | AT23: 0.02985074627
D24: 0126 Huddinge | E24: Kommun (A2) | F24: Storstäder och storstadsnära kommuner | G24: Pendlingskommun nära storstad | H24: 1551 | I24: 221 | J24: 0.142488717 | K24: 221 | L24: 0.03610573823 | M24: 0.1205673759 | N24: 0.02063185042 | O24: 0.006447453256 | P24: 0.01289490651 | Q24: 0.07669172932 | R24: 0.2805429864 | S24: 0.08195488722 | T24: 0.3212669683 | U24: 252.62 | V24: 185.3339269 | W24: 30 | X24: 72 | Y24: 0.02255639098 | Z24: 0.05413533835 | AA24: 36 | AB24: 26 | AC24: 0.1628959276 | AD24: 0.1176470588 | AE24: 0.01654135338 | AF24: 0.1040723982 | AG24: 0.002255639098 | AH24: 0.02714932127 | AI24: 0.04360902256 | AJ24: 0.2850678733 | AK24: 0.01052631579 | AL24: 0.1131221719 | AM24: 0 | AN24: 0.009049773756 | AO24: 0.04962406015 | AP24: 0.1538461538 | AQ24: 0.01203007519 | AR24: 0.1221719457 | AS24: 0.03233082707 | AT24: 0.07692307692
D25: 0127 Botkyrka | E25: Kommun (A2) | F25: Storstäder och storstadsnära kommuner | G25: Pendlingskommun nära storstad | H25: 1233 | I25: 222 | J25: 0.1800486618 | K25: 222 | L25: 0.05271695053 | M25: 0.1451743715 | N25: 0.03163017032 | O25: 0.008921330089 | P25: 0.01378751014 | Q25: 0.1127596439 | R25: 0.3018018018 | S25: 0.1206726014 | T25: 0.3243243243 | U25: 238.48 | V25: 179.9389041 | W25: 36 | X25: 78 | Y25: 0.03560830861 | Z25: 0.07715133531 | AA25: 43 | AB25: 24 | AC25: 0.1936936937 | AD25: 0.1081081081 | AE25: 0.01384767557 | AF25: 0.1396396396 | AG25: 0.00296735905 | AH25: 0.01351351351 | AI25: 0.06132542038 | AJ25: 0.3738738739 | AK25: 0.01384767557 | AL25: 0.1666666667 | AM25: 0.01088031652 | AN25: 0.1396396396 | AO25: 0.06627101879 | AP25: 0.1666666667 | AQ25: 0.01285855589 | AR25: 0.1081081081 | AS25: 0.05539070227 | AT25: 0.1261261261
D26: 0128 Salem | E26: Kommun (A2) | F26: Storstäder och storstadsnära kommuner | G26: Pendlingskommun nära storstad | H26: 261 | I26: 51 | J26: 0.1954022989 | K26: 51 | L26: 0.030651341 | M26: 0.183908046 | N26: 0.01915708812 | O26: 0.007662835249 | P26: 0 | Q26: 0.09047619048 | R26: 0.2941176471 | S26: 0.1047619048 | T26: 0.3529411765 | U26: 243 | V26: 160.58 | W26: 5 | X26: 14 | Y26: 0.02380952381 | Z26: 0.06666666667 | AA26: 11 | AB26: 4 | AC26: 0.2156862745 | AD26: 0.07843137255 | AE26: 0.009523809524 | AF26: 0.1960784314 | AG26: 0 | AH26: 0 | AI26: 0.04761904762 | AJ26: 0.431372549 | AK26: 0.02857142857 | AL26: 0.3529411765 | AM26: 0.009523809524 | AN26: 0.137254902 | AO26: 0.0619047619 | AP26: 0.2352941176 | AQ26: 0.01904761905 | AR26: 0.07843137255 | AS26: 0.02857142857 | AT26: 0.137254902
D27: 0136 Haninge | E27: Kommun (A2) | F27: Storstäder och storstadsnära kommuner | G27: Pendlingskommun nära storstad | H27: 1177 | I27: 217 | J27: 0.1843670348 | K27: 217 | L27: 0.09685641461 | M27: 0.1248937978 | N27: 0.05012744265 | O27: 0.01444350042 | P27: 0.00849617672 | Q27: 0.09895833333 | R27: 0.3087557604 | S27: 0.109375 | T27: 0.3502304147 | U27: 234.4 | V27: 160.4229126 | W27: 24 | X27: 71 | Y27: 0.025 | Z27: 0.07395833333 | AA27: 50 | AB27: 17 | AC27: 0.2304147465 | AD27: 0.07834101382 | AE27: 0.01354166667 | AF27: 0.2119815668 | AG27: 0.003125 | AH27: 0.03225806452 | AI27: 0.04270833333 | AJ27: 0.3824884793 | AK27: 0.01979166667 | AL27: 0.2534562212 | AM27: 0.007291666667 | AN27: 0.07373271889 | AO27: 0.05520833333 | AP27: 0.198156682 | AQ27: 0.021875 | AR27: 0.1059907834 | AS27: 0.04166666667 | AT27: 0.05069124424
D28: 0138 Tyresö | E28: Kommun (A2) | F28: Storstäder och storstadsnära kommuner | G28: Pendlingskommun nära storstad | H28: 695 | I28: 135 | J28: 0.1942446043 | K28: 135 | L28: 0.0690647482 | M28: 0.1424460432 | N28: 0.0345323741 | O28: 0.01294964029 | P28: 0.01294964029 | Q28: 0.05714285714 | R28: 0.3037037037 | S28: 0.06428571429 | T28: 0.362962963 | U28: 255.22 | V28: 174.3186667 | W28: 11 | X28: 21 | Y28: 0.01964285714 | Z28: 0.0375 | AA28: 33 | AB28: 8 | AC28: 0.2444444444 | AD28: 0.05925925926 | AE28: 0.01785714286 | AF28: 0.237037037 | AG28: 0 | AH28: 0.01481481481 | AI28: 0.03035714286 | AJ28: 0.3851851852 | AK28: 0.01964285714 | AL28: 0.237037037 | AM28: 0.01071428571 | AN28: 0.1851851852 | AO28: 0.02678571429 | AP28: 0.1703703704 | AQ28: 0.0125 | AR28: 0.1703703704 | AS28: 0.02142857143 | AT28: 0.08888888889
D29: 0139 Upplands-Bro | E29: Kommun (A2) | F29: Storstäder och storstadsnära kommuner | G29: Pendlingskommun nära storstad | H29: 381 | I29: 50 | J29: 0.1312335958 | K29: 50 | L29: 0.03149606299 | M29: 0.1181102362 | N29: 0.02362204724 | O29: 0.005249343832 | P29: 0.01312335958 | Q29: 0.1178247734 | R29: 0.36 | S29: 0.1268882175 | T29: 0.36 | U29: 240.13 | V29: 161.1830612 | W29: 10 | X29: 29 | Y29: 0.03021148036 | Z29: 0.08761329305 | AA29: 11 | AB29: 7 | AC29: 0.22 | AD29: 0.14 | AE29: 0.01208459215 | AF29: 0.22 | AG29: 0.006042296073 | AH29: 0.12 | AI29: 0.06344410876 | AJ29: 0.44 | AK29: 0.01510574018 | AL29: 0.06 | AM29: 0.006042296073 | AN29: 0 | AO29: 0.09365558912 | AP29: 0.26 | AQ29: 0.01208459215 | AR29: 0.22 | AS29: 0.04531722054 | AT29: 0.1
D30: 0140 Nykvarn | E30: Kommun (B4) | F30: Större städer och kommuner nära större stad | G30: Pendlingskommun nära större stad | H30: 196 | I30: 26 | J30: 0.1326530612 | K30: 26 | L30: 0.01020408163 | M30: 0.1173469388 | N30: 0.01020408163 | O30: 0 | P30: 0 | Q30: 0.02352941176 | R30: 0.1538461538 | S30: 0.02352941176 | T30: 0.1538461538 | U30: 250.32 | V30: 188.856 | W30: 2 | X30: 2 | Y30: 0.01176470588 | Z30: 0.01176470588 | AA30: 3 | AB30: 1 | AC30: 0.1153846154 | AD30: 0.03846153846 | AE30: 0.02352941176 | AF30: 0.1538461538 | AG30: 0 | AH30: 0.07692307692 | AI30: 0.04117647059 | AJ30: 0.2307692308 | AK30: 0 | AL30: 0.1538461538 | AO30: 0.01176470588 | AP30: 0.07692307692 | AQ30: 0.01176470588 | AR30: 0 | AS30: 0.01176470588 | AT30: 0
D31: 0160 Täby | E31: Kommun (A2) | F31: Storstäder och storstadsnära kommuner | G31: Pendlingskommun nära storstad | H31: 1060 | I31: 154 | J31: 0.1452830189 | K31: 154 | L31: 0.03773584906 | M31: 0.1226415094 | N31: 0.02358490566 | O31: 0.003773584906 | P31: 0.01320754717 | Q31: 0.01545253863 | R31: 0.1363636364 | S31: 0.01766004415 | T31: 0.1623376623 | U31: 276.99 | V31: 208.6854 | W31: 5 | X31: 9 | Y31: 0.005518763797 | Z31: 0.009933774834 | AA31: 13 | AB31: 8 | AC31: 0.08441558442 | AD31: 0.05194805195 | AE31: 0.006622516556 | AF31: 0.1298701299 | AG31: 0.004415011038 | AH31: 0.03246753247 | AI31: 0.0353200883 | AJ31: 0.3636363636 | AK31: 0.01103752759 | AL31: 0.08441558442 | AM31: 0.01103752759 | AN31: 0.1233766234 | AO31: 0.008830022075 | AP31: 0.05844155844 | AQ31: 0.002207505519 | AR31: 0.06493506494 | AS31: 0.002207505519 | AT31: 0.06493506494
D32: 0162 Danderyd | E32: Kommun (A2) | F32: Storstäder och storstadsnära kommuner | G32: Pendlingskommun nära storstad | H32: 558 | I32: 66 | J32: 0.1182795699 | K32: 66 | L32: 0.02508960573 | M32: 0.09498207885 | N32: 0.01433691756 | O32: 0.007168458781 | P32: 0.01612903226 | Q32: 0.0162601626 | R32: 0.06060606061 | S32: 0.0162601626 | T32: 0.09090909091 | U32: 284.38 | V32: 231.7390909 | W32: 0 | X32: 8 | Y32: 0 | Z32: 0.0162601626 | AA32: 4 | AB32: 0 | AC32: 0.06060606061 | AD32: 0 | AE32: 0.00406504065 | AF32: 0.06060606061 | AG32: 0 | AH32: 0.0303030303 | AI32: 0.01829268293 | AJ32: 0.3333333333 | AK32: 0.00406504065 | AL32: 0.1515151515 | AM32: 0.00406504065 | AN32: 0.2272727273 | AO32: 0.01219512195 | AP32: 0.04545454545 | AQ32: 0 | AR32: 0.06060606061 | AS32: 0.01422764228 | AT32: 0.0303030303
D33: 0163 Sollentuna | E33: Kommun (A2) | F33: Storstäder och storstadsnära kommuner | G33: Pendlingskommun nära storstad | H33: 1115 | I33: 148 | J33: 0.132735426 | K33: 148 | L33: 0.03139013453 | M33: 0.1130044843 | N33: 0.0197309417 | O33: 0.005381165919 | P33: 0.009865470852 | Q33: 0.0620475698 | R33: 0.1824324324 | S33: 0.06618407446 | T33: 0.2162162162 | U33: 272.29 | V33: 202.1485211 | W33: 23 | X33: 37 | Y33: 0.02378490176 | Z33: 0.03826266805 | AA33: 22 | AB33: 5 | AC33: 0.1486486486 | AD33: 0.03378378378 | AE33: 0.01654601861 | AF33: 0.1418918919 | AG33: 0.00620475698 | AH33: 0.03378378378 | AI33: 0.05480868666 | AJ33: 0.4324324324 | AK33: 0.01240951396 | AL33: 0.1621621622 | AM33: 0.01240951396 | AN33: 0.06756756757 | AO33: 0.03826266805 | AP33: 0.1216216216 | AQ33: 0.007238883144 | AR33: 0.06756756757 | AS33: 0.02998965874 | AT33: 0.0472972973
D34: 0180 Stockholm | E34: Kommun (A1) | F34: Storstäder och storstadsnära kommuner | G34: Storstäder | H34: 9424 | I34: 1461 | J34: 0.1550297114 | K34: 1461 | L34: 0.03756366723 | M34: 0.1285016978 | N34: 0.02132852292 | O34: 0.02111629881 | P34: 0.006260611205 | Q34: 0.07095315836 | R34: 0.2334017796 | S34: 0.07710661811 | T34: 0.264202601 | U34: 261.69 | V34: 191.2595372 | W34: 190 | X34: 375 | Y34: 0.02386035414 | Z34: 0.04709280422 | AA34: 255 | AB34: 86 | AC34: 0.1745379877 | AD34: 0.05886379192 | AE34: 0.0212231571 | AF34: 0.1615331964 | AG34: 0.004395328394 | AH34: 0.02600958248 | AI34: 0.04608815773 | AJ34: 0.3655030801 | AK34: 0.01155343464 | AL34: 0.1156741958 | AM34: 0.00602787894 | AN34: 0.08692676249 | AO34: 0.04332537988 | AP34: 0.1663244353 | AQ34: 0.009795303278 | AR34: 0.09240246407 | AS34: 0.02386035414 | AT34: 0.06502395619
D35: 0181 Södertälje | E35: Kommun (B3) | F35: Större städer och kommuner nära större stad | G35: Större stad | H35: 1221 | I35: 174 | J35: 0.1425061425 | K35: 174 | L35: 0.03357903358 | M35: 0.1187551188 | N35: 0.01883701884 | O35: 0.01064701065 | P35: 0.007371007371 | Q35: 0.1222540592 | R35: 0.316091954 | S35: 0.1318051576 | T35: 0.3793103448 | U35: 235.56 | V35: 156.537 | W35: 30 | X35: 98 | Y35: 0.02865329513 | Z35: 0.09360076409 | AA35: 32 | AB35: 23 | AC35: 0.183908046 | AD35: 0.132183908 | AE35: 0.02005730659 | AF35: 0.1494252874 | AG35: 0.001910219675 | AH35: 0.02873563218 | AI35: 0.05062082139 | AJ35: 0.3505747126 | AK35: 0.01814708691 | AL35: 0.2068965517 | AM35: 0.01241642789 | AN35: 0.0632183908 | AO35: 0.0811843362 | AP35: 0.2068965517 | AQ35: 0.01623686724 | AR35: 0.132183908 | AS35: 0.04966571156 | AT35: 0.1494252874
D36: 0182 Nacka | E36: Kommun (A2) | F36: Storstäder och storstadsnära kommuner | G36: Pendlingskommun nära storstad | H36: 1460 | I36: 216 | J36: 0.1479452055 | K36: 216 | L36: 0.03424657534 | M36: 0.1219178082 | N36: 0.01575342466 | O36: 0.02123287671 | P36: 0.007534246575 | Q36: 0.03617363344 | R36: 0.162037037 | S36: 0.03938906752 | T36: 0.1898148148 | U36: 274.31 | V36: 204.0068571 | W36: 18 | X36: 27 | Y36: 0.01446945338 | Z36: 0.02170418006 | AA36: 24 | AB36: 11 | AC36: 0.1111111111 | AD36: 0.05092592593 | AE36: 0.00884244373 | AF36: 0.1481481481 | AG36: 0.002411575563 | AH36: 0.03240740741 | AI36: 0.03295819936 | AJ36: 0.3611111111 | AK36: 0.01768488746 | AL36: 0.2037037037 | AM36: 0.004823151125 | AN36: 0.09722222222 | AO36: 0.02331189711 | AP36: 0.09259259259 | AQ36: 0.008038585209 | AR36: 0.06481481481 | AS36: 0.008038585209 | AT36: 0.03703703704
D37: 0183 Sundbyberg | E37: Kommun (A2) | F37: Storstäder och storstadsnära kommuner | G37: Pendlingskommun nära storstad | H37: 465 | I37: 66 | J37: 0.1419354839 | K37: 66 | L37: 0.05376344086 | M37: 0.111827957 | N37: 0.03225806452 | O37: 0.008602150538 | P37: 0.008602150538 | Q37: 0.08270676692 | R37: 0.303030303 | S37: 0.0977443609 | T37: 0.3636363636 | U37: 253.59 | V37: 166.2836923 | W37: 7 | X37: 26 | Y37: 0.01754385965 | Z37: 0.06516290727 | AA37: 14 | AB37: 6 | AC37: 0.2121212121 | AD37: 0.09090909091 | AE37: 0.005012531328 | AF37: 0.1666666667 | AG37: 0.005012531328 | AH37: 0.0303030303 | AI37: 0.0350877193 | AJ37: 0.5 | AK37: 0.005012531328 | AL37: 0.2272727273 | AM37: 0.005012531328 | AN37: 0.1818181818 | AO37: 0.05513784461 | AP37: 0.1515151515 | AQ37: 0.01754385965 | AR37: 0.1060606061 | AS37: 0.02255639098 | AT37: 0.09090909091
D38: 0184 Solna | E38: Kommun (A2) | F38: Storstäder och storstadsnära kommuner | G38: Pendlingskommun nära storstad | H38: 597 | I38: 93 | J38: 0.1557788945 | K38: 93 | L38: 0.04020100503 | M38: 0.122278057 | N38: 0.01675041876 | O38: 0.02847571189 | P38: 0.01005025126 | Q38: 0.06150793651 | R38: 0.3333333333 | S38: 0.06547619048 | T38: 0.376344086 | U38: 262.2 | V38: 167.3880435 | W38: 17 | X38: 14 | Y38: 0.03373015873 | Z38: 0.02777777778 | AA38: 27 | AB38: 4 | AC38: 0.2903225806 | AD38: 0.04301075269 | AE38: 0.02579365079 | AF38: 0.1935483871 | AG38: 0.003968253968 | AH38: 0.02150537634 | AI38: 0.07936507937 | AJ38: 0.4623655914 | AK38: 0.03571428571 | AL38: 0.247311828 | AM38: 0.009920634921 | AN38: 0.1075268817 | AO38: 0.02182539683 | AP38: 0.1720430108 | AQ38: 0.01388888889 | AR38: 0.1505376344 | AS38: 0.01587301587 | AT38: 0.1182795699
D39: 0186 Lidingö | E39: Kommun (A2) | F39: Storstäder och storstadsnära kommuner | G39: Pendlingskommun nära storstad | H39: 671 | I39: 94 | J39: 0.1400894188 | K39: 94 | L39: 0.03129657228 | M39: 0.1266766021 | N39: 0.02682563338 | O39: 0.002980625931 | P39: 0.01043219076 | Q39: 0.01733102253 | R39: 0.1063829787 | S39: 0.02079722704 | T39: 0.1063829787 | U39: 281.62 | V39: 229.8725275 | W39: 5 | X39: 5 | Y39: 0.008665511265 | Z39: 0.008665511265 | AA39: 8 | AB39: 2 | AC39: 0.08510638298 | AD39: 0.02127659574 | AE39: 0.01213171577 | AF39: 0.06382978723 | AG39: 0.003466204506 | AH39: 0.04255319149 | AI39: 0.03119584055 | AJ39: 0.3936170213 | AK39: 0.006932409012 | AL39: 0.08510638298 | AM39: 0.003466204506 | AN39: 0.03191489362 | AO39: 0.008665511265 | AP39: 0.04255319149 | AQ39: 0.006932409012 | AR39: 0.06382978723 | AS39: 0.003466204506 | AT39: 0
D40: 0187 Vaxholm | E40: Kommun (A2) | F40: Storstäder och storstadsnära kommuner | G40: Pendlingskommun nära storstad | H40: 208 | I40: 24 | J40: 0.1153846154 | K40: 24 | L40: 0.009615384615 | M40: 0.1057692308 | N40: 0.009615384615 | O40: 0.009615384615 | P40: 0.01923076923 | Q40: 0.03260869565 | R40: 0.08333333333 | S40: 0.03260869565 | T40: 0.08333333333 | U40: 271.68 | V40: 208.5866667 | W40: 2 | X40: 4 | Y40: 0.01086956522 | Z40: 0.02173913043 | AA40: 3 | AB40: 0 | AC40: 0.125 | AD40: 0 | AE40: 0 | AF40: 0.2916666667 | AG40: 0 | AH40: 0.08333333333 | AI40: 0.04891304348 | AJ40: 0.5833333333 | AK40: 0 | AL40: 0.08333333333 | AM40: 0.03804347826 | AN40: 0.4166666667 | AO40: 0.01086956522 | AP40: 0 | AQ40: 0.01086956522 | AR40: 0
D41: 0188 Norrtälje | E41: Kommun (C6) | F41: Mindre städer/tätorter och landsbygdskommuner | G41: Mindre stad/tätort | H41: 656 | I41: 91 | J41: 0.1387195122 | K41: 91 | L41: 0.03353658537 | M41: 0.1234756098 | N41: 0.02591463415 | O41: 0.009146341463 | P41: 0.009146341463 | Q41: 0.1150442478 | R41: 0.3626373626 | S41: 0.1398230088 | T41: 0.4285714286 | U41: 228.73 | V41: 150.0979775 | W41: 29 | X41: 36 | Y41: 0.05132743363 | Z41: 0.06371681416 | AA41: 25 | AB41: 8 | AC41: 0.2747252747 | AD41: 0.08791208791 | AE41: 0.05309734513 | AF41: 0.3296703297 | AG41: 0.01592920354 | AH41: 0.02197802198 | AI41: 0.1097345133 | AJ41: 0.5054945055 | AK41: 0.01592920354 | AL41: 0.2417582418 | AM41: 0.03008849558 | AN41: 0.07692307692 | AO41: 0.06902654867 | AP41: 0.2747252747 | AQ41: 0.03185840708 | AR41: 0.1868131868 | AS41: 0.05486725664 | AT41: 0.1318681319
D42: 0191 Sigtuna | E42: Kommun (A2) | F42: Storstäder och storstadsnära kommuner | G42: Pendlingskommun nära storstad | H42: 553 | I42: 63 | J42: 0.1139240506 | K42: 63 | L42: 0.02712477396 | M42: 0.09764918626 | N42: 0.0198915009 | O42: 0.02169981917 | P42: 0.003616636528 | Q42: 0.1020408163 | R42: 0.3015873016 | S42: 0.1163265306 | T42: 0.3492063492 | U42: 236.46 | V42: 158.7677419 | W42: 10 | X42: 40 | Y42: 0.02040816327 | Z42: 0.08163265306 | AA42: 13 | AB42: 6 | AC42: 0.2063492063 | AD42: 0.09523809524 | AE42: 0.02040816327 | AF42: 0.1904761905 | AG42: 0.01020408163 | AH42: 0.04761904762 | AI42: 0.04489795918 | AJ42: 0.4285714286 | AK42: 0.004081632653 | AL42: 0.07936507937 | AM42: 0.01428571429 | AN42: 0.03174603175 | AO42: 0.07755102041 | AP42: 0.2380952381 | AQ42: 0.01020408163 | AR42: 0.1587301587 | AS42: 0.04285714286 | AT42: 0.1746031746
D43: 0192 Nynäshamn | E43: Kommun (A2) | F43: Storstäder och storstadsnära kommuner | G43: Pendlingskommun nära storstad | H43: 313 | I43: 59 | J43: 0.1884984026 | K43: 59 | L43: 0.09584664537 | M43: 0.1309904153 | N43: 0.04792332268 | O43: 0.006389776358 | P43: 0.006389776358 | Q43: 0.07086614173 | R43: 0.2881355932 | S43: 0.1023622047 | T43: 0.4237288136 | U43: 230.7 | V43: 147.3242105 | W43: 7 | X43: 11 | Y43: 0.02755905512 | Z43: 0.04330708661 | AA43: 11 | AB43: 6 | AC43: 0.186440678 | AD43: 0.1016949153 | AE43: 0.007874015748 | AF43: 0.1186440678 | AG43: 0 | AH43: 0.03389830508 | AI43: 0.06299212598 | AJ43: 0.4745762712 | AK43: 0.01968503937 | AL43: 0.3220338983 | AM43: 0.007874015748 | AN43: 0.03389830508 | AO43: 0.05511811024 | AP43: 0.2033898305 | AQ43: 0.007874015748 | AR43: 0.2033898305 | AS43: 0.03543307087 | AT43: 0.1016949153
D44: 0305 Håbo | E44: Kommun (A2) | F44: Storstäder och storstadsnära kommuner | G44: Pendlingskommun nära storstad | H44: 345 | I44: 59 | J44: 0.1710144928 | K44: 59 | L44: 0.0347826087 | M44: 0.1594202899 | N44: 0.0231884058 | O44: 0.005797101449 | P44: 0 | Q44: 0.07692307692 | R44: 0.2203389831 | S44: 0.0979020979 | T44: 0.2881355932 | U44: 237.61 | V44: 168.13 | W44: 2 | X44: 20 | Y44: 0.006993006993 | Z44: 0.06993006993 | AA44: 7 | AB44: 6 | AC44: 0.1186440678 | AD44: 0.1016949153 | AE44: 0.006993006993 | AF44: 0 | AG44: 0.006993006993 | AH44: 0 | AI44: 0.03496503497 | AJ44: 0.2881355932 | AK44: 0.01398601399 | AL44: 0.1525423729 | AM44: 0.006993006993 | AN44: 0.06779661017 | AO44: 0.05594405594 | AP44: 0.1186440678 | AQ44: 0.02447552448 | AR44: 0.1186440678 | AS44: 0.02097902098 | AT44: 0.1016949153
D45: 0330 Knivsta | E45: Kommun (B4) | F45: Större städer och kommuner nära större stad | G45: Pendlingskommun nära större stad | H45: 294 | I45: 32 | J45: 0.1088435374 | K45: 32 | L45: 0.02721088435 | M45: 0.09863945578 | N45: 0.02040816327 | O45: 0 | P45: 0.006802721088 | Q45: 0.08396946565 | R45: 0.28125 | S45: 0.1030534351 | T45: 0.3125 | U45: 240.22 | V45: 170.7051613 | W45: 6 | X45: 16 | Y45: 0.02290076336 | Z45: 0.06106870229 | AA45: 7 | AB45: 2 | AC45: 0.21875 | AD45: 0.0625 | AE45: 0.03816793893 | AF45: 0.34375 | AG45: 0.01908396947 | AH45: 0.03125 | AI45: 0.04580152672 | AJ45: 0.5 | AK45: 0.01908396947 | AL45: 0.25 | AM45: 0.007633587786 | AN45: 0.09375 | AO45: 0.03435114504 | AP45: 0.1875 | AQ45: 0.02290076336 | AR45: 0.03125 | AS45: 0.03435114504 | AT45: 0.03125
D46: 0380 Uppsala | E46: Kommun (B3) | F46: Större städer och kommuner nära större stad | G46: Större stad | H46: 2505 | I46: 256 | J46: 0.1021956088 | K46: 256 | L46: 0.02674650699 | M46: 0.08862275449 | N46: 0.01516966068 | O46: 0.0007984031936 | P46: 0.003992015968 | Q46: 0.105380169 | R46: 0.33203125 | S46: 0.1107158737 | T46: 0.40625 | U46: 247.98 | V46: 165.2378824 | W46: 100 | X46: 137 | Y46: 0.04446420631 | Z46: 0.06091596265 | AA46: 66 | AB46: 19 | AC46: 0.2578125 | AD46: 0.07421875 | AE46: 0.02712316585 | AF46: 0.23828125 | AG46: 0.004891062695 | AH46: 0.0234375 | AI46: 0.06358381503 | AJ46: 0.50390625 | AK46: 0.08403734993 | AL46: 0.296875 | AM46: 0.01289461983 | AN46: 0.0859375 | AO46: 0.07514450867 | AP46: 0.21875 | AQ46: 0.0120053357 | AR46: 0.12109375 | AS46: 0.04490884838 | AT46: 0.09765625
D47: 0381 Enköping | E47: Kommun (B4) | F47: Större städer och kommuner nära större stad | G47: Pendlingskommun nära större stad | H47: 584 | I47: 77 | J47: 0.1318493151 | K47: 77 | L47: 0.03424657534 | M47: 0.1181506849 | N47: 0.02226027397 | O47: 0.003424657534 | P47: 0.003424657534 | Q47: 0.08284023669 | R47: 0.2987012987 | S47: 0.08678500986 | T47: 0.3506493506 | U47: 229.96 | V47: 151.2609091 | W47: 14 | X47: 28 | Y47: 0.02761341223 | Z47: 0.05522682446 | AA47: 15 | AB47: 8 | AC47: 0.1948051948 | AD47: 0.1038961039 | AE47: 0.03353057199 | AF47: 0.3116883117 | AG47: 0.007889546351 | AH47: 0.05194805195 | AI47: 0.05128205128 | AJ47: 0.4025974026 | AK47: 0.009861932939 | AL47: 0.1688311688 | AM47: 0.003944773176 | AN47: 0.06493506494 | AO47: 0.05719921105 | AP47: 0.2337662338 | AQ47: 0.01183431953 | AR47: 0.1948051948 | AS47: 0.04733727811 | AT47: 0.1038961039
D48: 0382 Östhammar | E48: Kommun (B5) | F48: Större städer och kommuner nära större stad | G48: Lågpendlingskommun nära större stad | H48: 244 | I48: 28 | J48: 0.1147540984 | K48: 28 | L48: 0.008196721311 | M48: 0.106557377 | N48: 0.008196721311 | O48: 0.008196721311 | P48: 0.008196721311 | Q48: 0.1759259259 | R48: 0.4642857143 | S48: 0.1898148148 | T48: 0.5714285714 | U48: 210.22 | V48: 109.24 | W48: 23 | X48: 15 | Y48: 0.1064814815 | Z48: 0.06944444444 | AA48: 9 | AB48: 4 | AC48: 0.3214285714 | AD48: 0.1428571429 | AE48: 0.1111111111 | AF48: 0.3214285714 | AG48: 0 | AH48: 0.07142857143 | AI48: 0.1481481481 | AJ48: 0.5357142857 | AK48: 0.1064814815 | AL48: 0.4285714286 | AM48: 0.009259259259 | AN48: 0 | AO48: 0.1481481481 | AP48: 0.3571428571 | AQ48: 0.06944444444 | AR48: 0.25 | AS48: 0.06944444444 | AT48: 0.3214285714
D49: 0461 Gnesta | E49: Kommun (B4) | F49: Större städer och kommuner nära större stad | G49: Pendlingskommun nära större stad | H49: 135 | I49: 28 | J49: 0.2074074074 | K49: 28 | L49: 0.01481481481 | M49: 0.1925925926 | N49: 0.01481481481 | O49: 0 | P49: 0 | Q49: 0.07476635514 | R49: 0.3928571429 | S49: 0.07476635514 | T49: 0.4285714286 | U49: 234.88 | V49: 140.3851852 | W49: 4 | X49: 4 | Y49: 0.03738317757 | Z49: 0.03738317757 | AA49: 8 | AB49: 3 | AC49: 0.2857142857 | AD49: 0.1071428571 | AE49: 0.01869158879 | AF49: 0.1785714286 | AG49: 0.01869158879 | AH49: 0.03571428571 | AI49: 0.01869158879 | AJ49: 0.3214285714 | AK49: 0 | AL49: 0.2142857143 | AM49: 0.03738317757 | AN49: 0.1785714286 | AO49: 0.05607476636 | AP49: 0.25 | AQ49: 0.01869158879 | AR49: 0.07142857143 | AS49: 0.04672897196 | AT49: 0.1428571429
D50: 0480 Nyköping | E50: Kommun (C6) | F50: Mindre städer/tätorter och landsbygdskommuner | G50: Mindre stad/tätort | H50: 703 | I50: 94 | J50: 0.13371266 | K50: 94 | L50: 0.02702702703 | M50: 0.1237553343 | N50: 0.01849217639 | O50: 0 | P50: 0.002844950213 | Q50: 0.1494252874 | R50: 0.3191489362 | S50: 0.1756978654 | T50: 0.3723404255 | U50: 216.63 | V50: 153.3245652 | W50: 26 | X50: 65 | Y50: 0.04269293924 | Z50: 0.1067323481 | AA50: 18 | AB50: 12 | AC50: 0.1914893617 | AD50: 0.1276595745 | AE50: 0.02463054187 | AF50: 0.170212766 | AG50: 0.00328407225 | AH50: 0.06382978723 | AI50: 0.05254515599 | AJ50: 0.414893617 | AK50: 0.05254515599 | AL50: 0.2446808511 | AM50: 0.00328407225 | AN50: 0.08510638298 | AO50: 0.1100164204 | AP50: 0.2553191489 | AQ50: 0.02134646962 | AR50: 0.1170212766 | AS50: 0.06568144499 | AT50: 0.1063829787
D51: 0481 Oxelösund | E51: Kommun (C7) | F51: Mindre städer/tätorter och landsbygdskommuner | G51: Pendlingskommun nära mindre tätort | H51: 144 | I51: 28 | J51: 0.1944444444 | K51: 28 | L51: 0.03472222222 | M51: 0.1736111111 | N51: 0.01388888889 | O51: 0 | P51: 0.01388888889 | Q51: 0.09482758621 | R51: 0.3214285714 | S51: 0.1379310345 | T51: 0.3571428571 | U51: 209.43 | V51: 155.9584615 | W51: 2 | X51: 9 | Y51: 0.01724137931 | Z51: 0.0775862069 | AA51: 5 | AB51: 4 | AC51: 0.1785714286 | AD51: 0.1428571429 | AE51: 0.01724137931 | AF51: 0.3214285714 | AG51: 0.01724137931 | AH51: 0 | AI51: 0.05172413793 | AJ51: 0.2857142857 | AK51: 0.01724137931 | AL51: 0.25 | AM51: 0.03448275862 | AN51: 0.1785714286 | AO51: 0.05172413793 | AP51: 0.2142857143 | AQ51: 0.01724137931 | AR51: 0.1428571429 | AS51: 0.01724137931 | AT51: 0
D52: 0483 Katrineholm | E52: Kommun (C6) | F52: Mindre städer/tätorter och landsbygdskommuner | G52: Mindre stad/tätort | H52: 383 | I52: 47 | J52: 0.1227154047 | K52: 47 | L52: 0.03916449086 | M52: 0.09921671018 | N52: 0.02349869452 | O52: 0.005221932115 | P52: 0.005221932115 | Q52: 0.1755952381 | R52: 0.4680851064 | S52: 0.1845238095 | T52: 0.5319148936 | U52: 214.17 | V52: 135.6282979 | W52: 24 | X52: 35 | Y52: 0.07142857143 | Z52: 0.1041666667 | AA52: 17 | AB52: 5 | AC52: 0.3617021277 | AD52: 0.1063829787 | AE52: 0.07142857143 | AF52: 0.5957446809 | AG52: 0.008928571429 | AH52: 0.02127659574 | AI52: 0.08928571429 | AJ52: 0.6595744681 | AK52: 0.05357142857 | AL52: 0.5319148936 | AM52: 0.005952380952 | AN52: 0 | AO52: 0.1428571429 | AP52: 0.3829787234 | AQ52: 0.04464285714 | AR52: 0.1489361702 | AS52: 0.0744047619 | AT52: 0.1063829787
D53: 0484 Eskilstuna | E53: Kommun (B3) | F53: Större städer och kommuner nära större stad | G53: Större stad | H53: 1368 | I53: 111 | J53: 0.08114035088 | K53: 111 | L53: 0.01754385965 | M53: 0.06944444444 | N53: 0.01023391813 | O53: 0.001461988304 | P53: 0.001461988304 | Q53: 0.1328560064 | R53: 0.3423423423 | S53: 0.1559268099 | T53: 0.4144144144 | U53: 223.1 | V53: 135.7891892 | W53: 42 | X53: 125 | Y53: 0.03341288783 | Z53: 0.09944311854 | AA53: 29 | AB53: 9 | AC53: 0.2612612613 | AD53: 0.08108108108 | AE53: 0.02784407319 | AF53: 0.2972972973 | AG53: 0.00477326969 | AH53: 0.01801801802 | AI53: 0.06523468576 | AJ53: 0.4414414414 | AK53: 0.0230708035 | AL53: 0.2342342342 | AM53: 0.01272871917 | AN53: 0.1081081081 | AO53: 0.08194112967 | AP53: 0.2522522523 | AQ53: 0.02386634845 | AR53: 0.1891891892 | AS53: 0.07478122514 | AT53: 0.2162162162
D54: 0486 Strängnäs | E54: Kommun (B4) | F54: Större städer och kommuner nära större stad | G54: Pendlingskommun nära större stad | H54: 526 | I54: 54 | J54: 0.102661597 | K54: 54 | L54: 0.01711026616 | M54: 0.09885931559 | N54: 0.01520912548 | O54: 0.003802281369 | P54: 0 | Q54: 0.1313559322 | R54: 0.5 | S54: 0.1504237288 | T54: 0.5555555556 | U54: 232.67 | V54: 123.5424528 | W54: 12 | X54: 50 | Y54: 0.02542372881 | Z54: 0.1059322034 | AA54: 18 | AB54: 9 | AC54: 0.3333333333 | AD54: 0.1666666667 | AE54: 0.02966101695 | AF54: 0.2407407407 | AG54: 0.004237288136 | AH54: 0.09259259259 | AI54: 0.04237288136 | AJ54: 0.4259259259 | AK54: 0.02118644068 | AL54: 0.2037037037 | AM54: 0.01483050847 | AN54: 0.03703703704 | AO54: 0.06355932203 | AP54: 0.2592592593 | AQ54: 0.03177966102 | AR54: 0.2037037037 | AS54: 0.06991525424 | AT54: 0.2037037037
D55: 0488 Trosa | E55: Kommun (B4) | F55: Större städer och kommuner nära större stad | G55: Pendlingskommun nära större stad | H55: 169 | I55: 32 | J55: 0.1893491124 | K55: 32 | L55: 0.03550295858 | M55: 0.1656804734 | N55: 0.01183431953 | O55: 0 | P55: 0.01183431953 | Q55: 0.05109489051 | R55: 0.28125 | S55: 0.07299270073 | T55: 0.375 | U55: 239.58 | V55: 155.0271875 | W55: 2 | X55: 5 | Y55: 0.01459854015 | Z55: 0.03649635036 | AA55: 3 | AB55: 6 | AC55: 0.09375 | AD55: 0.1875 | AE55: 0.01459854015 | AF55: 0.15625 | AG55: 0.01459854015 | AH55: 0.03125 | AI55: 0.01459854015 | AJ55: 0.125 | AK55: 0.01459854015 | AL55: 0.125 | AO55: 0.02919708029 | AP55: 0.15625 | AQ55: 0.01459854015 | AR55: 0.25 | AS55: 0.01459854015 | AT55: 0.125
D56: 0561 Åtvidaberg | E56: Kommun (B4) | F56: Större städer och kommuner nära större stad | G56: Pendlingskommun nära större stad | H56: 140 | I56: 25 | J56: 0.1785714286 | K56: 25 | L56: 0.02857142857 | M56: 0.1642857143 | N56: 0.01428571429 | O56: 0.01428571429 | P56: 0.01428571429 | Q56: 0.2 | R56: 0.64 | S56: 0.2260869565 | T56: 0.68 | U56: 216.1 | V56: 107.68 | W56: 2 | X56: 21 | Y56: 0.01739130435 | Z56: 0.1826086957 | AA56: 4 | AB56: 12 | AC56: 0.16 | AD56: 0.48 | AE56: 0.01739130435 | AF56: 0.08 | AG56: 0.01739130435 | AH56: 0 | AI56: 0.01739130435 | AJ56: 0 | AK56: 0 | AL56: 0.08 | AM56: 0.01739130435 | AN56: 0 | AO56: 0.1913043478 | AP56: 0.56 | AQ56: 0.01739130435 | AR56: 0.44 | AS56: 0.06086956522 | AT56: 0.4
D57: 0580 Linköping | E57: Kommun (B3) | F57: Större städer och kommuner nära större stad | G57: Större stad | H57: 1853 | I57: 199 | J57: 0.1073934161 | K57: 199 | L57: 0.03561791689 | M57: 0.09174311927 | N57: 0.02644360496 | O57: 0.009174311927 | P57: 0.009713977334 | Q57: 0.1191051995 | R57: 0.3618090452 | S57: 0.1342200726 | T57: 0.4271356784 | U57: 235.84 | V57: 145.9357143 | W57: 127 | X57: 70 | Y57: 0.07678355502 | Z57: 0.0423216445 | AA57: 64 | AB57: 8 | AC57: 0.3216080402 | AD57: 0.04020100503 | AE57: 0.03748488513 | AF57: 0.3768844221 | AG57: 0.006650544135 | AH57: 0.04522613065 | AI57: 0.1499395405 | AJ57: 0.5829145729 | AK57: 0.01330108827 | AL57: 0.1507537688 | AM57: 0.03325272068 | AN57: 0.2512562814 | AO57: 0.084643289 | AP57: 0.2713567839 | AQ57: 0.01390568319 | AR57: 0.1658291457 | AS57: 0.04957678356 | AT57: 0.1557788945
D58: 0581 Norrköping | E58: Kommun (B3) | F58: Större städer och kommuner nära större stad | G58: Större stad | H58: 1694 | I58: 119 | J58: 0.07024793388 | K58: 119 | L58: 0.02184179457 | M58: 0.05608028335 | N58: 0.01298701299 | O58: 0.007083825266 | P58: 0.006493506494 | Q58: 0.1257142857 | R58: 0.5210084034 | S58: 0.133968254 | T58: 0.5546218487 | U58: 234.47 | V58: 133.5957627 | W58: 109 | X58: 89 | Y58: 0.06920634921 | Z58: 0.05650793651 | AA58: 52 | AB58: 10 | AC58: 0.4369747899 | AD58: 0.08403361345 | AE58: 0.02666666667 | AF58: 0.2773109244 | AG58: 0.008253968254 | AH58: 0.05042016807 | AI58: 0.1257142857 | AJ58: 0.6554621849 | AK58: 0.01206349206 | AL58: 0.2521008403 | AM58: 0.02603174603 | AN58: 0.1764705882 | AO58: 0.09587301587 | AP58: 0.3613445378 | AQ58: 0.02984126984 | AR58: 0.2352941176 | AS58: 0.04825396825 | AT58: 0.2352941176
D59: 0583 Motala | E59: Kommun (B5) | F59: Större städer och kommuner nära större stad | G59: Lågpendlingskommun nära större stad | H59: 534 | I59: 50 | J59: 0.0936329588 | K59: 50 | L59: 0.03745318352 | M59: 0.07865168539 | N59: 0.02434456929 | O59: 0.003745318352 | P59: 0.007490636704 | Q59: 0.1549586777 | R59: 0.5 | S59: 0.1694214876 | T59: 0.56 | U59: 216.13 | V59: 119.22 | W59: 32 | X59: 43 | Y59: 0.06611570248 | Z59: 0.08884297521 | AA59: 19 | AB59: 6 | AC59: 0.38 | AD59: 0.12 | AE59: 0.03512396694 | AF59: 0.4 | AG59: 0.00826446281 | AH59: 0.02 | AI59: 0.04132231405 | AJ59: 0.44 | AK59: 0.04958677686 | AL59: 0.2 | AM59: 0.004132231405 | AN59: 0 | AO59: 0.1012396694 | AP59: 0.32 | AQ59: 0.03719008264 | AR59: 0.26 | AS59: 0.0826446281 | AT59: 0.32
D60: 0586 Mjölby | E60: Kommun (B4) | F60: Större städer och kommuner nära större stad | G60: Pendlingskommun nära större stad | H60: 360 | I60: 29 | J60: 0.08055555556 | K60: 29 | L60: 0.03333333333 | M60: 0.06666666667 | N60: 0.02222222222 | O60: 0.005555555556 | P60: 0.005555555556 | Q60: 0.166163142 | R60: 0.5172413793 | S60: 0.1782477341 | T60: 0.6551724138 | U60: 208.95 | V60: 109.5441379 | W60: 24 | X60: 31 | Y60: 0.07250755287 | Z60: 0.09365558912 | AA60: 13 | AB60: 2 | AC60: 0.4482758621 | AD60: 0.06896551724 | AE60: 0.06344410876 | AF60: 0.5517241379 | AG60: 0.006042296073 | AH60: 0.1379310345 | AI60: 0.1027190332 | AJ60: 0.6206896552 | AK60: 0.04833836858 | AL60: 0.4827586207 | AM60: 0.01812688822 | AN60: 0.03448275862 | AO60: 0.1057401813 | AP60: 0.4137931034 | AQ60: 0.03927492447 | AR60: 0.3448275862 | AS60: 0.09365558912 | AT60: 0.2068965517
D61: 0662 Gislaved | E61: Kommun (C8) | F61: Mindre städer/tätorter och landsbygdskommuner | G61: Landsbygdskommun | H61: 380 | I61: 23 | J61: 0.06052631579 | K61: 23 | L61: 0.01578947368 | M61: 0.05263157895 | N61: 0.01315789474 | O61: 0 | P61: 0.005263157895 | Q61: 0.1792717087 | R61: 0.347826087 | S61: 0.1848739496 | T61: 0.5217391304 | U61: 217.33 | V61: 129.5918182 | W61: 18 | X61: 46 | Y61: 0.05042016807 | Z61: 0.1288515406 | AA61: 4 | AB61: 4 | AC61: 0.1739130435 | AD61: 0.1739130435 | AE61: 0.02801120448 | AF61: 0.1739130435 | AG61: 0.005602240896 | AH61: 0 | AI61: 0.05322128852 | AJ61: 0.1304347826 | AK61: 0.03361344538 | AL61: 0.1304347826 | AO61: 0.1232492997 | AP61: 0.3043478261 | AQ61: 0.04481792717 | AR61: 0.08695652174 | AS61: 0.0756302521 | AT61: 0.1739130435
D62: 0680 Jönköping | E62: Kommun (B3) | F62: Större städer och kommuner nära större stad | G62: Större stad | H62: 1638 | I62: 119 | J62: 0.07264957265 | K62: 119 | L62: 0.01526251526 | M62: 0.06349206349 | N62: 0.01221001221 | O62: 0.001221001221 | P62: 0.002442002442 | Q62: 0.1020408163 | R62: 0.4705882353 | S62: 0.1105990783 | T62: 0.5210084034 | U62: 236.52 | V62: 134.6030769 | W62: 35 | X62: 120 | Y62: 0.02304147465 | Z62: 0.07899934167 | AA62: 38 | AB62: 18 | AC62: 0.3193277311 | AD62: 0.1512605042 | AE62: 0.01777485188 | AF62: 0.3613445378 | AG62: 0.001974983542 | AH62: 0.05042016807 | AI62: 0.03291639236 | AJ62: 0.4705882353 | AK62: 0.005924950625 | AL62: 0.1680672269 | AM62: 0.002633311389 | AN62: 0.08403361345 | AO62: 0.06912442396 | AP62: 0.3781512605 | AQ62: 0.0236998025 | AR62: 0.243697479 | AS62: 0.05134957209 | AT62: 0.2268907563
D63: 0682 Nässjö | E63: Kommun (B5) | F63: Större städer och kommuner nära större stad | G63: Lågpendlingskommun nära större stad | H63: 376 | I63: 33 | J63: 0.08776595745 | K63: 33 | L63: 0.02925531915 | M63: 0.06914893617 | N63: 0.01329787234 | O63: 0.005319148936 | P63: 0.005319148936 | Q63: 0.1486880466 | R63: 0.4545454545 | S63: 0.1632653061 | T63: 0.4848484848 | U63: 221.13 | V63: 137.22375 | W63: 29 | X63: 22 | Y63: 0.08454810496 | Z63: 0.06413994169 | AA63: 15 | AB63: 0 | AC63: 0.4545454545 | AD63: 0 | AE63: 0.07580174927 | AF63: 0.3939393939 | AG63: 0.002915451895 | AH63: 0.0303030303 | AI63: 0.1195335277 | AJ63: 0.7272727273 | AK63: 0.06705539359 | AL63: 0.3939393939 | AM63: 0 | AN63: 0.06060606061 | AO63: 0.09037900875 | AP63: 0.3333333333 | AQ63: 0.00583090379 | AR63: 0.1818181818 | AS63: 0.05539358601 | AT63: 0.2424242424
D64: 0683 Värnamo | E64: Kommun (C6) | F64: Mindre städer/tätorter och landsbygdskommuner | G64: Mindre stad/tätort | H64: 408 | I64: 30 | J64: 0.07352941176 | K64: 30 | L64: 0.02450980392 | M64: 0.05882352941 | N64: 0.01715686275 | O64: 0.004901960784 | P64: 0.004901960784 | Q64: 0.1481481481 | R64: 0.6666666667 | S64: 0.1507936508 | T64: 0.7 | U64: 221.97 | V64: 122.255 | W64: 16 | X64: 40 | Y64: 0.04232804233 | Z64: 0.1058201058 | AA64: 16 | AB64: 4 | AC64: 0.5333333333 | AD64: 0.1333333333 | AE64: 0.01322751323 | AF64: 0.2666666667 | AG64: 0.005291005291 | AH64: 0.03333333333 | AI64: 0.07407407407 | AJ64: 0.7 | AK64: 0.005291005291 | AL64: 0.1333333333 | AM64: 0.005291005291 | AN64: 0.1333333333 | AO64: 0.1084656085 | AP64: 0.5333333333 | AQ64: 0.03703703704 | AR64: 0.2666666667 | AS64: 0.06878306878 | AT64: 0.2333333333
D65: 0685 Vetlanda | E65: Kommun (C8) | F65: Mindre städer/tätorter och landsbygdskommuner | G65: Landsbygdskommun | H65: 302 | I65: 21 | J65: 0.06953642384 | K65: 21 | L65: 0.01324503311 | M65: 0.05960264901 | N65: 0.006622516556 | O65: 0.006622516556 | P65: 0.006622516556 | Q65: 0.1637010676 | R65: 0.4761904762 | S65: 0.1708185053 | T65: 0.619047619 | U65: 215.18 | V65: 103.5035 | W65: 22 | X65: 24 | Y65: 0.07829181495 | Z65: 0.08540925267 | AA65: 8 | AB65: 2 | AC65: 0.380952381 | AD65: 0.09523809524 | AE65: 0.04982206406 | AF65: 0.4285714286 | AG65: 0.003558718861 | AH65: 0 | AI65: 0.09608540925 | AJ65: 0.4761904762 | AK65: 0.03202846975 | AL65: 0.2380952381 | AM65: 0 | AN65: 0.09523809524 | AO65: 0.128113879 | AP65: 0.380952381 | AQ65: 0.03558718861 | AR65: 0.380952381 | AS65: 0.103202847 | AT65: 0.380952381
D66: 0764 Alvesta | E66: Kommun (B4) | F66: Större städer och kommuner nära större stad | G66: Pendlingskommun nära större stad | H66: 258 | I66: 25 | J66: 0.09689922481 | K66: 25 | L66: 0.01937984496 | M66: 0.08139534884 | N66: 0.01937984496 | O66: 0.007751937984 | P66: 0.007751937984 | Q66: 0.1158798283 | R66: 0.44 | S66: 0.1287553648 | T66: 0.48 | U66: 227.24 | V66: 144.9896 | W66: 17 | X66: 10 | Y66: 0.07296137339 | Z66: 0.04291845494 | AA66: 9 | AB66: 2 | AC66: 0.36 | AD66: 0.08 | AE66: 0.03004291845 | AF66: 0.4 | AG66: 0.01287553648 | AH66: 0 | AI66: 0.1673819742 | AJ66: 0.76 | AK66: 0.08583690987 | AL66: 0.32 | AM66: 0.008583690987 | AN66: 0 | AO66: 0.08583690987 | AP66: 0.24 | AQ66: 0.008583690987 | AR66: 0.12 | AS66: 0.05579399142 | AT66: 0.2
D67: 0780 Växjö | E67: Kommun (B3) | F67: Större städer och kommuner nära större stad | G67: Större stad | H67: 1186 | I67: 99 | J67: 0.08347386172 | K67: 99 | L67: 0.02445193929 | M67: 0.07166947723 | N67: 0.01686340641 | O67: 0.001686340641 | P67: 0.006745362563 | Q67: 0.132474701 | R67: 0.3939393939 | S67: 0.1398344066 | T67: 0.4141414141 | U67: 230.3 | V67: 144.6270833 | W67: 40 | X67: 104 | Y67: 0.03679852806 | Z67: 0.09567617295 | AA67: 32 | AB67: 7 | AC67: 0.3232323232 | AD67: 0.07070707071 | AE67: 0.03955841766 | AF67: 0.3838383838 | AG67: 0.001839926403 | AH67: 0.09090909091 | AI67: 0.04139834407 | AJ67: 0.4848484848 | AK67: 0.01195952162 | AL67: 0.2727272727 | AM67: 0.01011959522 | AN67: 0.07070707071 | AO67: 0.1030358786 | AP67: 0.2121212121 | AQ67: 0.02759889604 | AR67: 0.1717171717 | AS67: 0.04507819687 | AT67: 0.1818181818
D68: 0781 Ljungby | E68: Kommun (C6) | F68: Mindre städer/tätorter och landsbygdskommuner | G68: Mindre stad/tätort | H68: 324 | I68: 23 | J68: 0.07098765432 | K68: 23 | L68: 0.02469135802 | M68: 0.06172839506 | N68: 0.01851851852 | O68: 0 | P68: 0.006172839506 | Q68: 0.1926910299 | R68: 0.6956521739 | S68: 0.2026578073 | T68: 0.6956521739 | U68: 215.93 | V68: 109.4804348 | W68: 27 | X68: 31 | Y68: 0.08970099668 | Z68: 0.1029900332 | AA68: 13 | AB68: 3 | AC68: 0.5652173913 | AD68: 0.1304347826 | AE68: 0.006644518272 | AF68: 0 | AG68: 0.006644518272 | AH68: 0 | AI68: 0.1395348837 | AJ68: 0.652173913 | AK68: 0.01993355482 | AL68: 0.1304347826 | AM68: 0.006644518272 | AN68: 0.08695652174 | AO68: 0.1395348837 | AP68: 0.6086956522 | AQ68: 0.02325581395 | AR68: 0.347826087 | AS68: 0.08637873754 | AT68: 0.2608695652
D69: 0880 Kalmar | E69: Kommun (B3) | F69: Större städer och kommuner nära större stad | G69: Större stad | H69: 751 | I69: 49 | J69: 0.06524633822 | K69: 49 | L69: 0.02396804261 | M69: 0.05059920107 | N69: 0.0119840213 | O69: 0.002663115846 | P69: 0.005326231691 | Q69: 0.08262108262 | R69: 0.4081632653 | S69: 0.09259259259 | T69: 0.4897959184 | U69: 244.71 | V69: 142.6508511 | W69: 32 | X69: 26 | Y69: 0.04558404558 | Z69: 0.03703703704 | AA69: 19 | AB69: 1 | AC69: 0.387755102 | AD69: 0.02040816327 | AE69: 0.01994301994 | AF69: 0.2653061224 | AG69: 0.002849002849 | AH69: 0.1020408163 | AI69: 0.1025641026 | AJ69: 0.6326530612 | AK69: 0.01282051282 | AL69: 0.3673469388 | AM69: 0.008547008547 | AN69: 0.08163265306 | AO69: 0.05982905983 | AP69: 0.2857142857 | AQ69: 0.008547008547 | AR69: 0.1632653061 | AS69: 0.04131054131 | AT69: 0.1836734694
D70: 0882 Oskarshamn | E70: Kommun (C6) | F70: Mindre städer/tätorter och landsbygdskommuner | G70: Mindre stad/tätort | H70: 320 | I70: 31 | J70: 0.096875 | K70: 31 | L70: 0.028125 | M70: 0.090625 | N70: 0.021875 | O70: 0.00625 | P70: 0.00625 | Q70: 0.1487889273 | R70: 0.5806451613 | S70: 0.1487889273 | T70: 0.5806451613 | U70: 226.45 | V70: 130.0296774 | W70: 16 | X70: 27 | Y70: 0.0553633218 | Z70: 0.09342560554 | AA70: 8 | AB70: 10 | AC70: 0.2580645161 | AD70: 0.3225806452 | AE70: 0.006920415225 | AF70: 0.2903225806 | AG70: 0 | AH70: 0 | AI70: 0.1107266436 | AJ70: 0.3225806452 | AK70: 0.01384083045 | AL70: 0.1935483871 | AM70: 0.006920415225 | AN70: 0.09677419355 | AO70: 0.1003460208 | AP70: 0.4516129032 | AQ70: 0.04498269896 | AR70: 0.4193548387 | AS70: 0.07266435986 | AT70: 0.1935483871
D71: 0883 Västervik | E71: Kommun (C6) | F71: Mindre städer/tätorter och landsbygdskommuner | G71: Mindre stad/tätort | H71: 351 | I71: 46 | J71: 0.1310541311 | K71: 46 | L71: 0.03703703704 | M71: 0.1082621083 | N71: 0.02279202279 | O71: 0.005698005698 | P71: 0.005698005698 | Q71: 0.1770491803 | R71: 0.3913043478 | S71: 0.1901639344 | T71: 0.4347826087 | U71: 219.84 | V71: 143.4346667 | W71: 11 | X71: 43 | Y71: 0.03606557377 | Z71: 0.1409836066 | AA71: 12 | AB71: 6 | AC71: 0.2608695652 | AD71: 0.1304347826 | AE71: 0.0131147541 | AF71: 0.2391304348 | AG71: 0.006557377049 | AH71: 0 | AI71: 0.04262295082 | AJ71: 0.3043478261 | AK71: 0.006557377049 | AL71: 0.2173913043 | AM71: 0.006557377049 | AN71: 0 | AO71: 0.1508196721 | AP71: 0.3260869565 | AQ71: 0.03278688525 | AR71: 0.2608695652 | AS71: 0.07213114754 | AT71: 0.2391304348
D72: 0980 Gotland | E72: Kommun (C6) | F72: Mindre städer/tätorter och landsbygdskommuner | G72: Mindre stad/tätort | H72: 627 | I72: 97 | J72: 0.1547049442 | K72: 97 | L72: 0.05901116427 | M72: 0.1275917065 | N72: 0.04146730463 | O72: 0.006379585327 | P72: 0.007974481659 | Q72: 0.07547169811 | R72: 0.2886597938 | S72: 0.08113207547 | T72: 0.3608247423 | U72: 236.58 | V72: 164.5175258 | W72: 20 | X72: 20 | Y72: 0.03773584906 | Z72: 0.03773584906 | AA72: 26 | AB72: 2 | AC72: 0.2680412371 | AD72: 0.0206185567 | AE72: 0.0358490566 | AF72: 0.2783505155 | AG72: 0.001886792453 | AH72: 0.1030927835 | AI72: 0.07547169811 | AJ72: 0.5154639175 | AK72: 0.01509433962 | AL72: 0.2680412371 | AM72: 0.003773584906 | AN72: 0 | AO72: 0.05094339623 | AP72: 0.2164948454 | AQ72: 0.02452830189 | AR72: 0.1443298969 | AS72: 0.03396226415 | AT72: 0.1546391753
D73: 1080 Karlskrona | E73: Kommun (C6) | F73: Mindre städer/tätorter och landsbygdskommuner | G73: Mindre stad/tätort | H73: 805 | I73: 59 | J73: 0.07329192547 | K73: 59 | L73: 0.02857142857 | M73: 0.06211180124 | N73: 0.01863354037 | O73: 0 | P73: 0.00248447205 | Q73: 0.1072386059 | R73: 0.5254237288 | S73: 0.1112600536 | T73: 0.5423728814 | U73: 225.71 | V73: 115.6266102 | W73: 33 | X73: 47 | Y73: 0.04423592493 | Z73: 0.06300268097 | AA73: 24 | AB73: 7 | AC73: 0.406779661 | AD73: 0.1186440678 | AE73: 0.02680965147 | AF73: 0.406779661 | AG73: 0.006702412869 | AH73: 0.1016949153 | AI73: 0.07104557641 | AJ73: 0.5254237288 | AK73: 0.01474530831 | AL73: 0.2372881356 | AM73: 0.008042895442 | AN73: 0.1186440678 | AO73: 0.07774798928 | AP73: 0.2372881356 | AQ73: 0.04021447721 | AR73: 0.2711864407 | AS73: 0.04825737265 | AT73: 0.2203389831
D74: 1081 Ronneby | E74: Kommun (C7) | F74: Mindre städer/tätorter och landsbygdskommuner | G74: Pendlingskommun nära mindre tätort | H74: 406 | I74: 32 | J74: 0.07881773399 | K74: 32 | L74: 0.02463054187 | M74: 0.06896551724 | N74: 0.0197044335 | O74: 0 | P74: 0 | Q74: 0.1844919786 | R74: 0.34375 | S74: 0.1978609626 | T74: 0.4375 | U74: 208.85 | V74: 120.15875 | W74: 25 | X74: 44 | Y74: 0.06684491979 | Z74: 0.1176470588 | AA74: 9 | AB74: 2 | AC74: 0.28125 | AD74: 0.0625 | AE74: 0.05347593583 | AF74: 0.375 | AG74: 0.005347593583 | AH74: 0.03125 | AI74: 0.05882352941 | AJ74: 0.59375 | AK74: 0.01069518717 | AL74: 0.21875 | AM74: 0.01069518717 | AN74: 0.34375 | AO74: 0.1336898396 | AP74: 0.28125 | AQ74: 0.04545454545 | AR74: 0.1875 | AS74: 0.1069518717 | AT74: 0.21875
D75: 1082 Karlshamn | E75: Kommun (C6) | F75: Mindre städer/tätorter och landsbygdskommuner | G75: Mindre stad/tätort | H75: 365 | I75: 39 | J75: 0.1068493151 | K75: 39 | L75: 0.03835616438 | M75: 0.0904109589 | N75: 0.02191780822 | O75: 0.005479452055 | P75: 0.005479452055 | Q75: 0.1104294479 | R75: 0.358974359 | S75: 0.1134969325 | T75: 0.4102564103 | U75: 230.5 | V75: 159.91 | W75: 18 | X75: 18 | Y75: 0.05521472393 | Z75: 0.05521472393 | AA75: 11 | AB75: 3 | AC75: 0.2820512821 | AD75: 0.07692307692 | AE75: 0.01840490798 | AF75: 0.3333333333 | AG75: 0.006134969325 | AH75: 0 | AI75: 0.1104294479 | AJ75: 0.3846153846 | AK75: 0.01226993865 | AL75: 0.1794871795 | AM75: 0.0245398773 | AN75: 0.1025641026 | AO75: 0.06748466258 | AP75: 0.2820512821 | AQ75: 0.006134969325 | AR75: 0.07692307692 | AS75: 0.0736196319 | AT75: 0.05128205128
D76: 1083 Sölvesborg | E76: Kommun (B4) | F76: Större städer och kommuner nära större stad | G76: Pendlingskommun nära större stad | H76: 182 | I76: 35 | J76: 0.1923076923 | K76: 35 | L76: 0.01098901099 | M76: 0.1868131868 | N76: 0.01098901099 | O76: 0.01098901099 | P76: 0.01098901099 | Q76: 0.1020408163 | R76: 0.2571428571 | S76: 0.1020408163 | T76: 0.4 | U76: 223.4 | V76: 142.384 | W76: 12 | X76: 3 | Y76: 0.08163265306 | Z76: 0.02040816327 | AA76: 9 | AB76: 0 | AC76: 0.2571428571 | AD76: 0 | AE76: 0.05442176871 | AF76: 0.4285714286 | AG76: 0 | AH76: 0.05714285714 | AI76: 0.1428571429 | AJ76: 0.5428571429 | AK76: 0.02721088435 | AL76: 0.3142857143 | AM76: 0 | AN76: 0.05714285714 | AO76: 0.07482993197 | AP76: 0.2 | AQ76: 0.01360544218 | AR76: 0.1142857143 | AS76: 0.01360544218 | AT76: 0.08571428571
D77: 1214 Svalöv | E77: Kommun (B4) | F77: Större städer och kommuner nära större stad | G77: Pendlingskommun nära större stad | H77: 177 | I77: 32 | J77: 0.1807909605 | K77: 32 | L77: 0.05649717514 | M77: 0.1242937853 | N77: 0.01129943503 | O77: 0.01129943503 | P77: 0.02259887006 | Q77: 0.1517241379 | R77: 0.375 | S77: 0.1724137931 | T77: 0.40625 | U77: 219.24 | V77: 166.002 | W77: 9 | X77: 13 | Y77: 0.06206896552 | Z77: 0.08965517241 | AA77: 10 | AB77: 2 | AC77: 0.3125 | AD77: 0.0625 | AE77: 0.0275862069 | AF77: 0.28125 | AG77: 0.01379310345 | AH77: 0 | AI77: 0.09655172414 | AJ77: 0.5 | AK77: 0.01379310345 | AL77: 0.15625 | AM77: 0.01379310345 | AN77: 0 | AO77: 0.1172413793 | AP77: 0.34375 | AQ77: 0.0275862069 | AR77: 0.1875 | AS77: 0.09655172414 | AT77: 0.09375
D78: 1230 Staffanstorp | E78: Kommun (A2) | F78: Storstäder och storstadsnära kommuner | G78: Pendlingskommun nära storstad | H78: 348 | I78: 48 | J78: 0.1379310345 | K78: 48 | L78: 0.0316091954 | M78: 0.1091954023 | N78: 0.01149425287 | O78: 0 | P78: 0.01436781609 | Q78: 0.02666666667 | R78: 0.1458333333 | S78: 0.03333333333 | T78: 0.1666666667 | U78: 255.56 | V78: 188.6425 | W78: 0 | X78: 8 | Y78: 0 | Z78: 0.02666666667 | AA78: 5 | AB78: 2 | AC78: 0.1041666667 | AD78: 0.04166666667 | AE78: 0.006666666667 | AF78: 0.1666666667 | AG78: 0.006666666667 | AH78: 0 | AI78: 0.01666666667 | AJ78: 0.4583333333 | AK78: 0.006666666667 | AL78: 0.1875 | AM78: 0.006666666667 | AN78: 0.1666666667 | AO78: 0.02666666667 | AP78: 0.0625 | AQ78: 0.006666666667 | AR78: 0.04166666667 | AS78: 0.006666666667 | AT78: 0.04166666667
D79: 1233 Vellinge | E79: Kommun (A2) | F79: Storstäder och storstadsnära kommuner | G79: Pendlingskommun nära storstad | H79: 523 | I79: 46 | J79: 0.0879541109 | K79: 46 | L79: 0.01529636711 | M79: 0.08030592734 | N79: 0.009560229446 | O79: 0.003824091778 | P79: 0.003824091778 | Q79: 0.02306079665 | R79: 0.1956521739 | S79: 0.0251572327 | T79: 0.2173913043 | U79: 262.86 | V79: 191.7091304 | W79: 4 | X79: 7 | Y79: 0.008385744235 | Z79: 0.01467505241 | AA79: 8 | AB79: 1 | AC79: 0.1739130435 | AD79: 0.02173913043 | AE79: 0.004192872117 | AF79: 0.152173913 | AG79: 0.004192872117 | AH79: 0 | AI79: 0.03354297694 | AJ79: 0.3260869565 | AK79: 0.004192872117 | AL79: 0.1086956522 | AM79: 0 | AN79: 0.08695652174 | AO79: 0.01467505241 | AP79: 0.152173913 | AQ79: 0.004192872117 | AR79: 0.1086956522 | AS79: 0.004192872117 | AT79: 0
D80: 1261 Kävlinge | E80: Kommun (A2) | F80: Storstäder och storstadsnära kommuner | G80: Pendlingskommun nära storstad | H80: 490 | I80: 56 | J80: 0.1142857143 | K80: 56 | L80: 0.02448979592 | M80: 0.1020408163 | N80: 0.02040816327 | O80: 0.004081632653 | P80: 0.008163265306 | Q80: 0.05760368664 | R80: 0.1964285714 | S80: 0.06221198157 | T80: 0.2142857143 | U80: 251.84 | V80: 175.7830357 | W80: 6 | X80: 19 | Y80: 0.01382488479 | Z80: 0.04377880184 | AA80: 7 | AB80: 4 | AC80: 0.125 | AD80: 0.07142857143 | AE80: 0.004608294931 | AF80: 0 | AG80: 0 | AH80: 0.03571428571 | AI80: 0.02995391705 | AJ80: 0.375 | AK80: 0.004608294931 | AL80: 0 | AM80: 0.004608294931 | AN80: 0.07142857143 | AO80: 0.03686635945 | AP80: 0.1428571429 | AQ80: 0.004608294931 | AR80: 0.125 | AS80: 0.02073732719 | AT80: 0.07142857143
D81: 1262 Lomma | E81: Kommun (A2) | F81: Storstäder och storstadsnära kommuner | G81: Pendlingskommun nära storstad | H81: 425 | I81: 27 | J81: 0.06352941176 | K81: 27 | L81: 0.01647058824 | M81: 0.04941176471 | N81: 0.004705882353 | O81: 0.004705882353 | P81: 0.004705882353 | Q81: 0.02763819095 | R81: 0.1111111111 | S81: 0.03266331658 | T81: 0.2592592593 | U81: 273.26 | V81: 185.6876923 | W81: 8 | X81: 3 | Y81: 0.02010050251 | Z81: 0.007537688442 | AA81: 3 | AB81: 0 | AC81: 0.1111111111 | AD81: 0 | AE81: 0.03266331658 | AF81: 0.4444444444 | AG81: 0 | AH81: 0 | AI81: 0.06783919598 | AJ81: 0.5925925926 | AK81: 0.005025125628 | AL81: 0.1481481481 | AM81: 0.03266331658 | AN81: 0.3703703704 | AO81: 0.02512562814 | AP81: 0.03703703704 | AS81: 0.0175879397 | AT81: 0.07407407407
D82: 1263 Svedala | E82: Kommun (A2) | F82: Storstäder och storstadsnära kommuner | G82: Pendlingskommun nära storstad | H82: 296 | I82: 48 | J82: 0.1621621622 | K82: 48 | L82: 0.02702702703 | M82: 0.1452702703 | N82: 0.02027027027 | O82: 0 | P82: 0.01351351351 | Q82: 0.02419354839 | R82: 0.375 | S82: 0.04032258065 | T82: 0.4375 | U82: 252.18 | V82: 153.323617 | W82: 5 | X82: 1 | Y82: 0.02016129032 | Z82: 0.004032258065 | AA82: 18 | AB82: 0 | AC82: 0.375 | AD82: 0 | AE82: 0.02419354839 | AF82: 0.2708333333 | AG82: 0.008064516129 | AH82: 0 | AI82: 0.08467741935 | AJ82: 0.7083333333 | AK82: 0.02016129032 | AL82: 0.3541666667 | AM82: 0.08064516129 | AN82: 0.5625 | AO82: 0.008064516129 | AP82: 0.2083333333 | AQ82: 0.008064516129 | AR82: 0.1458333333 | AS82: 0.01612903226 | AT82: 0.125
D83: 1265 Sjöbo | E83: Kommun (B4) | F83: Större städer och kommuner nära större stad | G83: Pendlingskommun nära större stad | H83: 201 | I83: 31 | J83: 0.1542288557 | K83: 31 | L83: 0.01990049751 | M83: 0.1243781095 | N83: 0.009950248756 | O83: 0.009950248756 | P83: 0.02985074627 | Q83: 0.1588235294 | R83: 0.3225806452 | S83: 0.1941176471 | T83: 0.3870967742 | U83: 212.2 | V83: 154.5563333 | W83: 6 | X83: 21 | Y83: 0.03529411765 | Z83: 0.1235294118 | AA83: 6 | AB83: 4 | AC83: 0.1935483871 | AD83: 0.1290322581 | AE83: 0.04117647059 | AF83: 0.1935483871 | AG83: 0.005882352941 | AH83: 0 | AI83: 0.05882352941 | AJ83: 0.3548387097 | AK83: 0.01176470588 | AL83: 0.09677419355 | AM83: 0.04705882353 | AN83: 0.09677419355 | AO83: 0.1294117647 | AP83: 0.2580645161 | AQ83: 0.04705882353 | AR83: 0.1935483871 | AS83: 0.07647058824 | AT83: 0.2903225806
D84: 1266 Hörby | E84: Kommun (B4) | F84: Större städer och kommuner nära större stad | G84: Pendlingskommun nära större stad | H84: 149 | I84: 36 | J84: 0.2416107383 | K84: 36 | L84: 0.04026845638 | M84: 0.1275167785 | N84: 0.03355704698 | O84: 0.01342281879 | P84: 0.1275167785 | Q84: 0.06194690265 | R84: 0.2777777778 | S84: 0.0796460177 | T84: 0.3055555556 | U84: 224.4 | V84: 170.2082353 | W84: 5 | X84: 2 | Y84: 0.04424778761 | Z84: 0.01769911504 | AA84: 5 | AB84: 5 | AC84: 0.1388888889 | AD84: 0.1388888889 | AE84: 0.08849557522 | AF84: 0.1666666667 | AG84: 0 | AH84: 0 | AI84: 0.1150442478 | AJ84: 0.3055555556 | AK84: 0.04424778761 | AL84: 0.1111111111 | AO84: 0.05309734513 | AP84: 0.2222222222 | AQ84: 0.01769911504 | AR84: 0 | AS84: 0.03539823009 | AT84: 0.08333333333
D85: 1267 Höör | E85: Kommun (C7) | F85: Mindre städer/tätorter och landsbygdskommuner | G85: Pendlingskommun nära mindre tätort | H85: 204 | I85: 45 | J85: 0.2205882353 | K85: 45 | L85: 0.05392156863 | M85: 0.09803921569 | N85: 0.02941176471 | O85: 0.02941176471 | P85: 0.0931372549 | Q85: 0.1194968553 | R85: 0.2222222222 | S85: 0.1194968553 | T85: 0.3111111111 | U85: 232.12 | V85: 188.7682222 | W85: 6 | X85: 13 | Y85: 0.03773584906 | Z85: 0.08176100629 | AA85: 8 | AB85: 2 | AC85: 0.1777777778 | AD85: 0.04444444444 | AE85: 0.01257861635 | AF85: 0.1555555556 | AG85: 0 | AH85: 0 | AI85: 0.05660377358 | AJ85: 0.2444444444 | AK85: 0.01257861635 | AL85: 0.1333333333 | AM85: 0.01257861635 | AN85: 0.08888888889 | AO85: 0.06918238994 | AP85: 0.1555555556 | AQ85: 0.01257861635 | AR85: 0 | AS85: 0.05031446541 | AT85: 0.06666666667
D86: 1272 Bromölla | E86: Kommun (B4) | F86: Större städer och kommuner nära större stad | G86: Pendlingskommun nära större stad | H86: 188 | I86: 22 | J86: 0.1170212766 | K86: 22 | L86: 0.03723404255 | M86: 0.09042553191 | N86: 0.01063829787 | O86: 0.01063829787 | P86: 0.01063829787 | Q86: 0.1626506024 | R86: 0.4090909091 | S86: 0.1686746988 | T86: 0.5 | U86: 217.58 | V86: 151.0109091 | W86: 5 | X86: 22 | Y86: 0.03012048193 | Z86: 0.1325301205 | AA86: 5 | AB86: 4 | AC86: 0.2272727273 | AD86: 0.1818181818 | AE86: 0.01204819277 | AF86: 0 | AG86: 0.006024096386 | AH86: 0.04545454545 | AI86: 0.0421686747 | AJ86: 0.4090909091 | AO86: 0.1325301205 | AP86: 0.2272727273 | AQ86: 0.01204819277 | AR86: 0.09090909091 | AS86: 0.07228915663 | AT86: 0.1363636364
D87: 1276 Klippan | E87: Kommun (B4) | F87: Större städer och kommuner nära större stad | G87: Pendlingskommun nära större stad | H87: 214 | I87: 32 | J87: 0.1495327103 | K87: 32 | L87: 0.02803738318 | M87: 0.1355140187 | N87: 0.01869158879 | O87: 0.009345794393 | P87: 0.009345794393 | Q87: 0.2142857143 | R87: 0.625 | S87: 0.2197802198 | T87: 0.625 | U87: 203.98 | V87: 115.0696774 | W87: 12 | X87: 27 | Y87: 0.06593406593 | Z87: 0.1483516484 | AA87: 11 | AB87: 9 | AC87: 0.34375 | AD87: 0.28125 | AE87: 0.02747252747 | AF87: 0.09375 | AG87: 0 | AH87: 0.0625 | AI87: 0.07692307692 | AJ87: 0.34375 | AK87: 0.04945054945 | AL87: 0.25 | AM87: 0.01098901099 | AN87: 0 | AO87: 0.1923076923 | AP87: 0.5 | AQ87: 0.04945054945 | AR87: 0.375 | AS87: 0.07142857143 | AT87: 0.34375
D88: 1277 Åstorp | E88: Kommun (B4) | F88: Större städer och kommuner nära större stad | G88: Pendlingskommun nära större stad | H88: 248 | I88: 36 | J88: 0.1451612903 | K88: 36 | L88: 0.02016129032 | M88: 0.125 | N88: 0.008064516129 | O88: 0.008064516129 | P88: 0.008064516129 | Q88: 0.1745283019 | R88: 0.3888888889 | S88: 0.1886792453 | T88: 0.3888888889 | U88: 211.29 | V88: 153.0633333 | W88: 15 | X88: 22 | Y88: 0.07075471698 | Z88: 0.1037735849 | AA88: 12 | AB88: 2 | AC88: 0.3333333333 | AD88: 0.05555555556 | AE88: 0.06603773585 | AF88: 0.3611111111 | AG88: 0.004716981132 | AH88: 0.02777777778 | AI88: 0.1179245283 | AJ88: 0.4166666667 | AK88: 0.03301886792 | AL88: 0.1666666667 | AM88: 0.009433962264 | AN88: 0 | AO88: 0.1603773585 | AP88: 0.3333333333 | AQ88: 0.03773584906 | AR88: 0.1111111111 | AS88: 0.09433962264 | AT88: 0.1388888889
D89: 1280 Malmö | E89: Kommun (A1) | F89: Storstäder och storstadsnära kommuner | G89: Storstäder | H89: 3503 | I89: 250 | J89: 0.07136739937 | K89: 250 | L89: 0.02369397659 | M89: 0.05252640594 | N89: 0.01284613189 | O89: 0.001427347987 | P89: 0.007422209535 | Q89: 0.1632339379 | R89: 0.372 | S89: 0.1733784199 | T89: 0.412 | U89: 234.69 | V89: 160.824878 | W89: 178 | X89: 353 | Y89: 0.05471872118 | Z89: 0.1085152167 | AA89: 63 | AB89: 30 | AC89: 0.252 | AD89: 0.12 | AE89: 0.02028896403 | AF89: 0.12 | AG89: 0.004303719643 | AH89: 0.036 | AI89: 0.08422994159 | AJ89: 0.404 | AK89: 0.02182600676 | AL89: 0.196 | AM89: 0.02551490931 | AN89: 0.092 | AO89: 0.1109744851 | AP89: 0.256 | AQ89: 0.01905932985 | AR89: 0.156 | AS89: 0.07408545958 | AT89: 0.168
D90: 1281 Lund | E90: Kommun (B3) | F90: Större städer och kommuner nära större stad | G90: Större stad | H90: 1380 | I90: 154 | J90: 0.1115942029 | K90: 154 | L90: 0.0268115942 | M90: 0.08768115942 | N90: 0.01449275362 | O90: 0.00652173913 | P90: 0.0115942029 | Q90: 0.06769983687 | R90: 0.2987012987 | S90: 0.07340946166 | T90: 0.3441558442 | U90: 260.47 | V90: 175.9645098 | W90: 19 | X90: 64 | Y90: 0.01549755302 | Z90: 0.05220228385 | AA90: 33 | AB90: 13 | AC90: 0.2142857143 | AD90: 0.08441558442 | AE90: 0.01305057096 | AF90: 0.2142857143 | AG90: 0.00163132137 | AH90: 0.006493506494 | AI90: 0.03752039152 | AJ90: 0.3701298701 | AK90: 0.008972267537 | AL90: 0.2207792208 | AM90: 0.004893964111 | AN90: 0.03246753247 | AO90: 0.03588907015 | AP90: 0.2142857143 | AQ90: 0.008156606852 | AR90: 0.1558441558 | AS90: 0.03507340946 | AT90: 0.1168831169
D91: 1282 Landskrona | E91: Kommun (B4) | F91: Större städer och kommuner nära större stad | G91: Pendlingskommun nära större stad | H91: 492 | I91: 50 | J91: 0.1016260163 | K91: 50 | L91: 0.0325203252 | M91: 0.07113821138 | N91: 0.01219512195 | O91: 0.01016260163 | P91: 0.00406504065 | Q91: 0.1719457014 | R91: 0.26 | S91: 0.1787330317 | T91: 0.32 | U91: 230.66 | V91: 166.46125 | W91: 18 | X91: 58 | Y91: 0.0407239819 | Z91: 0.1312217195 | AA91: 11 | AB91: 2 | AC91: 0.22 | AD91: 0.04 | AE91: 0.01131221719 | AF91: 0.26 | AG91: 0.004524886878 | AH91: 0.02 | AI91: 0.07239819005 | AJ91: 0.48 | AK91: 0.01583710407 | AL91: 0.26 | AM91: 0.004524886878 | AN91: 0.06 | AO91: 0.1312217195 | AP91: 0.16 | AQ91: 0.01583710407 | AR91: 0.06 | AS91: 0.05882352941 | AT91: 0.06
D92: 1283 Helsingborg | E92: Kommun (B3) | F92: Större städer och kommuner nära större stad | G92: Större stad | H92: 1710 | I92: 122 | J92: 0.07134502924 | K92: 122 | L92: 0.02046783626 | M92: 0.05964912281 | N92: 0.01052631579 | O92: 0.002923976608 | P92: 0.002923976608 | Q92: 0.1221662469 | R92: 0.2540983607 | S92: 0.1391687657 | T92: 0.3032786885 | U92: 232 | V92: 167.6076667 | W92: 86 | X92: 108 | Y92: 0.05415617128 | Z92: 0.06801007557 | AA92: 23 | AB92: 8 | AC92: 0.1885245902 | AD92: 0.06557377049 | AE92: 0.04156171285 | AF92: 0.1967213115 | AG92: 0.004408060453 | AH92: 0.02459016393 | AI92: 0.07241813602 | AJ92: 0.4672131148 | AK92: 0.02896725441 | AL92: 0.131147541 | AM92: 0.005037783375 | AN92: 0.08196721311 | AO92: 0.07808564232 | AP92: 0.1803278689 | AQ92: 0.02329974811 | AR92: 0.09836065574 | AS92: 0.05919395466 | AT92: 0.0737704918
D93: 1284 Höganäs | E93: Kommun (B4) | F93: Större städer och kommuner nära större stad | G93: Pendlingskommun nära större stad | H93: 347 | I93: 23 | J93: 0.06628242075 | K93: 23 | L93: 0.03458213256 | M93: 0.05187319885 | N93: 0.02017291066 | O93: 0 | P93: 0.005763688761 | Q93: 0.08024691358 | R93: 0.3043478261 | S93: 0.08024691358 | T93: 0.347826087 | U93: 242.21 | V93: 169.2417647 | W93: 13 | X93: 13 | Y93: 0.04012345679 | Z93: 0.04012345679 | AA93: 7 | AB93: 0 | AC93: 0.3043478261 | AD93: 0 | AE93: 0.02160493827 | AF93: 0.3043478261 | AG93: 0 | AH93: 0.08695652174 | AI93: 0.05555555556 | AJ93: 0.5217391304 | AK93: 0.02160493827 | AL93: 0.2173913043 | AM93: 0.01234567901 | AN93: 0.1304347826 | AO93: 0.0524691358 | AP93: 0.2173913043 | AQ93: 0.02160493827 | AR93: 0.2608695652 | AS93: 0.04012345679 | AT93: 0.08695652174
D94: 1285 Eslöv | E94: Kommun (B4) | F94: Större städer och kommuner nära större stad | G94: Pendlingskommun nära större stad | H94: 452 | I94: 104 | J94: 0.2300884956 | K94: 104 | L94: 0.05309734513 | M94: 0.1371681416 | N94: 0.03761061947 | O94: 0.01991150442 | P94: 0.09513274336 | Q94: 0.1091954023 | R94: 0.2980769231 | S94: 0.1235632184 | T94: 0.3365384615 | U94: 228.89 | V94: 164.3323077 | W94: 13 | X94: 25 | Y94: 0.03735632184 | Z94: 0.07183908046 | AA94: 26 | AB94: 5 | AC94: 0.25 | AD94: 0.04807692308 | AE94: 0.02011494253 | AF94: 0.2403846154 | AG94: 0.005747126437 | AH94: 0 | AI94: 0.05747126437 | AJ94: 0.375 | AK94: 0.02873563218 | AL94: 0.25 | AM94: 0.005747126437 | AN94: 0.07692307692 | AO94: 0.0632183908 | AP94: 0.2307692308 | AQ94: 0.01436781609 | AR94: 0.125 | AS94: 0.04310344828 | AT94: 0.09615384615
D95: 1286 Ystad | E95: Kommun (C6) | F95: Mindre städer/tätorter och landsbygdskommuner | G95: Mindre stad/tätort | H95: 362 | I95: 27 | J95: 0.07458563536 | K95: 27 | L95: 0.01657458564 | M95: 0.0635359116 | N95: 0.01104972376 | O95: 0.005524861878 | P95: 0.005524861878 | Q95: 0.06268656716 | R95: 0.1481481481 | S95: 0.06268656716 | T95: 0.1481481481 | U95: 248.45 | V95: 206.9115385 | W95: 6 | X95: 15 | Y95: 0.01791044776 | Z95: 0.0447761194 | AA95: 4 | AB95: 0 | AC95: 0.1481481481 | AD95: 0 | AE95: 0.02089552239 | AF95: 0.1481481481 | AG95: 0.002985074627 | AH95: 0.03703703704 | AI95: 0.02686567164 | AJ95: 0.4814814815 | AK95: 0 | AL95: 0.07407407407 | AM95: 0.01791044776 | AN95: 0.2592592593 | AO95: 0.03582089552 | AP95: 0.1481481481 | AQ95: 0.01791044776 | AR95: 0.03703703704 | AS95: 0.03880597015 | AT95: 0.03703703704
D96: 1287 Trelleborg | E96: Kommun (A2) | F96: Storstäder och storstadsnära kommuner | G96: Pendlingskommun nära storstad | H96: 538 | I96: 88 | J96: 0.1635687732 | K96: 88 | L96: 0.03345724907 | M96: 0.1394052045 | N96: 0.02044609665 | O96: 0.003717472119 | P96: 0.01115241636 | Q96: 0.05555555556 | R96: 0.2840909091 | S96: 0.08222222222 | T96: 0.3522727273 | U96: 235.83 | V96: 162.4203448 | W96: 15 | X96: 10 | Y96: 0.03333333333 | Z96: 0.02222222222 | AA96: 23 | AB96: 2 | AC96: 0.2613636364 | AD96: 0.02272727273 | AE96: 0.008888888889 | AF96: 0.2613636364 | AG96: 0.002222222222 | AH96: 0.02272727273 | AI96: 0.09555555556 | AJ96: 0.5454545455 | AK96: 0.004444444444 | AL96: 0.09090909091 | AM96: 0.004444444444 | AN96: 0.06818181818 | AO96: 0.03777777778 | AP96: 0.2272727273 | AQ96: 0.02 | AR96: 0.2272727273 | AS96: 0.03333333333 | AT96: 0.1590909091
D97: 1290 Kristianstad | E97: Kommun (B3) | F97: Större städer och kommuner nära större stad | G97: Större stad | H97: 1038 | I97: 106 | J97: 0.1021194605 | K97: 106 | L97: 0.01926782274 | M97: 0.09633911368 | N97: 0.01541425819 | O97: 0.0105973025 | P97: 0.003853564547 | Q97: 0.1555793991 | R97: 0.3396226415 | S97: 0.1673819742 | T97: 0.3867924528 | U97: 222.16 | V97: 142.1144118 | W97: 84 | X97: 61 | Y97: 0.09012875536 | Z97: 0.06545064378 | AA97: 27 | AB97: 9 | AC97: 0.2547169811 | AD97: 0.08490566038 | AE97: 0.05042918455 | AF97: 0.3018867925 | AG97: 0.005364806867 | AH97: 0.009433962264 | AI97: 0.1427038627 | AJ97: 0.4811320755 | AK97: 0.01716738197 | AL97: 0.2075471698 | AM97: 0.002145922747 | AN97: 0.02830188679 | AO97: 0.114806867 | AP97: 0.2358490566 | AQ97: 0.02253218884 | AR97: 0.2264150943 | AS97: 0.06223175966 | AT97: 0.179245283
D98: 1292 Ängelholm | E98: Kommun (B4) | F98: Större städer och kommuner nära större stad | G98: Pendlingskommun nära större stad | H98: 454 | I98: 42 | J98: 0.09251101322 | K98: 42 | L98: 0.01101321586 | M98: 0.07268722467 | N98: 0.008810572687 | O98: 0.004405286344 | P98: 0.01101321586 | Q98: 0.08737864078 | R98: 0.380952381 | S98: 0.09708737864 | T98: 0.4523809524 | U98: 230.73 | V98: 152.63 | W98: 13 | X98: 23 | Y98: 0.03155339806 | Z98: 0.05582524272 | AA98: 14 | AB98: 2 | AC98: 0.3333333333 | AD98: 0.04761904762 | AE98: 0.02184466019 | AF98: 0.1428571429 | AG98: 0.002427184466 | AH98: 0 | AI98: 0.07766990291 | AJ98: 0.5714285714 | AK98: 0 | AL98: 0.04761904762 | AM98: 0.004854368932 | AN98: 0 | AO98: 0.05097087379 | AP98: 0.2857142857 | AQ98: 0.01699029126 | AR98: 0.1428571429 | AS98: 0.04368932039 | AT98: 0.1666666667
D99: 1293 Hässleholm | E99: Kommun (B5) | F99: Större städer och kommuner nära större stad | G99: Lågpendlingskommun nära större stad | H99: 616 | I99: 78 | J99: 0.1266233766 | K99: 78 | L99: 0.03733766234 | M99: 0.1087662338 | N99: 0.02597402597 | O99: 0.003246753247 | P99: 0.00974025974 | Q99: 0.1431226766 | R99: 0.4358974359 | S99: 0.1598513011 | T99: 0.5128205128 | U99: 224.2 | V99: 136.9094737 | W99: 26 | X99: 51 | Y99: 0.04832713755 | Z99: 0.09479553903 | AA99: 25 | AB99: 9 | AC99: 0.3205128205 | AD99: 0.1153846154 | AE99: 0.02602230483 | AF99: 0.3076923077 | AG99: 0.01115241636 | AH99: 0.01282051282 | AI99: 0.07063197026 | AJ99: 0.5128205128 | AK99: 0.02230483271 | AL99: 0.1923076923 | AM99: 0.003717472119 | AN99: 0.0641025641 | AO99: 0.09107806691 | AP99: 0.2948717949 | AQ99: 0.03717472119 | AR99: 0.2948717949 | AS99: 0.06319702602 | AT99: 0.1282051282
D100: 1315 Hylte | E100: Kommun (B5) | F100: Större städer och kommuner nära större stad | G100: Lågpendlingskommun nära större stad | H100: 159 | I100: 27 | J100: 0.1698113208 | K100: 27 | L100: 0.01257861635 | M100: 0.1698113208 | N100: 0.01257861635 | O100: 0 | P100: 0 | Q100: 0.2272727273 | R100: 0.5555555556 | S100: 0.2348484848 | T100: 0.6296296296 | U100: 216.51 | V100: 132.887037 | W100: 15 | X100: 15 | Y100: 0.1136363636 | Z100: 0.1136363636 | AA100: 10 | AB100: 5 | AC100: 0.3703703704 | AD100: 0.1851851852 | AE100: 0.1136363636 | AF100: 0.4074074074 | AG100: 0.007575757576 | AH100: 0.03703703704 | AI100: 0.09848484848 | AJ100: 0.4444444444 | AK100: 0.01515151515 | AL100: 0 | AM100: 0.01515151515 | AN100: 0 | AO100: 0.1136363636 | AP100: 0.4074074074 | AQ100: 0.07575757576 | AR100: 0.2222222222 | AS100: 0.09848484848 | AT100: 0.1481481481
D101: 1380 Halmstad | E101: Kommun (B3) | F101: Större städer och kommuner nära större stad | G101: Större stad | H101: 1161 | I101: 137 | J101: 0.1180017227 | K101: 137 | L101: 0.01378122308 | M101: 0.1162790698 | N101: 0.01291989664 | O101: 0.005167958656 | P101: 0.006890611542 | Q101: 0.1416015625 | R101: 0.4160583942 | S101: 0.142578125 | T101: 0.4452554745 | U101: 234.55 | V101: 151.6461654 | W101: 53 | X101: 92 | Y101: 0.0517578125 | Z101: 0.08984375 | AA101: 44 | AB101: 13 | AC101: 0.3211678832 | AD101: 0.09489051095 | AE101: 0.0283203125 | AF101: 0.2408759124 | AG101: 0.001953125 | AH101: 0.04379562044 | AI101: 0.0693359375 | AJ101: 0.4306569343 | AK101: 0.048828125 | AL101: 0.2919708029 | AM101: 0.0166015625 | AN101: 0.1313868613 | AO101: 0.10546875 | AP101: 0.3284671533 | AQ101: 0.0185546875 | AR101: 0.2262773723 | AS101: 0.0556640625 | AT101: 0.1824817518
D102: 1381 Laholm | E102: Kommun (B4) | F102: Större städer och kommuner nära större stad | G102: Pendlingskommun nära större stad | H102: 302 | I102: 38 | J102: 0.1258278146 | K102: 38 | L102: 0.006622516556 | M102: 0.1158940397 | N102: 0.006622516556 | O102: 0.006622516556 | P102: 0.006622516556 | Q102: 0.1893939394 | R102: 0.3684210526 | S102: 0.2007575758 | T102: 0.4210526316 | U102: 212.4 | V102: 140.4789474 | W102: 21 | X102: 29 | Y102: 0.07954545455 | Z102: 0.1098484848 | AA102: 10 | AB102: 4 | AC102: 0.2631578947 | AD102: 0.1052631579 | AE102: 0.08333333333 | AF102: 0.3947368421 | AG102: 0.007575757576 | AH102: 0.05263157895 | AI102: 0.08333333333 | AJ102: 0.5263157895 | AK102: 0.03787878788 | AL102: 0.1578947368 | AM102: 0.0303030303 | AN102: 0.1842105263 | AO102: 0.1060606061 | AP102: 0.2368421053 | AQ102: 0.0303030303 | AR102: 0.1315789474 | AS102: 0.1060606061 | AT102: 0.1578947368
D103: 1382 Falkenberg | E103: Kommun (C6) | F103: Mindre städer/tätorter och landsbygdskommuner | G103: Mindre stad/tätort | H103: 528 | I103: 63 | J103: 0.1193181818 | K103: 63 | L103: 0.02462121212 | M103: 0.1136363636 | N103: 0.01893939394 | O103: 0.003787878788 | P103: 0 | Q103: 0.1268817204 | R103: 0.3650793651 | S103: 0.1311827957 | T103: 0.3968253968 | U103: 233.73 | V103: 167.9395238 | W103: 13 | X103: 46 | Y103: 0.02795698925 | Z103: 0.09892473118 | AA103: 14 | AB103: 9 | AC103: 0.2222222222 | AD103: 0.1428571429 | AE103: 0.01720430108 | AF103: 0.253968254 | AG103: 0 | AH103: 0.03174603175 | AI103: 0.05161290323 | AJ103: 0.3968253968 | AK103: 0.02150537634 | AL103: 0.2063492063 | AM103: 0.02150537634 | AN103: 0.1587301587 | AO103: 0.1010752688 | AP103: 0.3174603175 | AQ103: 0.01075268817 | AR103: 0.1587301587 | AS103: 0.05591397849 | AT103: 0.1904761905
D104: 1383 Varberg | E104: Kommun (C6) | F104: Mindre städer/tätorter och landsbygdskommuner | G104: Mindre stad/tätort | H104: 766 | I104: 95 | J104: 0.1240208877 | K104: 95 | L104: 0.03133159269 | M104: 0.1187989556 | N104: 0.02872062663 | O104: 0.009138381201 | P104: 0.01174934726 | Q104: 0.07153502235 | R104: 0.2210526316 | S104: 0.07451564829 | T104: 0.3052631579 | U104: 237.61 | V104: 164.7424731 | W104: 24 | X104: 24 | Y104: 0.03576751118 | Z104: 0.03576751118 | AA104: 20 | AB104: 1 | AC104: 0.2105263158 | AD104: 0.01052631579 | AE104: 0.01341281669 | AF104: 0.2631578947 | AG104: 0.002980625931 | AH104: 0 | AI104: 0.06259314456 | AJ104: 0.4421052632 | AK104: 0.01043219076 | AL104: 0.1368421053 | AM104: 0.01192250373 | AN104: 0.06315789474 | AO104: 0.05514157973 | AP104: 0.1368421053 | AQ104: 0.01788375559 | AR104: 0.1052631579 | AS104: 0.04470938897 | AT104: 0.09473684211
D105: 1384 Kungsbacka | E105: Kommun (A2) | F105: Storstäder och storstadsnära kommuner | G105: Pendlingskommun nära storstad | H105: 1259 | I105: 163 | J105: 0.1294678316 | K105: 163 | L105: 0.03018268467 | M105: 0.1191421763 | N105: 0.02303415409 | O105: 0.007942811755 | P105: 0.001588562351 | Q105: 0.0647810219 | R105: 0.3312883436 | S105: 0.07208029197 | T105: 0.3803680982 | U105: 248.11 | V105: 159.1758385 | W105: 33 | X105: 38 | Y105: 0.03010948905 | Z105: 0.03467153285 | AA105: 46 | AB105: 8 | AC105: 0.282208589 | AD105: 0.0490797546 | AE105: 0.0200729927 | AF105: 0.3312883436 | AG105: 0.008211678832 | AH105: 0.0490797546 | AI105: 0.05474452555 | AJ105: 0.472392638 | AK105: 0.001824817518 | AL105: 0.0736196319 | AM105: 0.01368613139 | AN105: 0.1104294479 | AO105: 0.04744525547 | AP105: 0.2024539877 | AQ105: 0.01094890511 | AR105: 0.1656441718 | AS105: 0.03375912409 | AT105: 0.08588957055
D106: 1401 Härryda | E106: Kommun (A2) | F106: Storstäder och storstadsnära kommuner | G106: Pendlingskommun nära storstad | H106: 567 | I106: 52 | J106: 0.09171075838 | K106: 52 | L106: 0.007054673721 | M106: 0.08994708995 | N106: 0.003527336861 | O106: 0 | P106: 0 | Q106: 0.06990291262 | R106: 0.3461538462 | S106: 0.07184466019 | T106: 0.3846153846 | U106: 252.02 | V106: 169.0688 | W106: 21 | X106: 15 | Y106: 0.04077669903 | Z106: 0.02912621359 | AA106: 16 | AB106: 2 | AC106: 0.3076923077 | AD106: 0.03846153846 | AE106: 0.02330097087 | AF106: 0.25 | AG106: 0.003883495146 | AH106: 0 | AI106: 0.07378640777 | AJ106: 0.5 | AK106: 0.003883495146 | AL106: 0.2115384615 | AM106: 0.003883495146 | AN106: 0 | AO106: 0.05242718447 | AP106: 0.3076923077 | AQ106: 0.01941747573 | AR106: 0.1153846154 | AS106: 0.01553398058 | AT106: 0.1346153846
D107: 1402 Partille | E107: Kommun (A2) | F107: Storstäder och storstadsnära kommuner | G107: Pendlingskommun nära storstad | H107: 510 | I107: 46 | J107: 0.09019607843 | K107: 46 | L107: 0.02745098039 | M107: 0.07450980392 | N107: 0.01764705882 | O107: 0.01176470588 | P107: 0.007843137255 | Q107: 0.09267241379 | R107: 0.3695652174 | S107: 0.09698275862 | T107: 0.4130434783 | U107: 247.76 | V107: 177.8278261 | W107: 23 | X107: 20 | Y107: 0.04956896552 | Z107: 0.04310344828 | AA107: 16 | AB107: 1 | AC107: 0.347826087 | AD107: 0.02173913043 | AE107: 0.02801724138 | AF107: 0.3260869565 | AG107: 0.004310344828 | AH107: 0 | AI107: 0.1034482759 | AJ107: 0.6304347826 | AK107: 0.05603448276 | AL107: 0.4130434783 | AM107: 0.03232758621 | AN107: 0.3260869565 | AO107: 0.06896551724 | AP107: 0.2173913043 | AQ107: 0.02155172414 | AR107: 0.1086956522 | AS107: 0.03663793103 | AT107: 0.1304347826
D108: 1407 Öckerö | E108: Kommun (A2) | F108: Storstäder och storstadsnära kommuner | G108: Pendlingskommun nära storstad | H108: 166 | I108: 26 | J108: 0.156626506 | K108: 26 | L108: 0.03614457831 | M108: 0.1385542169 | N108: 0.02409638554 | O108: 0.02409638554 | P108: 0 | Q108: 0.05714285714 | R108: 0.2692307692 | S108: 0.05714285714 | T108: 0.3846153846 | U108: 234.82 | V108: 149.9992 | W108: 2 | X108: 6 | Y108: 0.01428571429 | Z108: 0.04285714286 | AA108: 6 | AB108: 1 | AC108: 0.2307692308 | AD108: 0.03846153846 | AE108: 0.01428571429 | AF108: 0.4230769231 | AG108: 0 | AH108: 0 | AI108: 0.07857142857 | AJ108: 0.6153846154 | AK108: 0.01428571429 | AL108: 0.2307692308 | AM108: 0.07142857143 | AN108: 0.1538461538 | AO108: 0.05714285714 | AP108: 0.1923076923 | AQ108: 0.01428571429 | AR108: 0.1153846154 | AS108: 0.02857142857 | AT108: 0.1538461538
D109: 1415 Stenungsund | E109: Kommun (A2) | F109: Storstäder och storstadsnära kommuner | G109: Pendlingskommun nära storstad | H109: 375 | I109: 30 | J109: 0.08 | K109: 30 | L109: 0.02933333333 | M109: 0.056 | N109: 0.01333333333 | O109: 0.005333333333 | P109: 0.01066666667 | Q109: 0.06956521739 | R109: 0.3333333333 | S109: 0.08115942029 | T109: 0.4333333333 | U109: 235.91 | V109: 138.694 | W109: 6 | X109: 18 | Y109: 0.01739130435 | Z109: 0.05217391304 | AA109: 9 | AB109: 1 | AC109: 0.3 | AD109: 0.03333333333 | AE109: 0.0115942029 | AF109: 0.3666666667 | AG109: 0.005797101449 | AH109: 0 | AI109: 0.02608695652 | AJ109: 0.4333333333 | AK109: 0.005797101449 | AL109: 0.4333333333 | AM109: 0.005797101449 | AN109: 0.06666666667 | AO109: 0.06666666667 | AP109: 0.2 | AQ109: 0.0115942029 | AR109: 0.2333333333 | AS109: 0.0347826087 | AT109: 0.2333333333
